Workbook

Sheet Enable Macros
B5: In partnership with:
B9: Irrigation Demand Estimation Tool
B10: Welcome to the Irrigation Demand Estimation Tool (IDE).
B11: If you are seeing this screen, it probably means that Macros are disabled in your current Excel configuration. Proper operation of the IDE Tool requires that Macros be enabled. In some versions of Excel, Macros may be enabled as follows:
B12: 1. From the main Menu Bar, select 'File'. 2. From the list displayed on the left side of the window that opens, select 'Options'. 3. From the list displayed on the left side of the next window that opens, select 'Trust Center' 4. In the next windows displayed, click the button labeled 'Trust Center Settings...' 5. From the list displayed on the left side of the next window that opens, select 'Macro Settings'. 6. Under 'Macro Settings' at top right, select 'Enable all macros (Not recommended; potentially dangerous code can run)'. 7. Click the 'Ok' button to close the 'Trust Settings' window. 8. Click the 'Ok' button to close the 'Options' window. 9. Close Excel. 10. Restart Excel. The new macro setting should now be in effect and this screen should not be displayed.
B13: If these instructions do not seem to match your version of Excel, please search on 'Macro Settings' within the Excel Help system or consult with your IT advisor.

Sheet Title (hidden)
G5: In partnership with:
B10: Irrigation Demand Estimation Tool

Sheet Notice (hidden)
A2: Irrigation Demand Estimation Tool
B3: Welcome to the Irrigation Demand Estimation Tool (IDE).
B4: The IDE Tool and associated materials were prepared by Dillon Consulting Limited (Dillon) on behalf of The City of Calgary. All copyright and trademarks on the IDE Tool and associated materials remain the property of The City of Calgary.
B5: If you continue to browse and use the IDE Tool, you are agreeing to comply with and be bound by the following terms and conditions of use. Before using the IDE Tool, you must scroll to the bottom of these conditions and indicate your acceptance of them using the button provided.
A6: 1. | B6: Neither The City of Calgary nor Dillon provide any warranty or guarantee as to the accuracy, performance, completeness or suitability of the IDE Tool and associated materials for any particular purpose. You acknowledge that the IDE Tool and associated materials may contain inaccuracies or errors and The City of Calgary and Dillon exclude liability for any such inaccuracies or errors.
A7: 2. | B7: Your use of the IDE Tool and associated materials is entirely at your own risk, for which The City of Calgary and Dillon shall not be liable. The City of Calgary and Dillon are not responsible for any direct, indirect, incidental, consequential or other damages resulting from the use, misuse or misinterpretation of the IDE Tool and associated materials.
A8: 3. | B8: It shall be the user’s responsibility to ensure that the IDE Tool and associated materials meet your specific requirements. The user shall ensure that the analysis and design, and subsequent performance of project sites meet all relevant watershed targets, standards and guidelines. Consult a professional engineer before utilizing the IDE Tool and associated materials.
A9: 4. | B9: Every reasonable effort has been made to have the IDE Tool run smoothly on typical hardware. However, neither The City of Calgary nor Dillon take any responsibility for, and will not be liable for, the IDE Tool not being able to be applied due to technical issues beyond our control.
A10: 5. | B10: You agree to immediately advise The City of Calgary of any issues that arise out of the use of the IDE Tool and associated materials. You understand that the IDE Tool and associated materials are subject to change at any time. You agree to always use the latest version of the IDE Tool, which will be posted on The City of Calgary’s website.

Sheet Output Cover (hidden)
A7: Irrigation Demand Estimation Tool
A10: =PROJ_NAME -> Test
A12: =NOW() -> 2019-02-22T09:14:12.700

Sheet Project Data (hidden)
A2: Basic Project Information
B4: Project Name: | C4: Test
B6: Project Description: | C6: My Test
B8: Location: | C8: Calgary
B10: Date: | C10: 2016-05-05
B12: Company: | C12: DCL
B14: Designer: | C14: DCL
B16: Reviewer: | C16: DCL

Sheet Project Data Output (hidden)
B1: Irrigation Demand Estimation Tool
A2: Project Data
A4: Project Name: | B4: =PROJ_NAME -> Test
A5: Project Description: | B5: =PROJ_DESC -> My Test
A6: Location: | B6: =LOCATION -> Calgary
A7: Date: | B7: =DATE -> 2016-05-05
A8: Company: | B8: =COMPANY -> DCL
A9: Designer: | B9: =DESIGNER -> DCL
A10: Reviewer: | B10: =REVIEWER -> DCL
A11: Total Area: | B11: =IsDefault(TOTAL_AREA,2,0,"hectares") -> 
A12: Maximum Daily Pumped Irrigation Volume: | B12: =MAX_IRR_VOLUME -> 2075.679766
A13: Assumed Maximum Pumping Rate: | B13: =MAX_PUMP_RATE -> 420
A15: Main Settings
A17: Allow custom entries: | B17: =CUSTOM -> FALSE
A18: Subsoil percolation rate safety factor: | B18: =IsDefault(PERC_SF,2,1) -> 
A19: Precipitation adjustment factor: | B19: =IsDefault(PERC_SF,2,1) -> 
A20: Effective precipitation threshold: | B20: =IsDefault(EFF_PRECIP,0,5,"mm") -> 
A21: Effective precipitation multiplier: | B21: =IsDefault(EFF_MULT,2,0.75,"") -> 
A22: Precipitation required to cancel irrigation: | B22: =TEXT(IC_MM,0)& " mm over the previous " & TEXT(IC_DAYS,0)&" days"&IF(AND(IC_MM=10,IC_DAYS=2)," [Default]","") -> 10 mm over the previous 2 days [Default]
A23: Minimum average daily temperature for irrigation: | B23: =IsDefault(IRR_TEMP,0,3,"Deg C") -> 
A24: Maximum average daily wind speed for irrigation: | B24: =IsDefault(IRR_MAXWIND,0,8,"kph") -> 
A25: Irrigation target water content: | B25: =TEXT(IRR_TARGET,"0.00") &" x Field Capacity" & IF(IRR_TARGET=1.1," [Default]","") -> 1.10 x Field Capacity [Default]
A26: Management Allowable Depletion (MAD): | B26: =TEXT(IRR_MAD,"0%")&IF(IRR_MAD=0.5," [Default]","") -> 50% [Default]
A27: Irrigation system management efficiency: | B27: =TEXT(IRR_MEF,"0%")&IF(IRR_MEF=0.9," [Default]","") -> 90% [Default]
A28: Rain gauge ID: | B28: =RGID -> 3031093

Sheet Main Settings (hidden)
A2: Analysis Settings
D4: Allow custom entries: | E4: FALSE | F4: Check this box to allow custom data entries.
D6: Percolation rate safety factor: | E6: 1 | F6: A factor greater than 1.0 reduces the percolation rate / estimated volume of water lost to percolation. Default = 1.0.
D8: Precipitation adjustment factor: | E8: 1 | F8: Historical precipitation values are multiplied by this factor before use. Default = 1.0.
D10: Effective precipitation threshold: | E10: 5 | F10: mm. Daily precipitation less than this value is neglected in the water balance calculations. Default = 5.
D12: Effective precipitation multiplier: | E12: 0.75 | F12: Effective precipitation = (Actual Precipitation - Threshold) x This Value. Default = 0.75.
D14: Precipitation required to cancel irrigation: | E14: 10 | F14: mm over the previous | G14: 2 | H14: days. Default = 10 mm over the preceding 2 days.
D16: Minimum average daily temperature for irrigation: | E16: 3 | F16: deg C. Irrigation will be cancelled if the minimum average temperature is below this value. Default = 3 deg C.
D18: Maximum average daily wind speed for irrigation: | E18: 8 | F18: ="kph. Broadcast irrigation will be cancelled if the average daily wind speed exceeds this value. Default = 8 kph. Current setting allows irrigation over "&TEXT(100*IRR_FRAC_DAYTOT,"00")&" percent of days." -> kph. Broadcast irrigation will be cancelled if the average daily wind speed exceeds this value. Default = 8 kph. Current setting allows irrigation over 71 percent of days.
D20: Irrigation target water content: | E20: 1.1 | F20: Multiplier applied to Field Capacity to determine irrigation volume to be applied. Default = 1.1.
D22: Management Allowable Depletion (MAD): | E22: 0.5 | F22: percent. Defines the MAD with respect to the range between the Wilting Point (0%) and Field Capacity (100%). Default = 50%.
D24: Irrigation system management efficiency: | E24: 0.9 | F24: Factor to account for the efficiency of irrigation system management. Default = 90%.
D26: Rain gauge ID: | E26: 3031093 | F26: 7-digit identifier used in the time series output file. Default=3031093.

Sheet Area Settings (hidden)
A2: Area Definitions
B4: Total area determined by: | C4: =INDEX(AREA_DEF_LIST,AREA_DEF_METH) -> Definition | G4: Input types: | I4: Calculated field - no input required
I5: Manual (direct) input
B6: Total irrigated area: | C6: 8.8 | D6: hectares | I6: List selection input - double click to display the selection list
B9: Area Number | C9: Area Name | D9: Relative Size of Area | E9: Topsoil Type | F9: Topsoil Compaction Level | G9: Rooting Depth (mm) | H9: Subsoil Type | I9: Vegetation Type (KPS) | J9: Vegetation Density (KD) | K9: Micro- Climate (KMC) | L9: Landscape Coefficient Method | M9: Defined Landscape Coefficient (KL) | N9: Calculated Landscape Coefficient (KL) | O9: Irrigation Method | P9: Irrigation Schedule
B10: Area Num | C10: Column1 | D10: Area | E10: Topsoil | F10: TopsoilComp | G10: RootingDepth | H10: Subsoil | I10: Vegetation | J10: Density | K10: Microclimate | L10: LC_Meth | M10: LC_Def | N10: LC_Calc | O10: IrrMeth | P10: IrrSched
B11: 1 | C11: Test 1 | D11: 100 | E11: Silt Loam | F11: Medium | G11: 150 | H11: Silty Clay Loam | I11: Urban C | J11: High | K11: Normal | L11: Calculated | N11: =IF(AreaData[[#This Row],[Topsoil]]="","",LC(AreaData[[#This Row],[Vegetation]],AreaData[[#This Row],[Density]],AreaData[[#This Row],[Microclimate]])) ->  | O11: Rotors | P11: Mon Wed Fri
B12: 2 | C12: Test 2 | D12: 200 | E12: Silt Loam | F12: Medium | G12: 300 | H12: Silty Clay Loam | I12: Urban C | J12: High | K12: Normal | L12: Calculated | N12: =IF(AreaData[[#This Row],[Topsoil]]="","",LC(AreaData[[#This Row],[Vegetation]],AreaData[[#This Row],[Density]],AreaData[[#This Row],[Microclimate]])) ->  | O12: Fixed Spray | P12: Mon Wed Fri
B13: 3 | C13: Test 3 | D13: 100 | E13: Sandy Clay Loam | F13: Medium | G13: 150 | H13: Silty Clay | I13: Mixed (Med) | J13: Medium | K13: Normal | L13: Calculated | N13: =IF(AreaData[[#This Row],[Topsoil]]="","",LC(AreaData[[#This Row],[Vegetation]],AreaData[[#This Row],[Density]],AreaData[[#This Row],[Microclimate]])) ->  | O13: Rotors | P13: Sun Tue Thu
B14: 4 | C14: Test 4 | D14: 200 | E14: Sandy Loam | F14: Medium | G14: 150 | H14: Silty Clay | I14: Mixed (Med) | J14: Medium | K14: Normal | L14: Calculated | N14: =IF(AreaData[[#This Row],[Topsoil]]="","",LC(AreaData[[#This Row],[Vegetation]],AreaData[[#This Row],[Density]],AreaData[[#This Row],[Microclimate]])) ->  | O14: Drip - Standard | P14: Tue Thu Sat
B15: 5 | N15: =IF(AreaData[[#This Row],[Topsoil]]="","",LC(AreaData[[#This Row],[Vegetation]],AreaData[[#This Row],[Density]],AreaData[[#This Row],[Microclimate]])) -> 
B16: 6 | N16: =IF(AreaData[[#This Row],[Topsoil]]="","",LC(AreaData[[#This Row],[Vegetation]],AreaData[[#This Row],[Density]],AreaData[[#This Row],[Microclimate]])) -> 
B17: 7 | N17: =IF(AreaData[[#This Row],[Topsoil]]="","",LC(AreaData[[#This Row],[Vegetation]],AreaData[[#This Row],[Density]],AreaData[[#This Row],[Microclimate]])) -> 
B18: 8 | N18: =IF(AreaData[[#This Row],[Topsoil]]="","",LC(AreaData[[#This Row],[Vegetation]],AreaData[[#This Row],[Density]],AreaData[[#This Row],[Microclimate]])) -> 
B19: 9 | N19: =IF(AreaData[[#This Row],[Topsoil]]="","",LC(AreaData[[#This Row],[Vegetation]],AreaData[[#This Row],[Density]],AreaData[[#This Row],[Microclimate]])) -> 
B20: 10 | N20: =IF(AreaData[[#This Row],[Topsoil]]="","",LC(AreaData[[#This Row],[Vegetation]],AreaData[[#This Row],[Density]],AreaData[[#This Row],[Microclimate]])) -> 
B21: 11 | N21: =IF(AreaData[[#This Row],[Topsoil]]="","",LC(AreaData[[#This Row],[Vegetation]],AreaData[[#This Row],[Density]],AreaData[[#This Row],[Microclimate]])) -> 
B22: 12 | N22: =IF(AreaData[[#This Row],[Topsoil]]="","",LC(AreaData[[#This Row],[Vegetation]],AreaData[[#This Row],[Density]],AreaData[[#This Row],[Microclimate]])) -> 
B23: 13 | N23: =IF(AreaData[[#This Row],[Topsoil]]="","",LC(AreaData[[#This Row],[Vegetation]],AreaData[[#This Row],[Density]],AreaData[[#This Row],[Microclimate]])) -> 
B24: 14 | N24: =IF(AreaData[[#This Row],[Topsoil]]="","",LC(AreaData[[#This Row],[Vegetation]],AreaData[[#This Row],[Density]],AreaData[[#This Row],[Microclimate]])) -> 
B25: 15 | N25: =IF(AreaData[[#This Row],[Topsoil]]="","",LC(AreaData[[#This Row],[Vegetation]],AreaData[[#This Row],[Density]],AreaData[[#This Row],[Microclimate]])) -> 

Sheet Area Output (hidden)
B1: Irrigation Demand Estimation Tool
A2: Area Details | B2: =INDEX(AREA_LIST,OAREA) -> Test 4 | C2: 4
A4: Area Number: | B4: =TEXT(OAREA,"0") & " of " & TEXT(AREA_COUNT,"0") -> 4 of 4
A5: Area Name: | B5: =INDEX(AREA_NAMES,OAREA) -> Test 4
A6: Size: | B6: =TEXT(INDEX(AreaData[],OAREA,3)*IF(AREA_DEF_METH=2,TOTAL_AREA/SUM(AreaData[Area]),1),"0.000")&" hectares" -> 2.933 hectares
A7: Topsoil Type: | B7: =INDEX(AreaData[],OAREA,4)&" " &IF(ISERROR(FIND("Custom",INDEX(AreaData[],OAREA,4))),"[Standard soil type]","[Custom soil type]") -> Sandy Loam [Standard soil type] | C7: =EntryIndexName(INDEX(AreaData[],OAREA,4),"SoilType") -> 
B8: ="Water Holding Capacity at Saturation = " & TEXT(INDEX(SoilType,$C$7,3),"0.000") & " mm/mm" -> 
B9: ="Water Holding Capacity at Field Capacity = " & TEXT(INDEX(SoilType,$C$7,4),"0.000")&" mm/mm" -> 
B10: ="Water Holding Capacity at Wilting Point = " & TEXT(INDEX(SoilType,$C$7,5),"0.000")&" mm/mm" -> 
B11: =IF(INDEX(SoilType,$C$7,7)="","[No Comments Defined]",INDEX(SoilType,$C$7,7)) -> 
B12: =IF(INDEX(SoilType,$C$7,8)="","[No Source Defined]",INDEX(SoilType,$C$7,8)) -> 
A13: Topsoil Compaction Level: | B13: =INDEX(AreaData[],OAREA,5) -> Medium
A14: Rooting Depth: | B14: =INDEX(AreaData[],OAREA,6) & " mm" -> 150 mm
A15: Subsoil Type: | B15: =INDEX(AreaData[],OAREA,7)&" " &IF(ISERROR(FIND("Custom",INDEX(AreaData[],OAREA,7))),"[Standard soil type]","[Custom soil type]") -> Silty Clay [Standard soil type] | C15: =EntryIndexName(INDEX(AreaData[],OAREA,7),"SoilType") -> 
B16: ="Saturated Hydraulic Conductivity = " & TEXT(INDEX(SoilType,$C$15,6),"0.000")&" mm/hour" -> 
B17: =IF(INDEX(SoilType,$C$15,7)="","[No Comments Defined]",INDEX(SoilType,$C$7,7)) -> 
B18: =IF(INDEX(SoilType,$C$15,8)="","[No Source Defined]",INDEX(SoilType,$C$7,8)) -> 
A19: Vegetation Type: | B19: =INDEX(AreaData[],OAREA,8)&" " &IF(ISERROR(FIND("Custom",INDEX(AreaData[],OAREA,8))),"[Standard vegetation type]","[Custom vegetation type]") -> Mixed (Med) [Standard vegetation type] | C19: =EntryIndexName(INDEX(AreaData[],OAREA,8),"AvailableSpecies") -> 
B20: ="Vegetation Type = " & INDEX(AvailableSpecies,$C$19,3) ->  | C20: =MATCH(INDEX(AvailableSpecies,$C$19,3),VegTypes,0) -> 
B21: ="Water Demand Level = " & INDEX(AvailableSpecies,$C$19,4) ->  | C21: =MATCH(INDEX(AreaData[],OAREA,9),DF_HEADER,0) -> 2
B22: ="Species Factor, Ks = " & TEXT(INDEX(AvailableSpecies,$C$19,7),"0.00") ->  | C22: =MATCH(INDEX(AreaData[],OAREA,10),MC_HEADER, ) -> 2
B23: =IF(INDEX(AvailableSpecies,$C$19,8)="","[No Comments Defined]","Comments =" &INDEX(AvailableSpecies,$C$19,8)) -> 
B24: =IF(INDEX(AvailableSpecies,$C$19,9)="","[No Source Defined]","Source="&INDEX(AvailableSpecies,$C$19,9)) -> 
A25: Vegetation Density: | B25: =INDEX(AreaData[],OAREA,9) & " (Kd = " & TEXT(C25,"0.00")&")" ->  | C25: =INDEX(DensityFactor,C20,C21+1) -> 
A26: Microclimate: | B26: =INDEX(AreaData[],OAREA,10) & " (Kmc = " & TEXT(C26,"0.00")&")" ->  | C26: =INDEX(MCFactor,C20,C22+1) -> 
A27: Landscape Coefficient Method: | B27: =INDEX(AreaData[],OAREA,11) -> Calculated
A28: Calculated Landscape Coefficient: | B28: =TEXT(INDEX(AreaData[],OAREA,13),"0.000") & IF(B27="Manual"," [Not Used - See Line Below]","") -> 
A29: User-Defined Landscape Coefficient: | B29: =IF(B27="Calculated","",INDEX(AreaData[],OAREA,12)) -> 
A30: Irrigation Method: | B30: =INDEX(AreaData[],OAREA,14)&" " &IF(ISERROR(FIND("Custom",INDEX(AreaData[],OAREA,14))),"[Standard irrigation method]","[Custom irrigation method]") -> Drip - Standard [Standard irrigation method] | C30: =EntryIndexName(INDEX(AreaData[],OAREA,14),"IrrigationMethod") -> 
B31: ="Application Efficiency = "&TEXT(INDEX(IrrigationMethod,$C$30,3),"0%") -> 
B32: ="Assumed 'Other Losses' = "&TEXT(INDEX(IrrigationMethod,$C$30,4),"0%") -> 
B33: =IF(INDEX(IrrigationMethod,$C$30,5)="Yes","Drip System","Broadcast System") -> 
B34: =IF(INDEX(IrrigationMethod,$C$30,6)="","[No Source Defined]","Source="&INDEX(IrrigationMethod,$C$30,6)) -> 
A35: Irrigation Schedule: | B35: =INDEX(AreaData[],OAREA,15) -> Tue Thu Sat

Sheet Area Output 2 (hidden)
I1: Irrigation Demand Estimation Tool
A2: WBSCC Input Data | F2: =INDEX(AREA_LIST,OAREA) -> Test 4
B4: Crop Water Requirements - mm/month
C6: Winter or | D6: =INDEX(AREA_NAMES,OAREA) -> Test 4
B7: Month | C7: Summer ? | D7: =IF(D6=0,"",INDEX(AreaData[Vegetation],OAREA)) -> Mixed (Med)
B8: January | C8: Winter | D8: =IF(OR(D$6=0,$K8=0),"",INDEX(MONTHLY_IRR,D$6,$K8)) ->  | K8: 0
B9: February | C9: Winter | D9: =IF(OR(D$6=0,$K9=0),"",INDEX(MONTHLY_IRR,D$6,$K9)) ->  | K9: 0
B10: March | C10: Winter | D10: =IF(OR(D$6=0,$K10=0),"",INDEX(MONTHLY_IRR,D$6,$K10)) ->  | K10: 0
B11: April | C11: Summer | D11: =IF(OR(D$6=0,$K11=0),"",INDEX(MONTHLY_IRR,D$6,$K11)) ->  | K11: 0
B12: May | C12: Summer | D12: =INDEX(MONTHLY_IRR,OAREA,$K12) -> 78.30742948 | K12: 1
B13: June | C13: Summer | D13: =INDEX(MONTHLY_IRR,OAREA,$K13) -> 102.3449615 | K13: 2
B14: July | C14: Summer | D14: =INDEX(MONTHLY_IRR,OAREA,$K14) -> 112.7314285 | K14: 3
B15: August | C15: Summer | D15: =INDEX(MONTHLY_IRR,OAREA,$K15) -> 104.281138 | K15: 4
B16: September | C16: Summer | D16: =INDEX(MONTHLY_IRR,OAREA,$K16) -> 69.80938055 | K16: 5
B17: October | C17: Summer | D17: =IF(OR(D$6=0,$K17=0),"",INDEX(MONTHLY_IRR,D$6,$K17)) ->  | K17: 0
B18: November | C18: Winter | D18: =IF(OR(D$6=0,$K18=0),"",INDEX(MONTHLY_IRR,D$6,$K18)) ->  | K18: 0
B19: December | C19: Winter | D19: =IF(OR(D$6=0,$K19=0),"",INDEX(MONTHLY_IRR,D$6,$K19)) ->  | K19: 0
C20: =IF('Water Balance Raw Results'!C61="","",'Water Balance Raw Results'!C61) ->  | D20: =IF('Water Balance Raw Results'!D61="","",'Water Balance Raw Results'!D61) ->  | E20: =IF('Water Balance Raw Results'!E61="","",'Water Balance Raw Results'!E61) ->  | F20: =IF('Water Balance Raw Results'!F61="","",'Water Balance Raw Results'!F61) ->  | G20: =IF('Water Balance Raw Results'!G61="","",'Water Balance Raw Results'!G61) -> 
B21: Weekly Watering Schedule (mm/day, average) | G21: =IF('Water Balance Raw Results'!G62="","",'Water Balance Raw Results'!G62) -> 
C22: =IF('Water Balance Raw Results'!C63="","",'Water Balance Raw Results'!C63) ->  | D22: =IF('Water Balance Raw Results'!D63="","",'Water Balance Raw Results'!D63) ->  | E22: =IF('Water Balance Raw Results'!E63="","",'Water Balance Raw Results'!E63) ->  | F22: =IF('Water Balance Raw Results'!F63="","",'Water Balance Raw Results'!F63) ->  | G22: =IF('Water Balance Raw Results'!G63="","",'Water Balance Raw Results'!G63) -> 
B23: Month | C23: Sunday | D23: Monday | E23: Tuesday | F23: Wednesday | G23: Thursday | H23: Friday | I23: Saturday
B24: January | K24: 1
B25: February | K25: 2
B26: March | K26: 3
B27: April | K27: 4
B28: May | C28: =IF(OAREA=0,"",IF(AVERAGEIFS(CalcTable[IrrAmt],CalcTable[Month],$K28,CalcTable[Day of Week],C$37)=0,"",AVERAGEIFS(CalcTable[IrrAmt],CalcTable[Month],$K28,CalcTable[Day of Week],C$37)*(INDEX(APP_DEMAND,OAREA)))) ->  | D28: =IF(OAREA=0,"",IF(AVERAGEIFS(CalcTable[IrrAmt],CalcTable[Month],$K28,CalcTable[Day of Week],D$37)=0,"",AVERAGEIFS(CalcTable[IrrAmt],CalcTable[Month],$K28,CalcTable[Day of Week],D$37)*(INDEX(APP_DEMAND,OAREA)))) ->  | E28: =IF(OAREA=0,"",IF(AVERAGEIFS(CalcTable[IrrAmt],CalcTable[Month],$K28,CalcTable[Day of Week],E$37)=0,"",AVERAGEIFS(CalcTable[IrrAmt],CalcTable[Month],$K28,CalcTable[Day of Week],E$37)*(INDEX(APP_DEMAND,OAREA)))) ->  | F28: =IF(OAREA=0,"",IF(AVERAGEIFS(CalcTable[IrrAmt],CalcTable[Month],$K28,CalcTable[Day of Week],F$37)=0,"",AVERAGEIFS(CalcTable[IrrAmt],CalcTable[Month],$K28,CalcTable[Day of Week],F$37)*(INDEX(APP_DEMAND,OAREA)))) ->  | G28: =IF(OAREA=0,"",IF(AVERAGEIFS(CalcTable[IrrAmt],CalcTable[Month],$K28,CalcTable[Day of Week],G$37)=0,"",AVERAGEIFS(CalcTable[IrrAmt],CalcTable[Month],$K28,CalcTable[Day of Week],G$37)*(INDEX(APP_DEMAND,OAREA)))) ->  | H28: =IF(OAREA=0,"",IF(AVERAGEIFS(CalcTable[IrrAmt],CalcTable[Month],$K28,CalcTable[Day of Week],H$37)=0,"",AVERAGEIFS(CalcTable[IrrAmt],CalcTable[Month],$K28,CalcTable[Day of Week],H$37)*(INDEX(APP_DEMAND,OAREA)))) ->  | I28: =IF(OAREA=0,"",IF(AVERAGEIFS(CalcTable[IrrAmt],CalcTable[Month],$K28,CalcTable[Day of Week],I$37)=0,"",AVERAGEIFS(CalcTable[IrrAmt],CalcTable[Month],$K28,CalcTable[Day of Week],I$37)*(INDEX(APP_DEMAND,OAREA)))) ->  | K28: 5
B29: June | C29: =IF(OAREA=0,"",IF(AVERAGEIFS(CalcTable[IrrAmt],CalcTable[Month],$K29,CalcTable[Day of Week],C$37)=0,"",AVERAGEIFS(CalcTable[IrrAmt],CalcTable[Month],$K29,CalcTable[Day of Week],C$37)*(INDEX(APP_DEMAND,OAREA)))) ->  | D29: =IF(OAREA=0,"",IF(AVERAGEIFS(CalcTable[IrrAmt],CalcTable[Month],$K29,CalcTable[Day of Week],D$37)=0,"",AVERAGEIFS(CalcTable[IrrAmt],CalcTable[Month],$K29,CalcTable[Day of Week],D$37)*(INDEX(APP_DEMAND,OAREA)))) ->  | E29: =IF(OAREA=0,"",IF(AVERAGEIFS(CalcTable[IrrAmt],CalcTable[Month],$K29,CalcTable[Day of Week],E$37)=0,"",AVERAGEIFS(CalcTable[IrrAmt],CalcTable[Month],$K29,CalcTable[Day of Week],E$37)*(INDEX(APP_DEMAND,OAREA)))) ->  | F29: =IF(OAREA=0,"",IF(AVERAGEIFS(CalcTable[IrrAmt],CalcTable[Month],$K29,CalcTable[Day of Week],F$37)=0,"",AVERAGEIFS(CalcTable[IrrAmt],CalcTable[Month],$K29,CalcTable[Day of Week],F$37)*(INDEX(APP_DEMAND,OAREA)))) ->  | G29: =IF(OAREA=0,"",IF(AVERAGEIFS(CalcTable[IrrAmt],CalcTable[Month],$K29,CalcTable[Day of Week],G$37)=0,"",AVERAGEIFS(CalcTable[IrrAmt],CalcTable[Month],$K29,CalcTable[Day of Week],G$37)*(INDEX(APP_DEMAND,OAREA)))) ->  | H29: =IF(OAREA=0,"",IF(AVERAGEIFS(CalcTable[IrrAmt],CalcTable[Month],$K29,CalcTable[Day of Week],H$37)=0,"",AVERAGEIFS(CalcTable[IrrAmt],CalcTable[Month],$K29,CalcTable[Day of Week],H$37)*(INDEX(APP_DEMAND,OAREA)))) ->  | I29: =IF(OAREA=0,"",IF(AVERAGEIFS(CalcTable[IrrAmt],CalcTable[Month],$K29,CalcTable[Day of Week],I$37)=0,"",AVERAGEIFS(CalcTable[IrrAmt],CalcTable[Month],$K29,CalcTable[Day of Week],I$37)*(INDEX(APP_DEMAND,OAREA)))) ->  | K29: 6
B30: July | C30: =IF(OAREA=0,"",IF(AVERAGEIFS(CalcTable[IrrAmt],CalcTable[Month],$K30,CalcTable[Day of Week],C$37)=0,"",AVERAGEIFS(CalcTable[IrrAmt],CalcTable[Month],$K30,CalcTable[Day of Week],C$37)*(INDEX(APP_DEMAND,OAREA)))) ->  | D30: =IF(OAREA=0,"",IF(AVERAGEIFS(CalcTable[IrrAmt],CalcTable[Month],$K30,CalcTable[Day of Week],D$37)=0,"",AVERAGEIFS(CalcTable[IrrAmt],CalcTable[Month],$K30,CalcTable[Day of Week],D$37)*(INDEX(APP_DEMAND,OAREA)))) ->  | E30: =IF(OAREA=0,"",IF(AVERAGEIFS(CalcTable[IrrAmt],CalcTable[Month],$K30,CalcTable[Day of Week],E$37)=0,"",AVERAGEIFS(CalcTable[IrrAmt],CalcTable[Month],$K30,CalcTable[Day of Week],E$37)*(INDEX(APP_DEMAND,OAREA)))) ->  | F30: =IF(OAREA=0,"",IF(AVERAGEIFS(CalcTable[IrrAmt],CalcTable[Month],$K30,CalcTable[Day of Week],F$37)=0,"",AVERAGEIFS(CalcTable[IrrAmt],CalcTable[Month],$K30,CalcTable[Day of Week],F$37)*(INDEX(APP_DEMAND,OAREA)))) ->  | G30: =IF(OAREA=0,"",IF(AVERAGEIFS(CalcTable[IrrAmt],CalcTable[Month],$K30,CalcTable[Day of Week],G$37)=0,"",AVERAGEIFS(CalcTable[IrrAmt],CalcTable[Month],$K30,CalcTable[Day of Week],G$37)*(INDEX(APP_DEMAND,OAREA)))) ->  | H30: =IF(OAREA=0,"",IF(AVERAGEIFS(CalcTable[IrrAmt],CalcTable[Month],$K30,CalcTable[Day of Week],H$37)=0,"",AVERAGEIFS(CalcTable[IrrAmt],CalcTable[Month],$K30,CalcTable[Day of Week],H$37)*(INDEX(APP_DEMAND,OAREA)))) ->  | I30: =IF(OAREA=0,"",IF(AVERAGEIFS(CalcTable[IrrAmt],CalcTable[Month],$K30,CalcTable[Day of Week],I$37)=0,"",AVERAGEIFS(CalcTable[IrrAmt],CalcTable[Month],$K30,CalcTable[Day of Week],I$37)*(INDEX(APP_DEMAND,OAREA)))) ->  | K30: 7
B31: August | C31: =IF(OAREA=0,"",IF(AVERAGEIFS(CalcTable[IrrAmt],CalcTable[Month],$K31,CalcTable[Day of Week],C$37)=0,"",AVERAGEIFS(CalcTable[IrrAmt],CalcTable[Month],$K31,CalcTable[Day of Week],C$37)*(INDEX(APP_DEMAND,OAREA)))) ->  | D31: =IF(OAREA=0,"",IF(AVERAGEIFS(CalcTable[IrrAmt],CalcTable[Month],$K31,CalcTable[Day of Week],D$37)=0,"",AVERAGEIFS(CalcTable[IrrAmt],CalcTable[Month],$K31,CalcTable[Day of Week],D$37)*(INDEX(APP_DEMAND,OAREA)))) ->  | E31: =IF(OAREA=0,"",IF(AVERAGEIFS(CalcTable[IrrAmt],CalcTable[Month],$K31,CalcTable[Day of Week],E$37)=0,"",AVERAGEIFS(CalcTable[IrrAmt],CalcTable[Month],$K31,CalcTable[Day of Week],E$37)*(INDEX(APP_DEMAND,OAREA)))) ->  | F31: =IF(OAREA=0,"",IF(AVERAGEIFS(CalcTable[IrrAmt],CalcTable[Month],$K31,CalcTable[Day of Week],F$37)=0,"",AVERAGEIFS(CalcTable[IrrAmt],CalcTable[Month],$K31,CalcTable[Day of Week],F$37)*(INDEX(APP_DEMAND,OAREA)))) ->  | G31: =IF(OAREA=0,"",IF(AVERAGEIFS(CalcTable[IrrAmt],CalcTable[Month],$K31,CalcTable[Day of Week],G$37)=0,"",AVERAGEIFS(CalcTable[IrrAmt],CalcTable[Month],$K31,CalcTable[Day of Week],G$37)*(INDEX(APP_DEMAND,OAREA)))) ->  | H31: =IF(OAREA=0,"",IF(AVERAGEIFS(CalcTable[IrrAmt],CalcTable[Month],$K31,CalcTable[Day of Week],H$37)=0,"",AVERAGEIFS(CalcTable[IrrAmt],CalcTable[Month],$K31,CalcTable[Day of Week],H$37)*(INDEX(APP_DEMAND,OAREA)))) ->  | I31: =IF(OAREA=0,"",IF(AVERAGEIFS(CalcTable[IrrAmt],CalcTable[Month],$K31,CalcTable[Day of Week],I$37)=0,"",AVERAGEIFS(CalcTable[IrrAmt],CalcTable[Month],$K31,CalcTable[Day of Week],I$37)*(INDEX(APP_DEMAND,OAREA)))) ->  | K31: 8
B32: September | C32: =IF(OAREA=0,"",IF(AVERAGEIFS(CalcTable[IrrAmt],CalcTable[Month],$K32,CalcTable[Day of Week],C$37)=0,"",AVERAGEIFS(CalcTable[IrrAmt],CalcTable[Month],$K32,CalcTable[Day of Week],C$37)*(INDEX(APP_DEMAND,OAREA)))) ->  | D32: =IF(OAREA=0,"",IF(AVERAGEIFS(CalcTable[IrrAmt],CalcTable[Month],$K32,CalcTable[Day of Week],D$37)=0,"",AVERAGEIFS(CalcTable[IrrAmt],CalcTable[Month],$K32,CalcTable[Day of Week],D$37)*(INDEX(APP_DEMAND,OAREA)))) ->  | E32: =IF(OAREA=0,"",IF(AVERAGEIFS(CalcTable[IrrAmt],CalcTable[Month],$K32,CalcTable[Day of Week],E$37)=0,"",AVERAGEIFS(CalcTable[IrrAmt],CalcTable[Month],$K32,CalcTable[Day of Week],E$37)*(INDEX(APP_DEMAND,OAREA)))) ->  | F32: =IF(OAREA=0,"",IF(AVERAGEIFS(CalcTable[IrrAmt],CalcTable[Month],$K32,CalcTable[Day of Week],F$37)=0,"",AVERAGEIFS(CalcTable[IrrAmt],CalcTable[Month],$K32,CalcTable[Day of Week],F$37)*(INDEX(APP_DEMAND,OAREA)))) ->  | G32: =IF(OAREA=0,"",IF(AVERAGEIFS(CalcTable[IrrAmt],CalcTable[Month],$K32,CalcTable[Day of Week],G$37)=0,"",AVERAGEIFS(CalcTable[IrrAmt],CalcTable[Month],$K32,CalcTable[Day of Week],G$37)*(INDEX(APP_DEMAND,OAREA)))) ->  | H32: =IF(OAREA=0,"",IF(AVERAGEIFS(CalcTable[IrrAmt],CalcTable[Month],$K32,CalcTable[Day of Week],H$37)=0,"",AVERAGEIFS(CalcTable[IrrAmt],CalcTable[Month],$K32,CalcTable[Day of Week],H$37)*(INDEX(APP_DEMAND,OAREA)))) ->  | I32: =IF(OAREA=0,"",IF(AVERAGEIFS(CalcTable[IrrAmt],CalcTable[Month],$K32,CalcTable[Day of Week],I$37)=0,"",AVERAGEIFS(CalcTable[IrrAmt],CalcTable[Month],$K32,CalcTable[Day of Week],I$37)*(INDEX(APP_DEMAND,OAREA)))) ->  | K32: 9
B33: October | K33: 10
B34: November | K34: 11
B35: December | K35: 12
C36: =IF('Water Balance Raw Results'!C77="","",'Water Balance Raw Results'!C77) ->  | D36: =IF('Water Balance Raw Results'!D77="","",'Water Balance Raw Results'!D77) ->  | E36: =IF('Water Balance Raw Results'!E77="","",'Water Balance Raw Results'!E77) ->  | F36: =IF('Water Balance Raw Results'!F77="","",'Water Balance Raw Results'!F77) ->  | G36: =IF('Water Balance Raw Results'!G77="","",'Water Balance Raw Results'!G77) -> 
C37: 1 | D37: 2 | E37: 3 | F37: 4 | G37: 5 | H37: 6 | I37: 7
C38: =IF('Water Balance Raw Results'!C79="","",'Water Balance Raw Results'!C79) ->  | D38: =IF('Water Balance Raw Results'!D79="","",'Water Balance Raw Results'!D79) ->  | E38: =IF('Water Balance Raw Results'!E79="","",'Water Balance Raw Results'!E79) ->  | F38: =IF('Water Balance Raw Results'!F79="","",'Water Balance Raw Results'!F79) ->  | G38: =IF('Water Balance Raw Results'!G79="","",'Water Balance Raw Results'!G79) -> 
D39: =IF('Water Balance Raw Results'!D80="","",'Water Balance Raw Results'!D80) ->  | E39: =IF('Water Balance Raw Results'!E80="","",'Water Balance Raw Results'!E80) ->  | F39: =IF('Water Balance Raw Results'!F80="","",'Water Balance Raw Results'!F80) ->  | G39: =IF('Water Balance Raw Results'!G80="","",'Water Balance Raw Results'!G80) -> 
C40: =IF('Water Balance Raw Results'!C81="","",'Water Balance Raw Results'!C81) ->  | D40: =IF('Water Balance Raw Results'!D81="","",'Water Balance Raw Results'!D81) ->  | E40: =IF('Water Balance Raw Results'!E81="","",'Water Balance Raw Results'!E81) ->  | F40: =IF('Water Balance Raw Results'!F81="","",'Water Balance Raw Results'!F81) ->  | G40: =IF('Water Balance Raw Results'!G81="","",'Water Balance Raw Results'!G81) -> 
C41: =IF('Water Balance Raw Results'!C82="","",'Water Balance Raw Results'!C82) ->  | D41: =IF('Water Balance Raw Results'!D82="","",'Water Balance Raw Results'!D82) ->  | E41: =IF('Water Balance Raw Results'!E82="","",'Water Balance Raw Results'!E82) ->  | F41: =IF('Water Balance Raw Results'!F82="","",'Water Balance Raw Results'!F82) ->  | G41: =IF('Water Balance Raw Results'!G82="","",'Water Balance Raw Results'!G82) -> 
C42: =IF('Water Balance Raw Results'!C83="","",'Water Balance Raw Results'!C83) ->  | D42: =IF('Water Balance Raw Results'!D83="","",'Water Balance Raw Results'!D83) ->  | E42: =IF('Water Balance Raw Results'!E83="","",'Water Balance Raw Results'!E83) ->  | F42: =IF('Water Balance Raw Results'!F83="","",'Water Balance Raw Results'!F83) ->  | G42: =IF('Water Balance Raw Results'!G83="","",'Water Balance Raw Results'!G83) -> 
C43: =IF('Water Balance Raw Results'!C84="","",'Water Balance Raw Results'!C84) ->  | D43: =IF('Water Balance Raw Results'!D84="","",'Water Balance Raw Results'!D84) ->  | E43: =IF('Water Balance Raw Results'!E84="","",'Water Balance Raw Results'!E84) ->  | F43: =IF('Water Balance Raw Results'!F84="","",'Water Balance Raw Results'!F84) ->  | G43: =IF('Water Balance Raw Results'!G84="","",'Water Balance Raw Results'!G84) -> 
C44: =IF('Water Balance Raw Results'!C85="","",'Water Balance Raw Results'!C85) ->  | D44: =IF('Water Balance Raw Results'!D85="","",'Water Balance Raw Results'!D85) ->  | E44: =IF('Water Balance Raw Results'!E85="","",'Water Balance Raw Results'!E85) ->  | F44: =IF('Water Balance Raw Results'!F85="","",'Water Balance Raw Results'!F85) ->  | G44: =IF('Water Balance Raw Results'!G85="","",'Water Balance Raw Results'!G85) -> 
C45: =IF('Water Balance Raw Results'!C86="","",'Water Balance Raw Results'!C86) ->  | D45: =IF('Water Balance Raw Results'!D86="","",'Water Balance Raw Results'!D86) ->  | E45: =IF('Water Balance Raw Results'!E86="","",'Water Balance Raw Results'!E86) ->  | F45: =IF('Water Balance Raw Results'!F86="","",'Water Balance Raw Results'!F86) ->  | G45: =IF('Water Balance Raw Results'!G86="","",'Water Balance Raw Results'!G86) -> 
C46: =IF('Water Balance Raw Results'!C87="","",'Water Balance Raw Results'!C87) ->  | D46: =IF('Water Balance Raw Results'!D87="","",'Water Balance Raw Results'!D87) ->  | E46: =IF('Water Balance Raw Results'!E87="","",'Water Balance Raw Results'!E87) ->  | F46: =IF('Water Balance Raw Results'!F87="","",'Water Balance Raw Results'!F87) ->  | G46: =IF('Water Balance Raw Results'!G87="","",'Water Balance Raw Results'!G87) -> 
C47: =IF('Water Balance Raw Results'!C88="","",'Water Balance Raw Results'!C88) ->  | D47: =IF('Water Balance Raw Results'!D88="","",'Water Balance Raw Results'!D88) ->  | E47: =IF('Water Balance Raw Results'!E88="","",'Water Balance Raw Results'!E88) ->  | F47: =IF('Water Balance Raw Results'!F88="","",'Water Balance Raw Results'!F88) ->  | G47: =IF('Water Balance Raw Results'!G88="","",'Water Balance Raw Results'!G88) -> 
C48: =IF('Water Balance Raw Results'!C89="","",'Water Balance Raw Results'!C89) ->  | D48: =IF('Water Balance Raw Results'!D89="","",'Water Balance Raw Results'!D89) ->  | E48: =IF('Water Balance Raw Results'!E89="","",'Water Balance Raw Results'!E89) ->  | F48: =IF('Water Balance Raw Results'!F89="","",'Water Balance Raw Results'!F89) ->  | G48: =IF('Water Balance Raw Results'!G89="","",'Water Balance Raw Results'!G89) -> 
C49: =IF('Water Balance Raw Results'!C90="","",'Water Balance Raw Results'!C90) ->  | D49: =IF('Water Balance Raw Results'!D90="","",'Water Balance Raw Results'!D90) ->  | E49: =IF('Water Balance Raw Results'!E90="","",'Water Balance Raw Results'!E90) ->  | F49: =IF('Water Balance Raw Results'!F90="","",'Water Balance Raw Results'!F90) ->  | G49: =IF('Water Balance Raw Results'!G90="","",'Water Balance Raw Results'!G90) -> 
C50: =IF('Water Balance Raw Results'!C91="","",'Water Balance Raw Results'!C91) ->  | D50: =IF('Water Balance Raw Results'!D91="","",'Water Balance Raw Results'!D91) ->  | E50: =IF('Water Balance Raw Results'!E91="","",'Water Balance Raw Results'!E91) ->  | F50: =IF('Water Balance Raw Results'!F91="","",'Water Balance Raw Results'!F91) ->  | G50: =IF('Water Balance Raw Results'!G91="","",'Water Balance Raw Results'!G91) -> 
C51: =IF('Water Balance Raw Results'!C92="","",'Water Balance Raw Results'!C92) ->  | D51: =IF('Water Balance Raw Results'!D92="","",'Water Balance Raw Results'!D92) ->  | E51: =IF('Water Balance Raw Results'!E92="","",'Water Balance Raw Results'!E92) ->  | F51: =IF('Water Balance Raw Results'!F92="","",'Water Balance Raw Results'!F92) ->  | G51: =IF('Water Balance Raw Results'!G92="","",'Water Balance Raw Results'!G92) -> 
C52: =IF('Water Balance Raw Results'!C93="","",'Water Balance Raw Results'!C93) ->  | D52: =IF('Water Balance Raw Results'!D93="","",'Water Balance Raw Results'!D93) ->  | E52: =IF('Water Balance Raw Results'!E93="","",'Water Balance Raw Results'!E93) ->  | F52: =IF('Water Balance Raw Results'!F93="","",'Water Balance Raw Results'!F93) ->  | G52: =IF('Water Balance Raw Results'!G93="","",'Water Balance Raw Results'!G93) -> 
C53: =IF('Water Balance Raw Results'!C94="","",'Water Balance Raw Results'!C94) ->  | D53: =IF('Water Balance Raw Results'!D94="","",'Water Balance Raw Results'!D94) ->  | E53: =IF('Water Balance Raw Results'!E94="","",'Water Balance Raw Results'!E94) ->  | F53: =IF('Water Balance Raw Results'!F94="","",'Water Balance Raw Results'!F94) ->  | G53: =IF('Water Balance Raw Results'!G94="","",'Water Balance Raw Results'!G94) -> 
C54: =IF('Water Balance Raw Results'!C95="","",'Water Balance Raw Results'!C95) ->  | D54: =IF('Water Balance Raw Results'!D95="","",'Water Balance Raw Results'!D95) ->  | E54: =IF('Water Balance Raw Results'!E95="","",'Water Balance Raw Results'!E95) ->  | F54: =IF('Water Balance Raw Results'!F95="","",'Water Balance Raw Results'!F95) ->  | G54: =IF('Water Balance Raw Results'!G95="","",'Water Balance Raw Results'!G95) -> 
C55: =IF('Water Balance Raw Results'!C96="","",'Water Balance Raw Results'!C96) ->  | D55: =IF('Water Balance Raw Results'!D96="","",'Water Balance Raw Results'!D96) ->  | E55: =IF('Water Balance Raw Results'!E96="","",'Water Balance Raw Results'!E96) ->  | F55: =IF('Water Balance Raw Results'!F96="","",'Water Balance Raw Results'!F96) ->  | G55: =IF('Water Balance Raw Results'!G96="","",'Water Balance Raw Results'!G96) -> 
C56: =IF('Water Balance Raw Results'!C97="","",'Water Balance Raw Results'!C97) ->  | D56: =IF('Water Balance Raw Results'!D97="","",'Water Balance Raw Results'!D97) ->  | E56: =IF('Water Balance Raw Results'!E97="","",'Water Balance Raw Results'!E97) ->  | F56: =IF('Water Balance Raw Results'!F97="","",'Water Balance Raw Results'!F97) ->  | G56: =IF('Water Balance Raw Results'!G97="","",'Water Balance Raw Results'!G97) -> 

Sheet Calculation Summary (hidden)
A2: Calculation Summary | D2: 2
A4: ="Input Data Summary - "&INDEX(AREA_LIST,CUR_AREA) -> Input Data Summary - Test 2 | K4: ="Water Column Summary - "&INDEX(AREA_LIST,CUR_AREA) -> Water Column Summary - Test 2
C6: Parameter | D6: Value | E6: Comments | H6: Index | I6: Column | L6: Irrigation | M6: Percolation | N6: Runoff
C7: Topsoil type: | D7: =INDEX(SoilType,H7,2) ->  | E7: See soil properties below. | H7: =IF(INDEX(AreaData[],CUR_AREA,I7)="","",EntryIndexName(INDEX(AreaData[],CUR_AREA,I7),"SoilType")) ->  | I7: 4 | K7: =NYEAR& " year totals:" -> 55 year totals: | L7: =SUM(CalcTable[IrrAmt]) ->  | M7: =SUM(CalcTable[PercAmt]) ->  | N7: =SUM(CalcTable[Runoff]) ->  | O7: mm - from calculations
C8: Rooting Depth (mm): | D8: =INDEX(AreaData[],CUR_AREA,6) -> 300 | L8: =IRR_TOT_DEPTH_RAW/IRR_EFF ->  | O8: mm - after irrigation application efficiency factor applied
C9: Topsoil compaction level: | D9: =INDEX(TopsoilCompaction,H9,2) ->  | H9: =IF(INDEX(AreaData[],CUR_AREA,I9)="","",EntryIndexName(INDEX(AreaData[],CUR_AREA,I9),"TopsoilCompaction")) ->  | I9: 5 | L9: =L8/IRR_MEF ->  | O9: mm - after irrigation management efficiency factor applied
C10: Compaction increase in bulk density: | D10: =IF(H$9="",0,INDEX(TopsoilCompaction,H$9,3)) ->  | E10: ="Based on the specified compaction level '"&D9&"'." ->  | L10: =IRR_TOT_DEPTH/1000*CUR_IRR_AREA*10000 ->  | M10: =PERC_TOT_DEPTH/1000*CUR_IRR_AREA*10000 ->  | N10: =RUNOFF_TOT_DEPTH/1000*CUR_IRR_AREA*10000 ->  | O10: converted to cubic meters
C11: Subsoil type: | D11: =IF(H11="","",INDEX(SoilType,H11,2)) ->  | H11: =IF(INDEX(AreaData[],CUR_AREA,I11)="","",EntryIndexName(INDEX(AreaData[],CUR_AREA,I11),"SoilType")) ->  | I11: 7 | L11: =IRR_TOT_VOL/NYEAR ->  | M11: =PERC_TOT_VOL/NYEAR ->  | N11: =RUNOFF_TOT_VOL/NYEAR ->  | O11: cubic meters per year - average
C12: Subsoil percolation rate: | D12: =IF(H$11="",0,INDEX(SoilType,H$11,6)) ->  | E12: ="Assumed equal to saturated hydraulic conductivity for "&D11&"." -> 
D13: =PERC_SF -> 1 | E13: Percolation rate safety factor - as specified. | K13: ="Precipitation Summary - "&INDEX(AREA_LIST,CUR_AREA) -> Precipitation Summary - Test 2
D14: =IF(D12="",0,D12/PERC_SF) ->  | E14: Percolation rate with safety factor applied. | G14: =IF(H15="","",MATCH(INDEX(AvailableSpecies,H15,3),VegTypes,0)) -> 
C15: Vegetation Type: | D15: =IF(H15="","",INDEX(AvailableSpecies,H15,2)) ->  | E15: ="Ks = "&TEXT(G15,"0.00") ->  | G15: =IF(H15="","",INDEX(AvailableSpecies,H15,7)) ->  | H15: =IF(INDEX(AreaData[],CUR_AREA,I15)="","",EntryIndexName(INDEX(AreaData[],CUR_AREA,I15),"AvailableSpecies")) ->  | I15: 8 | L15: Raw Daily | M15: Adj. Daily | N15: Effective
C16: Vegetation density: | D16: =IF(H16="","",INDEX(VegetationDensity,H16,2)) ->  | E16: ="Kd = "&TEXT(G16,"0.00") ->  | G16: =INDEX(DensityFactor,G$14,H16+1) ->  | H16: =IF(INDEX(AreaData[],CUR_AREA,I16)="","",EntryIndexName(INDEX(AreaData[],CUR_AREA,I16),"VegetationDensity")) ->  | I16: 9 | L16: Precipitation | M16: Precipitation | N16: Precipitation
C17: Microclimate: | D17: =IF(H17="","",INDEX(Microclimate,H17,2)) ->  | E17: ="Kmc = "&TEXT(G17,"0.00") ->  | G17: =INDEX(MCFactor,G$14,H17+1) ->  | H17: =IF(INDEX(AreaData[],CUR_AREA,I17)="","",EntryIndexName(INDEX(AreaData[],CUR_AREA,I17),"Microclimate")) ->  | I17: 10 | L17: May-Sept | M17: May-Sept | N17: May-Sept
C18: Landscape coefficient method: | D18: =INDEX(AreaData[],CUR_AREA,11) -> Calculated | E18: ="Calculated KL = "&TEXT(G15,"0.00")&" x "&TEXT(G16,"0.00")&" x "&TEXT(G17,"0.00")&" = "&TEXT(G18,"0.00") ->  | G18: =G15*G16*G17 ->  | K18: =NYEAR& " year totals:" -> 55 year totals: | L18: =SUM(CalcTable[Raw Precip]) -> 16943.3 | M18: =SUM(CalcTable[Adj Precip]) -> 16943.3 | N18: =SUM(CalcTable[Eff Precip]) -> 6286.725 | O18: mm
C19: Landscape coefficient, KL: | D19: =INDEX(AreaData[],CUR_AREA,IF(D18="Manual",12,13)) ->  | E19: =IF(D18="Manual","Manually specified by the user.","") ->  | M19: =M18/L18 -> 1 | N19: =N18/M18 -> 0.3710448968
C20: Irrigation method: | D20: =IF(H20="","",INDEX(IrrigationMethod,H20,2)) ->  | G20: =IF(H20="","",INDEX(IrrigationMethod,H20,4)) ->  | H20: =IF(INDEX(AreaData[],CUR_AREA,I20)="","",EntryIndexName(INDEX(AreaData[],CUR_AREA,I20),"IrrigationMethod")) ->  | I20: 14 | M20: =IF(ABS(M19-PRECIP_ADJUST)<0.001,"<< Ok >>","<< Error >>") -> << Ok >>
C21: Is this drip irrigation ? : | D21: =IF(H20="","",IF(INDEX(IrrigationMethod,H20,5)="Yes",TRUE,FALSE)) ->  | E21: =IF(D21,"Wind limits for irrigation do not apply to this irrigation method.","") ->  | L21: =L18/1000*CUR_IRR_AREA*10000 -> 497003.4667 | M21: =M18/1000*CUR_IRR_AREA*10000 -> 497003.4667 | N21: =N18/1000*CUR_IRR_AREA*10000 -> 184410.6 | O21: converted to cubic meters
C22: Irrigation application efficiency: | D22: =IF(H20="","",INDEX(IrrigationMethod,H20,3)) ->  | N22: =PERC_TOT_VOL/NYEAR ->  | O22: cubic meters per year - average
C23: Irrigation efficiency "other losses": | D23: =IF(H20="","",INDEX(IrrigationMethod,H20,4)) -> 
C24: Irrigation schedule: | D24: =INDEX(AreaData[],CUR_AREA,15) -> Mon Wed Fri
C25: Size of current area: | D25: =INDEX(AreaData[],CUR_AREA,3)*IF(AREA_DEF_METH=2,TOTAL_AREA/SUM(AreaData[Area]),1) -> 2.933333333
A27: Topsoil Layer Properties
E29: Compaction-
D30: Basic | E30: Adjusted
D31: =D7 ->  | E31: =D31 -> 
C32: Moisture Level | D32: Properties | E32: Properties
A33: Water >> | C33: At Saturation: | D33: =IF(H$7="",0,INDEX(SoilType,H$7,3)) ->  | E33: =IF(D33="",0,D33)*(1-BULKD) -> 
A34: Holding >> | C34: At Field Capacity: | D34: =IF(H$7="",0,INDEX(SoilType,H$7,4)) ->  | E34: =IF(D34="",0,D34)*(1-BULKD) -> 
A35: Capacity >> | C35: At Wilting Point: | D35: =IF(H$7="",0,INDEX(SoilType,H$7,5)) -> 
A37: Water >> | C37: At Saturation: | D37: =ROOT*E33 -> 
A38: Column >> | C38: At Field Capacity: | D38: =ROOT*E34 -> 
A39: Height >> | C39: At Wilting Point: | D39: =ROOT*D35 -> 
C40: Mgmt Allowable Depletion (MAD): | D40: =WILTPT+(FCAP-WILTPT)*IRR_MAD -> 
A42: Irrigation Schedule
D44: Irrigation | G44: Irrigation
C45: Day | D45: Scheduled ? | G45: Scheduled ?
C46: Sun | D46: =IF(G46,"Yes","") ->  | G46: =IF(AND(IRR_SCHED<>"Daily",ISERROR(FIND(C46,IRR_SCHED))),FALSE,TRUE) -> FALSE
C47: Mon | D47: =IF(G47,"Yes","") -> Yes | G47: TRUE
C48: Tue | G48: FALSE
C49: Wed | D49: Yes | G49: TRUE
C50: Thu | G50: FALSE
C51: Fri | D51: Yes | G51: TRUE
C52: Sat | G52: FALSE
G53: =G46 -> FALSE

Sheet Calculations (hidden)
A2: Calculations
AI3: Estimated Irrigation Demand | BE3: Min: | BF3: =MIN(CalcTable[Year]) -> 1960
BE4: Max: | BF4: =MAX(CalcTable[Year]) -> 2014 | BK4: Max SWC: | BL4: =MAX(WBG_SWC) ->  | BN4: Maximum hourly volume: | BO4: =CEILING(MAX_IRR_VOLUME/5,10) -> 420 | BP4: m3/hour
AH5: Demand (mm): | AI5: =SUM(AI19:AI8434) -> 12732.4689 | AJ5: =SUM(AJ19:AJ8434) -> 18279.58175 | AK5: 9577.343234 | AL5: 16698.95444 | AM5: 0 | AN5: 0 | AO5: 0 | AP5: 0 | AQ5: 0 | AR5: 0 | AS5: 0 | AT5: 0 | AU5: 0 | AV5: 0 | AW5: 0 | AX5: =SUM(AX19:AX8434) -> 57288.34834 | BE5: Years: | BF5: =BF4-BF3+1 -> 55 | BK5: Max Int SWC: | BL5: =MAX(WBG_ISWC) -> 
AH6: Area (ha): | AI6: =INDEX(AreaData[],AI18,3)*IF(AREA_DEF_METH=2,TOTAL_AREA/SUM(RELAREA),1) -> 1.466666667 | AJ6: =INDEX(AreaData[],AJ18,3)*IF(AREA_DEF_METH=2,TOTAL_AREA/SUM(RELAREA),1) -> 2.933333333 | AK6: =INDEX(AreaData[],AK18,3)*IF(AREA_DEF_METH=2,TOTAL_AREA/SUM(RELAREA),1) -> 1.466666667 | AL6: =INDEX(AreaData[],AL18,3)*IF(AREA_DEF_METH=2,TOTAL_AREA/SUM(RELAREA),1) -> 2.933333333 | AM6: =INDEX(AreaData[],AM18,3)*IF(AREA_DEF_METH=2,TOTAL_AREA/SUM(RELAREA),1) -> 0 | AN6: =INDEX(AreaData[],AN18,3)*IF(AREA_DEF_METH=2,TOTAL_AREA/SUM(RELAREA),1) -> 0 | AO6: =INDEX(AreaData[],AO18,3)*IF(AREA_DEF_METH=2,TOTAL_AREA/SUM(RELAREA),1) -> 0 | AP6: =INDEX(AreaData[],AP18,3)*IF(AREA_DEF_METH=2,TOTAL_AREA/SUM(RELAREA),1) -> 0 | AQ6: =INDEX(AreaData[],AQ18,3)*IF(AREA_DEF_METH=2,TOTAL_AREA/SUM(RELAREA),1) -> 0 | AR6: =INDEX(AreaData[],AR18,3)*IF(AREA_DEF_METH=2,TOTAL_AREA/SUM(RELAREA),1) -> 0 | AS6: =INDEX(AreaData[],AS18,3)*IF(AREA_DEF_METH=2,TOTAL_AREA/SUM(RELAREA),1) -> 0 | AT6: =INDEX(AreaData[],AT18,3)*IF(AREA_DEF_METH=2,TOTAL_AREA/SUM(RELAREA),1) -> 0 | AU6: =INDEX(AreaData[],AU18,3)*IF(AREA_DEF_METH=2,TOTAL_AREA/SUM(RELAREA),1) -> 0 | AV6: =INDEX(AreaData[],AV18,3)*IF(AREA_DEF_METH=2,TOTAL_AREA/SUM(RELAREA),1) -> 0 | AW6: =INDEX(AreaData[],AW18,3)*IF(AREA_DEF_METH=2,TOTAL_AREA/SUM(RELAREA),1) -> 0 | AX6: =SUM(AI6:AW6) -> 8.8 | BG6: From: | BH6: =(PLOT_FY+1959)*10+PLOT_FM+4 -> 19605 | BI6: Minimum line: | BJ6: =MIN(BJ20:BJ8434) -> 20 | BK6: Graph max: | BL6: =MAX(BL4,BL5,BL20:BN20) ->  | BO6: Annual Demand Graph Title: | BP6: =CHOOSE(DV_1,"Annual Irrigation Demand (mm)","Annual Irrigation Demand Volume (cu m)","Annual Irrigation Applied Volume (cu m)","Annual Irrigation Pumped Volume (cu m)") -> Annual Irrigation Pumped Volume (cu m)
AH7: Application Efficiency: | AI7: 0.7 | AJ7: 0.65 | AK7: 0.7 | AL7: 0.7 | BE7: Depth | BF7: Volume | BG7: To: | BH7: =(PLOT_TY+1959)*10+PLOT_TM+4 -> 20149 | BI7: Maximum line: | BJ7: =MAX(BJ20:BJ8434) -> 8434 | BK7: Axis limit 1: | BL7: =CEILING(2*BL6,25) ->  | BO7: Monthly Demand Graph Title: | BP7: =CHOOSE(DV_1,"Monthly Irrigation Demand (mm)","Monthly Irrigation Demand Volume (cu m)","Monthly Irrigation Applied Volume (cu m)","Monthly Irrigation Pumped Volume (cu m)") -> Monthly Irrigation Pumped Volume (cu m)
AH8: Other Losses: | AI8: 0.1 | AJ8: 0.1 | AK8: 0.1 | AL8: 0.1
AH9: Conversion (mm to m3): | AI9: =IF(AI7="",1,1/1000*10000*AI6) -> 14.66666667 | AJ9: =IF(AJ7="",1,1/1000*10000*AJ6) -> 29.33333333 | AK9: 14.66666667 | AL9: 29.33333333 | AM9: 1 | AN9: 1 | AO9: 1 | AP9: 1 | AQ9: 1 | AR9: 1 | AS9: 1 | AT9: 1 | AU9: 1 | AV9: 1 | AW9: 1 | BE9: =SUM(BD19:BD8434) -> 57288.34834 | BF9: =SUM(BF19:BF8434) -> 2213482.342 | BI9: Line count: | BJ9: =PX_MAX-PX_MIN+1 -> 8415 | BK9: Axis limit 2: | BL9: =CEILING(2*MAX(WBG_EFFP,WBG_IRR),10) ->  | BO9: Histogram Vertical Axis Title: | BP9: ="Number of Months Over "&(PLOT_TY-PLOT_FY+1)&" Years" -> Number of Months Over 55 Years
AH10: Volume Demand (m3): | AI10: =AI5*AI9 -> 186742.8773 | AJ10: =AJ5*AJ9 -> 536201.0648 | AK10: 140467.7008 | AL10: 489835.997 | AM10: 0 | AN10: 0 | AO10: 0 | AP10: 0 | AQ10: 0 | AR10: 0 | AS10: 0 | AT10: 0 | AU10: 0 | AV10: 0 | AW10: 0 | AX10: =SUM(AI10:AW10) -> 1353247.64
AH11: Extra Volume Req'd (m3): | AI11: =IF(AI7="",0,AI10*(1/AI7-1)) -> 80032.66168 | AJ11: =IF(AJ7="",0,AJ10*(1/AJ7-1)) -> 288723.6503 | AK11: 60200.44318 | AL11: 209929.713 | AM11: 0 | AN11: 0 | AO11: 0 | AP11: 0 | AQ11: 0 | AR11: 0 | AS11: 0 | AT11: 0 | AU11: 0 | AV11: 0 | AW11: 0
AH12: Other Losses (m3): | AI12: =AI8*AI11 -> 8003.266168 | AJ12: =AJ8*AJ11 -> 28872.36503 | AK12: 6020.044318 | AL12: 20992.9713 | AM12: 0 | AN12: 0 | AO12: 0 | AP12: 0 | AQ12: 0 | AR12: 0 | AS12: 0 | AT12: 0 | AU12: 0 | AV12: 0 | AW12: 0 | BF12: Area Conversion
AH13: Volume Applied (m3): | AI13: =(AI10+AI11-AI12)/IRR_MEF -> 287524.7475 | AJ13: 884502.6112 | AK13: 216275.6663 | AL13: 754191.9319 | AM13: 0 | AN13: 0 | AO13: 0 | AP13: 0 | AQ13: 0 | AR13: 0 | AS13: 0 | AT13: 0 | AU13: 0 | AV13: 0 | AW13: 0 | AX13: =SUM(AI13:AW13) -> 2142494.957 | BF13: =INDEX(IF(DV_1=3,APP_DEMAND,PUMP_DEMAND),PLOT_AREA) -> 
AH14: Volume Pumped (m3): | AI14: =IF(AI7="",0,AI10/AI7/IRR_MEF) -> 296417.2655 | AJ14: 916583.0167 | AK14: 222964.6044 | AL14: 777517.4556 | AM14: 0 | AN14: 0 | AO14: 0 | AP14: 0 | AQ14: 0 | AR14: 0 | AS14: 0 | AT14: 0 | AU14: 0 | AV14: 0 | AW14: 0 | AX14: =SUM(AI14:AW14) -> 2213482.342 | AZ14: Demand | BA14: Applied | BB14: Pumped | BF14: Total Conversion
T15: Day counts: | U15: =COUNTIF(CalcTable[IrrRain],TRUE) -> 7302 | V15: =COUNTIF(CalcTable[IrrWarm],TRUE) -> 7052 | W15: =COUNTIF(CalcTable[IrrWindy],TRUE) -> 0 | X15: =COUNTIF(CalcTable[IrrFlag],TRUE) -> 0 | Y15: =COUNTIF(CalcTable[IrrYest],TRUE) -> 1 | AH15: Applied / Demand: | AI15: =IF(AI10=0,0,AI13/AI10) -> 1.53968254 | AJ15: =IF(AJ10=0,0,AJ13/AJ10) -> 1.64957265 | AK15: 1.53968254 | AL15: 1.53968254 | AM15: 0 | AN15: 0 | AO15: 0 | AP15: 0 | AQ15: 0 | AR15: 0 | AS15: 0 | AT15: 0 | AU15: 0 | AV15: 0 | AW15: 0 | AY15: Total: | AZ15: =SUM(AZ20:AZ8434) -> 1353247.64 | BA15: =SUM(BA20:BA8434) -> 2142494.957 | BB15: =SUM(BB20:BB8434) -> 2213482.342 | BF15: =IF(DV_1=3,APP_DEMAND_TOT,PUMP_DEMAND_TOT) -> 1.635681657
A16: 1 | B16: =A16+1 -> 2 | C16: 3 | D16: 4 | E16: 5 | F16: 6 | G16: 7 | H16: 8 | I16: 9 | J16: 10 | K16: 11 | L16: 12 | M16: 13 | N16: 14 | O16: 15 | P16: 16 | Q16: 17 | R16: 18 | S16: 19 | T16: 20 | U16: 21 | V16: 22 | W16: 23 | X16: 24 | Y16: 25 | Z16: 26 | AA16: 27 | AB16: 28 | AC16: 29 | AD16: 30 | AE16: 31 | AF16: 32 | AH16: Pumped / Demand: | AI16: =IF(AI10=0,0,AI14/AI10) -> 1.587301587 | AJ16: =IF(AJ10=0,0,AJ14/AJ10) -> 1.709401709 | AK16: 1.587301587 | AL16: 1.587301587 | AM16: 0 | AN16: 0 | AO16: 0 | AP16: 0 | AQ16: 0 | AR16: 0 | AS16: 0 | AT16: 0 | AU16: 0 | AV16: 0 | AW16: 0 | AY16: Max: | AZ16: =MAX(AZ20:AZ8434) -> 1232.327426 | BA16: =MAX(BA20:BA8434) -> 2005.037059 | BB16: 2075.679766 | BF16: Conversion
AY17: Ratio: | BA17: =BA15/AZ15 -> 1.583224603 | BB17: =BB15/AZ15 -> 1.635681657 | BF17: =IF(DV_1<=2,1,IF(PLOT_AREA<=AREA_COUNT,BF13,BF15)) -> 1.635681657
A18: Date | B18: Year | C18: Month | D18: Day of Year | E18: Day of Month | F18: Day of Week | G18: Minimum Air Temp, (ºC) | H18: Reference Evapo-Transpiration Constant, mm/day | I18: Average Wind Speed, 1 to 6 AM, (kph) | J18: Raw Daily Precipitation, (mm) | K18: Adjusted Daily Precipitation, (mm) | L18: Effective Precipitation, PDE, (mm) | M18: Added Water Content, AWC, (mm) | N18: Initial Water Content, IWC, (mm) | O18: Number of Hours Available to Irrigate | P18: Base Plant Evapo-Transpiration, ETb, (mm) | Q18: Evapo-Transpiration Multiplier | R18: Estimated Plant Evapo-Transpiration, AET, (mm) | S18: Irrigation Day? | T18: ="Precipitation Over Previous "&IC_DAYS&" Days" -> Precipitation Over Previous 2 Days | U18: Irrigation Precipitation Check | V18: Warm Enough to Irrigate? | W18: Wind Low Enough to Irrigate? | X18: OK to Irrigate? | Y18: Irrigated Yesterday ? | Z18: Volume Multiplier Due to Wind | AA18: Irrigation Amount, IDN, (mm) | AB18: Preliminary Water Content, PWC, (mm) | AC18: Deep Percolation Losses, DP, (mm) | AD18: Runoff Losses, R, (mm) | AE18: Ending Water Content, EWC, (mm) | AF18: Irrigation Volume, (m3) | AI18: 1 | AJ18: =AI18+1 -> 2 | AK18: 3 | AL18: 4 | AM18: 5 | AN18: 6 | AO18: 7 | AP18: 8 | AQ18: 9 | AR18: 10 | AS18: 11 | AT18: 12 | AU18: 13 | AV18: 14 | AW18: 15 | AX18: Total All Areas | AZ18: Total Demand Volume | BA18: Total Applied Volume | BB18: Total Pumped Volume | BC18: YM | BD18: Depth: Selected Area | BE18: Demand Volume: Selected Area | BF18: Volume: Selected Area | BH18: Plot Flag | BI18: Row | BJ18: Lookup | BK18: Plot Day | BL18: Wilting Point | BM18: Saturation | BN18: Field Capacity
A19: Date | B19: Year | C19: Month | D19: Day of Year | E19: Day of Month | F19: Day of Week | G19: Air Temp | H19: ET_o | I19: Wind | J19: Raw Precip | K19: Adj Precip | L19: Eff Precip | M19: AWC | N19: IWC | O19: IrrHours | P19: ETb | Q19: ETMult | R19: AET | S19: IrrDay | T19: IrrPrecip | U19: IrrRain | V19: IrrWarm | W19: IrrWindy | X19: IrrFlag | Y19: IrrYest | Z19: VolRednWind | AA19: IrrAmt | AB19: PWC | AC19: PercAmt | AD19: Runoff | AE19: EWC | AF19: IrrVol
A20: 1960-05-01 | B20: 1960 | C20: 5 | D20: 122 | E20: 1 | F20: 1 | G20: 1.7 | H20: 3.502877545 | I20: 7.166666667 | J20: 9.1 | K20: =J20*PRECIP_ADJUST -> 9.1 | L20: =IF(K20>=EFF_PRECIP,EFF_MULT*(K20-EFF_PRECIP),0) -> 3.075 | N20: =IF(CalcTable[[#This Row],[Day of Year]]<123,FCAP,AE19) ->  | O20: =IF(IRR_DRIP,5,COUNTIF('IDET Wind Values'!C4:G4,"<="&IRR_MAXWIND)) ->  | P20: =CalcTable[[#This Row],[ET_o]]*KL ->  | Q20: =IF(WILTPT<=0,1,MAX(0,MIN(1,(CalcTable[[#This Row],[IWC]]-WILTPT)/(MAD-WILTPT)))) ->  | R20: =CalcTable[[#This Row],[ETMult]]*CalcTable[[#This Row],[ETb]] ->  | S20: =INDEX(IRR_LIST,CalcTable[[#This Row],[Day of Week]]+1) -> TRUE | T20: =SUM(OFFSET(K20,-IC_DAYS,0,IC_DAYS,1)) -> 0 | U20: =IF(CalcTable[[#This Row],[IrrPrecip]]>=IC_MM,FALSE,TRUE) -> TRUE | V20: =IF(G21<IRR_TEMP,FALSE,TRUE) -> FALSE | W20: =IF(AND(IRR_DRIP=FALSE,CalcTable[[#This Row],[IrrHours]]<=0),FALSE,TRUE) ->  | X20: =AND(CalcTable[[#This Row],[IrrDay]],CalcTable[[#This Row],[IrrRain]],CalcTable[[#This Row],[IrrWarm]],CalcTable[[#This Row],[IrrWindy]]) ->  | Y20: =IF(AA19<=0,FALSE,TRUE) -> TRUE | Z20: =CalcTable[[#This Row],[IrrHours]]/5 ->  | AA20: =IF(CalcTable[[#This Row],[IrrFlag]]=FALSE,0,MAX(0,CalcTable[[#This Row],[VolRednWind]]*(FCAP*IRR_TARGET-CalcTable[[#This Row],[IWC]]))) ->  | AB20: =CalcTable[[#This Row],[IWC]]+CalcTable[[#This Row],[Eff Precip]]+CalcTable[[#This Row],[IrrAmt]]-CalcTable[[#This Row],[AET]] ->  | AC20: =IF(CalcTable[[#This Row],[PWC]]>FCAP,MIN(24*PERC,MIN(SAT,CalcTable[[#This Row],[PWC]])-FCAP),0) ->  | AD20: =IF(CalcTable[[#This Row],[PWC]]>SAT,CalcTable[[#This Row],[PWC]]-SAT,0) ->  | AE20: =CalcTable[[#This Row],[PWC]]-CalcTable[[#This Row],[PercAmt]]-CalcTable[[#This Row],[Runoff]] ->  | AF20: =CalcTable[[#This Row],[IrrAmt]]/1000*CUR_IRR_AREA*10000/IRR_EFF ->  | AI20: 0 | AJ20: 0 | AK20: 0 | AL20: 0 | AX20: =SUM(AI20:AW20) -> 0 | AZ20: =SUMPRODUCT($AI20:$AW20,CONVERSION) -> 0 | BA20: =SUMPRODUCT($AI20:$AW20,CONVERSION,APP_DEMAND) -> 0 | BB20: =SUMPRODUCT($AI20:$AW20,CONVERSION,PUMP_DEMAND) -> 0 | BC20: =B20*10+C20 -> 19605 | BD20: =INDEX(AI20:AX20,PLOT_AREA) -> 0 | BE20: =IF(PLOT_AREA<=AREA_COUNT,INDEX(AI20:AW20,PLOT_AREA)*INDEX(CONVERSION,PLOT_AREA),AZ20) -> 0 | BF20: =BE20*BF$17 -> 0 | BH20: =IF(BC20<PLOT_FROM,-1,IF(BC20>PLOT_TO,1,0)) -> 0 | BI20: 20 | BJ20: =IF(BH20=0,BI20,"") -> 20 | BK20: =A20 -> 1960-05-01 | BL20: =WILTPT ->  | BM20: =SAT ->  | BN20: =FCAP -> 
A21: 1960-05-02 | B21: 1960 | C21: 5 | D21: 123 | E21: 2 | F21: 2 | G21: 1.1 | H21: 1.446253803 | I21: 5.666666667 | J21: 1 | K21: 1 | L21: 0 | M21: =CalcTable[[#This Row],[IWC]]-AE20 ->  | N21: =IF(CalcTable[[#This Row],[Day of Year]]<123,FCAP,AE20) ->  | O21: =IF(IRR_DRIP,5,COUNTIF('IDET Wind Values'!C5:G5,"<="&IRR_MAXWIND)) ->  | P21: =CalcTable[[#This Row],[ET_o]]*KL ->  | Q21: =IF(WILTPT<=0,1,MAX(0,MIN(1,(CalcTable[[#This Row],[IWC]]-WILTPT)/(MAD-WILTPT)))) ->  | R21: =CalcTable[[#This Row],[ETMult]]*CalcTable[[#This Row],[ETb]] ->  | S21: =INDEX(IRR_LIST,CalcTable[[#This Row],[Day of Week]]+1) -> FALSE | T21: 9.1 | U21: =IF(CalcTable[[#This Row],[IrrPrecip]]>=IC_MM,FALSE,TRUE) -> TRUE | V21: FALSE | W21: =IF(AND(IRR_DRIP=FALSE,CalcTable[[#This Row],[IrrHours]]<=0),FALSE,TRUE) ->  | X21: =AND(CalcTable[[#This Row],[IrrDay]],CalcTable[[#This Row],[IrrRain]],CalcTable[[#This Row],[IrrWarm]],CalcTable[[#This Row],[IrrWindy]]) ->  | Z21: =CalcTable[[#This Row],[IrrHours]]/5 ->  | AA21: =IF(CalcTable[[#This Row],[IrrFlag]]=FALSE,0,MAX(0,CalcTable[[#This Row],[VolRednWind]]*(FCAP*IRR_TARGET-CalcTable[[#This Row],[IWC]]))) ->  | AB21: =CalcTable[[#This Row],[IWC]]+CalcTable[[#This Row],[Eff Precip]]+CalcTable[[#This Row],[IrrAmt]]-CalcTable[[#This Row],[AET]] ->  | AC21: =IF(CalcTable[[#This Row],[PWC]]>FCAP,MIN(24*PERC,MIN(SAT,CalcTable[[#This Row],[PWC]])-FCAP),0) ->  | AD21: =IF(CalcTable[[#This Row],[PWC]]>SAT,CalcTable[[#This Row],[PWC]]-SAT,0) ->  | AE21: =CalcTable[[#This Row],[PWC]]-CalcTable[[#This Row],[PercAmt]]-CalcTable[[#This Row],[Runoff]] ->  | AF21: =CalcTable[[#This Row],[IrrAmt]]/1000*CUR_IRR_AREA*10000/IRR_EFF ->  | AI21: 0 | AJ21: 0 | AK21: 0 | AL21: 0 | AX21: =SUM(AI21:AW21) -> 0 | AZ21: =SUMPRODUCT(AI21:AW21,CONVERSION) -> 0 | BA21: 0 | BB21: 0 | BC21: 19605 | BD21: 0 | BE21: 0 | BF21: =BE21*BF$17 -> 0 | BH21: =IF(BC21<PLOT_FROM,-1,IF(BC21>PLOT_TO,1,0)) -> 0 | BI21: =BI20+1 -> 21 | BJ21: =IF(BH21=0,BI21,"") -> 21 | BK21: =A21 -> 1960-05-02
A22: 1960-05-03 | B22: 1960 | C22: 5 | D22: 124 | E22: 3 | F22: 3 | G22: 0.6 | H22: 2.152486888 | I22: 8.666666667 | J22: 0 | K22: 0 | L22: 0 | M22: =CalcTable[[#This Row],[IWC]]-AE21 ->  | N22: =IF(CalcTable[[#This Row],[Day of Year]]<123,FCAP,AE21) ->  | O22: =IF(IRR_DRIP,5,COUNTIF('IDET Wind Values'!C6:G6,"<="&IRR_MAXWIND)) ->  | P22: =CalcTable[[#This Row],[ET_o]]*KL ->  | Q22: =IF(WILTPT<=0,1,MAX(0,MIN(1,(CalcTable[[#This Row],[IWC]]-WILTPT)/(MAD-WILTPT)))) ->  | R22: =CalcTable[[#This Row],[ETMult]]*CalcTable[[#This Row],[ETb]] ->  | S22: =INDEX(IRR_LIST,CalcTable[[#This Row],[Day of Week]]+1) -> TRUE | T22: 10.1 | U22: =IF(CalcTable[[#This Row],[IrrPrecip]]>=IC_MM,FALSE,TRUE) -> FALSE | V22: FALSE | W22: =IF(AND(IRR_DRIP=FALSE,CalcTable[[#This Row],[IrrHours]]<=0),FALSE,TRUE) ->  | X22: =AND(CalcTable[[#This Row],[IrrDay]],CalcTable[[#This Row],[IrrRain]],CalcTable[[#This Row],[IrrWarm]],CalcTable[[#This Row],[IrrWindy]]) ->  | Z22: =CalcTable[[#This Row],[IrrHours]]/5 ->  | AA22: =IF(CalcTable[[#This Row],[IrrFlag]]=FALSE,0,MAX(0,CalcTable[[#This Row],[VolRednWind]]*(FCAP*IRR_TARGET-CalcTable[[#This Row],[IWC]]))) ->  | AB22: =CalcTable[[#This Row],[IWC]]+CalcTable[[#This Row],[Eff Precip]]+CalcTable[[#This Row],[IrrAmt]]-CalcTable[[#This Row],[AET]] ->  | AC22: =IF(CalcTable[[#This Row],[PWC]]>FCAP,MIN(24*PERC,MIN(SAT,CalcTable[[#This Row],[PWC]])-FCAP),0) ->  | AD22: =IF(CalcTable[[#This Row],[PWC]]>SAT,CalcTable[[#This Row],[PWC]]-SAT,0) ->  | AE22: =CalcTable[[#This Row],[PWC]]-CalcTable[[#This Row],[PercAmt]]-CalcTable[[#This Row],[Runoff]] ->  | AF22: =CalcTable[[#This Row],[IrrAmt]]/1000*CUR_IRR_AREA*10000/IRR_EFF ->  | AI22: 0 | AJ22: 0 | AK22: 0 | AL22: 0 | AX22: 0 | AZ22: 0 | BA22: 0 | BB22: 0 | BC22: 19605 | BD22: 0 | BE22: 0 | BF22: 0 | BH22: 0 | BI22: =BI21+1 -> 22 | BJ22: 22 | BK22: 1960-05-03
A23: 1960-05-04 | B23: 1960 | C23: 5 | D23: 125 | E23: 4 | F23: 4 | G23: -0.6 | H23: 2.000901118 | I23: 13.66666667 | J23: 0 | K23: 0 | L23: 0 | M23: =CalcTable[[#This Row],[IWC]]-AE22 ->  | N23: =IF(CalcTable[[#This Row],[Day of Year]]<123,FCAP,AE22) ->  | O23: =IF(IRR_DRIP,5,COUNTIF('IDET Wind Values'!C7:G7,"<="&IRR_MAXWIND)) ->  | P23: =CalcTable[[#This Row],[ET_o]]*KL ->  | Q23: =IF(WILTPT<=0,1,MAX(0,MIN(1,(CalcTable[[#This Row],[IWC]]-WILTPT)/(MAD-WILTPT)))) ->  | R23: =CalcTable[[#This Row],[ETMult]]*CalcTable[[#This Row],[ETb]] ->  | S23: =INDEX(IRR_LIST,CalcTable[[#This Row],[Day of Week]]+1) -> FALSE | T23: 1 | U23: =IF(CalcTable[[#This Row],[IrrPrecip]]>=IC_MM,FALSE,TRUE) -> TRUE | V23: FALSE | W23: =IF(AND(IRR_DRIP=FALSE,CalcTable[[#This Row],[IrrHours]]<=0),FALSE,TRUE) ->  | X23: =AND(CalcTable[[#This Row],[IrrDay]],CalcTable[[#This Row],[IrrRain]],CalcTable[[#This Row],[IrrWarm]],CalcTable[[#This Row],[IrrWindy]]) ->  | Z23: =CalcTable[[#This Row],[IrrHours]]/5 ->  | AA23: =IF(CalcTable[[#This Row],[IrrFlag]]=FALSE,0,MAX(0,CalcTable[[#This Row],[VolRednWind]]*(FCAP*IRR_TARGET-CalcTable[[#This Row],[IWC]]))) ->  | AB23: =CalcTable[[#This Row],[IWC]]+CalcTable[[#This Row],[Eff Precip]]+CalcTable[[#This Row],[IrrAmt]]-CalcTable[[#This Row],[AET]] ->  | AC23: =IF(CalcTable[[#This Row],[PWC]]>FCAP,MIN(24*PERC,MIN(SAT,CalcTable[[#This Row],[PWC]])-FCAP),0) ->  | AD23: =IF(CalcTable[[#This Row],[PWC]]>SAT,CalcTable[[#This Row],[PWC]]-SAT,0) ->  | AE23: =CalcTable[[#This Row],[PWC]]-CalcTable[[#This Row],[PercAmt]]-CalcTable[[#This Row],[Runoff]] ->  | AF23: =CalcTable[[#This Row],[IrrAmt]]/1000*CUR_IRR_AREA*10000/IRR_EFF ->  | AI23: 0 | AJ23: 0 | AK23: 0 | AL23: 0 | AX23: 0 | AZ23: 0 | BA23: 0 | BB23: 0 | BC23: 19605 | BD23: 0 | BE23: 0 | BF23: 0 | BH23: 0 | BI23: 23 | BJ23: 23 | BK23: 1960-05-04
A24: 1960-05-05 | B24: 1960 | C24: 5 | D24: 126 | E24: 5 | F24: 5 | G24: 0 | H24: 3.160974878 | I24: 16 | J24: 0 | K24: 0 | L24: 0 | M24: =CalcTable[[#This Row],[IWC]]-AE23 ->  | N24: =IF(CalcTable[[#This Row],[Day of Year]]<123,FCAP,AE23) ->  | O24: =IF(IRR_DRIP,5,COUNTIF('IDET Wind Values'!C8:G8,"<="&IRR_MAXWIND)) ->  | P24: =CalcTable[[#This Row],[ET_o]]*KL ->  | Q24: =IF(WILTPT<=0,1,MAX(0,MIN(1,(CalcTable[[#This Row],[IWC]]-WILTPT)/(MAD-WILTPT)))) ->  | R24: =CalcTable[[#This Row],[ETMult]]*CalcTable[[#This Row],[ETb]] ->  | S24: =INDEX(IRR_LIST,CalcTable[[#This Row],[Day of Week]]+1) -> TRUE | T24: 0 | U24: =IF(CalcTable[[#This Row],[IrrPrecip]]>=IC_MM,FALSE,TRUE) -> TRUE | V24: FALSE | W24: =IF(AND(IRR_DRIP=FALSE,CalcTable[[#This Row],[IrrHours]]<=0),FALSE,TRUE) ->  | X24: =AND(CalcTable[[#This Row],[IrrDay]],CalcTable[[#This Row],[IrrRain]],CalcTable[[#This Row],[IrrWarm]],CalcTable[[#This Row],[IrrWindy]]) ->  | Z24: =CalcTable[[#This Row],[IrrHours]]/5 ->  | AA24: =IF(CalcTable[[#This Row],[IrrFlag]]=FALSE,0,MAX(0,CalcTable[[#This Row],[VolRednWind]]*(FCAP*IRR_TARGET-CalcTable[[#This Row],[IWC]]))) ->  | AB24: =CalcTable[[#This Row],[IWC]]+CalcTable[[#This Row],[Eff Precip]]+CalcTable[[#This Row],[IrrAmt]]-CalcTable[[#This Row],[AET]] ->  | AC24: =IF(CalcTable[[#This Row],[PWC]]>FCAP,MIN(24*PERC,MIN(SAT,CalcTable[[#This Row],[PWC]])-FCAP),0) ->  | AD24: =IF(CalcTable[[#This Row],[PWC]]>SAT,CalcTable[[#This Row],[PWC]]-SAT,0) ->  | AE24: =CalcTable[[#This Row],[PWC]]-CalcTable[[#This Row],[PercAmt]]-CalcTable[[#This Row],[Runoff]] ->  | AF24: =CalcTable[[#This Row],[IrrAmt]]/1000*CUR_IRR_AREA*10000/IRR_EFF ->  | AI24: 0 | AJ24: 0 | AK24: 0 | AL24: 0 | AX24: 0 | AZ24: 0 | BA24: 0 | BB24: 0 | BC24: 19605 | BD24: 0 | BE24: 0 | BF24: 0 | BH24: 0 | BI24: 24 | BJ24: 24 | BK24: 1960-05-05
A25: 1960-05-06 | B25: 1960 | C25: 5 | D25: 127 | E25: 6 | F25: 6 | G25: -1.7 | H25: 4.344496341 | I25: 8.666666667 | J25: 0 | K25: 0 | L25: 0 | M25: =CalcTable[[#This Row],[IWC]]-AE24 ->  | N25: =IF(CalcTable[[#This Row],[Day of Year]]<123,FCAP,AE24) ->  | O25: =IF(IRR_DRIP,5,COUNTIF('IDET Wind Values'!C9:G9,"<="&IRR_MAXWIND)) ->  | P25: =CalcTable[[#This Row],[ET_o]]*KL ->  | Q25: =IF(WILTPT<=0,1,MAX(0,MIN(1,(CalcTable[[#This Row],[IWC]]-WILTPT)/(MAD-WILTPT)))) ->  | R25: =CalcTable[[#This Row],[ETMult]]*CalcTable[[#This Row],[ETb]] ->  | S25: =INDEX(IRR_LIST,CalcTable[[#This Row],[Day of Week]]+1) -> FALSE | T25: 0 | U25: =IF(CalcTable[[#This Row],[IrrPrecip]]>=IC_MM,FALSE,TRUE) -> TRUE | V25: TRUE | W25: =IF(AND(IRR_DRIP=FALSE,CalcTable[[#This Row],[IrrHours]]<=0),FALSE,TRUE) ->  | X25: =AND(CalcTable[[#This Row],[IrrDay]],CalcTable[[#This Row],[IrrRain]],CalcTable[[#This Row],[IrrWarm]],CalcTable[[#This Row],[IrrWindy]]) ->  | Z25: =CalcTable[[#This Row],[IrrHours]]/5 ->  | AA25: =IF(CalcTable[[#This Row],[IrrFlag]]=FALSE,0,MAX(0,CalcTable[[#This Row],[VolRednWind]]*(FCAP*IRR_TARGET-CalcTable[[#This Row],[IWC]]))) ->  | AB25: =CalcTable[[#This Row],[IWC]]+CalcTable[[#This Row],[Eff Precip]]+CalcTable[[#This Row],[IrrAmt]]-CalcTable[[#This Row],[AET]] ->  | AC25: =IF(CalcTable[[#This Row],[PWC]]>FCAP,MIN(24*PERC,MIN(SAT,CalcTable[[#This Row],[PWC]])-FCAP),0) ->  | AD25: =IF(CalcTable[[#This Row],[PWC]]>SAT,CalcTable[[#This Row],[PWC]]-SAT,0) ->  | AE25: =CalcTable[[#This Row],[PWC]]-CalcTable[[#This Row],[PercAmt]]-CalcTable[[#This Row],[Runoff]] ->  | AF25: =CalcTable[[#This Row],[IrrAmt]]/1000*CUR_IRR_AREA*10000/IRR_EFF ->  | AI25: 0 | AJ25: 0 | AK25: 0 | AL25: 7.098339178 | AX25: 7.098339178 | AZ25: 208.2179492 | BA25: 320.5895409 | BB25: 330.5046813 | BC25: 19605 | BD25: 7.098339178 | BE25: 208.2179492 | BF25: 340.5782802 | BH25: 0 | BI25: 25 | BJ25: 25 | BK25: 1960-05-06
A26: 1960-05-07 | B26: 1960 | C26: 5 | D26: 128 | E26: 7 | F26: 7 | G26: 7.2 | H26: 3.839298652 | I26: 7.166666667 | J26: 0.3 | K26: 0.3 | L26: 0 | M26: =CalcTable[[#This Row],[IWC]]-AE25 ->  | N26: =IF(CalcTable[[#This Row],[Day of Year]]<123,FCAP,AE25) ->  | O26: =IF(IRR_DRIP,5,COUNTIF('IDET Wind Values'!C10:G10,"<="&IRR_MAXWIND)) ->  | P26: =CalcTable[[#This Row],[ET_o]]*KL ->  | Q26: =IF(WILTPT<=0,1,MAX(0,MIN(1,(CalcTable[[#This Row],[IWC]]-WILTPT)/(MAD-WILTPT)))) ->  | R26: =CalcTable[[#This Row],[ETMult]]*CalcTable[[#This Row],[ETb]] ->  | S26: =INDEX(IRR_LIST,CalcTable[[#This Row],[Day of Week]]+1) -> FALSE | T26: 0 | U26: =IF(CalcTable[[#This Row],[IrrPrecip]]>=IC_MM,FALSE,TRUE) -> TRUE | V26: FALSE | W26: =IF(AND(IRR_DRIP=FALSE,CalcTable[[#This Row],[IrrHours]]<=0),FALSE,TRUE) ->  | X26: =AND(CalcTable[[#This Row],[IrrDay]],CalcTable[[#This Row],[IrrRain]],CalcTable[[#This Row],[IrrWarm]],CalcTable[[#This Row],[IrrWindy]]) ->  | Z26: =CalcTable[[#This Row],[IrrHours]]/5 ->  | AA26: =IF(CalcTable[[#This Row],[IrrFlag]]=FALSE,0,MAX(0,CalcTable[[#This Row],[VolRednWind]]*(FCAP*IRR_TARGET-CalcTable[[#This Row],[IWC]]))) ->  | AB26: =CalcTable[[#This Row],[IWC]]+CalcTable[[#This Row],[Eff Precip]]+CalcTable[[#This Row],[IrrAmt]]-CalcTable[[#This Row],[AET]] ->  | AC26: =IF(CalcTable[[#This Row],[PWC]]>FCAP,MIN(24*PERC,MIN(SAT,CalcTable[[#This Row],[PWC]])-FCAP),0) ->  | AD26: =IF(CalcTable[[#This Row],[PWC]]>SAT,CalcTable[[#This Row],[PWC]]-SAT,0) ->  | AE26: =CalcTable[[#This Row],[PWC]]-CalcTable[[#This Row],[PercAmt]]-CalcTable[[#This Row],[Runoff]] ->  | AF26: =CalcTable[[#This Row],[IrrAmt]]/1000*CUR_IRR_AREA*10000/IRR_EFF ->  | AI26: 0 | AJ26: 0 | AK26: 0 | AL26: 0 | AX26: 0 | AZ26: 0 | BA26: 0 | BB26: 0 | BC26: 19605 | BD26: 0 | BE26: 0 | BF26: 0 | BH26: 0 | BI26: 26 | BJ26: 26 | BK26: 1960-05-07
A27: 1960-05-08 | B27: 1960 | C27: 5 | D27: 129 | E27: 8 | F27: 1 | G27: 2.8 | H27: 4.449695502 | I27: 32.66666667 | J27: 1 | K27: 1 | L27: 0 | M27: =CalcTable[[#This Row],[IWC]]-AE26 ->  | N27: =IF(CalcTable[[#This Row],[Day of Year]]<123,FCAP,AE26) ->  | O27: =IF(IRR_DRIP,5,COUNTIF('IDET Wind Values'!C11:G11,"<="&IRR_MAXWIND)) ->  | P27: =CalcTable[[#This Row],[ET_o]]*KL ->  | Q27: =IF(WILTPT<=0,1,MAX(0,MIN(1,(CalcTable[[#This Row],[IWC]]-WILTPT)/(MAD-WILTPT)))) ->  | R27: =CalcTable[[#This Row],[ETMult]]*CalcTable[[#This Row],[ETb]] ->  | S27: =INDEX(IRR_LIST,CalcTable[[#This Row],[Day of Week]]+1) -> TRUE | T27: 0.3 | U27: =IF(CalcTable[[#This Row],[IrrPrecip]]>=IC_MM,FALSE,TRUE) -> TRUE | V27: FALSE | W27: =IF(AND(IRR_DRIP=FALSE,CalcTable[[#This Row],[IrrHours]]<=0),FALSE,TRUE) ->  | X27: =AND(CalcTable[[#This Row],[IrrDay]],CalcTable[[#This Row],[IrrRain]],CalcTable[[#This Row],[IrrWarm]],CalcTable[[#This Row],[IrrWindy]]) ->  | Z27: =CalcTable[[#This Row],[IrrHours]]/5 ->  | AA27: =IF(CalcTable[[#This Row],[IrrFlag]]=FALSE,0,MAX(0,CalcTable[[#This Row],[VolRednWind]]*(FCAP*IRR_TARGET-CalcTable[[#This Row],[IWC]]))) ->  | AB27: =CalcTable[[#This Row],[IWC]]+CalcTable[[#This Row],[Eff Precip]]+CalcTable[[#This Row],[IrrAmt]]-CalcTable[[#This Row],[AET]] ->  | AC27: =IF(CalcTable[[#This Row],[PWC]]>FCAP,MIN(24*PERC,MIN(SAT,CalcTable[[#This Row],[PWC]])-FCAP),0) ->  | AD27: =IF(CalcTable[[#This Row],[PWC]]>SAT,CalcTable[[#This Row],[PWC]]-SAT,0) ->  | AE27: =CalcTable[[#This Row],[PWC]]-CalcTable[[#This Row],[PercAmt]]-CalcTable[[#This Row],[Runoff]] ->  | AF27: =CalcTable[[#This Row],[IrrAmt]]/1000*CUR_IRR_AREA*10000/IRR_EFF ->  | AI27: 0 | AJ27: 0 | AK27: 0 | AL27: 0 | AX27: 0 | AZ27: 0 | BA27: 0 | BB27: 0 | BC27: 19605 | BD27: 0 | BE27: 0 | BF27: 0 | BH27: 0 | BI27: 27 | BJ27: 27 | BK27: 1960-05-08
A28: 1960-05-09 | B28: 1960 | C28: 5 | D28: 130 | E28: 9 | F28: 2 | G28: 1.7 | H28: 4.827703862 | I28: 16.5 | J28: 0 | K28: 0 | L28: 0 | M28: =CalcTable[[#This Row],[IWC]]-AE27 ->  | N28: =IF(CalcTable[[#This Row],[Day of Year]]<123,FCAP,AE27) ->  | O28: =IF(IRR_DRIP,5,COUNTIF('IDET Wind Values'!C12:G12,"<="&IRR_MAXWIND)) ->  | P28: =CalcTable[[#This Row],[ET_o]]*KL ->  | Q28: =IF(WILTPT<=0,1,MAX(0,MIN(1,(CalcTable[[#This Row],[IWC]]-WILTPT)/(MAD-WILTPT)))) ->  | R28: =CalcTable[[#This Row],[ETMult]]*CalcTable[[#This Row],[ETb]] ->  | S28: =INDEX(IRR_LIST,CalcTable[[#This Row],[Day of Week]]+1) -> FALSE | T28: 1.3 | U28: =IF(CalcTable[[#This Row],[IrrPrecip]]>=IC_MM,FALSE,TRUE) -> TRUE | V28: TRUE | W28: =IF(AND(IRR_DRIP=FALSE,CalcTable[[#This Row],[IrrHours]]<=0),FALSE,TRUE) ->  | X28: =AND(CalcTable[[#This Row],[IrrDay]],CalcTable[[#This Row],[IrrRain]],CalcTable[[#This Row],[IrrWarm]],CalcTable[[#This Row],[IrrWindy]]) ->  | Z28: =CalcTable[[#This Row],[IrrHours]]/5 ->  | AA28: =IF(CalcTable[[#This Row],[IrrFlag]]=FALSE,0,MAX(0,CalcTable[[#This Row],[VolRednWind]]*(FCAP*IRR_TARGET-CalcTable[[#This Row],[IWC]]))) ->  | AB28: =CalcTable[[#This Row],[IWC]]+CalcTable[[#This Row],[Eff Precip]]+CalcTable[[#This Row],[IrrAmt]]-CalcTable[[#This Row],[AET]] ->  | AC28: =IF(CalcTable[[#This Row],[PWC]]>FCAP,MIN(24*PERC,MIN(SAT,CalcTable[[#This Row],[PWC]])-FCAP),0) ->  | AD28: =IF(CalcTable[[#This Row],[PWC]]>SAT,CalcTable[[#This Row],[PWC]]-SAT,0) ->  | AE28: =CalcTable[[#This Row],[PWC]]-CalcTable[[#This Row],[PercAmt]]-CalcTable[[#This Row],[Runoff]] ->  | AF28: =CalcTable[[#This Row],[IrrAmt]]/1000*CUR_IRR_AREA*10000/IRR_EFF ->  | AI28: 0 | AJ28: 0 | AK28: 4.54660842 | AL28: 6.948419772 | AX28: 11.49502819 | AZ28: 270.5039035 | BA28: 416.4901371 | BB28: 429.3712753 | BC28: 19605 | BD28: 11.49502819 | BE28: 270.5039035 | BF28: 442.4582731 | BH28: 0 | BI28: 28 | BJ28: 28 | BK28: 1960-05-09
A29: 1960-05-10 | B29: 1960 | C29: 5 | D29: 131 | E29: 10 | F29: 3 | G29: 3.9 | H29: 6.208746314 | I29: 9 | J29: 0 | K29: 0 | L29: 0 | M29: =CalcTable[[#This Row],[IWC]]-AE28 ->  | N29: =IF(CalcTable[[#This Row],[Day of Year]]<123,FCAP,AE28) ->  | O29: =IF(IRR_DRIP,5,COUNTIF('IDET Wind Values'!C13:G13,"<="&IRR_MAXWIND)) ->  | P29: =CalcTable[[#This Row],[ET_o]]*KL ->  | Q29: =IF(WILTPT<=0,1,MAX(0,MIN(1,(CalcTable[[#This Row],[IWC]]-WILTPT)/(MAD-WILTPT)))) ->  | R29: =CalcTable[[#This Row],[ETMult]]*CalcTable[[#This Row],[ETb]] ->  | S29: =INDEX(IRR_LIST,CalcTable[[#This Row],[Day of Week]]+1) -> TRUE | T29: 1 | U29: =IF(CalcTable[[#This Row],[IrrPrecip]]>=IC_MM,FALSE,TRUE) -> TRUE | V29: TRUE | W29: =IF(AND(IRR_DRIP=FALSE,CalcTable[[#This Row],[IrrHours]]<=0),FALSE,TRUE) ->  | X29: =AND(CalcTable[[#This Row],[IrrDay]],CalcTable[[#This Row],[IrrRain]],CalcTable[[#This Row],[IrrWarm]],CalcTable[[#This Row],[IrrWindy]]) ->  | Z29: =CalcTable[[#This Row],[IrrHours]]/5 ->  | AA29: =IF(CalcTable[[#This Row],[IrrFlag]]=FALSE,0,MAX(0,CalcTable[[#This Row],[VolRednWind]]*(FCAP*IRR_TARGET-CalcTable[[#This Row],[IWC]]))) ->  | AB29: =CalcTable[[#This Row],[IWC]]+CalcTable[[#This Row],[Eff Precip]]+CalcTable[[#This Row],[IrrAmt]]-CalcTable[[#This Row],[AET]] ->  | AC29: =IF(CalcTable[[#This Row],[PWC]]>FCAP,MIN(24*PERC,MIN(SAT,CalcTable[[#This Row],[PWC]])-FCAP),0) ->  | AD29: =IF(CalcTable[[#This Row],[PWC]]>SAT,CalcTable[[#This Row],[PWC]]-SAT,0) ->  | AE29: =CalcTable[[#This Row],[PWC]]-CalcTable[[#This Row],[PercAmt]]-CalcTable[[#This Row],[Runoff]] ->  | AF29: =CalcTable[[#This Row],[IrrAmt]]/1000*CUR_IRR_AREA*10000/IRR_EFF ->  | AI29: 6.575243948 | AJ29: 9.9565082 | AK29: 0 | AL29: 0 | AX29: 16.53175215 | AZ29: 388.4944851 | BA29: 630.2524143 | BB29: 652.3181783 | BC29: 19605 | BD29: 16.53175215 | BE29: 388.4944851 | BF29: 635.4533032 | BH29: 0 | BI29: 29 | BJ29: 29 | BK29: 1960-05-10
A30: 1960-05-11 | B30: 1960 | C30: 5 | D30: 132 | E30: 11 | F30: 4 | G30: 11.1 | H30: 6.92226704 | I30: 12 | J30: 0 | K30: 0 | L30: 0 | M30: =CalcTable[[#This Row],[IWC]]-AE29 ->  | N30: =IF(CalcTable[[#This Row],[Day of Year]]<123,FCAP,AE29) ->  | O30: =IF(IRR_DRIP,5,COUNTIF('IDET Wind Values'!C14:G14,"<="&IRR_MAXWIND)) ->  | P30: =CalcTable[[#This Row],[ET_o]]*KL ->  | Q30: =IF(WILTPT<=0,1,MAX(0,MIN(1,(CalcTable[[#This Row],[IWC]]-WILTPT)/(MAD-WILTPT)))) ->  | R30: =CalcTable[[#This Row],[ETMult]]*CalcTable[[#This Row],[ETb]] ->  | S30: =INDEX(IRR_LIST,CalcTable[[#This Row],[Day of Week]]+1) -> FALSE | T30: 0 | U30: =IF(CalcTable[[#This Row],[IrrPrecip]]>=IC_MM,FALSE,TRUE) -> TRUE | V30: TRUE | W30: =IF(AND(IRR_DRIP=FALSE,CalcTable[[#This Row],[IrrHours]]<=0),FALSE,TRUE) ->  | X30: =AND(CalcTable[[#This Row],[IrrDay]],CalcTable[[#This Row],[IrrRain]],CalcTable[[#This Row],[IrrWarm]],CalcTable[[#This Row],[IrrWindy]]) ->  | Z30: =CalcTable[[#This Row],[IrrHours]]/5 ->  | AA30: =IF(CalcTable[[#This Row],[IrrFlag]]=FALSE,0,MAX(0,CalcTable[[#This Row],[VolRednWind]]*(FCAP*IRR_TARGET-CalcTable[[#This Row],[IWC]]))) ->  | AB30: =CalcTable[[#This Row],[IWC]]+CalcTable[[#This Row],[Eff Precip]]+CalcTable[[#This Row],[IrrAmt]]-CalcTable[[#This Row],[AET]] ->  | AC30: =IF(CalcTable[[#This Row],[PWC]]>FCAP,MIN(24*PERC,MIN(SAT,CalcTable[[#This Row],[PWC]])-FCAP),0) ->  | AD30: =IF(CalcTable[[#This Row],[PWC]]>SAT,CalcTable[[#This Row],[PWC]]-SAT,0) ->  | AE30: =CalcTable[[#This Row],[PWC]]-CalcTable[[#This Row],[PercAmt]]-CalcTable[[#This Row],[Runoff]] ->  | AF30: =CalcTable[[#This Row],[IrrAmt]]/1000*CUR_IRR_AREA*10000/IRR_EFF ->  | AI30: 0 | AJ30: 0 | AK30: 0 | AL30: 6.070047597 | AX30: 6.070047597 | AZ30: 178.0547295 | BA30: 274.1477581 | BB30: 282.6265548 | BC30: 19605 | BD30: 6.070047597 | BE30: 178.0547295 | BF30: 291.240855 | BH30: 0 | BI30: 30 | BJ30: 30 | BK30: 1960-05-11
A31: 1960-05-12 | B31: 1960 | C31: 5 | D31: 133 | E31: 12 | F31: 5 | G31: 7.2 | H31: 6.039878614 | I31: 25.66666667 | J31: 2.3 | K31: 2.3 | L31: 0 | M31: =CalcTable[[#This Row],[IWC]]-AE30 ->  | N31: =IF(CalcTable[[#This Row],[Day of Year]]<123,FCAP,AE30) ->  | O31: =IF(IRR_DRIP,5,COUNTIF('IDET Wind Values'!C15:G15,"<="&IRR_MAXWIND)) ->  | P31: =CalcTable[[#This Row],[ET_o]]*KL ->  | Q31: =IF(WILTPT<=0,1,MAX(0,MIN(1,(CalcTable[[#This Row],[IWC]]-WILTPT)/(MAD-WILTPT)))) ->  | R31: =CalcTable[[#This Row],[ETMult]]*CalcTable[[#This Row],[ETb]] ->  | S31: =INDEX(IRR_LIST,CalcTable[[#This Row],[Day of Week]]+1) -> TRUE | T31: 0 | U31: =IF(CalcTable[[#This Row],[IrrPrecip]]>=IC_MM,FALSE,TRUE) -> TRUE | V31: TRUE | W31: =IF(AND(IRR_DRIP=FALSE,CalcTable[[#This Row],[IrrHours]]<=0),FALSE,TRUE) ->  | X31: =AND(CalcTable[[#This Row],[IrrDay]],CalcTable[[#This Row],[IrrRain]],CalcTable[[#This Row],[IrrWarm]],CalcTable[[#This Row],[IrrWindy]]) ->  | Z31: =CalcTable[[#This Row],[IrrHours]]/5 ->  | AA31: =IF(CalcTable[[#This Row],[IrrFlag]]=FALSE,0,MAX(0,CalcTable[[#This Row],[VolRednWind]]*(FCAP*IRR_TARGET-CalcTable[[#This Row],[IWC]]))) ->  | AB31: =CalcTable[[#This Row],[IWC]]+CalcTable[[#This Row],[Eff Precip]]+CalcTable[[#This Row],[IrrAmt]]-CalcTable[[#This Row],[AET]] ->  | AC31: =IF(CalcTable[[#This Row],[PWC]]>FCAP,MIN(24*PERC,MIN(SAT,CalcTable[[#This Row],[PWC]])-FCAP),0) ->  | AD31: =IF(CalcTable[[#This Row],[PWC]]>SAT,CalcTable[[#This Row],[PWC]]-SAT,0) ->  | AE31: =CalcTable[[#This Row],[PWC]]-CalcTable[[#This Row],[PercAmt]]-CalcTable[[#This Row],[Runoff]] ->  | AF31: =CalcTable[[#This Row],[IrrAmt]]/1000*CUR_IRR_AREA*10000/IRR_EFF ->  | AI31: 0 | AJ31: 0 | AK31: 0 | AL31: 0 | AX31: 0 | AZ31: 0 | BA31: 0 | BB31: 0 | BC31: 19605 | BD31: 0 | BE31: 0 | BF31: 0 | BH31: 0 | BI31: 31 | BJ31: 31 | BK31: 1960-05-12
A32: 1960-05-13 | B32: 1960 | C32: 5 | D32: 134 | E32: 13 | F32: 6 | G32: 5 | H32: 4.538464221 | I32: 18 | J32: 0 | K32: 0 | L32: 0 | M32: =CalcTable[[#This Row],[IWC]]-AE31 ->  | N32: =IF(CalcTable[[#This Row],[Day of Year]]<123,FCAP,AE31) ->  | O32: =IF(IRR_DRIP,5,COUNTIF('IDET Wind Values'!C16:G16,"<="&IRR_MAXWIND)) ->  | P32: =CalcTable[[#This Row],[ET_o]]*KL ->  | Q32: =IF(WILTPT<=0,1,MAX(0,MIN(1,(CalcTable[[#This Row],[IWC]]-WILTPT)/(MAD-WILTPT)))) ->  | R32: =CalcTable[[#This Row],[ETMult]]*CalcTable[[#This Row],[ETb]] ->  | S32: =INDEX(IRR_LIST,CalcTable[[#This Row],[Day of Week]]+1) -> FALSE | T32: 2.3 | U32: =IF(CalcTable[[#This Row],[IrrPrecip]]>=IC_MM,FALSE,TRUE) -> TRUE | V32: FALSE | W32: =IF(AND(IRR_DRIP=FALSE,CalcTable[[#This Row],[IrrHours]]<=0),FALSE,TRUE) ->  | X32: =AND(CalcTable[[#This Row],[IrrDay]],CalcTable[[#This Row],[IrrRain]],CalcTable[[#This Row],[IrrWarm]],CalcTable[[#This Row],[IrrWindy]]) ->  | Z32: =CalcTable[[#This Row],[IrrHours]]/5 ->  | AA32: =IF(CalcTable[[#This Row],[IrrFlag]]=FALSE,0,MAX(0,CalcTable[[#This Row],[VolRednWind]]*(FCAP*IRR_TARGET-CalcTable[[#This Row],[IWC]]))) ->  | AB32: =CalcTable[[#This Row],[IWC]]+CalcTable[[#This Row],[Eff Precip]]+CalcTable[[#This Row],[IrrAmt]]-CalcTable[[#This Row],[AET]] ->  | AC32: =IF(CalcTable[[#This Row],[PWC]]>FCAP,MIN(24*PERC,MIN(SAT,CalcTable[[#This Row],[PWC]])-FCAP),0) ->  | AD32: =IF(CalcTable[[#This Row],[PWC]]>SAT,CalcTable[[#This Row],[PWC]]-SAT,0) ->  | AE32: =CalcTable[[#This Row],[PWC]]-CalcTable[[#This Row],[PercAmt]]-CalcTable[[#This Row],[Runoff]] ->  | AF32: =CalcTable[[#This Row],[IrrAmt]]/1000*CUR_IRR_AREA*10000/IRR_EFF ->  | AI32: 0 | AJ32: 0 | AK32: 0 | AL32: 0 | AX32: 0 | AZ32: 0 | BA32: 0 | BB32: 0 | BC32: 19605 | BD32: 0 | BE32: 0 | BF32: 0 | BH32: 0 | BI32: 32 | BJ32: 32 | BK32: 1960-05-13
A33: 1960-05-14 | B33: 1960 | C33: 5 | D33: 135 | E33: 14 | F33: 7 | G33: 2.2 | H33: 3.969079244 | I33: 35.33333333 | J33: 4.1 | K33: 4.1 | L33: 0 | M33: =CalcTable[[#This Row],[IWC]]-AE32 ->  | N33: =IF(CalcTable[[#This Row],[Day of Year]]<123,FCAP,AE32) ->  | O33: =IF(IRR_DRIP,5,COUNTIF('IDET Wind Values'!C17:G17,"<="&IRR_MAXWIND)) ->  | P33: =CalcTable[[#This Row],[ET_o]]*KL ->  | Q33: =IF(WILTPT<=0,1,MAX(0,MIN(1,(CalcTable[[#This Row],[IWC]]-WILTPT)/(MAD-WILTPT)))) ->  | R33: =CalcTable[[#This Row],[ETMult]]*CalcTable[[#This Row],[ETb]] ->  | S33: =INDEX(IRR_LIST,CalcTable[[#This Row],[Day of Week]]+1) -> FALSE | T33: 2.3 | U33: =IF(CalcTable[[#This Row],[IrrPrecip]]>=IC_MM,FALSE,TRUE) -> TRUE | V33: FALSE | W33: =IF(AND(IRR_DRIP=FALSE,CalcTable[[#This Row],[IrrHours]]<=0),FALSE,TRUE) ->  | X33: =AND(CalcTable[[#This Row],[IrrDay]],CalcTable[[#This Row],[IrrRain]],CalcTable[[#This Row],[IrrWarm]],CalcTable[[#This Row],[IrrWindy]]) ->  | Z33: =CalcTable[[#This Row],[IrrHours]]/5 ->  | AA33: =IF(CalcTable[[#This Row],[IrrFlag]]=FALSE,0,MAX(0,CalcTable[[#This Row],[VolRednWind]]*(FCAP*IRR_TARGET-CalcTable[[#This Row],[IWC]]))) ->  | AB33: =CalcTable[[#This Row],[IWC]]+CalcTable[[#This Row],[Eff Precip]]+CalcTable[[#This Row],[IrrAmt]]-CalcTable[[#This Row],[AET]] ->  | AC33: =IF(CalcTable[[#This Row],[PWC]]>FCAP,MIN(24*PERC,MIN(SAT,CalcTable[[#This Row],[PWC]])-FCAP),0) ->  | AD33: =IF(CalcTable[[#This Row],[PWC]]>SAT,CalcTable[[#This Row],[PWC]]-SAT,0) ->  | AE33: =CalcTable[[#This Row],[PWC]]-CalcTable[[#This Row],[PercAmt]]-CalcTable[[#This Row],[Runoff]] ->  | AF33: =CalcTable[[#This Row],[IrrAmt]]/1000*CUR_IRR_AREA*10000/IRR_EFF ->  | AI33: 0 | AJ33: 0 | AK33: 0 | AL33: 0 | AX33: 0 | AZ33: 0 | BA33: 0 | BB33: 0 | BC33: 19605 | BD33: 0 | BE33: 0 | BF33: 0 | BH33: 0 | BI33: 33 | BJ33: 33 | BK33: 1960-05-14
A34: 1960-05-15 | B34: 1960 | C34: 5 | D34: 136 | E34: 15 | F34: 1 | G34: 2.8 | H34: 3.57267985 | I34: 12.5 | J34: 0 | K34: 0 | L34: 0 | M34: =CalcTable[[#This Row],[IWC]]-AE33 ->  | N34: =IF(CalcTable[[#This Row],[Day of Year]]<123,FCAP,AE33) ->  | O34: =IF(IRR_DRIP,5,COUNTIF('IDET Wind Values'!C18:G18,"<="&IRR_MAXWIND)) ->  | P34: =CalcTable[[#This Row],[ET_o]]*KL ->  | Q34: =IF(WILTPT<=0,1,MAX(0,MIN(1,(CalcTable[[#This Row],[IWC]]-WILTPT)/(MAD-WILTPT)))) ->  | R34: =CalcTable[[#This Row],[ETMult]]*CalcTable[[#This Row],[ETb]] ->  | S34: =INDEX(IRR_LIST,CalcTable[[#This Row],[Day of Week]]+1) -> TRUE | T34: 4.1 | U34: =IF(CalcTable[[#This Row],[IrrPrecip]]>=IC_MM,FALSE,TRUE) -> TRUE | V34: FALSE | W34: =IF(AND(IRR_DRIP=FALSE,CalcTable[[#This Row],[IrrHours]]<=0),FALSE,TRUE) ->  | X34: =AND(CalcTable[[#This Row],[IrrDay]],CalcTable[[#This Row],[IrrRain]],CalcTable[[#This Row],[IrrWarm]],CalcTable[[#This Row],[IrrWindy]]) ->  | Z34: =CalcTable[[#This Row],[IrrHours]]/5 ->  | AA34: =IF(CalcTable[[#This Row],[IrrFlag]]=FALSE,0,MAX(0,CalcTable[[#This Row],[VolRednWind]]*(FCAP*IRR_TARGET-CalcTable[[#This Row],[IWC]]))) ->  | AB34: =CalcTable[[#This Row],[IWC]]+CalcTable[[#This Row],[Eff Precip]]+CalcTable[[#This Row],[IrrAmt]]-CalcTable[[#This Row],[AET]] ->  | AC34: =IF(CalcTable[[#This Row],[PWC]]>FCAP,MIN(24*PERC,MIN(SAT,CalcTable[[#This Row],[PWC]])-FCAP),0) ->  | AD34: =IF(CalcTable[[#This Row],[PWC]]>SAT,CalcTable[[#This Row],[PWC]]-SAT,0) ->  | AE34: =CalcTable[[#This Row],[PWC]]-CalcTable[[#This Row],[PercAmt]]-CalcTable[[#This Row],[Runoff]] ->  | AF34: =CalcTable[[#This Row],[IrrAmt]]/1000*CUR_IRR_AREA*10000/IRR_EFF ->  | AI34: 0 | AJ34: 0 | AK34: 0 | AL34: 0 | AX34: 0 | AZ34: 0 | BA34: 0 | BB34: 0 | BC34: 19605 | BD34: 0 | BE34: 0 | BF34: 0 | BH34: 0 | BI34: 34 | BJ34: 34 | BK34: 1960-05-15
A35: 1960-05-16 | B35: 1960 | C35: 5 | D35: 137 | E35: 16 | F35: 2 | G35: -0.6 | H35: 2.965439818 | I35: 8 | J35: 5.1 | K35: 5.1 | L35: 0.075 | M35: =CalcTable[[#This Row],[IWC]]-AE34 ->  | N35: =IF(CalcTable[[#This Row],[Day of Year]]<123,FCAP,AE34) ->  | O35: =IF(IRR_DRIP,5,COUNTIF('IDET Wind Values'!C19:G19,"<="&IRR_MAXWIND)) ->  | P35: =CalcTable[[#This Row],[ET_o]]*KL ->  | Q35: =IF(WILTPT<=0,1,MAX(0,MIN(1,(CalcTable[[#This Row],[IWC]]-WILTPT)/(MAD-WILTPT)))) ->  | R35: =CalcTable[[#This Row],[ETMult]]*CalcTable[[#This Row],[ETb]] ->  | S35: =INDEX(IRR_LIST,CalcTable[[#This Row],[Day of Week]]+1) -> FALSE | T35: 4.1 | U35: =IF(CalcTable[[#This Row],[IrrPrecip]]>=IC_MM,FALSE,TRUE) -> TRUE | V35: FALSE | W35: =IF(AND(IRR_DRIP=FALSE,CalcTable[[#This Row],[IrrHours]]<=0),FALSE,TRUE) ->  | X35: =AND(CalcTable[[#This Row],[IrrDay]],CalcTable[[#This Row],[IrrRain]],CalcTable[[#This Row],[IrrWarm]],CalcTable[[#This Row],[IrrWindy]]) ->  | Z35: =CalcTable[[#This Row],[IrrHours]]/5 ->  | AA35: =IF(CalcTable[[#This Row],[IrrFlag]]=FALSE,0,MAX(0,CalcTable[[#This Row],[VolRednWind]]*(FCAP*IRR_TARGET-CalcTable[[#This Row],[IWC]]))) ->  | AB35: =CalcTable[[#This Row],[IWC]]+CalcTable[[#This Row],[Eff Precip]]+CalcTable[[#This Row],[IrrAmt]]-CalcTable[[#This Row],[AET]] ->  | AC35: =IF(CalcTable[[#This Row],[PWC]]>FCAP,MIN(24*PERC,MIN(SAT,CalcTable[[#This Row],[PWC]])-FCAP),0) ->  | AD35: =IF(CalcTable[[#This Row],[PWC]]>SAT,CalcTable[[#This Row],[PWC]]-SAT,0) ->  | AE35: =CalcTable[[#This Row],[PWC]]-CalcTable[[#This Row],[PercAmt]]-CalcTable[[#This Row],[Runoff]] ->  | AF35: =CalcTable[[#This Row],[IrrAmt]]/1000*CUR_IRR_AREA*10000/IRR_EFF ->  | AI35: 0 | AJ35: 0 | AK35: 0 | AL35: 0 | AX35: 0 | AZ35: 0 | BA35: 0 | BB35: 0 | BC35: 19605 | BD35: 0 | BE35: 0 | BF35: 0 | BH35: 0 | BI35: 35 | BJ35: 35 | BK35: 1960-05-16
A36: 1960-05-17 | B36: 1960 | C36: 5 | D36: 138 | E36: 17 | F36: 3 | G36: 1.7 | H36: 3.377989523 | I36: 23.83333333 | J36: 19.6 | K36: 19.6 | L36: 10.95 | M36: =CalcTable[[#This Row],[IWC]]-AE35 ->  | N36: =IF(CalcTable[[#This Row],[Day of Year]]<123,FCAP,AE35) ->  | O36: =IF(IRR_DRIP,5,COUNTIF('IDET Wind Values'!C20:G20,"<="&IRR_MAXWIND)) ->  | P36: =CalcTable[[#This Row],[ET_o]]*KL ->  | Q36: =IF(WILTPT<=0,1,MAX(0,MIN(1,(CalcTable[[#This Row],[IWC]]-WILTPT)/(MAD-WILTPT)))) ->  | R36: =CalcTable[[#This Row],[ETMult]]*CalcTable[[#This Row],[ETb]] ->  | S36: =INDEX(IRR_LIST,CalcTable[[#This Row],[Day of Week]]+1) -> TRUE | T36: 5.1 | U36: =IF(CalcTable[[#This Row],[IrrPrecip]]>=IC_MM,FALSE,TRUE) -> TRUE | V36: FALSE | W36: =IF(AND(IRR_DRIP=FALSE,CalcTable[[#This Row],[IrrHours]]<=0),FALSE,TRUE) ->  | X36: =AND(CalcTable[[#This Row],[IrrDay]],CalcTable[[#This Row],[IrrRain]],CalcTable[[#This Row],[IrrWarm]],CalcTable[[#This Row],[IrrWindy]]) ->  | Z36: =CalcTable[[#This Row],[IrrHours]]/5 ->  | AA36: =IF(CalcTable[[#This Row],[IrrFlag]]=FALSE,0,MAX(0,CalcTable[[#This Row],[VolRednWind]]*(FCAP*IRR_TARGET-CalcTable[[#This Row],[IWC]]))) ->  | AB36: =CalcTable[[#This Row],[IWC]]+CalcTable[[#This Row],[Eff Precip]]+CalcTable[[#This Row],[IrrAmt]]-CalcTable[[#This Row],[AET]] ->  | AC36: =IF(CalcTable[[#This Row],[PWC]]>FCAP,MIN(24*PERC,MIN(SAT,CalcTable[[#This Row],[PWC]])-FCAP),0) ->  | AD36: =IF(CalcTable[[#This Row],[PWC]]>SAT,CalcTable[[#This Row],[PWC]]-SAT,0) ->  | AE36: =CalcTable[[#This Row],[PWC]]-CalcTable[[#This Row],[PercAmt]]-CalcTable[[#This Row],[Runoff]] ->  | AF36: =CalcTable[[#This Row],[IrrAmt]]/1000*CUR_IRR_AREA*10000/IRR_EFF ->  | AI36: 0 | AJ36: 0 | AK36: 0 | AL36: 0 | AX36: 0 | AZ36: 0 | BA36: 0 | BB36: 0 | BC36: 19605 | BD36: 0 | BE36: 0 | BF36: 0 | BH36: 0 | BI36: 36 | BJ36: 36 | BK36: 1960-05-17
A37: 1960-05-18 | B37: 1960 | C37: 5 | D37: 139 | E37: 18 | F37: 4 | G37: 1.7 | H37: 3.733162903 | I37: 34.16666667 | J37: 0.8 | K37: 0.8 | L37: 0 | M37: =CalcTable[[#This Row],[IWC]]-AE36 ->  | N37: =IF(CalcTable[[#This Row],[Day of Year]]<123,FCAP,AE36) ->  | O37: =IF(IRR_DRIP,5,COUNTIF('IDET Wind Values'!C21:G21,"<="&IRR_MAXWIND)) ->  | P37: =CalcTable[[#This Row],[ET_o]]*KL ->  | Q37: =IF(WILTPT<=0,1,MAX(0,MIN(1,(CalcTable[[#This Row],[IWC]]-WILTPT)/(MAD-WILTPT)))) ->  | R37: =CalcTable[[#This Row],[ETMult]]*CalcTable[[#This Row],[ETb]] ->  | S37: =INDEX(IRR_LIST,CalcTable[[#This Row],[Day of Week]]+1) -> FALSE | T37: 24.7 | U37: =IF(CalcTable[[#This Row],[IrrPrecip]]>=IC_MM,FALSE,TRUE) -> FALSE | V37: FALSE | W37: =IF(AND(IRR_DRIP=FALSE,CalcTable[[#This Row],[IrrHours]]<=0),FALSE,TRUE) ->  | X37: =AND(CalcTable[[#This Row],[IrrDay]],CalcTable[[#This Row],[IrrRain]],CalcTable[[#This Row],[IrrWarm]],CalcTable[[#This Row],[IrrWindy]]) ->  | Z37: =CalcTable[[#This Row],[IrrHours]]/5 ->  | AA37: =IF(CalcTable[[#This Row],[IrrFlag]]=FALSE,0,MAX(0,CalcTable[[#This Row],[VolRednWind]]*(FCAP*IRR_TARGET-CalcTable[[#This Row],[IWC]]))) ->  | AB37: =CalcTable[[#This Row],[IWC]]+CalcTable[[#This Row],[Eff Precip]]+CalcTable[[#This Row],[IrrAmt]]-CalcTable[[#This Row],[AET]] ->  | AC37: =IF(CalcTable[[#This Row],[PWC]]>FCAP,MIN(24*PERC,MIN(SAT,CalcTable[[#This Row],[PWC]])-FCAP),0) ->  | AD37: =IF(CalcTable[[#This Row],[PWC]]>SAT,CalcTable[[#This Row],[PWC]]-SAT,0) ->  | AE37: =CalcTable[[#This Row],[PWC]]-CalcTable[[#This Row],[PercAmt]]-CalcTable[[#This Row],[Runoff]] ->  | AF37: =CalcTable[[#This Row],[IrrAmt]]/1000*CUR_IRR_AREA*10000/IRR_EFF ->  | AI37: 0 | AJ37: 0 | AK37: 0 | AL37: 0 | AX37: 0 | AZ37: 0 | BA37: 0 | BB37: 0 | BC37: 19605 | BD37: 0 | BE37: 0 | BF37: 0 | BH37: 0 | BI37: 37 | BJ37: 37 | BK37: 1960-05-18
A38: 1960-05-19 | B38: 1960 | C38: 5 | D38: 140 | E38: 19 | F38: 5 | G38: 0 | H38: 3.267712314 | I38: 4.333333333 | J38: 0 | K38: 0 | L38: 0 | M38: =CalcTable[[#This Row],[IWC]]-AE37 ->  | N38: =IF(CalcTable[[#This Row],[Day of Year]]<123,FCAP,AE37) ->  | O38: =IF(IRR_DRIP,5,COUNTIF('IDET Wind Values'!C22:G22,"<="&IRR_MAXWIND)) ->  | P38: =CalcTable[[#This Row],[ET_o]]*KL ->  | Q38: =IF(WILTPT<=0,1,MAX(0,MIN(1,(CalcTable[[#This Row],[IWC]]-WILTPT)/(MAD-WILTPT)))) ->  | R38: =CalcTable[[#This Row],[ETMult]]*CalcTable[[#This Row],[ETb]] ->  | S38: =INDEX(IRR_LIST,CalcTable[[#This Row],[Day of Week]]+1) -> TRUE | T38: 20.4 | U38: =IF(CalcTable[[#This Row],[IrrPrecip]]>=IC_MM,FALSE,TRUE) -> FALSE | V38: TRUE | W38: =IF(AND(IRR_DRIP=FALSE,CalcTable[[#This Row],[IrrHours]]<=0),FALSE,TRUE) ->  | X38: =AND(CalcTable[[#This Row],[IrrDay]],CalcTable[[#This Row],[IrrRain]],CalcTable[[#This Row],[IrrWarm]],CalcTable[[#This Row],[IrrWindy]]) ->  | Z38: =CalcTable[[#This Row],[IrrHours]]/5 ->  | AA38: =IF(CalcTable[[#This Row],[IrrFlag]]=FALSE,0,MAX(0,CalcTable[[#This Row],[VolRednWind]]*(FCAP*IRR_TARGET-CalcTable[[#This Row],[IWC]]))) ->  | AB38: =CalcTable[[#This Row],[IWC]]+CalcTable[[#This Row],[Eff Precip]]+CalcTable[[#This Row],[IrrAmt]]-CalcTable[[#This Row],[AET]] ->  | AC38: =IF(CalcTable[[#This Row],[PWC]]>FCAP,MIN(24*PERC,MIN(SAT,CalcTable[[#This Row],[PWC]])-FCAP),0) ->  | AD38: =IF(CalcTable[[#This Row],[PWC]]>SAT,CalcTable[[#This Row],[PWC]]-SAT,0) ->  | AE38: =CalcTable[[#This Row],[PWC]]-CalcTable[[#This Row],[PercAmt]]-CalcTable[[#This Row],[Runoff]] ->  | AF38: =CalcTable[[#This Row],[IrrAmt]]/1000*CUR_IRR_AREA*10000/IRR_EFF ->  | AI38: 0 | AJ38: 0 | AK38: 0 | AL38: 0 | AX38: 0 | AZ38: 0 | BA38: 0 | BB38: 0 | BC38: 19605 | BD38: 0 | BE38: 0 | BF38: 0 | BH38: 0 | BI38: 38 | BJ38: 38 | BK38: 1960-05-19
A39: 1960-05-20 | B39: 1960 | C39: 5 | D39: 141 | E39: 20 | F39: 6 | G39: 3.3 | H39: 4.349137449 | I39: 7.666666667 | J39: 0.5 | K39: 0.5 | L39: 0 | M39: =CalcTable[[#This Row],[IWC]]-AE38 ->  | N39: =IF(CalcTable[[#This Row],[Day of Year]]<123,FCAP,AE38) ->  | O39: =IF(IRR_DRIP,5,COUNTIF('IDET Wind Values'!C23:G23,"<="&IRR_MAXWIND)) ->  | P39: =CalcTable[[#This Row],[ET_o]]*KL ->  | Q39: =IF(WILTPT<=0,1,MAX(0,MIN(1,(CalcTable[[#This Row],[IWC]]-WILTPT)/(MAD-WILTPT)))) ->  | R39: =CalcTable[[#This Row],[ETMult]]*CalcTable[[#This Row],[ETb]] ->  | S39: =INDEX(IRR_LIST,CalcTable[[#This Row],[Day of Week]]+1) -> FALSE | T39: 0.8 | U39: =IF(CalcTable[[#This Row],[IrrPrecip]]>=IC_MM,FALSE,TRUE) -> TRUE | V39: TRUE | W39: =IF(AND(IRR_DRIP=FALSE,CalcTable[[#This Row],[IrrHours]]<=0),FALSE,TRUE) ->  | X39: =AND(CalcTable[[#This Row],[IrrDay]],CalcTable[[#This Row],[IrrRain]],CalcTable[[#This Row],[IrrWarm]],CalcTable[[#This Row],[IrrWindy]]) ->  | Z39: =CalcTable[[#This Row],[IrrHours]]/5 ->  | AA39: =IF(CalcTable[[#This Row],[IrrFlag]]=FALSE,0,MAX(0,CalcTable[[#This Row],[VolRednWind]]*(FCAP*IRR_TARGET-CalcTable[[#This Row],[IWC]]))) ->  | AB39: =CalcTable[[#This Row],[IWC]]+CalcTable[[#This Row],[Eff Precip]]+CalcTable[[#This Row],[IrrAmt]]-CalcTable[[#This Row],[AET]] ->  | AC39: =IF(CalcTable[[#This Row],[PWC]]>FCAP,MIN(24*PERC,MIN(SAT,CalcTable[[#This Row],[PWC]])-FCAP),0) ->  | AD39: =IF(CalcTable[[#This Row],[PWC]]>SAT,CalcTable[[#This Row],[PWC]]-SAT,0) ->  | AE39: =CalcTable[[#This Row],[PWC]]-CalcTable[[#This Row],[PercAmt]]-CalcTable[[#This Row],[Runoff]] ->  | AF39: =CalcTable[[#This Row],[IrrAmt]]/1000*CUR_IRR_AREA*10000/IRR_EFF ->  | AI39: 0 | AJ39: 0 | AK39: 0 | AL39: 6.130481369 | AX39: 6.130481369 | AZ39: 179.8274535 | BA39: 276.8771903 | BB39: 285.4404024 | BC39: 19605 | BD39: 6.130481369 | BE39: 179.8274535 | BF39: 294.1404672 | BH39: 0 | BI39: 39 | BJ39: 39 | BK39: 1960-05-20
A40: 1960-05-21 | B40: 1960 | C40: 5 | D40: 142 | E40: 21 | F40: 7 | G40: 5 | H40: 3.64898451 | I40: 13.66666667 | J40: 0.3 | K40: 0.3 | L40: 0 | M40: =CalcTable[[#This Row],[IWC]]-AE39 ->  | N40: =IF(CalcTable[[#This Row],[Day of Year]]<123,FCAP,AE39) ->  | O40: =IF(IRR_DRIP,5,COUNTIF('IDET Wind Values'!C24:G24,"<="&IRR_MAXWIND)) ->  | P40: =CalcTable[[#This Row],[ET_o]]*KL ->  | Q40: =IF(WILTPT<=0,1,MAX(0,MIN(1,(CalcTable[[#This Row],[IWC]]-WILTPT)/(MAD-WILTPT)))) ->  | R40: =CalcTable[[#This Row],[ETMult]]*CalcTable[[#This Row],[ETb]] ->  | S40: =INDEX(IRR_LIST,CalcTable[[#This Row],[Day of Week]]+1) -> FALSE | T40: 0.5 | U40: =IF(CalcTable[[#This Row],[IrrPrecip]]>=IC_MM,FALSE,TRUE) -> TRUE | V40: FALSE | W40: =IF(AND(IRR_DRIP=FALSE,CalcTable[[#This Row],[IrrHours]]<=0),FALSE,TRUE) ->  | X40: =AND(CalcTable[[#This Row],[IrrDay]],CalcTable[[#This Row],[IrrRain]],CalcTable[[#This Row],[IrrWarm]],CalcTable[[#This Row],[IrrWindy]]) ->  | Z40: =CalcTable[[#This Row],[IrrHours]]/5 ->  | AA40: =IF(CalcTable[[#This Row],[IrrFlag]]=FALSE,0,MAX(0,CalcTable[[#This Row],[VolRednWind]]*(FCAP*IRR_TARGET-CalcTable[[#This Row],[IWC]]))) ->  | AB40: =CalcTable[[#This Row],[IWC]]+CalcTable[[#This Row],[Eff Precip]]+CalcTable[[#This Row],[IrrAmt]]-CalcTable[[#This Row],[AET]] ->  | AC40: =IF(CalcTable[[#This Row],[PWC]]>FCAP,MIN(24*PERC,MIN(SAT,CalcTable[[#This Row],[PWC]])-FCAP),0) ->  | AD40: =IF(CalcTable[[#This Row],[PWC]]>SAT,CalcTable[[#This Row],[PWC]]-SAT,0) ->  | AE40: =CalcTable[[#This Row],[PWC]]-CalcTable[[#This Row],[PercAmt]]-CalcTable[[#This Row],[Runoff]] ->  | AF40: =CalcTable[[#This Row],[IrrAmt]]/1000*CUR_IRR_AREA*10000/IRR_EFF ->  | AI40: 0 | AJ40: 0 | AK40: 0 | AL40: 0 | AX40: 0 | AZ40: 0 | BA40: 0 | BB40: 0 | BC40: 19605 | BD40: 0 | BE40: 0 | BF40: 0 | BH40: 0 | BI40: 40 | BJ40: 40 | BK40: 1960-05-21
A41: 1960-05-22 | B41: 1960 | C41: 5 | D41: 143 | E41: 22 | F41: 1 | G41: 1.1 | H41: 3.359969274 | I41: 10.16666667 | J41: 0 | K41: 0 | L41: 0 | M41: =CalcTable[[#This Row],[IWC]]-AE40 ->  | N41: =IF(CalcTable[[#This Row],[Day of Year]]<123,FCAP,AE40) ->  | O41: =IF(IRR_DRIP,5,COUNTIF('IDET Wind Values'!C25:G25,"<="&IRR_MAXWIND)) ->  | P41: =CalcTable[[#This Row],[ET_o]]*KL ->  | Q41: =IF(WILTPT<=0,1,MAX(0,MIN(1,(CalcTable[[#This Row],[IWC]]-WILTPT)/(MAD-WILTPT)))) ->  | R41: =CalcTable[[#This Row],[ETMult]]*CalcTable[[#This Row],[ETb]] ->  | S41: =INDEX(IRR_LIST,CalcTable[[#This Row],[Day of Week]]+1) -> TRUE | T41: 0.8 | U41: =IF(CalcTable[[#This Row],[IrrPrecip]]>=IC_MM,FALSE,TRUE) -> TRUE | V41: FALSE | W41: =IF(AND(IRR_DRIP=FALSE,CalcTable[[#This Row],[IrrHours]]<=0),FALSE,TRUE) ->  | X41: =AND(CalcTable[[#This Row],[IrrDay]],CalcTable[[#This Row],[IrrRain]],CalcTable[[#This Row],[IrrWarm]],CalcTable[[#This Row],[IrrWindy]]) ->  | Z41: =CalcTable[[#This Row],[IrrHours]]/5 ->  | AA41: =IF(CalcTable[[#This Row],[IrrFlag]]=FALSE,0,MAX(0,CalcTable[[#This Row],[VolRednWind]]*(FCAP*IRR_TARGET-CalcTable[[#This Row],[IWC]]))) ->  | AB41: =CalcTable[[#This Row],[IWC]]+CalcTable[[#This Row],[Eff Precip]]+CalcTable[[#This Row],[IrrAmt]]-CalcTable[[#This Row],[AET]] ->  | AC41: =IF(CalcTable[[#This Row],[PWC]]>FCAP,MIN(24*PERC,MIN(SAT,CalcTable[[#This Row],[PWC]])-FCAP),0) ->  | AD41: =IF(CalcTable[[#This Row],[PWC]]>SAT,CalcTable[[#This Row],[PWC]]-SAT,0) ->  | AE41: =CalcTable[[#This Row],[PWC]]-CalcTable[[#This Row],[PercAmt]]-CalcTable[[#This Row],[Runoff]] ->  | AF41: =CalcTable[[#This Row],[IrrAmt]]/1000*CUR_IRR_AREA*10000/IRR_EFF ->  | AI41: 0 | AJ41: 0 | AK41: 0 | AL41: 0 | AX41: 0 | AZ41: 0 | BA41: 0 | BB41: 0 | BC41: 19605 | BD41: 0 | BE41: 0 | BF41: 0 | BH41: 0 | BI41: 41 | BJ41: 41 | BK41: 1960-05-22
A42: 1960-05-23 | B42: 1960 | C42: 5 | D42: 144 | E42: 23 | F42: 2 | G42: -2.8 | H42: 3.415845058 | I42: 8.5 | J42: 1.3 | K42: 1.3 | L42: 0 | M42: =CalcTable[[#This Row],[IWC]]-AE41 ->  | N42: =IF(CalcTable[[#This Row],[Day of Year]]<123,FCAP,AE41) ->  | O42: =IF(IRR_DRIP,5,COUNTIF('IDET Wind Values'!C26:G26,"<="&IRR_MAXWIND)) ->  | P42: =CalcTable[[#This Row],[ET_o]]*KL ->  | Q42: =IF(WILTPT<=0,1,MAX(0,MIN(1,(CalcTable[[#This Row],[IWC]]-WILTPT)/(MAD-WILTPT)))) ->  | R42: =CalcTable[[#This Row],[ETMult]]*CalcTable[[#This Row],[ETb]] ->  | S42: =INDEX(IRR_LIST,CalcTable[[#This Row],[Day of Week]]+1) -> FALSE | T42: 0.3 | U42: =IF(CalcTable[[#This Row],[IrrPrecip]]>=IC_MM,FALSE,TRUE) -> TRUE | V42: FALSE | W42: =IF(AND(IRR_DRIP=FALSE,CalcTable[[#This Row],[IrrHours]]<=0),FALSE,TRUE) ->  | X42: =AND(CalcTable[[#This Row],[IrrDay]],CalcTable[[#This Row],[IrrRain]],CalcTable[[#This Row],[IrrWarm]],CalcTable[[#This Row],[IrrWindy]]) ->  | Z42: =CalcTable[[#This Row],[IrrHours]]/5 ->  | AA42: =IF(CalcTable[[#This Row],[IrrFlag]]=FALSE,0,MAX(0,CalcTable[[#This Row],[VolRednWind]]*(FCAP*IRR_TARGET-CalcTable[[#This Row],[IWC]]))) ->  | AB42: =CalcTable[[#This Row],[IWC]]+CalcTable[[#This Row],[Eff Precip]]+CalcTable[[#This Row],[IrrAmt]]-CalcTable[[#This Row],[AET]] ->  | AC42: =IF(CalcTable[[#This Row],[PWC]]>FCAP,MIN(24*PERC,MIN(SAT,CalcTable[[#This Row],[PWC]])-FCAP),0) ->  | AD42: =IF(CalcTable[[#This Row],[PWC]]>SAT,CalcTable[[#This Row],[PWC]]-SAT,0) ->  | AE42: =CalcTable[[#This Row],[PWC]]-CalcTable[[#This Row],[PercAmt]]-CalcTable[[#This Row],[Runoff]] ->  | AF42: =CalcTable[[#This Row],[IrrAmt]]/1000*CUR_IRR_AREA*10000/IRR_EFF ->  | AI42: 0 | AJ42: 0 | AK42: 0 | AL42: 0 | AX42: 0 | AZ42: 0 | BA42: 0 | BB42: 0 | BC42: 19605 | BD42: 0 | BE42: 0 | BF42: 0 | BH42: 0 | BI42: 42 | BJ42: 42 | BK42: 1960-05-23
A43: 1960-05-24 | B43: 1960 | C43: 5 | D43: 145 | E43: 24 | F43: 3 | G43: 1.7 | H43: 2.421892327 | I43: 14.33333333 | J43: 7.4 | K43: 7.4 | L43: 1.8 | M43: =CalcTable[[#This Row],[IWC]]-AE42 ->  | N43: =IF(CalcTable[[#This Row],[Day of Year]]<123,FCAP,AE42) ->  | O43: =IF(IRR_DRIP,5,COUNTIF('IDET Wind Values'!C27:G27,"<="&IRR_MAXWIND)) ->  | P43: =CalcTable[[#This Row],[ET_o]]*KL ->  | Q43: =IF(WILTPT<=0,1,MAX(0,MIN(1,(CalcTable[[#This Row],[IWC]]-WILTPT)/(MAD-WILTPT)))) ->  | R43: =CalcTable[[#This Row],[ETMult]]*CalcTable[[#This Row],[ETb]] ->  | S43: =INDEX(IRR_LIST,CalcTable[[#This Row],[Day of Week]]+1) -> TRUE | T43: 1.3 | U43: =IF(CalcTable[[#This Row],[IrrPrecip]]>=IC_MM,FALSE,TRUE) -> TRUE | V43: FALSE | W43: =IF(AND(IRR_DRIP=FALSE,CalcTable[[#This Row],[IrrHours]]<=0),FALSE,TRUE) ->  | X43: =AND(CalcTable[[#This Row],[IrrDay]],CalcTable[[#This Row],[IrrRain]],CalcTable[[#This Row],[IrrWarm]],CalcTable[[#This Row],[IrrWindy]]) ->  | Z43: =CalcTable[[#This Row],[IrrHours]]/5 ->  | AA43: =IF(CalcTable[[#This Row],[IrrFlag]]=FALSE,0,MAX(0,CalcTable[[#This Row],[VolRednWind]]*(FCAP*IRR_TARGET-CalcTable[[#This Row],[IWC]]))) ->  | AB43: =CalcTable[[#This Row],[IWC]]+CalcTable[[#This Row],[Eff Precip]]+CalcTable[[#This Row],[IrrAmt]]-CalcTable[[#This Row],[AET]] ->  | AC43: =IF(CalcTable[[#This Row],[PWC]]>FCAP,MIN(24*PERC,MIN(SAT,CalcTable[[#This Row],[PWC]])-FCAP),0) ->  | AD43: =IF(CalcTable[[#This Row],[PWC]]>SAT,CalcTable[[#This Row],[PWC]]-SAT,0) ->  | AE43: =CalcTable[[#This Row],[PWC]]-CalcTable[[#This Row],[PercAmt]]-CalcTable[[#This Row],[Runoff]] ->  | AF43: =CalcTable[[#This Row],[IrrAmt]]/1000*CUR_IRR_AREA*10000/IRR_EFF ->  | AI43: 0 | AJ43: 0 | AK43: 0 | AL43: 0 | AX43: 0 | AZ43: 0 | BA43: 0 | BB43: 0 | BC43: 19605 | BD43: 0 | BE43: 0 | BF43: 0 | BH43: 0 | BI43: 43 | BJ43: 43 | BK43: 1960-05-24
A44: 1960-05-25 | B44: 1960 | C44: 5 | D44: 146 | E44: 25 | F44: 4 | G44: 0.6 | H44: 3.413009136 | I44: 6 | J44: 0 | K44: 0 | L44: 0 | M44: =CalcTable[[#This Row],[IWC]]-AE43 ->  | N44: =IF(CalcTable[[#This Row],[Day of Year]]<123,FCAP,AE43) ->  | O44: =IF(IRR_DRIP,5,COUNTIF('IDET Wind Values'!C28:G28,"<="&IRR_MAXWIND)) ->  | P44: =CalcTable[[#This Row],[ET_o]]*KL ->  | Q44: =IF(WILTPT<=0,1,MAX(0,MIN(1,(CalcTable[[#This Row],[IWC]]-WILTPT)/(MAD-WILTPT)))) ->  | R44: =CalcTable[[#This Row],[ETMult]]*CalcTable[[#This Row],[ETb]] ->  | S44: =INDEX(IRR_LIST,CalcTable[[#This Row],[Day of Week]]+1) -> FALSE | T44: 8.7 | U44: =IF(CalcTable[[#This Row],[IrrPrecip]]>=IC_MM,FALSE,TRUE) -> TRUE | V44: TRUE | W44: =IF(AND(IRR_DRIP=FALSE,CalcTable[[#This Row],[IrrHours]]<=0),FALSE,TRUE) ->  | X44: =AND(CalcTable[[#This Row],[IrrDay]],CalcTable[[#This Row],[IrrRain]],CalcTable[[#This Row],[IrrWarm]],CalcTable[[#This Row],[IrrWindy]]) ->  | Z44: =CalcTable[[#This Row],[IrrHours]]/5 ->  | AA44: =IF(CalcTable[[#This Row],[IrrFlag]]=FALSE,0,MAX(0,CalcTable[[#This Row],[VolRednWind]]*(FCAP*IRR_TARGET-CalcTable[[#This Row],[IWC]]))) ->  | AB44: =CalcTable[[#This Row],[IWC]]+CalcTable[[#This Row],[Eff Precip]]+CalcTable[[#This Row],[IrrAmt]]-CalcTable[[#This Row],[AET]] ->  | AC44: =IF(CalcTable[[#This Row],[PWC]]>FCAP,MIN(24*PERC,MIN(SAT,CalcTable[[#This Row],[PWC]])-FCAP),0) ->  | AD44: =IF(CalcTable[[#This Row],[PWC]]>SAT,CalcTable[[#This Row],[PWC]]-SAT,0) ->  | AE44: =CalcTable[[#This Row],[PWC]]-CalcTable[[#This Row],[PercAmt]]-CalcTable[[#This Row],[Runoff]] ->  | AF44: =CalcTable[[#This Row],[IrrAmt]]/1000*CUR_IRR_AREA*10000/IRR_EFF ->  | AI44: 0 | AJ44: 0 | AK44: 3.866916565 | AL44: 7.440161622 | AX44: 11.30707819 | AZ44: 274.9595172 | BA44: 423.3503677 | BB44: 436.4436781 | BC44: 19605 | BD44: 11.30707819 | BE44: 274.9595172 | BF44: 449.7462388 | BH44: 0 | BI44: 44 | BJ44: 44 | BK44: 1960-05-25
A45: 1960-05-26 | B45: 1960 | C45: 5 | D45: 147 | E45: 26 | F45: 5 | G45: 5 | H45: 4.756711061 | I45: 14.66666667 | J45: 0.3 | K45: 0.3 | L45: 0 | M45: =CalcTable[[#This Row],[IWC]]-AE44 ->  | N45: =IF(CalcTable[[#This Row],[Day of Year]]<123,FCAP,AE44) ->  | O45: =IF(IRR_DRIP,5,COUNTIF('IDET Wind Values'!C29:G29,"<="&IRR_MAXWIND)) ->  | P45: =CalcTable[[#This Row],[ET_o]]*KL ->  | Q45: =IF(WILTPT<=0,1,MAX(0,MIN(1,(CalcTable[[#This Row],[IWC]]-WILTPT)/(MAD-WILTPT)))) ->  | R45: =CalcTable[[#This Row],[ETMult]]*CalcTable[[#This Row],[ETb]] ->  | S45: =INDEX(IRR_LIST,CalcTable[[#This Row],[Day of Week]]+1) -> TRUE | T45: 7.4 | U45: =IF(CalcTable[[#This Row],[IrrPrecip]]>=IC_MM,FALSE,TRUE) -> TRUE | V45: TRUE | W45: =IF(AND(IRR_DRIP=FALSE,CalcTable[[#This Row],[IrrHours]]<=0),FALSE,TRUE) ->  | X45: =AND(CalcTable[[#This Row],[IrrDay]],CalcTable[[#This Row],[IrrRain]],CalcTable[[#This Row],[IrrWarm]],CalcTable[[#This Row],[IrrWindy]]) ->  | Z45: =CalcTable[[#This Row],[IrrHours]]/5 ->  | AA45: =IF(CalcTable[[#This Row],[IrrFlag]]=FALSE,0,MAX(0,CalcTable[[#This Row],[VolRednWind]]*(FCAP*IRR_TARGET-CalcTable[[#This Row],[IWC]]))) ->  | AB45: =CalcTable[[#This Row],[IWC]]+CalcTable[[#This Row],[Eff Precip]]+CalcTable[[#This Row],[IrrAmt]]-CalcTable[[#This Row],[AET]] ->  | AC45: =IF(CalcTable[[#This Row],[PWC]]>FCAP,MIN(24*PERC,MIN(SAT,CalcTable[[#This Row],[PWC]])-FCAP),0) ->  | AD45: =IF(CalcTable[[#This Row],[PWC]]>SAT,CalcTable[[#This Row],[PWC]]-SAT,0) ->  | AE45: =CalcTable[[#This Row],[PWC]]-CalcTable[[#This Row],[PercAmt]]-CalcTable[[#This Row],[Runoff]] ->  | AF45: =CalcTable[[#This Row],[IrrAmt]]/1000*CUR_IRR_AREA*10000/IRR_EFF ->  | AI45: 0 | AJ45: 0 | AK45: 0 | AL45: 0 | AX45: 0 | AZ45: 0 | BA45: 0 | BB45: 0 | BC45: 19605 | BD45: 0 | BE45: 0 | BF45: 0 | BH45: 0 | BI45: 45 | BJ45: 45 | BK45: 1960-05-26
A46: 1960-05-27 | B46: 1960 | C46: 5 | D46: 148 | E46: 27 | F46: 6 | G46: 6.7 | H46: 5.314755199 | I46: 32.5 | J46: 0 | K46: 0 | L46: 0 | M46: =CalcTable[[#This Row],[IWC]]-AE45 ->  | N46: =IF(CalcTable[[#This Row],[Day of Year]]<123,FCAP,AE45) ->  | O46: =IF(IRR_DRIP,5,COUNTIF('IDET Wind Values'!C30:G30,"<="&IRR_MAXWIND)) ->  | P46: =CalcTable[[#This Row],[ET_o]]*KL ->  | Q46: =IF(WILTPT<=0,1,MAX(0,MIN(1,(CalcTable[[#This Row],[IWC]]-WILTPT)/(MAD-WILTPT)))) ->  | R46: =CalcTable[[#This Row],[ETMult]]*CalcTable[[#This Row],[ETb]] ->  | S46: =INDEX(IRR_LIST,CalcTable[[#This Row],[Day of Week]]+1) -> FALSE | T46: 0.3 | U46: =IF(CalcTable[[#This Row],[IrrPrecip]]>=IC_MM,FALSE,TRUE) -> TRUE | V46: TRUE | W46: =IF(AND(IRR_DRIP=FALSE,CalcTable[[#This Row],[IrrHours]]<=0),FALSE,TRUE) ->  | X46: =AND(CalcTable[[#This Row],[IrrDay]],CalcTable[[#This Row],[IrrRain]],CalcTable[[#This Row],[IrrWarm]],CalcTable[[#This Row],[IrrWindy]]) ->  | Z46: =CalcTable[[#This Row],[IrrHours]]/5 ->  | AA46: =IF(CalcTable[[#This Row],[IrrFlag]]=FALSE,0,MAX(0,CalcTable[[#This Row],[VolRednWind]]*(FCAP*IRR_TARGET-CalcTable[[#This Row],[IWC]]))) ->  | AB46: =CalcTable[[#This Row],[IWC]]+CalcTable[[#This Row],[Eff Precip]]+CalcTable[[#This Row],[IrrAmt]]-CalcTable[[#This Row],[AET]] ->  | AC46: =IF(CalcTable[[#This Row],[PWC]]>FCAP,MIN(24*PERC,MIN(SAT,CalcTable[[#This Row],[PWC]])-FCAP),0) ->  | AD46: =IF(CalcTable[[#This Row],[PWC]]>SAT,CalcTable[[#This Row],[PWC]]-SAT,0) ->  | AE46: =CalcTable[[#This Row],[PWC]]-CalcTable[[#This Row],[PercAmt]]-CalcTable[[#This Row],[Runoff]] ->  | AF46: =CalcTable[[#This Row],[IrrAmt]]/1000*CUR_IRR_AREA*10000/IRR_EFF ->  | AI46: 0 | AJ46: 0 | AK46: 0 | AL46: 4.896191083 | AX46: 4.896191083 | AZ46: 143.6216051 | BA46: 221.1316777 | BB46: 227.9708018 | BC46: 19605 | BD46: 4.896191083 | BE46: 143.6216051 | BF46: 234.9192251 | BH46: 0 | BI46: 46 | BJ46: 46 | BK46: 1960-05-27
A47: 1960-05-28 | B47: 1960 | C47: 5 | D47: 149 | E47: 28 | F47: 7 | G47: 5.6 | H47: 5.501547987 | I47: 27.83333333 | J47: 0 | K47: 0 | L47: 0 | M47: =CalcTable[[#This Row],[IWC]]-AE46 ->  | N47: =IF(CalcTable[[#This Row],[Day of Year]]<123,FCAP,AE46) ->  | O47: =IF(IRR_DRIP,5,COUNTIF('IDET Wind Values'!C31:G31,"<="&IRR_MAXWIND)) ->  | P47: =CalcTable[[#This Row],[ET_o]]*KL ->  | Q47: =IF(WILTPT<=0,1,MAX(0,MIN(1,(CalcTable[[#This Row],[IWC]]-WILTPT)/(MAD-WILTPT)))) ->  | R47: =CalcTable[[#This Row],[ETMult]]*CalcTable[[#This Row],[ETb]] ->  | S47: =INDEX(IRR_LIST,CalcTable[[#This Row],[Day of Week]]+1) -> FALSE | T47: 0.3 | U47: =IF(CalcTable[[#This Row],[IrrPrecip]]>=IC_MM,FALSE,TRUE) -> TRUE | V47: TRUE | W47: =IF(AND(IRR_DRIP=FALSE,CalcTable[[#This Row],[IrrHours]]<=0),FALSE,TRUE) ->  | X47: =AND(CalcTable[[#This Row],[IrrDay]],CalcTable[[#This Row],[IrrRain]],CalcTable[[#This Row],[IrrWarm]],CalcTable[[#This Row],[IrrWindy]]) ->  | Z47: =CalcTable[[#This Row],[IrrHours]]/5 ->  | AA47: =IF(CalcTable[[#This Row],[IrrFlag]]=FALSE,0,MAX(0,CalcTable[[#This Row],[VolRednWind]]*(FCAP*IRR_TARGET-CalcTable[[#This Row],[IWC]]))) ->  | AB47: =CalcTable[[#This Row],[IWC]]+CalcTable[[#This Row],[Eff Precip]]+CalcTable[[#This Row],[IrrAmt]]-CalcTable[[#This Row],[AET]] ->  | AC47: =IF(CalcTable[[#This Row],[PWC]]>FCAP,MIN(24*PERC,MIN(SAT,CalcTable[[#This Row],[PWC]])-FCAP),0) ->  | AD47: =IF(CalcTable[[#This Row],[PWC]]>SAT,CalcTable[[#This Row],[PWC]]-SAT,0) ->  | AE47: =CalcTable[[#This Row],[PWC]]-CalcTable[[#This Row],[PercAmt]]-CalcTable[[#This Row],[Runoff]] ->  | AF47: =CalcTable[[#This Row],[IrrAmt]]/1000*CUR_IRR_AREA*10000/IRR_EFF ->  | AI47: 0 | AJ47: 0 | AK47: 10.95855157 | AL47: 0 | AX47: 10.95855157 | AZ47: 160.7254231 | BA47: 247.4661276 | BB47: 255.1197192 | BC47: 19605 | BD47: 10.95855157 | BE47: 160.7254231 | BF47: 262.8956264 | BH47: 0 | BI47: 47 | BJ47: 47 | BK47: 1960-05-28
A48: 1960-05-29 | B48: 1960 | C48: 5 | D48: 150 | E48: 29 | F48: 1 | G48: 3.9 | H48: 5.20350748 | I48: 3.666666667 | J48: 0 | K48: 0 | L48: 0 | M48: =CalcTable[[#This Row],[IWC]]-AE47 ->  | N48: =IF(CalcTable[[#This Row],[Day of Year]]<123,FCAP,AE47) ->  | O48: =IF(IRR_DRIP,5,COUNTIF('IDET Wind Values'!C32:G32,"<="&IRR_MAXWIND)) ->  | P48: =CalcTable[[#This Row],[ET_o]]*KL ->  | Q48: =IF(WILTPT<=0,1,MAX(0,MIN(1,(CalcTable[[#This Row],[IWC]]-WILTPT)/(MAD-WILTPT)))) ->  | R48: =CalcTable[[#This Row],[ETMult]]*CalcTable[[#This Row],[ETb]] ->  | S48: =INDEX(IRR_LIST,CalcTable[[#This Row],[Day of Week]]+1) -> TRUE | T48: 0 | U48: =IF(CalcTable[[#This Row],[IrrPrecip]]>=IC_MM,FALSE,TRUE) -> TRUE | V48: TRUE | W48: =IF(AND(IRR_DRIP=FALSE,CalcTable[[#This Row],[IrrHours]]<=0),FALSE,TRUE) ->  | X48: =AND(CalcTable[[#This Row],[IrrDay]],CalcTable[[#This Row],[IrrRain]],CalcTable[[#This Row],[IrrWarm]],CalcTable[[#This Row],[IrrWindy]]) ->  | Z48: =CalcTable[[#This Row],[IrrHours]]/5 ->  | AA48: =IF(CalcTable[[#This Row],[IrrFlag]]=FALSE,0,MAX(0,CalcTable[[#This Row],[VolRednWind]]*(FCAP*IRR_TARGET-CalcTable[[#This Row],[IWC]]))) ->  | AB48: =CalcTable[[#This Row],[IWC]]+CalcTable[[#This Row],[Eff Precip]]+CalcTable[[#This Row],[IrrAmt]]-CalcTable[[#This Row],[AET]] ->  | AC48: =IF(CalcTable[[#This Row],[PWC]]>FCAP,MIN(24*PERC,MIN(SAT,CalcTable[[#This Row],[PWC]])-FCAP),0) ->  | AD48: =IF(CalcTable[[#This Row],[PWC]]>SAT,CalcTable[[#This Row],[PWC]]-SAT,0) ->  | AE48: =CalcTable[[#This Row],[PWC]]-CalcTable[[#This Row],[PercAmt]]-CalcTable[[#This Row],[Runoff]] ->  | AF48: =CalcTable[[#This Row],[IrrAmt]]/1000*CUR_IRR_AREA*10000/IRR_EFF ->  | AI48: 3.412725439 | AJ48: 6.537044459 | AK48: 0 | AL48: 0 | AX48: 9.949769898 | AZ48: 241.8066106 | BA48: 393.3772079 | BB48: 407.2331186 | BC48: 19605 | BD48: 9.949769898 | BE48: 241.8066106 | BF48: 395.5186375 | BH48: 0 | BI48: 48 | BJ48: 48 | BK48: 1960-05-29
A49: 1960-05-30 | B49: 1960 | C49: 5 | D49: 151 | E49: 30 | F49: 2 | G49: 10.6 | H49: 6.212195125 | I49: 21.5 | J49: 0 | K49: 0 | L49: 0 | M49: =CalcTable[[#This Row],[IWC]]-AE48 ->  | N49: =IF(CalcTable[[#This Row],[Day of Year]]<123,FCAP,AE48) ->  | O49: =IF(IRR_DRIP,5,COUNTIF('IDET Wind Values'!C33:G33,"<="&IRR_MAXWIND)) ->  | P49: =CalcTable[[#This Row],[ET_o]]*KL ->  | Q49: =IF(WILTPT<=0,1,MAX(0,MIN(1,(CalcTable[[#This Row],[IWC]]-WILTPT)/(MAD-WILTPT)))) ->  | R49: =CalcTable[[#This Row],[ETMult]]*CalcTable[[#This Row],[ETb]] ->  | S49: =INDEX(IRR_LIST,CalcTable[[#This Row],[Day of Week]]+1) -> FALSE | T49: 0 | U49: =IF(CalcTable[[#This Row],[IrrPrecip]]>=IC_MM,FALSE,TRUE) -> TRUE | V49: TRUE | W49: =IF(AND(IRR_DRIP=FALSE,CalcTable[[#This Row],[IrrHours]]<=0),FALSE,TRUE) ->  | X49: =AND(CalcTable[[#This Row],[IrrDay]],CalcTable[[#This Row],[IrrRain]],CalcTable[[#This Row],[IrrWarm]],CalcTable[[#This Row],[IrrWindy]]) ->  | Z49: =CalcTable[[#This Row],[IrrHours]]/5 ->  | AA49: =IF(CalcTable[[#This Row],[IrrFlag]]=FALSE,0,MAX(0,CalcTable[[#This Row],[VolRednWind]]*(FCAP*IRR_TARGET-CalcTable[[#This Row],[IWC]]))) ->  | AB49: =CalcTable[[#This Row],[IWC]]+CalcTable[[#This Row],[Eff Precip]]+CalcTable[[#This Row],[IrrAmt]]-CalcTable[[#This Row],[AET]] ->  | AC49: =IF(CalcTable[[#This Row],[PWC]]>FCAP,MIN(24*PERC,MIN(SAT,CalcTable[[#This Row],[PWC]])-FCAP),0) ->  | AD49: =IF(CalcTable[[#This Row],[PWC]]>SAT,CalcTable[[#This Row],[PWC]]-SAT,0) ->  | AE49: =CalcTable[[#This Row],[PWC]]-CalcTable[[#This Row],[PercAmt]]-CalcTable[[#This Row],[Runoff]] ->  | AF49: =CalcTable[[#This Row],[IrrAmt]]/1000*CUR_IRR_AREA*10000/IRR_EFF ->  | AI49: 0 | AJ49: 0 | AK49: 1.157985823 | AL49: 8.810895866 | AX49: 9.968881689 | AZ49: 275.4367375 | BA49: 424.0851355 | BB49: 437.2011706 | BC49: 19605 | BD49: 9.968881689 | BE49: 275.4367375 | BF49: 450.5268192 | BH49: 0 | BI49: 49 | BJ49: 49 | BK49: 1960-05-30
A50: 1960-05-31 | B50: 1960 | C50: 5 | D50: 152 | E50: 31 | F50: 3 | G50: 5 | H50: 5.2735841 | I50: 17.16666667 | J50: 0 | K50: 0 | L50: 0 | M50: =CalcTable[[#This Row],[IWC]]-AE49 ->  | N50: =IF(CalcTable[[#This Row],[Day of Year]]<123,FCAP,AE49) ->  | O50: =IF(IRR_DRIP,5,COUNTIF('IDET Wind Values'!C34:G34,"<="&IRR_MAXWIND)) ->  | P50: =CalcTable[[#This Row],[ET_o]]*KL ->  | Q50: =IF(WILTPT<=0,1,MAX(0,MIN(1,(CalcTable[[#This Row],[IWC]]-WILTPT)/(MAD-WILTPT)))) ->  | R50: =CalcTable[[#This Row],[ETMult]]*CalcTable[[#This Row],[ETb]] ->  | S50: =INDEX(IRR_LIST,CalcTable[[#This Row],[Day of Week]]+1) -> TRUE | T50: 0 | U50: =IF(CalcTable[[#This Row],[IrrPrecip]]>=IC_MM,FALSE,TRUE) -> TRUE | V50: TRUE | W50: =IF(AND(IRR_DRIP=FALSE,CalcTable[[#This Row],[IrrHours]]<=0),FALSE,TRUE) ->  | X50: =AND(CalcTable[[#This Row],[IrrDay]],CalcTable[[#This Row],[IrrRain]],CalcTable[[#This Row],[IrrWarm]],CalcTable[[#This Row],[IrrWindy]]) ->  | Z50: =CalcTable[[#This Row],[IrrHours]]/5 ->  | AA50: =IF(CalcTable[[#This Row],[IrrFlag]]=FALSE,0,MAX(0,CalcTable[[#This Row],[VolRednWind]]*(FCAP*IRR_TARGET-CalcTable[[#This Row],[IWC]]))) ->  | AB50: =CalcTable[[#This Row],[IWC]]+CalcTable[[#This Row],[Eff Precip]]+CalcTable[[#This Row],[IrrAmt]]-CalcTable[[#This Row],[AET]] ->  | AC50: =IF(CalcTable[[#This Row],[PWC]]>FCAP,MIN(24*PERC,MIN(SAT,CalcTable[[#This Row],[PWC]])-FCAP),0) ->  | AD50: =IF(CalcTable[[#This Row],[PWC]]>SAT,CalcTable[[#This Row],[PWC]]-SAT,0) ->  | AE50: =CalcTable[[#This Row],[PWC]]-CalcTable[[#This Row],[PercAmt]]-CalcTable[[#This Row],[Runoff]] ->  | AF50: =CalcTable[[#This Row],[IrrAmt]]/1000*CUR_IRR_AREA*10000/IRR_EFF ->  | AI50: 6.376303349 | AJ50: 11.63600891 | AK50: 0 | AL50: 0 | AX50: 18.01231226 | AZ50: 434.8420438 | BA50: 707.0267165 | BB50: 731.9010376 | BC50: 19605 | BD50: 18.01231226 | BE50: 434.8420438 | BF50: 711.2631549 | BH50: 0 | BI50: 50 | BJ50: 50 | BK50: 1960-05-31
A51: 1960-06-01 | B51: 1960 | C51: 6 | D51: 153 | E51: 1 | F51: 4 | G51: 4.4 | H51: 6.31117424 | I51: 7.166666667 | J51: 0 | K51: 0 | L51: 0 | M51: =CalcTable[[#This Row],[IWC]]-AE50 ->  | N51: =IF(CalcTable[[#This Row],[Day of Year]]<123,FCAP,AE50) ->  | O51: =IF(IRR_DRIP,5,COUNTIF('IDET Wind Values'!C35:G35,"<="&IRR_MAXWIND)) ->  | P51: =CalcTable[[#This Row],[ET_o]]*KL ->  | Q51: =IF(WILTPT<=0,1,MAX(0,MIN(1,(CalcTable[[#This Row],[IWC]]-WILTPT)/(MAD-WILTPT)))) ->  | R51: =CalcTable[[#This Row],[ETMult]]*CalcTable[[#This Row],[ETb]] ->  | S51: =INDEX(IRR_LIST,CalcTable[[#This Row],[Day of Week]]+1) -> FALSE | T51: 0 | U51: =IF(CalcTable[[#This Row],[IrrPrecip]]>=IC_MM,FALSE,TRUE) -> TRUE | V51: TRUE | W51: =IF(AND(IRR_DRIP=FALSE,CalcTable[[#This Row],[IrrHours]]<=0),FALSE,TRUE) ->  | X51: =AND(CalcTable[[#This Row],[IrrDay]],CalcTable[[#This Row],[IrrRain]],CalcTable[[#This Row],[IrrWarm]],CalcTable[[#This Row],[IrrWindy]]) ->  | Z51: =CalcTable[[#This Row],[IrrHours]]/5 ->  | AA51: =IF(CalcTable[[#This Row],[IrrFlag]]=FALSE,0,MAX(0,CalcTable[[#This Row],[VolRednWind]]*(FCAP*IRR_TARGET-CalcTable[[#This Row],[IWC]]))) ->  | AB51: =CalcTable[[#This Row],[IWC]]+CalcTable[[#This Row],[Eff Precip]]+CalcTable[[#This Row],[IrrAmt]]-CalcTable[[#This Row],[AET]] ->  | AC51: =IF(CalcTable[[#This Row],[PWC]]>FCAP,MIN(24*PERC,MIN(SAT,CalcTable[[#This Row],[PWC]])-FCAP),0) ->  | AD51: =IF(CalcTable[[#This Row],[PWC]]>SAT,CalcTable[[#This Row],[PWC]]-SAT,0) ->  | AE51: =CalcTable[[#This Row],[PWC]]-CalcTable[[#This Row],[PercAmt]]-CalcTable[[#This Row],[Runoff]] ->  | AF51: =CalcTable[[#This Row],[IrrAmt]]/1000*CUR_IRR_AREA*10000/IRR_EFF ->  | AI51: 0 | AJ51: 0 | AK51: 10.50448053 | AL51: 5.293257096 | AX51: 15.79773763 | AZ51: 309.3345893 | BA51: 476.277066 | BB51: 491.0072845 | BC51: 19606 | BD51: 15.79773763 | BE51: 309.3345893 | BF51: 505.9729136 | BH51: 0 | BI51: 51 | BJ51: 51 | BK51: 1960-06-01
A52: 1960-06-02 | B52: 1960 | C52: 6 | D52: 154 | E52: 2 | F52: 5 | G52: 7.8 | H52: 5.303893324 | I52: 9.5 | J52: 0.6 | K52: 0.6 | L52: 0 | M52: =CalcTable[[#This Row],[IWC]]-AE51 ->  | N52: =IF(CalcTable[[#This Row],[Day of Year]]<123,FCAP,AE51) ->  | O52: =IF(IRR_DRIP,5,COUNTIF('IDET Wind Values'!C36:G36,"<="&IRR_MAXWIND)) ->  | P52: =CalcTable[[#This Row],[ET_o]]*KL ->  | Q52: =IF(WILTPT<=0,1,MAX(0,MIN(1,(CalcTable[[#This Row],[IWC]]-WILTPT)/(MAD-WILTPT)))) ->  | R52: =CalcTable[[#This Row],[ETMult]]*CalcTable[[#This Row],[ETb]] ->  | S52: =INDEX(IRR_LIST,CalcTable[[#This Row],[Day of Week]]+1) -> TRUE | T52: 0 | U52: =IF(CalcTable[[#This Row],[IrrPrecip]]>=IC_MM,FALSE,TRUE) -> TRUE | V52: TRUE | W52: =IF(AND(IRR_DRIP=FALSE,CalcTable[[#This Row],[IrrHours]]<=0),FALSE,TRUE) ->  | X52: =AND(CalcTable[[#This Row],[IrrDay]],CalcTable[[#This Row],[IrrRain]],CalcTable[[#This Row],[IrrWarm]],CalcTable[[#This Row],[IrrWindy]]) ->  | Z52: =CalcTable[[#This Row],[IrrHours]]/5 ->  | AA52: =IF(CalcTable[[#This Row],[IrrFlag]]=FALSE,0,MAX(0,CalcTable[[#This Row],[VolRednWind]]*(FCAP*IRR_TARGET-CalcTable[[#This Row],[IWC]]))) ->  | AB52: =CalcTable[[#This Row],[IWC]]+CalcTable[[#This Row],[Eff Precip]]+CalcTable[[#This Row],[IrrAmt]]-CalcTable[[#This Row],[AET]] ->  | AC52: =IF(CalcTable[[#This Row],[PWC]]>FCAP,MIN(24*PERC,MIN(SAT,CalcTable[[#This Row],[PWC]])-FCAP),0) ->  | AD52: =IF(CalcTable[[#This Row],[PWC]]>SAT,CalcTable[[#This Row],[PWC]]-SAT,0) ->  | AE52: =CalcTable[[#This Row],[PWC]]-CalcTable[[#This Row],[PercAmt]]-CalcTable[[#This Row],[Runoff]] ->  | AF52: =CalcTable[[#This Row],[IrrAmt]]/1000*CUR_IRR_AREA*10000/IRR_EFF ->  | AI52: 2.93495949 | AJ52: 4.661892512 | AK52: 0 | AL52: 0 | AX52: 7.596852002 | AZ52: 179.7949195 | BA52: 291.8544442 | BB52: 302.0858121 | BC52: 19606 | BD52: 7.596852002 | BE52: 179.7949195 | BF52: 294.087252 | BH52: 0 | BI52: 52 | BJ52: 52 | BK52: 1960-06-02
A53: 1960-06-03 | B53: 1960 | C53: 6 | D53: 155 | E53: 3 | F53: 6 | G53: 4.4 | H53: 3.74826589 | I53: 10.66666667 | J53: 2.8 | K53: 2.8 | L53: 0 | M53: =CalcTable[[#This Row],[IWC]]-AE52 ->  | N53: =IF(CalcTable[[#This Row],[Day of Year]]<123,FCAP,AE52) ->  | O53: =IF(IRR_DRIP,5,COUNTIF('IDET Wind Values'!C37:G37,"<="&IRR_MAXWIND)) ->  | P53: =CalcTable[[#This Row],[ET_o]]*KL ->  | Q53: =IF(WILTPT<=0,1,MAX(0,MIN(1,(CalcTable[[#This Row],[IWC]]-WILTPT)/(MAD-WILTPT)))) ->  | R53: =CalcTable[[#This Row],[ETMult]]*CalcTable[[#This Row],[ETb]] ->  | S53: =INDEX(IRR_LIST,CalcTable[[#This Row],[Day of Week]]+1) -> FALSE | T53: 0.6 | U53: =IF(CalcTable[[#This Row],[IrrPrecip]]>=IC_MM,FALSE,TRUE) -> TRUE | V53: TRUE | W53: =IF(AND(IRR_DRIP=FALSE,CalcTable[[#This Row],[IrrHours]]<=0),FALSE,TRUE) ->  | X53: =AND(CalcTable[[#This Row],[IrrDay]],CalcTable[[#This Row],[IrrRain]],CalcTable[[#This Row],[IrrWarm]],CalcTable[[#This Row],[IrrWindy]]) ->  | Z53: =CalcTable[[#This Row],[IrrHours]]/5 ->  | AA53: =IF(CalcTable[[#This Row],[IrrFlag]]=FALSE,0,MAX(0,CalcTable[[#This Row],[VolRednWind]]*(FCAP*IRR_TARGET-CalcTable[[#This Row],[IWC]]))) ->  | AB53: =CalcTable[[#This Row],[IWC]]+CalcTable[[#This Row],[Eff Precip]]+CalcTable[[#This Row],[IrrAmt]]-CalcTable[[#This Row],[AET]] ->  | AC53: =IF(CalcTable[[#This Row],[PWC]]>FCAP,MIN(24*PERC,MIN(SAT,CalcTable[[#This Row],[PWC]])-FCAP),0) ->  | AD53: =IF(CalcTable[[#This Row],[PWC]]>SAT,CalcTable[[#This Row],[PWC]]-SAT,0) ->  | AE53: =CalcTable[[#This Row],[PWC]]-CalcTable[[#This Row],[PercAmt]]-CalcTable[[#This Row],[Runoff]] ->  | AF53: =CalcTable[[#This Row],[IrrAmt]]/1000*CUR_IRR_AREA*10000/IRR_EFF ->  | AI53: 0 | AJ53: 0 | AK53: 0 | AL53: 6.38828716 | AX53: 6.38828716 | AZ53: 187.3897567 | BA53: 288.5207365 | BB53: 297.4440583 | BC53: 19606 | BD53: 6.38828716 | BE53: 187.3897567 | BF53: 306.5099878 | BH53: 0 | BI53: 53 | BJ53: 53 | BK53: 1960-06-03
A54: 1960-06-04 | B54: 1960 | C54: 6 | D54: 156 | E54: 4 | F54: 7 | G54: 3.9 | H54: 4.212943906 | I54: 25.66666667 | J54: 0 | K54: 0 | L54: 0 | M54: =CalcTable[[#This Row],[IWC]]-AE53 ->  | N54: =IF(CalcTable[[#This Row],[Day of Year]]<123,FCAP,AE53) ->  | O54: =IF(IRR_DRIP,5,COUNTIF('IDET Wind Values'!C38:G38,"<="&IRR_MAXWIND)) ->  | P54: =CalcTable[[#This Row],[ET_o]]*KL ->  | Q54: =IF(WILTPT<=0,1,MAX(0,MIN(1,(CalcTable[[#This Row],[IWC]]-WILTPT)/(MAD-WILTPT)))) ->  | R54: =CalcTable[[#This Row],[ETMult]]*CalcTable[[#This Row],[ETb]] ->  | S54: =INDEX(IRR_LIST,CalcTable[[#This Row],[Day of Week]]+1) -> FALSE | T54: 3.4 | U54: =IF(CalcTable[[#This Row],[IrrPrecip]]>=IC_MM,FALSE,TRUE) -> TRUE | V54: TRUE | W54: =IF(AND(IRR_DRIP=FALSE,CalcTable[[#This Row],[IrrHours]]<=0),FALSE,TRUE) ->  | X54: =AND(CalcTable[[#This Row],[IrrDay]],CalcTable[[#This Row],[IrrRain]],CalcTable[[#This Row],[IrrWarm]],CalcTable[[#This Row],[IrrWindy]]) ->  | Z54: =CalcTable[[#This Row],[IrrHours]]/5 ->  | AA54: =IF(CalcTable[[#This Row],[IrrFlag]]=FALSE,0,MAX(0,CalcTable[[#This Row],[VolRednWind]]*(FCAP*IRR_TARGET-CalcTable[[#This Row],[IWC]]))) ->  | AB54: =CalcTable[[#This Row],[IWC]]+CalcTable[[#This Row],[Eff Precip]]+CalcTable[[#This Row],[IrrAmt]]-CalcTable[[#This Row],[AET]] ->  | AC54: =IF(CalcTable[[#This Row],[PWC]]>FCAP,MIN(24*PERC,MIN(SAT,CalcTable[[#This Row],[PWC]])-FCAP),0) ->  | AD54: =IF(CalcTable[[#This Row],[PWC]]>SAT,CalcTable[[#This Row],[PWC]]-SAT,0) ->  | AE54: =CalcTable[[#This Row],[PWC]]-CalcTable[[#This Row],[PercAmt]]-CalcTable[[#This Row],[Runoff]] ->  | AF54: =CalcTable[[#This Row],[IrrAmt]]/1000*CUR_IRR_AREA*10000/IRR_EFF ->  | AI54: 0 | AJ54: 0 | AK54: 0 | AL54: 0 | AX54: 0 | AZ54: 0 | BA54: 0 | BB54: 0 | BC54: 19606 | BD54: 0 | BE54: 0 | BF54: 0 | BH54: 0 | BI54: 54 | BJ54: 54 | BK54: 1960-06-04
A55: 1960-06-05 | B55: 1960 | C55: 6 | D55: 157 | E55: 5 | F55: 1 | G55: 3.9 | H55: 4.558859142 | I55: 15.16666667 | J55: 0 | K55: 0 | L55: 0 | M55: =CalcTable[[#This Row],[IWC]]-AE54 ->  | N55: =IF(CalcTable[[#This Row],[Day of Year]]<123,FCAP,AE54) ->  | O55: =IF(IRR_DRIP,5,COUNTIF('IDET Wind Values'!C39:G39,"<="&IRR_MAXWIND)) ->  | P55: =CalcTable[[#This Row],[ET_o]]*KL ->  | Q55: =IF(WILTPT<=0,1,MAX(0,MIN(1,(CalcTable[[#This Row],[IWC]]-WILTPT)/(MAD-WILTPT)))) ->  | R55: =CalcTable[[#This Row],[ETMult]]*CalcTable[[#This Row],[ETb]] ->  | S55: =INDEX(IRR_LIST,CalcTable[[#This Row],[Day of Week]]+1) -> TRUE | T55: 2.8 | U55: =IF(CalcTable[[#This Row],[IrrPrecip]]>=IC_MM,FALSE,TRUE) -> TRUE | V55: TRUE | W55: =IF(AND(IRR_DRIP=FALSE,CalcTable[[#This Row],[IrrHours]]<=0),FALSE,TRUE) ->  | X55: =AND(CalcTable[[#This Row],[IrrDay]],CalcTable[[#This Row],[IrrRain]],CalcTable[[#This Row],[IrrWarm]],CalcTable[[#This Row],[IrrWindy]]) ->  | Z55: =CalcTable[[#This Row],[IrrHours]]/5 ->  | AA55: =IF(CalcTable[[#This Row],[IrrFlag]]=FALSE,0,MAX(0,CalcTable[[#This Row],[VolRednWind]]*(FCAP*IRR_TARGET-CalcTable[[#This Row],[IWC]]))) ->  | AB55: =CalcTable[[#This Row],[IWC]]+CalcTable[[#This Row],[Eff Precip]]+CalcTable[[#This Row],[IrrAmt]]-CalcTable[[#This Row],[AET]] ->  | AC55: =IF(CalcTable[[#This Row],[PWC]]>FCAP,MIN(24*PERC,MIN(SAT,CalcTable[[#This Row],[PWC]])-FCAP),0) ->  | AD55: =IF(CalcTable[[#This Row],[PWC]]>SAT,CalcTable[[#This Row],[PWC]]-SAT,0) ->  | AE55: =CalcTable[[#This Row],[PWC]]-CalcTable[[#This Row],[PercAmt]]-CalcTable[[#This Row],[Runoff]] ->  | AF55: =CalcTable[[#This Row],[IrrAmt]]/1000*CUR_IRR_AREA*10000/IRR_EFF ->  | AI55: 3.15418983 | AJ55: 5.259280008 | AK55: 0 | AL55: 0 | AX55: 8.413469838 | AZ55: 200.5336644 | BA55: 325.7111722 | BB55: 337.1440599 | BC55: 19606 | BD55: 8.413469838 | BE55: 200.5336644 | BF55: 328.0092365 | BH55: 0 | BI55: 55 | BJ55: 55 | BK55: 1960-06-05
A56: 1960-06-06 | B56: 1960 | C56: 6 | D56: 158 | E56: 6 | F56: 2 | G56: 6.7 | H56: 5.586735202 | I56: 10.33333333 | J56: 0 | K56: 0 | L56: 0 | M56: =CalcTable[[#This Row],[IWC]]-AE55 ->  | N56: =IF(CalcTable[[#This Row],[Day of Year]]<123,FCAP,AE55) ->  | O56: =IF(IRR_DRIP,5,COUNTIF('IDET Wind Values'!C40:G40,"<="&IRR_MAXWIND)) ->  | P56: =CalcTable[[#This Row],[ET_o]]*KL ->  | Q56: =IF(WILTPT<=0,1,MAX(0,MIN(1,(CalcTable[[#This Row],[IWC]]-WILTPT)/(MAD-WILTPT)))) ->  | R56: =CalcTable[[#This Row],[ETMult]]*CalcTable[[#This Row],[ETb]] ->  | S56: =INDEX(IRR_LIST,CalcTable[[#This Row],[Day of Week]]+1) -> FALSE | T56: 0 | U56: =IF(CalcTable[[#This Row],[IrrPrecip]]>=IC_MM,FALSE,TRUE) -> TRUE | V56: TRUE | W56: =IF(AND(IRR_DRIP=FALSE,CalcTable[[#This Row],[IrrHours]]<=0),FALSE,TRUE) ->  | X56: =AND(CalcTable[[#This Row],[IrrDay]],CalcTable[[#This Row],[IrrRain]],CalcTable[[#This Row],[IrrWarm]],CalcTable[[#This Row],[IrrWindy]]) ->  | Z56: =CalcTable[[#This Row],[IrrHours]]/5 ->  | AA56: =IF(CalcTable[[#This Row],[IrrFlag]]=FALSE,0,MAX(0,CalcTable[[#This Row],[VolRednWind]]*(FCAP*IRR_TARGET-CalcTable[[#This Row],[IWC]]))) ->  | AB56: =CalcTable[[#This Row],[IWC]]+CalcTable[[#This Row],[Eff Precip]]+CalcTable[[#This Row],[IrrAmt]]-CalcTable[[#This Row],[AET]] ->  | AC56: =IF(CalcTable[[#This Row],[PWC]]>FCAP,MIN(24*PERC,MIN(SAT,CalcTable[[#This Row],[PWC]])-FCAP),0) ->  | AD56: =IF(CalcTable[[#This Row],[PWC]]>SAT,CalcTable[[#This Row],[PWC]]-SAT,0) ->  | AE56: =CalcTable[[#This Row],[PWC]]-CalcTable[[#This Row],[PercAmt]]-CalcTable[[#This Row],[Runoff]] ->  | AF56: =CalcTable[[#This Row],[IrrAmt]]/1000*CUR_IRR_AREA*10000/IRR_EFF ->  | AI56: 0 | AJ56: 0 | AK56: 6.597642032 | AL56: 7.104491677 | AX56: 13.70213371 | AZ56: 305.163839 | BA56: 469.8554346 | BB56: 484.387046 | BC56: 19606 | BD56: 13.70213371 | BE56: 305.163839 | BF56: 499.1508939 | BH56: 0 | BI56: 56 | BJ56: 56 | BK56: 1960-06-06
A57: 1960-06-07 | B57: 1960 | C57: 6 | D57: 159 | E57: 7 | F57: 3 | G57: 6.1 | H57: 5.998391637 | I57: 14.33333333 | J57: 0 | K57: 0 | L57: 0 | M57: =CalcTable[[#This Row],[IWC]]-AE56 ->  | N57: =IF(CalcTable[[#This Row],[Day of Year]]<123,FCAP,AE56) ->  | O57: =IF(IRR_DRIP,5,COUNTIF('IDET Wind Values'!C41:G41,"<="&IRR_MAXWIND)) ->  | P57: =CalcTable[[#This Row],[ET_o]]*KL ->  | Q57: =IF(WILTPT<=0,1,MAX(0,MIN(1,(CalcTable[[#This Row],[IWC]]-WILTPT)/(MAD-WILTPT)))) ->  | R57: =CalcTable[[#This Row],[ETMult]]*CalcTable[[#This Row],[ETb]] ->  | S57: =INDEX(IRR_LIST,CalcTable[[#This Row],[Day of Week]]+1) -> TRUE | T57: 0 | U57: =IF(CalcTable[[#This Row],[IrrPrecip]]>=IC_MM,FALSE,TRUE) -> TRUE | V57: TRUE | W57: =IF(AND(IRR_DRIP=FALSE,CalcTable[[#This Row],[IrrHours]]<=0),FALSE,TRUE) ->  | X57: =AND(CalcTable[[#This Row],[IrrDay]],CalcTable[[#This Row],[IrrRain]],CalcTable[[#This Row],[IrrWarm]],CalcTable[[#This Row],[IrrWindy]]) ->  | Z57: =CalcTable[[#This Row],[IrrHours]]/5 ->  | AA57: =IF(CalcTable[[#This Row],[IrrFlag]]=FALSE,0,MAX(0,CalcTable[[#This Row],[VolRednWind]]*(FCAP*IRR_TARGET-CalcTable[[#This Row],[IWC]]))) ->  | AB57: =CalcTable[[#This Row],[IWC]]+CalcTable[[#This Row],[Eff Precip]]+CalcTable[[#This Row],[IrrAmt]]-CalcTable[[#This Row],[AET]] ->  | AC57: =IF(CalcTable[[#This Row],[PWC]]>FCAP,MIN(24*PERC,MIN(SAT,CalcTable[[#This Row],[PWC]])-FCAP),0) ->  | AD57: =IF(CalcTable[[#This Row],[PWC]]>SAT,CalcTable[[#This Row],[PWC]]-SAT,0) ->  | AE57: =CalcTable[[#This Row],[PWC]]-CalcTable[[#This Row],[PercAmt]]-CalcTable[[#This Row],[Runoff]] ->  | AF57: =CalcTable[[#This Row],[IrrAmt]]/1000*CUR_IRR_AREA*10000/IRR_EFF ->  | AI57: 15.5244009 | AJ57: 26.19093711 | AK57: 0 | AL57: 0 | AX57: 41.71533801 | AZ57: 995.9587018 | BA57: 1617.885222 | BB57: 1674.692382 | BC57: 19606 | BD57: 41.71533801 | BE57: 995.9587018 | BF57: 1629.07138 | BH57: 0 | BI57: 57 | BJ57: 57 | BK57: 1960-06-07
A58: 1960-06-08 | B58: 1960 | C58: 6 | D58: 160 | E58: 8 | F58: 4 | G58: 5 | H58: 4.484573652 | I58: 3.166666667 | J58: 0 | K58: 0 | L58: 0 | M58: =CalcTable[[#This Row],[IWC]]-AE57 ->  | N58: =IF(CalcTable[[#This Row],[Day of Year]]<123,FCAP,AE57) ->  | O58: =IF(IRR_DRIP,5,COUNTIF('IDET Wind Values'!C42:G42,"<="&IRR_MAXWIND)) ->  | P58: =CalcTable[[#This Row],[ET_o]]*KL ->  | Q58: =IF(WILTPT<=0,1,MAX(0,MIN(1,(CalcTable[[#This Row],[IWC]]-WILTPT)/(MAD-WILTPT)))) ->  | R58: =CalcTable[[#This Row],[ETMult]]*CalcTable[[#This Row],[ETb]] ->  | S58: =INDEX(IRR_LIST,CalcTable[[#This Row],[Day of Week]]+1) -> FALSE | T58: 0 | U58: =IF(CalcTable[[#This Row],[IrrPrecip]]>=IC_MM,FALSE,TRUE) -> TRUE | V58: TRUE | W58: =IF(AND(IRR_DRIP=FALSE,CalcTable[[#This Row],[IrrHours]]<=0),FALSE,TRUE) ->  | X58: =AND(CalcTable[[#This Row],[IrrDay]],CalcTable[[#This Row],[IrrRain]],CalcTable[[#This Row],[IrrWarm]],CalcTable[[#This Row],[IrrWindy]]) ->  | Z58: =CalcTable[[#This Row],[IrrHours]]/5 ->  | AA58: =IF(CalcTable[[#This Row],[IrrFlag]]=FALSE,0,MAX(0,CalcTable[[#This Row],[VolRednWind]]*(FCAP*IRR_TARGET-CalcTable[[#This Row],[IWC]]))) ->  | AB58: =CalcTable[[#This Row],[IWC]]+CalcTable[[#This Row],[Eff Precip]]+CalcTable[[#This Row],[IrrAmt]]-CalcTable[[#This Row],[AET]] ->  | AC58: =IF(CalcTable[[#This Row],[PWC]]>FCAP,MIN(24*PERC,MIN(SAT,CalcTable[[#This Row],[PWC]])-FCAP),0) ->  | AD58: =IF(CalcTable[[#This Row],[PWC]]>SAT,CalcTable[[#This Row],[PWC]]-SAT,0) ->  | AE58: =CalcTable[[#This Row],[PWC]]-CalcTable[[#This Row],[PercAmt]]-CalcTable[[#This Row],[Runoff]] ->  | AF58: =CalcTable[[#This Row],[IrrAmt]]/1000*CUR_IRR_AREA*10000/IRR_EFF ->  | AI58: 0 | AJ58: 0 | AK58: 8.259439973 | AL58: 6.371819761 | AX58: 14.63125973 | AZ58: 308.0451659 | BA58: 474.2917634 | BB58: 488.9605808 | BC58: 19606 | BD58: 14.63125973 | BE58: 308.0451659 | BF58: 503.8638275 | BH58: 0 | BI58: 58 | BJ58: 58 | BK58: 1960-06-08
A59: 1960-06-09 | B59: 1960 | C59: 6 | D59: 161 | E59: 9 | F59: 5 | G59: 3.3 | H59: 4.603178716 | I59: 1.5 | J59: 0 | K59: 0 | L59: 0 | M59: =CalcTable[[#This Row],[IWC]]-AE58 ->  | N59: =IF(CalcTable[[#This Row],[Day of Year]]<123,FCAP,AE58) ->  | O59: =IF(IRR_DRIP,5,COUNTIF('IDET Wind Values'!C43:G43,"<="&IRR_MAXWIND)) ->  | P59: =CalcTable[[#This Row],[ET_o]]*KL ->  | Q59: =IF(WILTPT<=0,1,MAX(0,MIN(1,(CalcTable[[#This Row],[IWC]]-WILTPT)/(MAD-WILTPT)))) ->  | R59: =CalcTable[[#This Row],[ETMult]]*CalcTable[[#This Row],[ETb]] ->  | S59: =INDEX(IRR_LIST,CalcTable[[#This Row],[Day of Week]]+1) -> TRUE | T59: 0 | U59: =IF(CalcTable[[#This Row],[IrrPrecip]]>=IC_MM,FALSE,TRUE) -> TRUE | V59: TRUE | W59: =IF(AND(IRR_DRIP=FALSE,CalcTable[[#This Row],[IrrHours]]<=0),FALSE,TRUE) ->  | X59: =AND(CalcTable[[#This Row],[IrrDay]],CalcTable[[#This Row],[IrrRain]],CalcTable[[#This Row],[IrrWarm]],CalcTable[[#This Row],[IrrWindy]]) ->  | Z59: =CalcTable[[#This Row],[IrrHours]]/5 ->  | AA59: =IF(CalcTable[[#This Row],[IrrFlag]]=FALSE,0,MAX(0,CalcTable[[#This Row],[VolRednWind]]*(FCAP*IRR_TARGET-CalcTable[[#This Row],[IWC]]))) ->  | AB59: =CalcTable[[#This Row],[IWC]]+CalcTable[[#This Row],[Eff Precip]]+CalcTable[[#This Row],[IrrAmt]]-CalcTable[[#This Row],[AET]] ->  | AC59: =IF(CalcTable[[#This Row],[PWC]]>FCAP,MIN(24*PERC,MIN(SAT,CalcTable[[#This Row],[PWC]])-FCAP),0) ->  | AD59: =IF(CalcTable[[#This Row],[PWC]]>SAT,CalcTable[[#This Row],[PWC]]-SAT,0) ->  | AE59: =CalcTable[[#This Row],[PWC]]-CalcTable[[#This Row],[PercAmt]]-CalcTable[[#This Row],[Runoff]] ->  | AF59: =CalcTable[[#This Row],[IrrAmt]]/1000*CUR_IRR_AREA*10000/IRR_EFF ->  | AI59: 2.618880623 | AJ59: 3.982080623 | AK59: 0 | AL59: 0 | AX59: 6.600961245 | AZ59: 155.2179474 | BA59: 251.8223742 | BB59: 260.6399285 | BC59: 19606 | BD59: 6.600961245 | BE59: 155.2179474 | BF59: 253.8871494 | BH59: 0 | BI59: 59 | BJ59: 59 | BK59: 1960-06-09
A60: 1960-06-10 | B60: 1960 | C60: 6 | D60: 162 | E60: 10 | F60: 6 | G60: 5.6 | H60: 5.658424675 | I60: 8.166666667 | J60: 0 | K60: 0 | L60: 0 | M60: =CalcTable[[#This Row],[IWC]]-AE59 ->  | N60: =IF(CalcTable[[#This Row],[Day of Year]]<123,FCAP,AE59) ->  | O60: =IF(IRR_DRIP,5,COUNTIF('IDET Wind Values'!C44:G44,"<="&IRR_MAXWIND)) ->  | P60: =CalcTable[[#This Row],[ET_o]]*KL ->  | Q60: =IF(WILTPT<=0,1,MAX(0,MIN(1,(CalcTable[[#This Row],[IWC]]-WILTPT)/(MAD-WILTPT)))) ->  | R60: =CalcTable[[#This Row],[ETMult]]*CalcTable[[#This Row],[ETb]] ->  | S60: =INDEX(IRR_LIST,CalcTable[[#This Row],[Day of Week]]+1) -> FALSE | T60: 0 | U60: =IF(CalcTable[[#This Row],[IrrPrecip]]>=IC_MM,FALSE,TRUE) -> TRUE | V60: TRUE | W60: =IF(AND(IRR_DRIP=FALSE,CalcTable[[#This Row],[IrrHours]]<=0),FALSE,TRUE) ->  | X60: =AND(CalcTable[[#This Row],[IrrDay]],CalcTable[[#This Row],[IrrRain]],CalcTable[[#This Row],[IrrWarm]],CalcTable[[#This Row],[IrrWindy]]) ->  | Z60: =CalcTable[[#This Row],[IrrHours]]/5 ->  | AA60: =IF(CalcTable[[#This Row],[IrrFlag]]=FALSE,0,MAX(0,CalcTable[[#This Row],[VolRednWind]]*(FCAP*IRR_TARGET-CalcTable[[#This Row],[IWC]]))) ->  | AB60: =CalcTable[[#This Row],[IWC]]+CalcTable[[#This Row],[Eff Precip]]+CalcTable[[#This Row],[IrrAmt]]-CalcTable[[#This Row],[AET]] ->  | AC60: =IF(CalcTable[[#This Row],[PWC]]>FCAP,MIN(24*PERC,MIN(SAT,CalcTable[[#This Row],[PWC]])-FCAP),0) ->  | AD60: =IF(CalcTable[[#This Row],[PWC]]>SAT,CalcTable[[#This Row],[PWC]]-SAT,0) ->  | AE60: =CalcTable[[#This Row],[PWC]]-CalcTable[[#This Row],[PercAmt]]-CalcTable[[#This Row],[Runoff]] ->  | AF60: =CalcTable[[#This Row],[IrrAmt]]/1000*CUR_IRR_AREA*10000/IRR_EFF ->  | AI60: 0 | AJ60: 0 | AK60: 0 | AL60: 4.998263803 | AX60: 4.998263803 | AZ60: 146.6157382 | BA60: 225.7416922 | BB60: 232.723394 | BC60: 19606 | BD60: 4.998263803 | BE60: 146.6157382 | BF60: 239.8166737 | BH60: 0 | BI60: 60 | BJ60: 60 | BK60: 1960-06-10
A61: 1960-06-11 | B61: 1960 | C61: 6 | D61: 163 | E61: 11 | F61: 7 | G61: 9.4 | H61: 4.946508527 | I61: 5.333333333 | J61: 3.3 | K61: 3.3 | L61: 0 | M61: =CalcTable[[#This Row],[IWC]]-AE60 ->  | N61: =IF(CalcTable[[#This Row],[Day of Year]]<123,FCAP,AE60) ->  | O61: =IF(IRR_DRIP,5,COUNTIF('IDET Wind Values'!C45:G45,"<="&IRR_MAXWIND)) ->  | P61: =CalcTable[[#This Row],[ET_o]]*KL ->  | Q61: =IF(WILTPT<=0,1,MAX(0,MIN(1,(CalcTable[[#This Row],[IWC]]-WILTPT)/(MAD-WILTPT)))) ->  | R61: =CalcTable[[#This Row],[ETMult]]*CalcTable[[#This Row],[ETb]] ->  | S61: =INDEX(IRR_LIST,CalcTable[[#This Row],[Day of Week]]+1) -> FALSE | T61: 0 | U61: =IF(CalcTable[[#This Row],[IrrPrecip]]>=IC_MM,FALSE,TRUE) -> TRUE | V61: TRUE | W61: =IF(AND(IRR_DRIP=FALSE,CalcTable[[#This Row],[IrrHours]]<=0),FALSE,TRUE) ->  | X61: =AND(CalcTable[[#This Row],[IrrDay]],CalcTable[[#This Row],[IrrRain]],CalcTable[[#This Row],[IrrWarm]],CalcTable[[#This Row],[IrrWindy]]) ->  | Z61: =CalcTable[[#This Row],[IrrHours]]/5 ->  | AA61: =IF(CalcTable[[#This Row],[IrrFlag]]=FALSE,0,MAX(0,CalcTable[[#This Row],[VolRednWind]]*(FCAP*IRR_TARGET-CalcTable[[#This Row],[IWC]]))) ->  | AB61: =CalcTable[[#This Row],[IWC]]+CalcTable[[#This Row],[Eff Precip]]+CalcTable[[#This Row],[IrrAmt]]-CalcTable[[#This Row],[AET]] ->  | AC61: =IF(CalcTable[[#This Row],[PWC]]>FCAP,MIN(24*PERC,MIN(SAT,CalcTable[[#This Row],[PWC]])-FCAP),0) ->  | AD61: =IF(CalcTable[[#This Row],[PWC]]>SAT,CalcTable[[#This Row],[PWC]]-SAT,0) ->  | AE61: =CalcTable[[#This Row],[PWC]]-CalcTable[[#This Row],[PercAmt]]-CalcTable[[#This Row],[Runoff]] ->  | AF61: =CalcTable[[#This Row],[IrrAmt]]/1000*CUR_IRR_AREA*10000/IRR_EFF ->  | AI61: 0 | AJ61: 0 | AK61: 0 | AL61: 0 | AX61: 0 | AZ61: 0 | BA61: 0 | BB61: 0 | BC61: 19606 | BD61: 0 | BE61: 0 | BF61: 0 | BH61: 0 | BI61: 61 | BJ61: 61 | BK61: 1960-06-11
A62: 1960-06-12 | B62: 1960 | C62: 6 | D62: 164 | E62: 12 | F62: 1 | G62: 7.8 | H62: 5.761959219 | I62: 15.66666667 | J62: 0 | K62: 0 | L62: 0 | M62: =CalcTable[[#This Row],[IWC]]-AE61 ->  | N62: =IF(CalcTable[[#This Row],[Day of Year]]<123,FCAP,AE61) ->  | O62: =IF(IRR_DRIP,5,COUNTIF('IDET Wind Values'!C46:G46,"<="&IRR_MAXWIND)) ->  | P62: =CalcTable[[#This Row],[ET_o]]*KL ->  | Q62: =IF(WILTPT<=0,1,MAX(0,MIN(1,(CalcTable[[#This Row],[IWC]]-WILTPT)/(MAD-WILTPT)))) ->  | R62: =CalcTable[[#This Row],[ETMult]]*CalcTable[[#This Row],[ETb]] ->  | S62: =INDEX(IRR_LIST,CalcTable[[#This Row],[Day of Week]]+1) -> TRUE | T62: 3.3 | U62: =IF(CalcTable[[#This Row],[IrrPrecip]]>=IC_MM,FALSE,TRUE) -> TRUE | V62: TRUE | W62: =IF(AND(IRR_DRIP=FALSE,CalcTable[[#This Row],[IrrHours]]<=0),FALSE,TRUE) ->  | X62: =AND(CalcTable[[#This Row],[IrrDay]],CalcTable[[#This Row],[IrrRain]],CalcTable[[#This Row],[IrrWarm]],CalcTable[[#This Row],[IrrWindy]]) ->  | Z62: =CalcTable[[#This Row],[IrrHours]]/5 ->  | AA62: =IF(CalcTable[[#This Row],[IrrFlag]]=FALSE,0,MAX(0,CalcTable[[#This Row],[VolRednWind]]*(FCAP*IRR_TARGET-CalcTable[[#This Row],[IWC]]))) ->  | AB62: =CalcTable[[#This Row],[IWC]]+CalcTable[[#This Row],[Eff Precip]]+CalcTable[[#This Row],[IrrAmt]]-CalcTable[[#This Row],[AET]] ->  | AC62: =IF(CalcTable[[#This Row],[PWC]]>FCAP,MIN(24*PERC,MIN(SAT,CalcTable[[#This Row],[PWC]])-FCAP),0) ->  | AD62: =IF(CalcTable[[#This Row],[PWC]]>SAT,CalcTable[[#This Row],[PWC]]-SAT,0) ->  | AE62: =CalcTable[[#This Row],[PWC]]-CalcTable[[#This Row],[PercAmt]]-CalcTable[[#This Row],[Runoff]] ->  | AF62: =CalcTable[[#This Row],[IrrAmt]]/1000*CUR_IRR_AREA*10000/IRR_EFF ->  | AI62: 11.34336092 | AJ62: 13.29503942 | AK62: 0 | AL62: 0 | AX62: 24.63840034 | AZ62: 556.3571165 | BA62: 899.4691428 | BB62: 930.7240949 | BC62: 19606 | BD62: 24.63840034 | BE62: 556.3571165 | BF62: 910.0231303 | BH62: 0 | BI62: 62 | BJ62: 62 | BK62: 1960-06-12
A63: 1960-06-13 | B63: 1960 | C63: 6 | D63: 165 | E63: 13 | F63: 2 | G63: 11.1 | H63: 4.927144517 | I63: 5.5 | J63: 1 | K63: 1 | L63: 0 | M63: =CalcTable[[#This Row],[IWC]]-AE62 ->  | N63: =IF(CalcTable[[#This Row],[Day of Year]]<123,FCAP,AE62) ->  | O63: =IF(IRR_DRIP,5,COUNTIF('IDET Wind Values'!C47:G47,"<="&IRR_MAXWIND)) ->  | P63: =CalcTable[[#This Row],[ET_o]]*KL ->  | Q63: =IF(WILTPT<=0,1,MAX(0,MIN(1,(CalcTable[[#This Row],[IWC]]-WILTPT)/(MAD-WILTPT)))) ->  | R63: =CalcTable[[#This Row],[ETMult]]*CalcTable[[#This Row],[ETb]] ->  | S63: =INDEX(IRR_LIST,CalcTable[[#This Row],[Day of Week]]+1) -> FALSE | T63: 3.3 | U63: =IF(CalcTable[[#This Row],[IrrPrecip]]>=IC_MM,FALSE,TRUE) -> TRUE | V63: TRUE | W63: =IF(AND(IRR_DRIP=FALSE,CalcTable[[#This Row],[IrrHours]]<=0),FALSE,TRUE) ->  | X63: =AND(CalcTable[[#This Row],[IrrDay]],CalcTable[[#This Row],[IrrRain]],CalcTable[[#This Row],[IrrWarm]],CalcTable[[#This Row],[IrrWindy]]) ->  | Z63: =CalcTable[[#This Row],[IrrHours]]/5 ->  | AA63: =IF(CalcTable[[#This Row],[IrrFlag]]=FALSE,0,MAX(0,CalcTable[[#This Row],[VolRednWind]]*(FCAP*IRR_TARGET-CalcTable[[#This Row],[IWC]]))) ->  | AB63: =CalcTable[[#This Row],[IWC]]+CalcTable[[#This Row],[Eff Precip]]+CalcTable[[#This Row],[IrrAmt]]-CalcTable[[#This Row],[AET]] ->  | AC63: =IF(CalcTable[[#This Row],[PWC]]>FCAP,MIN(24*PERC,MIN(SAT,CalcTable[[#This Row],[PWC]])-FCAP),0) ->  | AD63: =IF(CalcTable[[#This Row],[PWC]]>SAT,CalcTable[[#This Row],[PWC]]-SAT,0) ->  | AE63: =CalcTable[[#This Row],[PWC]]-CalcTable[[#This Row],[PercAmt]]-CalcTable[[#This Row],[Runoff]] ->  | AF63: =CalcTable[[#This Row],[IrrAmt]]/1000*CUR_IRR_AREA*10000/IRR_EFF ->  | AI63: 0 | AJ63: 0 | AK63: 11.44927675 | AL63: 9.001790832 | AX63: 20.45106758 | AZ63: 431.9752568 | BA63: 665.1047604 | BB63: 685.6750107 | BC63: 19606 | BD63: 20.45106758 | BE63: 431.9752568 | BF63: 706.5740039 | BH63: 0 | BI63: 63 | BJ63: 63 | BK63: 1960-06-13
A64: 1960-06-14 | B64: 1960 | C64: 6 | D64: 166 | E64: 14 | F64: 3 | G64: 7.2 | H64: 3.041834431 | I64: 2.166666667 | J64: 14.2 | K64: 14.2 | L64: 6.9 | M64: =CalcTable[[#This Row],[IWC]]-AE63 ->  | N64: =IF(CalcTable[[#This Row],[Day of Year]]<123,FCAP,AE63) ->  | O64: =IF(IRR_DRIP,5,COUNTIF('IDET Wind Values'!C48:G48,"<="&IRR_MAXWIND)) ->  | P64: =CalcTable[[#This Row],[ET_o]]*KL ->  | Q64: =IF(WILTPT<=0,1,MAX(0,MIN(1,(CalcTable[[#This Row],[IWC]]-WILTPT)/(MAD-WILTPT)))) ->  | R64: =CalcTable[[#This Row],[ETMult]]*CalcTable[[#This Row],[ETb]] ->  | S64: =INDEX(IRR_LIST,CalcTable[[#This Row],[Day of Week]]+1) -> TRUE | T64: 1 | U64: =IF(CalcTable[[#This Row],[IrrPrecip]]>=IC_MM,FALSE,TRUE) -> TRUE | V64: TRUE | W64: =IF(AND(IRR_DRIP=FALSE,CalcTable[[#This Row],[IrrHours]]<=0),FALSE,TRUE) ->  | X64: =AND(CalcTable[[#This Row],[IrrDay]],CalcTable[[#This Row],[IrrRain]],CalcTable[[#This Row],[IrrWarm]],CalcTable[[#This Row],[IrrWindy]]) ->  | Z64: =CalcTable[[#This Row],[IrrHours]]/5 ->  | AA64: =IF(CalcTable[[#This Row],[IrrFlag]]=FALSE,0,MAX(0,CalcTable[[#This Row],[VolRednWind]]*(FCAP*IRR_TARGET-CalcTable[[#This Row],[IWC]]))) ->  | AB64: =CalcTable[[#This Row],[IWC]]+CalcTable[[#This Row],[Eff Precip]]+CalcTable[[#This Row],[IrrAmt]]-CalcTable[[#This Row],[AET]] ->  | AC64: =IF(CalcTable[[#This Row],[PWC]]>FCAP,MIN(24*PERC,MIN(SAT,CalcTable[[#This Row],[PWC]])-FCAP),0) ->  | AD64: =IF(CalcTable[[#This Row],[PWC]]>SAT,CalcTable[[#This Row],[PWC]]-SAT,0) ->  | AE64: =CalcTable[[#This Row],[PWC]]-CalcTable[[#This Row],[PercAmt]]-CalcTable[[#This Row],[Runoff]] ->  | AF64: =CalcTable[[#This Row],[IrrAmt]]/1000*CUR_IRR_AREA*10000/IRR_EFF ->  | AI64: 0 | AJ64: 0 | AK64: 0 | AL64: 0 | AX64: 0 | AZ64: 0 | BA64: 0 | BB64: 0 | BC64: 19606 | BD64: 0 | BE64: 0 | BF64: 0 | BH64: 0 | BI64: 64 | BJ64: 64 | BK64: 1960-06-14
A65: 1960-06-15 | B65: 1960 | C65: 6 | D65: 167 | E65: 15 | F65: 4 | G65: 8.3 | H65: 3.05848399 | I65: 13.16666667 | J65: 2.8 | K65: 2.8 | L65: 0 | M65: =CalcTable[[#This Row],[IWC]]-AE64 ->  | N65: =IF(CalcTable[[#This Row],[Day of Year]]<123,FCAP,AE64) ->  | O65: =IF(IRR_DRIP,5,COUNTIF('IDET Wind Values'!C49:G49,"<="&IRR_MAXWIND)) ->  | P65: =CalcTable[[#This Row],[ET_o]]*KL ->  | Q65: =IF(WILTPT<=0,1,MAX(0,MIN(1,(CalcTable[[#This Row],[IWC]]-WILTPT)/(MAD-WILTPT)))) ->  | R65: =CalcTable[[#This Row],[ETMult]]*CalcTable[[#This Row],[ETb]] ->  | S65: =INDEX(IRR_LIST,CalcTable[[#This Row],[Day of Week]]+1) -> FALSE | T65: 15.2 | U65: =IF(CalcTable[[#This Row],[IrrPrecip]]>=IC_MM,FALSE,TRUE) -> FALSE | V65: TRUE | W65: =IF(AND(IRR_DRIP=FALSE,CalcTable[[#This Row],[IrrHours]]<=0),FALSE,TRUE) ->  | X65: =AND(CalcTable[[#This Row],[IrrDay]],CalcTable[[#This Row],[IrrRain]],CalcTable[[#This Row],[IrrWarm]],CalcTable[[#This Row],[IrrWindy]]) ->  | Z65: =CalcTable[[#This Row],[IrrHours]]/5 ->  | AA65: =IF(CalcTable[[#This Row],[IrrFlag]]=FALSE,0,MAX(0,CalcTable[[#This Row],[VolRednWind]]*(FCAP*IRR_TARGET-CalcTable[[#This Row],[IWC]]))) ->  | AB65: =CalcTable[[#This Row],[IWC]]+CalcTable[[#This Row],[Eff Precip]]+CalcTable[[#This Row],[IrrAmt]]-CalcTable[[#This Row],[AET]] ->  | AC65: =IF(CalcTable[[#This Row],[PWC]]>FCAP,MIN(24*PERC,MIN(SAT,CalcTable[[#This Row],[PWC]])-FCAP),0) ->  | AD65: =IF(CalcTable[[#This Row],[PWC]]>SAT,CalcTable[[#This Row],[PWC]]-SAT,0) ->  | AE65: =CalcTable[[#This Row],[PWC]]-CalcTable[[#This Row],[PercAmt]]-CalcTable[[#This Row],[Runoff]] ->  | AF65: =CalcTable[[#This Row],[IrrAmt]]/1000*CUR_IRR_AREA*10000/IRR_EFF ->  | AI65: 0 | AJ65: 0 | AK65: 0 | AL65: 0 | AX65: 0 | AZ65: 0 | BA65: 0 | BB65: 0 | BC65: 19606 | BD65: 0 | BE65: 0 | BF65: 0 | BH65: 0 | BI65: 65 | BJ65: 65 | BK65: 1960-06-15
A66: 1960-06-16 | B66: 1960 | C66: 6 | D66: 168 | E66: 16 | F66: 5 | G66: 7.2 | H66: 4.995886799 | I66: 10.83333333 | J66: 1.8 | K66: 1.8 | L66: 0 | M66: =CalcTable[[#This Row],[IWC]]-AE65 ->  | N66: =IF(CalcTable[[#This Row],[Day of Year]]<123,FCAP,AE65) ->  | O66: =IF(IRR_DRIP,5,COUNTIF('IDET Wind Values'!C50:G50,"<="&IRR_MAXWIND)) ->  | P66: =CalcTable[[#This Row],[ET_o]]*KL ->  | Q66: =IF(WILTPT<=0,1,MAX(0,MIN(1,(CalcTable[[#This Row],[IWC]]-WILTPT)/(MAD-WILTPT)))) ->  | R66: =CalcTable[[#This Row],[ETMult]]*CalcTable[[#This Row],[ETb]] ->  | S66: =INDEX(IRR_LIST,CalcTable[[#This Row],[Day of Week]]+1) -> TRUE | T66: 17 | U66: =IF(CalcTable[[#This Row],[IrrPrecip]]>=IC_MM,FALSE,TRUE) -> FALSE | V66: TRUE | W66: =IF(AND(IRR_DRIP=FALSE,CalcTable[[#This Row],[IrrHours]]<=0),FALSE,TRUE) ->  | X66: =AND(CalcTable[[#This Row],[IrrDay]],CalcTable[[#This Row],[IrrRain]],CalcTable[[#This Row],[IrrWarm]],CalcTable[[#This Row],[IrrWindy]]) ->  | Z66: =CalcTable[[#This Row],[IrrHours]]/5 ->  | AA66: =IF(CalcTable[[#This Row],[IrrFlag]]=FALSE,0,MAX(0,CalcTable[[#This Row],[VolRednWind]]*(FCAP*IRR_TARGET-CalcTable[[#This Row],[IWC]]))) ->  | AB66: =CalcTable[[#This Row],[IWC]]+CalcTable[[#This Row],[Eff Precip]]+CalcTable[[#This Row],[IrrAmt]]-CalcTable[[#This Row],[AET]] ->  | AC66: =IF(CalcTable[[#This Row],[PWC]]>FCAP,MIN(24*PERC,MIN(SAT,CalcTable[[#This Row],[PWC]])-FCAP),0) ->  | AD66: =IF(CalcTable[[#This Row],[PWC]]>SAT,CalcTable[[#This Row],[PWC]]-SAT,0) ->  | AE66: =CalcTable[[#This Row],[PWC]]-CalcTable[[#This Row],[PercAmt]]-CalcTable[[#This Row],[Runoff]] ->  | AF66: =CalcTable[[#This Row],[IrrAmt]]/1000*CUR_IRR_AREA*10000/IRR_EFF ->  | AI66: 0 | AJ66: 0 | AK66: 0 | AL66: 0 | AX66: 0 | AZ66: 0 | BA66: 0 | BB66: 0 | BC66: 19606 | BD66: 0 | BE66: 0 | BF66: 0 | BH66: 0 | BI66: 66 | BJ66: 66 | BK66: 1960-06-16
A67: 1960-06-17 | B67: 1960 | C67: 6 | D67: 169 | E67: 17 | F67: 6 | G67: 6.7 | H67: 5.582822692 | I67: 17.16666667 | J67: 0 | K67: 0 | L67: 0 | M67: =CalcTable[[#This Row],[IWC]]-AE66 ->  | N67: =IF(CalcTable[[#This Row],[Day of Year]]<123,FCAP,AE66) ->  | O67: =IF(IRR_DRIP,5,COUNTIF('IDET Wind Values'!C51:G51,"<="&IRR_MAXWIND)) ->  | P67: =CalcTable[[#This Row],[ET_o]]*KL ->  | Q67: =IF(WILTPT<=0,1,MAX(0,MIN(1,(CalcTable[[#This Row],[IWC]]-WILTPT)/(MAD-WILTPT)))) ->  | R67: =CalcTable[[#This Row],[ETMult]]*CalcTable[[#This Row],[ETb]] ->  | S67: =INDEX(IRR_LIST,CalcTable[[#This Row],[Day of Week]]+1) -> FALSE | T67: 4.6 | U67: =IF(CalcTable[[#This Row],[IrrPrecip]]>=IC_MM,FALSE,TRUE) -> TRUE | V67: TRUE | W67: =IF(AND(IRR_DRIP=FALSE,CalcTable[[#This Row],[IrrHours]]<=0),FALSE,TRUE) ->  | X67: =AND(CalcTable[[#This Row],[IrrDay]],CalcTable[[#This Row],[IrrRain]],CalcTable[[#This Row],[IrrWarm]],CalcTable[[#This Row],[IrrWindy]]) ->  | Z67: =CalcTable[[#This Row],[IrrHours]]/5 ->  | AA67: =IF(CalcTable[[#This Row],[IrrFlag]]=FALSE,0,MAX(0,CalcTable[[#This Row],[VolRednWind]]*(FCAP*IRR_TARGET-CalcTable[[#This Row],[IWC]]))) ->  | AB67: =CalcTable[[#This Row],[IWC]]+CalcTable[[#This Row],[Eff Precip]]+CalcTable[[#This Row],[IrrAmt]]-CalcTable[[#This Row],[AET]] ->  | AC67: =IF(CalcTable[[#This Row],[PWC]]>FCAP,MIN(24*PERC,MIN(SAT,CalcTable[[#This Row],[PWC]])-FCAP),0) ->  | AD67: =IF(CalcTable[[#This Row],[PWC]]>SAT,CalcTable[[#This Row],[PWC]]-SAT,0) ->  | AE67: =CalcTable[[#This Row],[PWC]]-CalcTable[[#This Row],[PercAmt]]-CalcTable[[#This Row],[Runoff]] ->  | AF67: =CalcTable[[#This Row],[IrrAmt]]/1000*CUR_IRR_AREA*10000/IRR_EFF ->  | AI67: 0 | AJ67: 0 | AK67: 0 | AL67: 6.709903934 | AX67: 6.709903934 | AZ67: 196.8238487 | BA67: 303.0462433 | BB67: 312.4188075 | BC67: 19606 | BD67: 6.709903934 | BE67: 196.8238487 | BF67: 321.9411591 | BH67: 0 | BI67: 67 | BJ67: 67 | BK67: 1960-06-17
A68: 1960-06-18 | B68: 1960 | C68: 6 | D68: 170 | E68: 18 | F68: 7 | G68: 6.7 | H68: 5.88067732 | I68: 24.16666667 | J68: 0 | K68: 0 | L68: 0 | M68: =CalcTable[[#This Row],[IWC]]-AE67 ->  | N68: =IF(CalcTable[[#This Row],[Day of Year]]<123,FCAP,AE67) ->  | O68: =IF(IRR_DRIP,5,COUNTIF('IDET Wind Values'!C52:G52,"<="&IRR_MAXWIND)) ->  | P68: =CalcTable[[#This Row],[ET_o]]*KL ->  | Q68: =IF(WILTPT<=0,1,MAX(0,MIN(1,(CalcTable[[#This Row],[IWC]]-WILTPT)/(MAD-WILTPT)))) ->  | R68: =CalcTable[[#This Row],[ETMult]]*CalcTable[[#This Row],[ETb]] ->  | S68: =INDEX(IRR_LIST,CalcTable[[#This Row],[Day of Week]]+1) -> FALSE | T68: 1.8 | U68: =IF(CalcTable[[#This Row],[IrrPrecip]]>=IC_MM,FALSE,TRUE) -> TRUE | V68: TRUE | W68: =IF(AND(IRR_DRIP=FALSE,CalcTable[[#This Row],[IrrHours]]<=0),FALSE,TRUE) ->  | X68: =AND(CalcTable[[#This Row],[IrrDay]],CalcTable[[#This Row],[IrrRain]],CalcTable[[#This Row],[IrrWarm]],CalcTable[[#This Row],[IrrWindy]]) ->  | Z68: =CalcTable[[#This Row],[IrrHours]]/5 ->  | AA68: =IF(CalcTable[[#This Row],[IrrFlag]]=FALSE,0,MAX(0,CalcTable[[#This Row],[VolRednWind]]*(FCAP*IRR_TARGET-CalcTable[[#This Row],[IWC]]))) ->  | AB68: =CalcTable[[#This Row],[IWC]]+CalcTable[[#This Row],[Eff Precip]]+CalcTable[[#This Row],[IrrAmt]]-CalcTable[[#This Row],[AET]] ->  | AC68: =IF(CalcTable[[#This Row],[PWC]]>FCAP,MIN(24*PERC,MIN(SAT,CalcTable[[#This Row],[PWC]])-FCAP),0) ->  | AD68: =IF(CalcTable[[#This Row],[PWC]]>SAT,CalcTable[[#This Row],[PWC]]-SAT,0) ->  | AE68: =CalcTable[[#This Row],[PWC]]-CalcTable[[#This Row],[PercAmt]]-CalcTable[[#This Row],[Runoff]] ->  | AF68: =CalcTable[[#This Row],[IrrAmt]]/1000*CUR_IRR_AREA*10000/IRR_EFF ->  | AI68: 0 | AJ68: 0 | AK68: 4.171382566 | AL68: 0 | AX68: 4.171382566 | AZ68: 61.18027763 | BA68: 94.19820524 | BB68: 97.1115518 | BC68: 19606 | BD68: 4.171382566 | BE68: 61.18027763 | BF68: 100.0714579 | BH68: 0 | BI68: 68 | BJ68: 68 | BK68: 1960-06-18
A69: 1960-06-19 | B69: 1960 | C69: 6 | D69: 171 | E69: 19 | F69: 1 | G69: 5 | H69: 5.998509579 | I69: 9.833333333 | J69: 5.1 | K69: 5.1 | L69: 0.075 | M69: =CalcTable[[#This Row],[IWC]]-AE68 ->  | N69: =IF(CalcTable[[#This Row],[Day of Year]]<123,FCAP,AE68) ->  | O69: =IF(IRR_DRIP,5,COUNTIF('IDET Wind Values'!C53:G53,"<="&IRR_MAXWIND)) ->  | P69: =CalcTable[[#This Row],[ET_o]]*KL ->  | Q69: =IF(WILTPT<=0,1,MAX(0,MIN(1,(CalcTable[[#This Row],[IWC]]-WILTPT)/(MAD-WILTPT)))) ->  | R69: =CalcTable[[#This Row],[ETMult]]*CalcTable[[#This Row],[ETb]] ->  | S69: =INDEX(IRR_LIST,CalcTable[[#This Row],[Day of Week]]+1) -> TRUE | T69: 0 | U69: =IF(CalcTable[[#This Row],[IrrPrecip]]>=IC_MM,FALSE,TRUE) -> TRUE | V69: TRUE | W69: =IF(AND(IRR_DRIP=FALSE,CalcTable[[#This Row],[IrrHours]]<=0),FALSE,TRUE) ->  | X69: =AND(CalcTable[[#This Row],[IrrDay]],CalcTable[[#This Row],[IrrRain]],CalcTable[[#This Row],[IrrWarm]],CalcTable[[#This Row],[IrrWindy]]) ->  | Z69: =CalcTable[[#This Row],[IrrHours]]/5 ->  | AA69: =IF(CalcTable[[#This Row],[IrrFlag]]=FALSE,0,MAX(0,CalcTable[[#This Row],[VolRednWind]]*(FCAP*IRR_TARGET-CalcTable[[#This Row],[IWC]]))) ->  | AB69: =CalcTable[[#This Row],[IWC]]+CalcTable[[#This Row],[Eff Precip]]+CalcTable[[#This Row],[IrrAmt]]-CalcTable[[#This Row],[AET]] ->  | AC69: =IF(CalcTable[[#This Row],[PWC]]>FCAP,MIN(24*PERC,MIN(SAT,CalcTable[[#This Row],[PWC]])-FCAP),0) ->  | AD69: =IF(CalcTable[[#This Row],[PWC]]>SAT,CalcTable[[#This Row],[PWC]]-SAT,0) ->  | AE69: =CalcTable[[#This Row],[PWC]]-CalcTable[[#This Row],[PercAmt]]-CalcTable[[#This Row],[Runoff]] ->  | AF69: =CalcTable[[#This Row],[IrrAmt]]/1000*CUR_IRR_AREA*10000/IRR_EFF ->  | AI69: 0 | AJ69: 0 | AK69: 0 | AL69: 0 | AX69: 0 | AZ69: 0 | BA69: 0 | BB69: 0 | BC69: 19606 | BD69: 0 | BE69: 0 | BF69: 0 | BH69: 0 | BI69: 69 | BJ69: 69 | BK69: 1960-06-19
A70: 1960-06-20 | B70: 1960 | C70: 6 | D70: 172 | E70: 20 | F70: 2 | G70: 6.1 | H70: 3.493680223 | I70: 19.16666667 | J70: 7.4 | K70: 7.4 | L70: 1.8 | M70: =CalcTable[[#This Row],[IWC]]-AE69 ->  | N70: =IF(CalcTable[[#This Row],[Day of Year]]<123,FCAP,AE69) ->  | O70: =IF(IRR_DRIP,5,COUNTIF('IDET Wind Values'!C54:G54,"<="&IRR_MAXWIND)) ->  | P70: =CalcTable[[#This Row],[ET_o]]*KL ->  | Q70: =IF(WILTPT<=0,1,MAX(0,MIN(1,(CalcTable[[#This Row],[IWC]]-WILTPT)/(MAD-WILTPT)))) ->  | R70: =CalcTable[[#This Row],[ETMult]]*CalcTable[[#This Row],[ETb]] ->  | S70: =INDEX(IRR_LIST,CalcTable[[#This Row],[Day of Week]]+1) -> FALSE | T70: 5.1 | U70: =IF(CalcTable[[#This Row],[IrrPrecip]]>=IC_MM,FALSE,TRUE) -> TRUE | V70: TRUE | W70: =IF(AND(IRR_DRIP=FALSE,CalcTable[[#This Row],[IrrHours]]<=0),FALSE,TRUE) ->  | X70: =AND(CalcTable[[#This Row],[IrrDay]],CalcTable[[#This Row],[IrrRain]],CalcTable[[#This Row],[IrrWarm]],CalcTable[[#This Row],[IrrWindy]]) ->  | Z70: =CalcTable[[#This Row],[IrrHours]]/5 ->  | AA70: =IF(CalcTable[[#This Row],[IrrFlag]]=FALSE,0,MAX(0,CalcTable[[#This Row],[VolRednWind]]*(FCAP*IRR_TARGET-CalcTable[[#This Row],[IWC]]))) ->  | AB70: =CalcTable[[#This Row],[IWC]]+CalcTable[[#This Row],[Eff Precip]]+CalcTable[[#This Row],[IrrAmt]]-CalcTable[[#This Row],[AET]] ->  | AC70: =IF(CalcTable[[#This Row],[PWC]]>FCAP,MIN(24*PERC,MIN(SAT,CalcTable[[#This Row],[PWC]])-FCAP),0) ->  | AD70: =IF(CalcTable[[#This Row],[PWC]]>SAT,CalcTable[[#This Row],[PWC]]-SAT,0) ->  | AE70: =CalcTable[[#This Row],[PWC]]-CalcTable[[#This Row],[PercAmt]]-CalcTable[[#This Row],[Runoff]] ->  | AF70: =CalcTable[[#This Row],[IrrAmt]]/1000*CUR_IRR_AREA*10000/IRR_EFF ->  | AI70: 0 | AJ70: 0 | AK70: 2.097239917 | AL70: 9.529105275 | AX70: 11.62634519 | AZ70: 310.2799402 | BA70: 477.7326063 | BB70: 492.5078416 | BC70: 19606 | BD70: 11.62634519 | BE70: 310.2799402 | BF70: 507.5192068 | BH70: 0 | BI70: 70 | BJ70: 70 | BK70: 1960-06-20
A71: 1960-06-21 | B71: 1960 | C71: 6 | D71: 173 | E71: 21 | F71: 3 | G71: 6.1 | H71: 4.605235367 | I71: 12.83333333 | J71: 2 | K71: 2 | L71: 0 | M71: =CalcTable[[#This Row],[IWC]]-AE70 ->  | N71: =IF(CalcTable[[#This Row],[Day of Year]]<123,FCAP,AE70) ->  | O71: =IF(IRR_DRIP,5,COUNTIF('IDET Wind Values'!C55:G55,"<="&IRR_MAXWIND)) ->  | P71: =CalcTable[[#This Row],[ET_o]]*KL ->  | Q71: =IF(WILTPT<=0,1,MAX(0,MIN(1,(CalcTable[[#This Row],[IWC]]-WILTPT)/(MAD-WILTPT)))) ->  | R71: =CalcTable[[#This Row],[ETMult]]*CalcTable[[#This Row],[ETb]] ->  | S71: =INDEX(IRR_LIST,CalcTable[[#This Row],[Day of Week]]+1) -> TRUE | T71: 12.5 | U71: =IF(CalcTable[[#This Row],[IrrPrecip]]>=IC_MM,FALSE,TRUE) -> FALSE | V71: TRUE | W71: =IF(AND(IRR_DRIP=FALSE,CalcTable[[#This Row],[IrrHours]]<=0),FALSE,TRUE) ->  | X71: =AND(CalcTable[[#This Row],[IrrDay]],CalcTable[[#This Row],[IrrRain]],CalcTable[[#This Row],[IrrWarm]],CalcTable[[#This Row],[IrrWindy]]) ->  | Z71: =CalcTable[[#This Row],[IrrHours]]/5 ->  | AA71: =IF(CalcTable[[#This Row],[IrrFlag]]=FALSE,0,MAX(0,CalcTable[[#This Row],[VolRednWind]]*(FCAP*IRR_TARGET-CalcTable[[#This Row],[IWC]]))) ->  | AB71: =CalcTable[[#This Row],[IWC]]+CalcTable[[#This Row],[Eff Precip]]+CalcTable[[#This Row],[IrrAmt]]-CalcTable[[#This Row],[AET]] ->  | AC71: =IF(CalcTable[[#This Row],[PWC]]>FCAP,MIN(24*PERC,MIN(SAT,CalcTable[[#This Row],[PWC]])-FCAP),0) ->  | AD71: =IF(CalcTable[[#This Row],[PWC]]>SAT,CalcTable[[#This Row],[PWC]]-SAT,0) ->  | AE71: =CalcTable[[#This Row],[PWC]]-CalcTable[[#This Row],[PercAmt]]-CalcTable[[#This Row],[Runoff]] ->  | AF71: =CalcTable[[#This Row],[IrrAmt]]/1000*CUR_IRR_AREA*10000/IRR_EFF ->  | AI71: 0 | AJ71: 0 | AK71: 0 | AL71: 0 | AX71: 0 | AZ71: 0 | BA71: 0 | BB71: 0 | BC71: 19606 | BD71: 0 | BE71: 0 | BF71: 0 | BH71: 0 | BI71: 71 | BJ71: 71 | BK71: 1960-06-21
A72: 1960-06-22 | B72: 1960 | C72: 6 | D72: 174 | E72: 22 | F72: 4 | G72: 8.9 | H72: 4.198615065 | I72: 32.83333333 | J72: 1.5 | K72: 1.5 | L72: 0 | M72: =CalcTable[[#This Row],[IWC]]-AE71 ->  | N72: =IF(CalcTable[[#This Row],[Day of Year]]<123,FCAP,AE71) ->  | O72: =IF(IRR_DRIP,5,COUNTIF('IDET Wind Values'!C56:G56,"<="&IRR_MAXWIND)) ->  | P72: =CalcTable[[#This Row],[ET_o]]*KL ->  | Q72: =IF(WILTPT<=0,1,MAX(0,MIN(1,(CalcTable[[#This Row],[IWC]]-WILTPT)/(MAD-WILTPT)))) ->  | R72: =CalcTable[[#This Row],[ETMult]]*CalcTable[[#This Row],[ETb]] ->  | S72: =INDEX(IRR_LIST,CalcTable[[#This Row],[Day of Week]]+1) -> FALSE | T72: 9.4 | U72: =IF(CalcTable[[#This Row],[IrrPrecip]]>=IC_MM,FALSE,TRUE) -> TRUE | V72: TRUE | W72: =IF(AND(IRR_DRIP=FALSE,CalcTable[[#This Row],[IrrHours]]<=0),FALSE,TRUE) ->  | X72: =AND(CalcTable[[#This Row],[IrrDay]],CalcTable[[#This Row],[IrrRain]],CalcTable[[#This Row],[IrrWarm]],CalcTable[[#This Row],[IrrWindy]]) ->  | Z72: =CalcTable[[#This Row],[IrrHours]]/5 ->  | AA72: =IF(CalcTable[[#This Row],[IrrFlag]]=FALSE,0,MAX(0,CalcTable[[#This Row],[VolRednWind]]*(FCAP*IRR_TARGET-CalcTable[[#This Row],[IWC]]))) ->  | AB72: =CalcTable[[#This Row],[IWC]]+CalcTable[[#This Row],[Eff Precip]]+CalcTable[[#This Row],[IrrAmt]]-CalcTable[[#This Row],[AET]] ->  | AC72: =IF(CalcTable[[#This Row],[PWC]]>FCAP,MIN(24*PERC,MIN(SAT,CalcTable[[#This Row],[PWC]])-FCAP),0) ->  | AD72: =IF(CalcTable[[#This Row],[PWC]]>SAT,CalcTable[[#This Row],[PWC]]-SAT,0) ->  | AE72: =CalcTable[[#This Row],[PWC]]-CalcTable[[#This Row],[PercAmt]]-CalcTable[[#This Row],[Runoff]] ->  | AF72: =CalcTable[[#This Row],[IrrAmt]]/1000*CUR_IRR_AREA*10000/IRR_EFF ->  | AI72: 0 | AJ72: 0 | AK72: 7.755105779 | AL72: 4.812879452 | AX72: 12.56798523 | AZ72: 254.9193487 | BA72: 392.4948702 | BB72: 404.6338868 | BC72: 19606 | BD72: 12.56798523 | BE72: 254.9193487 | BF72: 416.9669027 | BH72: 0 | BI72: 72 | BJ72: 72 | BK72: 1960-06-22
A73: 1960-06-23 | B73: 1960 | C73: 6 | D73: 175 | E73: 23 | F73: 5 | G73: 7.2 | H73: 4.796889916 | I73: 4.5 | J73: 0 | K73: 0 | L73: 0 | M73: =CalcTable[[#This Row],[IWC]]-AE72 ->  | N73: =IF(CalcTable[[#This Row],[Day of Year]]<123,FCAP,AE72) ->  | O73: =IF(IRR_DRIP,5,COUNTIF('IDET Wind Values'!C57:G57,"<="&IRR_MAXWIND)) ->  | P73: =CalcTable[[#This Row],[ET_o]]*KL ->  | Q73: =IF(WILTPT<=0,1,MAX(0,MIN(1,(CalcTable[[#This Row],[IWC]]-WILTPT)/(MAD-WILTPT)))) ->  | R73: =CalcTable[[#This Row],[ETMult]]*CalcTable[[#This Row],[ETb]] ->  | S73: =INDEX(IRR_LIST,CalcTable[[#This Row],[Day of Week]]+1) -> TRUE | T73: 3.5 | U73: =IF(CalcTable[[#This Row],[IrrPrecip]]>=IC_MM,FALSE,TRUE) -> TRUE | V73: TRUE | W73: =IF(AND(IRR_DRIP=FALSE,CalcTable[[#This Row],[IrrHours]]<=0),FALSE,TRUE) ->  | X73: =AND(CalcTable[[#This Row],[IrrDay]],CalcTable[[#This Row],[IrrRain]],CalcTable[[#This Row],[IrrWarm]],CalcTable[[#This Row],[IrrWindy]]) ->  | Z73: =CalcTable[[#This Row],[IrrHours]]/5 ->  | AA73: =IF(CalcTable[[#This Row],[IrrFlag]]=FALSE,0,MAX(0,CalcTable[[#This Row],[VolRednWind]]*(FCAP*IRR_TARGET-CalcTable[[#This Row],[IWC]]))) ->  | AB73: =CalcTable[[#This Row],[IWC]]+CalcTable[[#This Row],[Eff Precip]]+CalcTable[[#This Row],[IrrAmt]]-CalcTable[[#This Row],[AET]] ->  | AC73: =IF(CalcTable[[#This Row],[PWC]]>FCAP,MIN(24*PERC,MIN(SAT,CalcTable[[#This Row],[PWC]])-FCAP),0) ->  | AD73: =IF(CalcTable[[#This Row],[PWC]]>SAT,CalcTable[[#This Row],[PWC]]-SAT,0) ->  | AE73: =CalcTable[[#This Row],[PWC]]-CalcTable[[#This Row],[PercAmt]]-CalcTable[[#This Row],[Runoff]] ->  | AF73: =CalcTable[[#This Row],[IrrAmt]]/1000*CUR_IRR_AREA*10000/IRR_EFF ->  | AI73: 6.61422079 | AJ73: 11.39216846 | AK73: 0 | AL73: 0 | AX73: 18.00638925 | AZ73: 431.1788463 | BA73: 700.6005493 | BB73: 725.2130985 | BC73: 19606 | BD73: 18.00638925 | BE73: 431.1788463 | BF73: 705.2713299 | BH73: 0 | BI73: 73 | BJ73: 73 | BK73: 1960-06-23
A74: 1960-06-24 | B74: 1960 | C74: 6 | D74: 176 | E74: 24 | F74: 6 | G74: 11.7 | H74: 4.890257552 | I74: 14.5 | J74: 7.2 | K74: 7.2 | L74: 1.65 | M74: =CalcTable[[#This Row],[IWC]]-AE73 ->  | N74: =IF(CalcTable[[#This Row],[Day of Year]]<123,FCAP,AE73) ->  | O74: =IF(IRR_DRIP,5,COUNTIF('IDET Wind Values'!C58:G58,"<="&IRR_MAXWIND)) ->  | P74: =CalcTable[[#This Row],[ET_o]]*KL ->  | Q74: =IF(WILTPT<=0,1,MAX(0,MIN(1,(CalcTable[[#This Row],[IWC]]-WILTPT)/(MAD-WILTPT)))) ->  | R74: =CalcTable[[#This Row],[ETMult]]*CalcTable[[#This Row],[ETb]] ->  | S74: =INDEX(IRR_LIST,CalcTable[[#This Row],[Day of Week]]+1) -> FALSE | T74: 1.5 | U74: =IF(CalcTable[[#This Row],[IrrPrecip]]>=IC_MM,FALSE,TRUE) -> TRUE | V74: TRUE | W74: =IF(AND(IRR_DRIP=FALSE,CalcTable[[#This Row],[IrrHours]]<=0),FALSE,TRUE) ->  | X74: =AND(CalcTable[[#This Row],[IrrDay]],CalcTable[[#This Row],[IrrRain]],CalcTable[[#This Row],[IrrWarm]],CalcTable[[#This Row],[IrrWindy]]) ->  | Z74: =CalcTable[[#This Row],[IrrHours]]/5 ->  | AA74: =IF(CalcTable[[#This Row],[IrrFlag]]=FALSE,0,MAX(0,CalcTable[[#This Row],[VolRednWind]]*(FCAP*IRR_TARGET-CalcTable[[#This Row],[IWC]]))) ->  | AB74: =CalcTable[[#This Row],[IWC]]+CalcTable[[#This Row],[Eff Precip]]+CalcTable[[#This Row],[IrrAmt]]-CalcTable[[#This Row],[AET]] ->  | AC74: =IF(CalcTable[[#This Row],[PWC]]>FCAP,MIN(24*PERC,MIN(SAT,CalcTable[[#This Row],[PWC]])-FCAP),0) ->  | AD74: =IF(CalcTable[[#This Row],[PWC]]>SAT,CalcTable[[#This Row],[PWC]]-SAT,0) ->  | AE74: =CalcTable[[#This Row],[PWC]]-CalcTable[[#This Row],[PercAmt]]-CalcTable[[#This Row],[Runoff]] ->  | AF74: =CalcTable[[#This Row],[IrrAmt]]/1000*CUR_IRR_AREA*10000/IRR_EFF ->  | AI74: 0 | AJ74: 0 | AK74: 0 | AL74: 4.947527739 | AX74: 4.947527739 | AZ74: 145.1274804 | BA74: 223.4502475 | BB74: 230.3610799 | BC74: 19606 | BD74: 4.947527739 | BE74: 145.1274804 | BF74: 237.3823576 | BH74: 0 | BI74: 74 | BJ74: 74 | BK74: 1960-06-24
A75: 1960-06-25 | B75: 1960 | C75: 6 | D75: 177 | E75: 25 | F75: 7 | G75: 8.9 | H75: 4.416941754 | I75: 23 | J75: 16 | K75: 16 | L75: 8.25 | M75: =CalcTable[[#This Row],[IWC]]-AE74 ->  | N75: =IF(CalcTable[[#This Row],[Day of Year]]<123,FCAP,AE74) ->  | O75: =IF(IRR_DRIP,5,COUNTIF('IDET Wind Values'!C59:G59,"<="&IRR_MAXWIND)) ->  | P75: =CalcTable[[#This Row],[ET_o]]*KL ->  | Q75: =IF(WILTPT<=0,1,MAX(0,MIN(1,(CalcTable[[#This Row],[IWC]]-WILTPT)/(MAD-WILTPT)))) ->  | R75: =CalcTable[[#This Row],[ETMult]]*CalcTable[[#This Row],[ETb]] ->  | S75: =INDEX(IRR_LIST,CalcTable[[#This Row],[Day of Week]]+1) -> FALSE | T75: 7.2 | U75: =IF(CalcTable[[#This Row],[IrrPrecip]]>=IC_MM,FALSE,TRUE) -> TRUE | V75: TRUE | W75: =IF(AND(IRR_DRIP=FALSE,CalcTable[[#This Row],[IrrHours]]<=0),FALSE,TRUE) ->  | X75: =AND(CalcTable[[#This Row],[IrrDay]],CalcTable[[#This Row],[IrrRain]],CalcTable[[#This Row],[IrrWarm]],CalcTable[[#This Row],[IrrWindy]]) ->  | Z75: =CalcTable[[#This Row],[IrrHours]]/5 ->  | AA75: =IF(CalcTable[[#This Row],[IrrFlag]]=FALSE,0,MAX(0,CalcTable[[#This Row],[VolRednWind]]*(FCAP*IRR_TARGET-CalcTable[[#This Row],[IWC]]))) ->  | AB75: =CalcTable[[#This Row],[IWC]]+CalcTable[[#This Row],[Eff Precip]]+CalcTable[[#This Row],[IrrAmt]]-CalcTable[[#This Row],[AET]] ->  | AC75: =IF(CalcTable[[#This Row],[PWC]]>FCAP,MIN(24*PERC,MIN(SAT,CalcTable[[#This Row],[PWC]])-FCAP),0) ->  | AD75: =IF(CalcTable[[#This Row],[PWC]]>SAT,CalcTable[[#This Row],[PWC]]-SAT,0) ->  | AE75: =CalcTable[[#This Row],[PWC]]-CalcTable[[#This Row],[PercAmt]]-CalcTable[[#This Row],[Runoff]] ->  | AF75: =CalcTable[[#This Row],[IrrAmt]]/1000*CUR_IRR_AREA*10000/IRR_EFF ->  | AI75: 0 | AJ75: 0 | AK75: 1.343251497 | AL75: 0 | AX75: 1.343251497 | AZ75: 19.70102196 | BA75: 30.33331953 | BB75: 31.27146343 | BC75: 19606 | BD75: 1.343251497 | BE75: 19.70102196 | BF75: 32.22460025 | BH75: 0 | BI75: 75 | BJ75: 75 | BK75: 1960-06-25
A76: 1960-06-26 | B76: 1960 | C76: 6 | D76: 178 | E76: 26 | F76: 1 | G76: 8.9 | H76: 4.549415947 | I76: 18.66666667 | J76: 1.5 | K76: 1.5 | L76: 0 | M76: =CalcTable[[#This Row],[IWC]]-AE75 ->  | N76: =IF(CalcTable[[#This Row],[Day of Year]]<123,FCAP,AE75) ->  | O76: =IF(IRR_DRIP,5,COUNTIF('IDET Wind Values'!C60:G60,"<="&IRR_MAXWIND)) ->  | P76: =CalcTable[[#This Row],[ET_o]]*KL ->  | Q76: =IF(WILTPT<=0,1,MAX(0,MIN(1,(CalcTable[[#This Row],[IWC]]-WILTPT)/(MAD-WILTPT)))) ->  | R76: =CalcTable[[#This Row],[ETMult]]*CalcTable[[#This Row],[ETb]] ->  | S76: =INDEX(IRR_LIST,CalcTable[[#This Row],[Day of Week]]+1) -> TRUE | T76: 23.2 | U76: =IF(CalcTable[[#This Row],[IrrPrecip]]>=IC_MM,FALSE,TRUE) -> FALSE | V76: TRUE | W76: =IF(AND(IRR_DRIP=FALSE,CalcTable[[#This Row],[IrrHours]]<=0),FALSE,TRUE) ->  | X76: =AND(CalcTable[[#This Row],[IrrDay]],CalcTable[[#This Row],[IrrRain]],CalcTable[[#This Row],[IrrWarm]],CalcTable[[#This Row],[IrrWindy]]) ->  | Z76: =CalcTable[[#This Row],[IrrHours]]/5 ->  | AA76: =IF(CalcTable[[#This Row],[IrrFlag]]=FALSE,0,MAX(0,CalcTable[[#This Row],[VolRednWind]]*(FCAP*IRR_TARGET-CalcTable[[#This Row],[IWC]]))) ->  | AB76: =CalcTable[[#This Row],[IWC]]+CalcTable[[#This Row],[Eff Precip]]+CalcTable[[#This Row],[IrrAmt]]-CalcTable[[#This Row],[AET]] ->  | AC76: =IF(CalcTable[[#This Row],[PWC]]>FCAP,MIN(24*PERC,MIN(SAT,CalcTable[[#This Row],[PWC]])-FCAP),0) ->  | AD76: =IF(CalcTable[[#This Row],[PWC]]>SAT,CalcTable[[#This Row],[PWC]]-SAT,0) ->  | AE76: =CalcTable[[#This Row],[PWC]]-CalcTable[[#This Row],[PercAmt]]-CalcTable[[#This Row],[Runoff]] ->  | AF76: =CalcTable[[#This Row],[IrrAmt]]/1000*CUR_IRR_AREA*10000/IRR_EFF ->  | AI76: 0 | AJ76: 0 | AK76: 0 | AL76: 0 | AX76: 0 | AZ76: 0 | BA76: 0 | BB76: 0 | BC76: 19606 | BD76: 0 | BE76: 0 | BF76: 0 | BH76: 0 | BI76: 76 | BJ76: 76 | BK76: 1960-06-26
A77: 1960-06-27 | B77: 1960 | C77: 6 | D77: 179 | E77: 27 | F77: 2 | G77: 12.8 | H77: 6.01892614 | I77: 32.33333333 | J77: 0.3 | K77: 0.3 | L77: 0 | M77: =CalcTable[[#This Row],[IWC]]-AE76 ->  | N77: =IF(CalcTable[[#This Row],[Day of Year]]<123,FCAP,AE76) ->  | O77: =IF(IRR_DRIP,5,COUNTIF('IDET Wind Values'!C61:G61,"<="&IRR_MAXWIND)) ->  | P77: =CalcTable[[#This Row],[ET_o]]*KL ->  | Q77: =IF(WILTPT<=0,1,MAX(0,MIN(1,(CalcTable[[#This Row],[IWC]]-WILTPT)/(MAD-WILTPT)))) ->  | R77: =CalcTable[[#This Row],[ETMult]]*CalcTable[[#This Row],[ETb]] ->  | S77: =INDEX(IRR_LIST,CalcTable[[#This Row],[Day of Week]]+1) -> FALSE | T77: 17.5 | U77: =IF(CalcTable[[#This Row],[IrrPrecip]]>=IC_MM,FALSE,TRUE) -> FALSE | V77: TRUE | W77: =IF(AND(IRR_DRIP=FALSE,CalcTable[[#This Row],[IrrHours]]<=0),FALSE,TRUE) ->  | X77: =AND(CalcTable[[#This Row],[IrrDay]],CalcTable[[#This Row],[IrrRain]],CalcTable[[#This Row],[IrrWarm]],CalcTable[[#This Row],[IrrWindy]]) ->  | Z77: =CalcTable[[#This Row],[IrrHours]]/5 ->  | AA77: =IF(CalcTable[[#This Row],[IrrFlag]]=FALSE,0,MAX(0,CalcTable[[#This Row],[VolRednWind]]*(FCAP*IRR_TARGET-CalcTable[[#This Row],[IWC]]))) ->  | AB77: =CalcTable[[#This Row],[IWC]]+CalcTable[[#This Row],[Eff Precip]]+CalcTable[[#This Row],[IrrAmt]]-CalcTable[[#This Row],[AET]] ->  | AC77: =IF(CalcTable[[#This Row],[PWC]]>FCAP,MIN(24*PERC,MIN(SAT,CalcTable[[#This Row],[PWC]])-FCAP),0) ->  | AD77: =IF(CalcTable[[#This Row],[PWC]]>SAT,CalcTable[[#This Row],[PWC]]-SAT,0) ->  | AE77: =CalcTable[[#This Row],[PWC]]-CalcTable[[#This Row],[PercAmt]]-CalcTable[[#This Row],[Runoff]] ->  | AF77: =CalcTable[[#This Row],[IrrAmt]]/1000*CUR_IRR_AREA*10000/IRR_EFF ->  | AI77: 0 | AJ77: 0 | AK77: 0 | AL77: 0 | AX77: 0 | AZ77: 0 | BA77: 0 | BB77: 0 | BC77: 19606 | BD77: 0 | BE77: 0 | BF77: 0 | BH77: 0 | BI77: 77 | BJ77: 77 | BK77: 1960-06-27
A78: 1960-06-28 | B78: 1960 | C78: 6 | D78: 180 | E78: 28 | F78: 3 | G78: 12.8 | H78: 4.092989219 | I78: 7.5 | J78: 18.5 | K78: 18.5 | L78: 10.125 | M78: =CalcTable[[#This Row],[IWC]]-AE77 ->  | N78: =IF(CalcTable[[#This Row],[Day of Year]]<123,FCAP,AE77) ->  | O78: =IF(IRR_DRIP,5,COUNTIF('IDET Wind Values'!C62:G62,"<="&IRR_MAXWIND)) ->  | P78: =CalcTable[[#This Row],[ET_o]]*KL ->  | Q78: =IF(WILTPT<=0,1,MAX(0,MIN(1,(CalcTable[[#This Row],[IWC]]-WILTPT)/(MAD-WILTPT)))) ->  | R78: =CalcTable[[#This Row],[ETMult]]*CalcTable[[#This Row],[ETb]] ->  | S78: =INDEX(IRR_LIST,CalcTable[[#This Row],[Day of Week]]+1) -> TRUE | T78: 1.8 | U78: =IF(CalcTable[[#This Row],[IrrPrecip]]>=IC_MM,FALSE,TRUE) -> TRUE | V78: TRUE | W78: =IF(AND(IRR_DRIP=FALSE,CalcTable[[#This Row],[IrrHours]]<=0),FALSE,TRUE) ->  | X78: =AND(CalcTable[[#This Row],[IrrDay]],CalcTable[[#This Row],[IrrRain]],CalcTable[[#This Row],[IrrWarm]],CalcTable[[#This Row],[IrrWindy]]) ->  | Z78: =CalcTable[[#This Row],[IrrHours]]/5 ->  | AA78: =IF(CalcTable[[#This Row],[IrrFlag]]=FALSE,0,MAX(0,CalcTable[[#This Row],[VolRednWind]]*(FCAP*IRR_TARGET-CalcTable[[#This Row],[IWC]]))) ->  | AB78: =CalcTable[[#This Row],[IWC]]+CalcTable[[#This Row],[Eff Precip]]+CalcTable[[#This Row],[IrrAmt]]-CalcTable[[#This Row],[AET]] ->  | AC78: =IF(CalcTable[[#This Row],[PWC]]>FCAP,MIN(24*PERC,MIN(SAT,CalcTable[[#This Row],[PWC]])-FCAP),0) ->  | AD78: =IF(CalcTable[[#This Row],[PWC]]>SAT,CalcTable[[#This Row],[PWC]]-SAT,0) ->  | AE78: =CalcTable[[#This Row],[PWC]]-CalcTable[[#This Row],[PercAmt]]-CalcTable[[#This Row],[Runoff]] ->  | AF78: =CalcTable[[#This Row],[IrrAmt]]/1000*CUR_IRR_AREA*10000/IRR_EFF ->  | AI78: 0 | AJ78: 0 | AK78: 0 | AL78: 0 | AX78: 0 | AZ78: 0 | BA78: 0 | BB78: 0 | BC78: 19606 | BD78: 0 | BE78: 0 | BF78: 0 | BH78: 0 | BI78: 78 | BJ78: 78 | BK78: 1960-06-28
A79: 1960-06-29 | B79: 1960 | C79: 6 | D79: 181 | E79: 29 | F79: 4 | G79: 8.9 | H79: 3.574297786 | I79: 18.66666667 | J79: 8.1 | K79: 8.1 | L79: 2.325 | M79: =CalcTable[[#This Row],[IWC]]-AE78 ->  | N79: =IF(CalcTable[[#This Row],[Day of Year]]<123,FCAP,AE78) ->  | O79: =IF(IRR_DRIP,5,COUNTIF('IDET Wind Values'!C63:G63,"<="&IRR_MAXWIND)) ->  | P79: =CalcTable[[#This Row],[ET_o]]*KL ->  | Q79: =IF(WILTPT<=0,1,MAX(0,MIN(1,(CalcTable[[#This Row],[IWC]]-WILTPT)/(MAD-WILTPT)))) ->  | R79: =CalcTable[[#This Row],[ETMult]]*CalcTable[[#This Row],[ETb]] ->  | S79: =INDEX(IRR_LIST,CalcTable[[#This Row],[Day of Week]]+1) -> FALSE | T79: 18.8 | U79: =IF(CalcTable[[#This Row],[IrrPrecip]]>=IC_MM,FALSE,TRUE) -> FALSE | V79: TRUE | W79: =IF(AND(IRR_DRIP=FALSE,CalcTable[[#This Row],[IrrHours]]<=0),FALSE,TRUE) ->  | X79: =AND(CalcTable[[#This Row],[IrrDay]],CalcTable[[#This Row],[IrrRain]],CalcTable[[#This Row],[IrrWarm]],CalcTable[[#This Row],[IrrWindy]]) ->  | Z79: =CalcTable[[#This Row],[IrrHours]]/5 ->  | AA79: =IF(CalcTable[[#This Row],[IrrFlag]]=FALSE,0,MAX(0,CalcTable[[#This Row],[VolRednWind]]*(FCAP*IRR_TARGET-CalcTable[[#This Row],[IWC]]))) ->  | AB79: =CalcTable[[#This Row],[IWC]]+CalcTable[[#This Row],[Eff Precip]]+CalcTable[[#This Row],[IrrAmt]]-CalcTable[[#This Row],[AET]] ->  | AC79: =IF(CalcTable[[#This Row],[PWC]]>FCAP,MIN(24*PERC,MIN(SAT,CalcTable[[#This Row],[PWC]])-FCAP),0) ->  | AD79: =IF(CalcTable[[#This Row],[PWC]]>SAT,CalcTable[[#This Row],[PWC]]-SAT,0) ->  | AE79: =CalcTable[[#This Row],[PWC]]-CalcTable[[#This Row],[PercAmt]]-CalcTable[[#This Row],[Runoff]] ->  | AF79: =CalcTable[[#This Row],[IrrAmt]]/1000*CUR_IRR_AREA*10000/IRR_EFF ->  | AI79: 0 | AJ79: 0 | AK79: 0 | AL79: 0 | AX79: 0 | AZ79: 0 | BA79: 0 | BB79: 0 | BC79: 19606 | BD79: 0 | BE79: 0 | BF79: 0 | BH79: 0 | BI79: 79 | BJ79: 79 | BK79: 1960-06-29
A80: 1960-06-30 | B80: 1960 | C80: 6 | D80: 182 | E80: 30 | F80: 5 | G80: 7.8 | H80: 4.452389903 | I80: 12.83333333 | J80: 0.3 | K80: 0.3 | L80: 0 | M80: =CalcTable[[#This Row],[IWC]]-AE79 ->  | N80: =IF(CalcTable[[#This Row],[Day of Year]]<123,FCAP,AE79) ->  | O80: =IF(IRR_DRIP,5,COUNTIF('IDET Wind Values'!C64:G64,"<="&IRR_MAXWIND)) ->  | P80: =CalcTable[[#This Row],[ET_o]]*KL ->  | Q80: =IF(WILTPT<=0,1,MAX(0,MIN(1,(CalcTable[[#This Row],[IWC]]-WILTPT)/(MAD-WILTPT)))) ->  | R80: =CalcTable[[#This Row],[ETMult]]*CalcTable[[#This Row],[ETb]] ->  | S80: =INDEX(IRR_LIST,CalcTable[[#This Row],[Day of Week]]+1) -> TRUE | T80: 26.6 | U80: =IF(CalcTable[[#This Row],[IrrPrecip]]>=IC_MM,FALSE,TRUE) -> FALSE | V80: TRUE | W80: =IF(AND(IRR_DRIP=FALSE,CalcTable[[#This Row],[IrrHours]]<=0),FALSE,TRUE) ->  | X80: =AND(CalcTable[[#This Row],[IrrDay]],CalcTable[[#This Row],[IrrRain]],CalcTable[[#This Row],[IrrWarm]],CalcTable[[#This Row],[IrrWindy]]) ->  | Z80: =CalcTable[[#This Row],[IrrHours]]/5 ->  | AA80: =IF(CalcTable[[#This Row],[IrrFlag]]=FALSE,0,MAX(0,CalcTable[[#This Row],[VolRednWind]]*(FCAP*IRR_TARGET-CalcTable[[#This Row],[IWC]]))) ->  | AB80: =CalcTable[[#This Row],[IWC]]+CalcTable[[#This Row],[Eff Precip]]+CalcTable[[#This Row],[IrrAmt]]-CalcTable[[#This Row],[AET]] ->  | AC80: =IF(CalcTable[[#This Row],[PWC]]>FCAP,MIN(24*PERC,MIN(SAT,CalcTable[[#This Row],[PWC]])-FCAP),0) ->  | AD80: =IF(CalcTable[[#This Row],[PWC]]>SAT,CalcTable[[#This Row],[PWC]]-SAT,0) ->  | AE80: =CalcTable[[#This Row],[PWC]]-CalcTable[[#This Row],[PercAmt]]-CalcTable[[#This Row],[Runoff]] ->  | AF80: =CalcTable[[#This Row],[IrrAmt]]/1000*CUR_IRR_AREA*10000/IRR_EFF ->  | AI80: 0 | AJ80: 0 | AK80: 0 | AL80: 0 | AX80: 0 | AZ80: 0 | BA80: 0 | BB80: 0 | BC80: 19606 | BD80: 0 | BE80: 0 | BF80: 0 | BH80: 0 | BI80: 80 | BJ80: 80 | BK80: 1960-06-30
A81: 1960-07-01 | B81: 1960 | C81: 7 | D81: 183 | E81: 1 | F81: 6 | G81: 10.6 | H81: 3.56304544 | I81: 7.833333333 | J81: 16 | K81: 16 | L81: 8.25 | M81: =CalcTable[[#This Row],[IWC]]-AE80 ->  | N81: =IF(CalcTable[[#This Row],[Day of Year]]<123,FCAP,AE80) ->  | O81: =IF(IRR_DRIP,5,COUNTIF('IDET Wind Values'!C65:G65,"<="&IRR_MAXWIND)) ->  | P81: =CalcTable[[#This Row],[ET_o]]*KL ->  | Q81: =IF(WILTPT<=0,1,MAX(0,MIN(1,(CalcTable[[#This Row],[IWC]]-WILTPT)/(MAD-WILTPT)))) ->  | R81: =CalcTable[[#This Row],[ETMult]]*CalcTable[[#This Row],[ETb]] ->  | S81: =INDEX(IRR_LIST,CalcTable[[#This Row],[Day of Week]]+1) -> FALSE | T81: 8.4 | U81: =IF(CalcTable[[#This Row],[IrrPrecip]]>=IC_MM,FALSE,TRUE) -> TRUE | V81: TRUE | W81: =IF(AND(IRR_DRIP=FALSE,CalcTable[[#This Row],[IrrHours]]<=0),FALSE,TRUE) ->  | X81: =AND(CalcTable[[#This Row],[IrrDay]],CalcTable[[#This Row],[IrrRain]],CalcTable[[#This Row],[IrrWarm]],CalcTable[[#This Row],[IrrWindy]]) ->  | Z81: =CalcTable[[#This Row],[IrrHours]]/5 ->  | AA81: =IF(CalcTable[[#This Row],[IrrFlag]]=FALSE,0,MAX(0,CalcTable[[#This Row],[VolRednWind]]*(FCAP*IRR_TARGET-CalcTable[[#This Row],[IWC]]))) ->  | AB81: =CalcTable[[#This Row],[IWC]]+CalcTable[[#This Row],[Eff Precip]]+CalcTable[[#This Row],[IrrAmt]]-CalcTable[[#This Row],[AET]] ->  | AC81: =IF(CalcTable[[#This Row],[PWC]]>FCAP,MIN(24*PERC,MIN(SAT,CalcTable[[#This Row],[PWC]])-FCAP),0) ->  | AD81: =IF(CalcTable[[#This Row],[PWC]]>SAT,CalcTable[[#This Row],[PWC]]-SAT,0) ->  | AE81: =CalcTable[[#This Row],[PWC]]-CalcTable[[#This Row],[PercAmt]]-CalcTable[[#This Row],[Runoff]] ->  | AF81: =CalcTable[[#This Row],[IrrAmt]]/1000*CUR_IRR_AREA*10000/IRR_EFF ->  | AI81: 0 | AJ81: 0 | AK81: 0 | AL81: 4.728814447 | AX81: 4.728814447 | AZ81: 138.7118904 | BA81: 213.5722758 | BB81: 220.1776039 | BC81: 19607 | BD81: 4.728814447 | BE81: 138.7118904 | BF81: 226.8884948 | BH81: 0 | BI81: 81 | BJ81: 81 | BK81: 1960-07-01
A82: 1960-07-02 | B82: 1960 | C82: 7 | D82: 184 | E82: 2 | F82: 7 | G82: 8.9 | H82: 4.739979607 | I82: 33.5 | J82: 0 | K82: 0 | L82: 0 | M82: =CalcTable[[#This Row],[IWC]]-AE81 ->  | N82: =IF(CalcTable[[#This Row],[Day of Year]]<123,FCAP,AE81) ->  | O82: =IF(IRR_DRIP,5,COUNTIF('IDET Wind Values'!C66:G66,"<="&IRR_MAXWIND)) ->  | P82: =CalcTable[[#This Row],[ET_o]]*KL ->  | Q82: =IF(WILTPT<=0,1,MAX(0,MIN(1,(CalcTable[[#This Row],[IWC]]-WILTPT)/(MAD-WILTPT)))) ->  | R82: =CalcTable[[#This Row],[ETMult]]*CalcTable[[#This Row],[ETb]] ->  | S82: =INDEX(IRR_LIST,CalcTable[[#This Row],[Day of Week]]+1) -> FALSE | T82: 16.3 | U82: =IF(CalcTable[[#This Row],[IrrPrecip]]>=IC_MM,FALSE,TRUE) -> FALSE | V82: TRUE | W82: =IF(AND(IRR_DRIP=FALSE,CalcTable[[#This Row],[IrrHours]]<=0),FALSE,TRUE) ->  | X82: =AND(CalcTable[[#This Row],[IrrDay]],CalcTable[[#This Row],[IrrRain]],CalcTable[[#This Row],[IrrWarm]],CalcTable[[#This Row],[IrrWindy]]) ->  | Z82: =CalcTable[[#This Row],[IrrHours]]/5 ->  | AA82: =IF(CalcTable[[#This Row],[IrrFlag]]=FALSE,0,MAX(0,CalcTable[[#This Row],[VolRednWind]]*(FCAP*IRR_TARGET-CalcTable[[#This Row],[IWC]]))) ->  | AB82: =CalcTable[[#This Row],[IWC]]+CalcTable[[#This Row],[Eff Precip]]+CalcTable[[#This Row],[IrrAmt]]-CalcTable[[#This Row],[AET]] ->  | AC82: =IF(CalcTable[[#This Row],[PWC]]>FCAP,MIN(24*PERC,MIN(SAT,CalcTable[[#This Row],[PWC]])-FCAP),0) ->  | AD82: =IF(CalcTable[[#This Row],[PWC]]>SAT,CalcTable[[#This Row],[PWC]]-SAT,0) ->  | AE82: =CalcTable[[#This Row],[PWC]]-CalcTable[[#This Row],[PercAmt]]-CalcTable[[#This Row],[Runoff]] ->  | AF82: =CalcTable[[#This Row],[IrrAmt]]/1000*CUR_IRR_AREA*10000/IRR_EFF ->  | AI82: 0 | AJ82: 0 | AK82: 0 | AL82: 0 | AX82: 0 | AZ82: 0 | BA82: 0 | BB82: 0 | BC82: 19607 | BD82: 0 | BE82: 0 | BF82: 0 | BH82: 0 | BI82: 82 | BJ82: 82 | BK82: 1960-07-02
A83: 1960-07-03 | B83: 1960 | C83: 7 | D83: 185 | E83: 3 | F83: 1 | G83: 9.4 | H83: 4.499020163 | I83: 22.33333333 | J83: 1.1 | K83: 1.1 | L83: 0 | M83: =CalcTable[[#This Row],[IWC]]-AE82 ->  | N83: =IF(CalcTable[[#This Row],[Day of Year]]<123,FCAP,AE82) ->  | O83: =IF(IRR_DRIP,5,COUNTIF('IDET Wind Values'!C67:G67,"<="&IRR_MAXWIND)) ->  | P83: =CalcTable[[#This Row],[ET_o]]*KL ->  | Q83: =IF(WILTPT<=0,1,MAX(0,MIN(1,(CalcTable[[#This Row],[IWC]]-WILTPT)/(MAD-WILTPT)))) ->  | R83: =CalcTable[[#This Row],[ETMult]]*CalcTable[[#This Row],[ETb]] ->  | S83: =INDEX(IRR_LIST,CalcTable[[#This Row],[Day of Week]]+1) -> TRUE | T83: 16 | U83: =IF(CalcTable[[#This Row],[IrrPrecip]]>=IC_MM,FALSE,TRUE) -> FALSE | V83: TRUE | W83: =IF(AND(IRR_DRIP=FALSE,CalcTable[[#This Row],[IrrHours]]<=0),FALSE,TRUE) ->  | X83: =AND(CalcTable[[#This Row],[IrrDay]],CalcTable[[#This Row],[IrrRain]],CalcTable[[#This Row],[IrrWarm]],CalcTable[[#This Row],[IrrWindy]]) ->  | Z83: =CalcTable[[#This Row],[IrrHours]]/5 ->  | AA83: =IF(CalcTable[[#This Row],[IrrFlag]]=FALSE,0,MAX(0,CalcTable[[#This Row],[VolRednWind]]*(FCAP*IRR_TARGET-CalcTable[[#This Row],[IWC]]))) ->  | AB83: =CalcTable[[#This Row],[IWC]]+CalcTable[[#This Row],[Eff Precip]]+CalcTable[[#This Row],[IrrAmt]]-CalcTable[[#This Row],[AET]] ->  | AC83: =IF(CalcTable[[#This Row],[PWC]]>FCAP,MIN(24*PERC,MIN(SAT,CalcTable[[#This Row],[PWC]])-FCAP),0) ->  | AD83: =IF(CalcTable[[#This Row],[PWC]]>SAT,CalcTable[[#This Row],[PWC]]-SAT,0) ->  | AE83: =CalcTable[[#This Row],[PWC]]-CalcTable[[#This Row],[PercAmt]]-CalcTable[[#This Row],[Runoff]] ->  | AF83: =CalcTable[[#This Row],[IrrAmt]]/1000*CUR_IRR_AREA*10000/IRR_EFF ->  | AI83: 0 | AJ83: 0 | AK83: 0 | AL83: 0 | AX83: 0 | AZ83: 0 | BA83: 0 | BB83: 0 | BC83: 19607 | BD83: 0 | BE83: 0 | BF83: 0 | BH83: 0 | BI83: 83 | BJ83: 83 | BK83: 1960-07-03
A84: 1960-07-04 | B84: 1960 | C84: 7 | D84: 186 | E84: 4 | F84: 2 | G84: 7.2 | H84: 4.702458737 | I84: 12.83333333 | J84: 0 | K84: =J84*PRECIP_ADJUST -> 0 | L84: =IF(K84>=EFF_PRECIP,EFF_MULT*(K84-EFF_PRECIP),0) -> 0 | M84: =CalcTable[[#This Row],[IWC]]-AE83 ->  | N84: =IF(CalcTable[[#This Row],[Day of Year]]<123,FCAP,AE83) ->  | O84: =IF(IRR_DRIP,5,COUNTIF('IDET Wind Values'!C68:G68,"<="&IRR_MAXWIND)) ->  | P84: =CalcTable[[#This Row],[ET_o]]*KL ->  | Q84: =IF(WILTPT<=0,1,MAX(0,MIN(1,(CalcTable[[#This Row],[IWC]]-WILTPT)/(MAD-WILTPT)))) ->  | R84: =CalcTable[[#This Row],[ETMult]]*CalcTable[[#This Row],[ETb]] ->  | S84: =INDEX(IRR_LIST,CalcTable[[#This Row],[Day of Week]]+1) -> FALSE | T84: =SUM(OFFSET(K84,-IC_DAYS,0,IC_DAYS,1)) -> 1.1 | U84: =IF(CalcTable[[#This Row],[IrrPrecip]]>=IC_MM,FALSE,TRUE) -> TRUE | V84: =IF(G85<IRR_TEMP,FALSE,TRUE) -> TRUE | W84: =IF(AND(IRR_DRIP=FALSE,CalcTable[[#This Row],[IrrHours]]<=0),FALSE,TRUE) ->  | X84: =AND(CalcTable[[#This Row],[IrrDay]],CalcTable[[#This Row],[IrrRain]],CalcTable[[#This Row],[IrrWarm]],CalcTable[[#This Row],[IrrWindy]]) ->  | Y84: =IF(AA83<=0,FALSE,TRUE) ->  | Z84: =CalcTable[[#This Row],[IrrHours]]/5 ->  | AA84: =IF(CalcTable[[#This Row],[IrrFlag]]=FALSE,0,MAX(0,CalcTable[[#This Row],[VolRednWind]]*(FCAP*IRR_TARGET-CalcTable[[#This Row],[IWC]]))) ->  | AB84: =CalcTable[[#This Row],[IWC]]+CalcTable[[#This Row],[Eff Precip]]+CalcTable[[#This Row],[IrrAmt]]-CalcTable[[#This Row],[AET]] ->  | AC84: =IF(CalcTable[[#This Row],[PWC]]>FCAP,MIN(24*PERC,MIN(SAT,CalcTable[[#This Row],[PWC]])-FCAP),0) ->  | AD84: =IF(CalcTable[[#This Row],[PWC]]>SAT,CalcTable[[#This Row],[PWC]]-SAT,0) ->  | AE84: =CalcTable[[#This Row],[PWC]]-CalcTable[[#This Row],[PercAmt]]-CalcTable[[#This Row],[Runoff]] ->  | AF84: =CalcTable[[#This Row],[IrrAmt]]/1000*CUR_IRR_AREA*10000/IRR_EFF ->  | AI84: 0 | AJ84: 0 | AK84: 4.805669924 | AL84: 7.361449874 | AX84: 12.1671198 | AZ84: =SUMPRODUCT(AI84:AW84,CONVERSION) -> 286.4190219 | BA84: =SUMPRODUCT($AI84:$AW84,CONVERSION,APP_DEMAND) -> 440.994367 | BB84: =SUMPRODUCT($AI84:$AW84,CONVERSION,PUMP_DEMAND) -> 454.633368 | BC84: =B84*10+C84 -> 19607 | BD84: =INDEX(AI84:AX84,PLOT_AREA) -> 12.1671198 | BE84: =IF(PLOT_AREA<=AREA_COUNT,INDEX(AI84:AW84,PLOT_AREA)*INDEX(CONVERSION,PLOT_AREA),AZ84) -> 286.4190219 | BF84: 468.4903403 | BH84: =IF(BC84<PLOT_FROM,-1,IF(BC84>PLOT_TO,1,0)) -> 0 | BI84: 84 | BJ84: 84 | BK84: 1960-07-04 | BL84: =WILTPT ->  | BM84: =SAT ->  | BN84: =FCAP -> 
A85: 1960-07-05 | B85: 1960 | C85: 7 | D85: 187 | E85: 5 | F85: 3 | G85: 8.9 | H85: 5.25930742 | I85: 6.166666667 | J85: 0 | K85: 0 | L85: 0 | M85: =CalcTable[[#This Row],[IWC]]-AE84 ->  | N85: =IF(CalcTable[[#This Row],[Day of Year]]<123,FCAP,AE84) ->  | O85: =IF(IRR_DRIP,5,COUNTIF('IDET Wind Values'!C69:G69,"<="&IRR_MAXWIND)) ->  | P85: =CalcTable[[#This Row],[ET_o]]*KL ->  | Q85: =IF(WILTPT<=0,1,MAX(0,MIN(1,(CalcTable[[#This Row],[IWC]]-WILTPT)/(MAD-WILTPT)))) ->  | R85: =CalcTable[[#This Row],[ETMult]]*CalcTable[[#This Row],[ETb]] ->  | S85: =INDEX(IRR_LIST,CalcTable[[#This Row],[Day of Week]]+1) -> TRUE | T85: 1.1 | U85: =IF(CalcTable[[#This Row],[IrrPrecip]]>=IC_MM,FALSE,TRUE) -> TRUE | V85: TRUE | W85: =IF(AND(IRR_DRIP=FALSE,CalcTable[[#This Row],[IrrHours]]<=0),FALSE,TRUE) ->  | X85: =AND(CalcTable[[#This Row],[IrrDay]],CalcTable[[#This Row],[IrrRain]],CalcTable[[#This Row],[IrrWarm]],CalcTable[[#This Row],[IrrWindy]]) ->  | Z85: =CalcTable[[#This Row],[IrrHours]]/5 ->  | AA85: =IF(CalcTable[[#This Row],[IrrFlag]]=FALSE,0,MAX(0,CalcTable[[#This Row],[VolRednWind]]*(FCAP*IRR_TARGET-CalcTable[[#This Row],[IWC]]))) ->  | AB85: =CalcTable[[#This Row],[IWC]]+CalcTable[[#This Row],[Eff Precip]]+CalcTable[[#This Row],[IrrAmt]]-CalcTable[[#This Row],[AET]] ->  | AC85: =IF(CalcTable[[#This Row],[PWC]]>FCAP,MIN(24*PERC,MIN(SAT,CalcTable[[#This Row],[PWC]])-FCAP),0) ->  | AD85: =IF(CalcTable[[#This Row],[PWC]]>SAT,CalcTable[[#This Row],[PWC]]-SAT,0) ->  | AE85: =CalcTable[[#This Row],[PWC]]-CalcTable[[#This Row],[PercAmt]]-CalcTable[[#This Row],[Runoff]] ->  | AF85: =CalcTable[[#This Row],[IrrAmt]]/1000*CUR_IRR_AREA*10000/IRR_EFF ->  | AI85: 5.266808382 | AJ85: 8.879154824 | AK85: 0 | AL85: 0 | AX85: =SUM(AI85:AW85) -> 14.14596321 | AZ85: 337.7017311 | BA85: 548.5749105 | BB85: 567.8361066 | BC85: 19607 | BD85: 14.14596321 | BE85: 337.7017311 | BF85: =BE85*BF$17 -> 552.3725272 | BH85: 0 | BI85: 85 | BJ85: =IF(BH85=0,BI85,"") -> 85 | BK85: =A85 -> 1960-07-05
A86: 1960-07-06 | B86: 1960 | C86: 7 | D86: 188 | E86: 6 | F86: 4 | G86: 10.6 | H86: 6.027867429 | I86: 6.5 | J86: 0 | K86: 0 | L86: 0 | M86: =CalcTable[[#This Row],[IWC]]-AE85 ->  | N86: =IF(CalcTable[[#This Row],[Day of Year]]<123,FCAP,AE85) ->  | O86: =IF(IRR_DRIP,5,COUNTIF('IDET Wind Values'!C70:G70,"<="&IRR_MAXWIND)) ->  | P86: =CalcTable[[#This Row],[ET_o]]*KL ->  | Q86: =IF(WILTPT<=0,1,MAX(0,MIN(1,(CalcTable[[#This Row],[IWC]]-WILTPT)/(MAD-WILTPT)))) ->  | R86: =CalcTable[[#This Row],[ETMult]]*CalcTable[[#This Row],[ETb]] ->  | S86: =INDEX(IRR_LIST,CalcTable[[#This Row],[Day of Week]]+1) -> FALSE | T86: 0 | U86: =IF(CalcTable[[#This Row],[IrrPrecip]]>=IC_MM,FALSE,TRUE) -> TRUE | V86: TRUE | W86: =IF(AND(IRR_DRIP=FALSE,CalcTable[[#This Row],[IrrHours]]<=0),FALSE,TRUE) ->  | X86: =AND(CalcTable[[#This Row],[IrrDay]],CalcTable[[#This Row],[IrrRain]],CalcTable[[#This Row],[IrrWarm]],CalcTable[[#This Row],[IrrWindy]]) ->  | Z86: =CalcTable[[#This Row],[IrrHours]]/5 ->  | AA86: =IF(CalcTable[[#This Row],[IrrFlag]]=FALSE,0,MAX(0,CalcTable[[#This Row],[VolRednWind]]*(FCAP*IRR_TARGET-CalcTable[[#This Row],[IWC]]))) ->  | AB86: =CalcTable[[#This Row],[IWC]]+CalcTable[[#This Row],[Eff Precip]]+CalcTable[[#This Row],[IrrAmt]]-CalcTable[[#This Row],[AET]] ->  | AC86: =IF(CalcTable[[#This Row],[PWC]]>FCAP,MIN(24*PERC,MIN(SAT,CalcTable[[#This Row],[PWC]])-FCAP),0) ->  | AD86: =IF(CalcTable[[#This Row],[PWC]]>SAT,CalcTable[[#This Row],[PWC]]-SAT,0) ->  | AE86: =CalcTable[[#This Row],[PWC]]-CalcTable[[#This Row],[PercAmt]]-CalcTable[[#This Row],[Runoff]] ->  | AF86: =CalcTable[[#This Row],[IrrAmt]]/1000*CUR_IRR_AREA*10000/IRR_EFF ->  | AI86: 0 | AJ86: 0 | AK86: 6.647279382 | AL86: 5.449916807 | AX86: 12.09719619 | AZ86: 257.3576573 | BA86: 396.2490914 | BB86: 408.5042179 | BC86: 19607 | BD86: 12.09719619 | BE86: 257.3576573 | BF86: 420.9551994 | BH86: 0 | BI86: =BI85+1 -> 86 | BJ86: 86 | BK86: 1960-07-06
A87: 1960-07-07 | B87: 1960 | C87: 7 | D87: 189 | E87: 7 | F87: 5 | G87: 13.3 | H87: 7.145477449 | I87: 3.333333333 | J87: 0 | K87: 0 | L87: 0 | M87: =CalcTable[[#This Row],[IWC]]-AE86 ->  | N87: =IF(CalcTable[[#This Row],[Day of Year]]<123,FCAP,AE86) ->  | O87: =IF(IRR_DRIP,5,COUNTIF('IDET Wind Values'!C71:G71,"<="&IRR_MAXWIND)) ->  | P87: =CalcTable[[#This Row],[ET_o]]*KL ->  | Q87: =IF(WILTPT<=0,1,MAX(0,MIN(1,(CalcTable[[#This Row],[IWC]]-WILTPT)/(MAD-WILTPT)))) ->  | R87: =CalcTable[[#This Row],[ETMult]]*CalcTable[[#This Row],[ETb]] ->  | S87: =INDEX(IRR_LIST,CalcTable[[#This Row],[Day of Week]]+1) -> TRUE | T87: 0 | U87: =IF(CalcTable[[#This Row],[IrrPrecip]]>=IC_MM,FALSE,TRUE) -> TRUE | V87: TRUE | W87: =IF(AND(IRR_DRIP=FALSE,CalcTable[[#This Row],[IrrHours]]<=0),FALSE,TRUE) ->  | X87: =AND(CalcTable[[#This Row],[IrrDay]],CalcTable[[#This Row],[IrrRain]],CalcTable[[#This Row],[IrrWarm]],CalcTable[[#This Row],[IrrWindy]]) ->  | Z87: =CalcTable[[#This Row],[IrrHours]]/5 ->  | AA87: =IF(CalcTable[[#This Row],[IrrFlag]]=FALSE,0,MAX(0,CalcTable[[#This Row],[VolRednWind]]*(FCAP*IRR_TARGET-CalcTable[[#This Row],[IWC]]))) ->  | AB87: =CalcTable[[#This Row],[IWC]]+CalcTable[[#This Row],[Eff Precip]]+CalcTable[[#This Row],[IrrAmt]]-CalcTable[[#This Row],[AET]] ->  | AC87: =IF(CalcTable[[#This Row],[PWC]]>FCAP,MIN(24*PERC,MIN(SAT,CalcTable[[#This Row],[PWC]])-FCAP),0) ->  | AD87: =IF(CalcTable[[#This Row],[PWC]]>SAT,CalcTable[[#This Row],[PWC]]-SAT,0) ->  | AE87: =CalcTable[[#This Row],[PWC]]-CalcTable[[#This Row],[PercAmt]]-CalcTable[[#This Row],[Runoff]] ->  | AF87: =CalcTable[[#This Row],[IrrAmt]]/1000*CUR_IRR_AREA*10000/IRR_EFF ->  | AI87: 2.857418176 | AJ87: 4.16132915 | AK87: 0 | AL87: 0 | AX87: 7.018747326 | AZ87: 163.974455 | BA87: 265.8824136 | BB87: 275.1811441 | BC87: 19607 | BD87: 7.018747326 | BE87: 163.974455 | BF87: 268.2100083 | BH87: 0 | BI87: 87 | BJ87: 87 | BK87: 1960-07-07
A88: 1960-07-08 | B88: 1960 | C88: 7 | D88: 190 | E88: 8 | F88: 6 | G88: 10 | H88: 6.420191815 | I88: 25 | J88: 0 | K88: 0 | L88: 0 | M88: =CalcTable[[#This Row],[IWC]]-AE87 ->  | N88: =IF(CalcTable[[#This Row],[Day of Year]]<123,FCAP,AE87) ->  | O88: =IF(IRR_DRIP,5,COUNTIF('IDET Wind Values'!C72:G72,"<="&IRR_MAXWIND)) ->  | P88: =CalcTable[[#This Row],[ET_o]]*KL ->  | Q88: =IF(WILTPT<=0,1,MAX(0,MIN(1,(CalcTable[[#This Row],[IWC]]-WILTPT)/(MAD-WILTPT)))) ->  | R88: =CalcTable[[#This Row],[ETMult]]*CalcTable[[#This Row],[ETb]] ->  | S88: =INDEX(IRR_LIST,CalcTable[[#This Row],[Day of Week]]+1) -> FALSE | T88: 0 | U88: =IF(CalcTable[[#This Row],[IrrPrecip]]>=IC_MM,FALSE,TRUE) -> TRUE | V88: TRUE | W88: =IF(AND(IRR_DRIP=FALSE,CalcTable[[#This Row],[IrrHours]]<=0),FALSE,TRUE) ->  | X88: =AND(CalcTable[[#This Row],[IrrDay]],CalcTable[[#This Row],[IrrRain]],CalcTable[[#This Row],[IrrWarm]],CalcTable[[#This Row],[IrrWindy]]) ->  | Z88: =CalcTable[[#This Row],[IrrHours]]/5 ->  | AA88: =IF(CalcTable[[#This Row],[IrrFlag]]=FALSE,0,MAX(0,CalcTable[[#This Row],[VolRednWind]]*(FCAP*IRR_TARGET-CalcTable[[#This Row],[IWC]]))) ->  | AB88: =CalcTable[[#This Row],[IWC]]+CalcTable[[#This Row],[Eff Precip]]+CalcTable[[#This Row],[IrrAmt]]-CalcTable[[#This Row],[AET]] ->  | AC88: =IF(CalcTable[[#This Row],[PWC]]>FCAP,MIN(24*PERC,MIN(SAT,CalcTable[[#This Row],[PWC]])-FCAP),0) ->  | AD88: =IF(CalcTable[[#This Row],[PWC]]>SAT,CalcTable[[#This Row],[PWC]]-SAT,0) ->  | AE88: =CalcTable[[#This Row],[PWC]]-CalcTable[[#This Row],[PercAmt]]-CalcTable[[#This Row],[Runoff]] ->  | AF88: =CalcTable[[#This Row],[IrrAmt]]/1000*CUR_IRR_AREA*10000/IRR_EFF ->  | AI88: 0 | AJ88: 0 | AK88: 0 | AL88: 7.245339683 | AX88: 7.245339683 | AZ88: 212.529964 | BA88: 327.2286748 | BB88: 337.3491493 | BC88: 19607 | BD88: 7.245339683 | BE88: 212.529964 | BF88: 347.6313638 | BH88: 0 | BI88: 88 | BJ88: 88 | BK88: 1960-07-08
A89: 1960-07-09 | B89: 1960 | C89: 7 | D89: 191 | E89: 9 | F89: 7 | G89: 9.4 | H89: 5.506680498 | I89: 24.66666667 | J89: 0 | K89: 0 | L89: 0 | M89: =CalcTable[[#This Row],[IWC]]-AE88 ->  | N89: =IF(CalcTable[[#This Row],[Day of Year]]<123,FCAP,AE88) ->  | O89: =IF(IRR_DRIP,5,COUNTIF('IDET Wind Values'!C73:G73,"<="&IRR_MAXWIND)) ->  | P89: =CalcTable[[#This Row],[ET_o]]*KL ->  | Q89: =IF(WILTPT<=0,1,MAX(0,MIN(1,(CalcTable[[#This Row],[IWC]]-WILTPT)/(MAD-WILTPT)))) ->  | R89: =CalcTable[[#This Row],[ETMult]]*CalcTable[[#This Row],[ETb]] ->  | S89: =INDEX(IRR_LIST,CalcTable[[#This Row],[Day of Week]]+1) -> FALSE | T89: 0 | U89: =IF(CalcTable[[#This Row],[IrrPrecip]]>=IC_MM,FALSE,TRUE) -> TRUE | V89: TRUE | W89: =IF(AND(IRR_DRIP=FALSE,CalcTable[[#This Row],[IrrHours]]<=0),FALSE,TRUE) ->  | X89: =AND(CalcTable[[#This Row],[IrrDay]],CalcTable[[#This Row],[IrrRain]],CalcTable[[#This Row],[IrrWarm]],CalcTable[[#This Row],[IrrWindy]]) ->  | Z89: =CalcTable[[#This Row],[IrrHours]]/5 ->  | AA89: =IF(CalcTable[[#This Row],[IrrFlag]]=FALSE,0,MAX(0,CalcTable[[#This Row],[VolRednWind]]*(FCAP*IRR_TARGET-CalcTable[[#This Row],[IWC]]))) ->  | AB89: =CalcTable[[#This Row],[IWC]]+CalcTable[[#This Row],[Eff Precip]]+CalcTable[[#This Row],[IrrAmt]]-CalcTable[[#This Row],[AET]] ->  | AC89: =IF(CalcTable[[#This Row],[PWC]]>FCAP,MIN(24*PERC,MIN(SAT,CalcTable[[#This Row],[PWC]])-FCAP),0) ->  | AD89: =IF(CalcTable[[#This Row],[PWC]]>SAT,CalcTable[[#This Row],[PWC]]-SAT,0) ->  | AE89: =CalcTable[[#This Row],[PWC]]-CalcTable[[#This Row],[PercAmt]]-CalcTable[[#This Row],[Runoff]] ->  | AF89: =CalcTable[[#This Row],[IrrAmt]]/1000*CUR_IRR_AREA*10000/IRR_EFF ->  | AI89: 0 | AJ89: 0 | AK89: 4.428132327 | AL89: 0 | AX89: 4.428132327 | AZ89: 64.94594079 | BA89: 99.99613106 | BB89: 103.0887949 | BC89: 19607 | BD89: 4.428132327 | BE89: 64.94594079 | BF89: 106.2308841 | BH89: 0 | BI89: 89 | BJ89: 89 | BK89: 1960-07-09
A90: 1960-07-10 | B90: 1960 | C90: 7 | D90: 192 | E90: 10 | F90: 1 | G90: 11.1 | H90: 6.265598179 | I90: 9.166666667 | J90: 0 | K90: 0 | L90: 0 | M90: =CalcTable[[#This Row],[IWC]]-AE89 ->  | N90: =IF(CalcTable[[#This Row],[Day of Year]]<123,FCAP,AE89) ->  | O90: =IF(IRR_DRIP,5,COUNTIF('IDET Wind Values'!C74:G74,"<="&IRR_MAXWIND)) ->  | P90: =CalcTable[[#This Row],[ET_o]]*KL ->  | Q90: =IF(WILTPT<=0,1,MAX(0,MIN(1,(CalcTable[[#This Row],[IWC]]-WILTPT)/(MAD-WILTPT)))) ->  | R90: =CalcTable[[#This Row],[ETMult]]*CalcTable[[#This Row],[ETb]] ->  | S90: =INDEX(IRR_LIST,CalcTable[[#This Row],[Day of Week]]+1) -> TRUE | T90: 0 | U90: =IF(CalcTable[[#This Row],[IrrPrecip]]>=IC_MM,FALSE,TRUE) -> TRUE | V90: TRUE | W90: =IF(AND(IRR_DRIP=FALSE,CalcTable[[#This Row],[IrrHours]]<=0),FALSE,TRUE) ->  | X90: =AND(CalcTable[[#This Row],[IrrDay]],CalcTable[[#This Row],[IrrRain]],CalcTable[[#This Row],[IrrWarm]],CalcTable[[#This Row],[IrrWindy]]) ->  | Z90: =CalcTable[[#This Row],[IrrHours]]/5 ->  | AA90: =IF(CalcTable[[#This Row],[IrrFlag]]=FALSE,0,MAX(0,CalcTable[[#This Row],[VolRednWind]]*(FCAP*IRR_TARGET-CalcTable[[#This Row],[IWC]]))) ->  | AB90: =CalcTable[[#This Row],[IWC]]+CalcTable[[#This Row],[Eff Precip]]+CalcTable[[#This Row],[IrrAmt]]-CalcTable[[#This Row],[AET]] ->  | AC90: =IF(CalcTable[[#This Row],[PWC]]>FCAP,MIN(24*PERC,MIN(SAT,CalcTable[[#This Row],[PWC]])-FCAP),0) ->  | AD90: =IF(CalcTable[[#This Row],[PWC]]>SAT,CalcTable[[#This Row],[PWC]]-SAT,0) ->  | AE90: =CalcTable[[#This Row],[PWC]]-CalcTable[[#This Row],[PercAmt]]-CalcTable[[#This Row],[Runoff]] ->  | AF90: =CalcTable[[#This Row],[IrrAmt]]/1000*CUR_IRR_AREA*10000/IRR_EFF ->  | AI90: 0 | AJ90: 0 | AK90: 0 | AL90: 0 | AX90: 0 | AZ90: 0 | BA90: 0 | BB90: 0 | BC90: 19607 | BD90: 0 | BE90: 0 | BF90: 0 | BH90: 0 | BI90: 90 | BJ90: 90 | BK90: 1960-07-10
A91: 1960-07-11 | B91: 1960 | C91: 7 | D91: 193 | E91: 11 | F91: 2 | G91: 8.3 | H91: 4.932911424 | I91: 20.16666667 | J91: 0 | K91: 0 | L91: 0 | M91: =CalcTable[[#This Row],[IWC]]-AE90 ->  | N91: =IF(CalcTable[[#This Row],[Day of Year]]<123,FCAP,AE90) ->  | O91: =IF(IRR_DRIP,5,COUNTIF('IDET Wind Values'!C75:G75,"<="&IRR_MAXWIND)) ->  | P91: =CalcTable[[#This Row],[ET_o]]*KL ->  | Q91: =IF(WILTPT<=0,1,MAX(0,MIN(1,(CalcTable[[#This Row],[IWC]]-WILTPT)/(MAD-WILTPT)))) ->  | R91: =CalcTable[[#This Row],[ETMult]]*CalcTable[[#This Row],[ETb]] ->  | S91: =INDEX(IRR_LIST,CalcTable[[#This Row],[Day of Week]]+1) -> FALSE | T91: 0 | U91: =IF(CalcTable[[#This Row],[IrrPrecip]]>=IC_MM,FALSE,TRUE) -> TRUE | V91: TRUE | W91: =IF(AND(IRR_DRIP=FALSE,CalcTable[[#This Row],[IrrHours]]<=0),FALSE,TRUE) ->  | X91: =AND(CalcTable[[#This Row],[IrrDay]],CalcTable[[#This Row],[IrrRain]],CalcTable[[#This Row],[IrrWarm]],CalcTable[[#This Row],[IrrWindy]]) ->  | Z91: =CalcTable[[#This Row],[IrrHours]]/5 ->  | AA91: =IF(CalcTable[[#This Row],[IrrFlag]]=FALSE,0,MAX(0,CalcTable[[#This Row],[VolRednWind]]*(FCAP*IRR_TARGET-CalcTable[[#This Row],[IWC]]))) ->  | AB91: =CalcTable[[#This Row],[IWC]]+CalcTable[[#This Row],[Eff Precip]]+CalcTable[[#This Row],[IrrAmt]]-CalcTable[[#This Row],[AET]] ->  | AC91: =IF(CalcTable[[#This Row],[PWC]]>FCAP,MIN(24*PERC,MIN(SAT,CalcTable[[#This Row],[PWC]])-FCAP),0) ->  | AD91: =IF(CalcTable[[#This Row],[PWC]]>SAT,CalcTable[[#This Row],[PWC]]-SAT,0) ->  | AE91: =CalcTable[[#This Row],[PWC]]-CalcTable[[#This Row],[PercAmt]]-CalcTable[[#This Row],[Runoff]] ->  | AF91: =CalcTable[[#This Row],[IrrAmt]]/1000*CUR_IRR_AREA*10000/IRR_EFF ->  | AI91: 0 | AJ91: 0 | AK91: 10.59146661 | AL91: 10.00585877 | AX91: 20.59732538 | AZ91: 448.8467008 | BA91: 691.0814282 | BB91: 712.4550807 | BC91: 19607 | BD91: 20.59732538 | BE91: 448.8467008 | BF91: 734.1703155 | BH91: 0 | BI91: 91 | BJ91: 91 | BK91: 1960-07-11
A92: 1960-07-12 | B92: 1960 | C92: 7 | D92: 194 | E92: 12 | F92: 3 | G92: 11.1 | H92: 4.734001131 | I92: 3.333333333 | J92: 0 | K92: 0 | L92: 0 | M92: =CalcTable[[#This Row],[IWC]]-AE91 ->  | N92: =IF(CalcTable[[#This Row],[Day of Year]]<123,FCAP,AE91) ->  | O92: =IF(IRR_DRIP,5,COUNTIF('IDET Wind Values'!C76:G76,"<="&IRR_MAXWIND)) ->  | P92: =CalcTable[[#This Row],[ET_o]]*KL ->  | Q92: =IF(WILTPT<=0,1,MAX(0,MIN(1,(CalcTable[[#This Row],[IWC]]-WILTPT)/(MAD-WILTPT)))) ->  | R92: =CalcTable[[#This Row],[ETMult]]*CalcTable[[#This Row],[ETb]] ->  | S92: =INDEX(IRR_LIST,CalcTable[[#This Row],[Day of Week]]+1) -> TRUE | T92: 0 | U92: =IF(CalcTable[[#This Row],[IrrPrecip]]>=IC_MM,FALSE,TRUE) -> TRUE | V92: TRUE | W92: =IF(AND(IRR_DRIP=FALSE,CalcTable[[#This Row],[IrrHours]]<=0),FALSE,TRUE) ->  | X92: =AND(CalcTable[[#This Row],[IrrDay]],CalcTable[[#This Row],[IrrRain]],CalcTable[[#This Row],[IrrWarm]],CalcTable[[#This Row],[IrrWindy]]) ->  | Z92: =CalcTable[[#This Row],[IrrHours]]/5 ->  | AA92: =IF(CalcTable[[#This Row],[IrrFlag]]=FALSE,0,MAX(0,CalcTable[[#This Row],[VolRednWind]]*(FCAP*IRR_TARGET-CalcTable[[#This Row],[IWC]]))) ->  | AB92: =CalcTable[[#This Row],[IWC]]+CalcTable[[#This Row],[Eff Precip]]+CalcTable[[#This Row],[IrrAmt]]-CalcTable[[#This Row],[AET]] ->  | AC92: =IF(CalcTable[[#This Row],[PWC]]>FCAP,MIN(24*PERC,MIN(SAT,CalcTable[[#This Row],[PWC]])-FCAP),0) ->  | AD92: =IF(CalcTable[[#This Row],[PWC]]>SAT,CalcTable[[#This Row],[PWC]]-SAT,0) ->  | AE92: =CalcTable[[#This Row],[PWC]]-CalcTable[[#This Row],[PercAmt]]-CalcTable[[#This Row],[Runoff]] ->  | AF92: =CalcTable[[#This Row],[IrrAmt]]/1000*CUR_IRR_AREA*10000/IRR_EFF ->  | AI92: 0 | AJ92: 0 | AK92: 0 | AL92: 0 | AX92: 0 | AZ92: 0 | BA92: 0 | BB92: 0 | BC92: 19607 | BD92: 0 | BE92: 0 | BF92: 0 | BH92: 0 | BI92: 92 | BJ92: 92 | BK92: 1960-07-12
A93: 1960-07-13 | B93: 1960 | C93: 7 | D93: 195 | E93: 13 | F93: 4 | G93: 11.7 | H93: 6.345263127 | I93: 15.16666667 | J93: 0 | K93: 0 | L93: 0 | M93: =CalcTable[[#This Row],[IWC]]-AE92 ->  | N93: =IF(CalcTable[[#This Row],[Day of Year]]<123,FCAP,AE92) ->  | O93: =IF(IRR_DRIP,5,COUNTIF('IDET Wind Values'!C77:G77,"<="&IRR_MAXWIND)) ->  | P93: =CalcTable[[#This Row],[ET_o]]*KL ->  | Q93: =IF(WILTPT<=0,1,MAX(0,MIN(1,(CalcTable[[#This Row],[IWC]]-WILTPT)/(MAD-WILTPT)))) ->  | R93: =CalcTable[[#This Row],[ETMult]]*CalcTable[[#This Row],[ETb]] ->  | S93: =INDEX(IRR_LIST,CalcTable[[#This Row],[Day of Week]]+1) -> FALSE | T93: 0 | U93: =IF(CalcTable[[#This Row],[IrrPrecip]]>=IC_MM,FALSE,TRUE) -> TRUE | V93: TRUE | W93: =IF(AND(IRR_DRIP=FALSE,CalcTable[[#This Row],[IrrHours]]<=0),FALSE,TRUE) ->  | X93: =AND(CalcTable[[#This Row],[IrrDay]],CalcTable[[#This Row],[IrrRain]],CalcTable[[#This Row],[IrrWarm]],CalcTable[[#This Row],[IrrWindy]]) ->  | Z93: =CalcTable[[#This Row],[IrrHours]]/5 ->  | AA93: =IF(CalcTable[[#This Row],[IrrFlag]]=FALSE,0,MAX(0,CalcTable[[#This Row],[VolRednWind]]*(FCAP*IRR_TARGET-CalcTable[[#This Row],[IWC]]))) ->  | AB93: =CalcTable[[#This Row],[IWC]]+CalcTable[[#This Row],[Eff Precip]]+CalcTable[[#This Row],[IrrAmt]]-CalcTable[[#This Row],[AET]] ->  | AC93: =IF(CalcTable[[#This Row],[PWC]]>FCAP,MIN(24*PERC,MIN(SAT,CalcTable[[#This Row],[PWC]])-FCAP),0) ->  | AD93: =IF(CalcTable[[#This Row],[PWC]]>SAT,CalcTable[[#This Row],[PWC]]-SAT,0) ->  | AE93: =CalcTable[[#This Row],[PWC]]-CalcTable[[#This Row],[PercAmt]]-CalcTable[[#This Row],[Runoff]] ->  | AF93: =CalcTable[[#This Row],[IrrAmt]]/1000*CUR_IRR_AREA*10000/IRR_EFF ->  | AI93: 0 | AJ93: 0 | AK93: 3.319020373 | AL93: 4.883700622 | AX93: 8.202720995 | AZ93: 191.9341837 | BA93: 295.5177114 | BB93: 304.6574345 | BC93: 19607 | BD93: 8.202720995 | BE93: 191.9341837 | BF93: 313.9432237 | BH93: 0 | BI93: 93 | BJ93: 93 | BK93: 1960-07-13
A94: 1960-07-14 | B94: 1960 | C94: 7 | D94: 196 | E94: 14 | F94: 5 | G94: 13.9 | H94: 6.85303344 | I94: 10.5 | J94: 0 | K94: 0 | L94: 0 | M94: =CalcTable[[#This Row],[IWC]]-AE93 ->  | N94: =IF(CalcTable[[#This Row],[Day of Year]]<123,FCAP,AE93) ->  | O94: =IF(IRR_DRIP,5,COUNTIF('IDET Wind Values'!C78:G78,"<="&IRR_MAXWIND)) ->  | P94: =CalcTable[[#This Row],[ET_o]]*KL ->  | Q94: =IF(WILTPT<=0,1,MAX(0,MIN(1,(CalcTable[[#This Row],[IWC]]-WILTPT)/(MAD-WILTPT)))) ->  | R94: =CalcTable[[#This Row],[ETMult]]*CalcTable[[#This Row],[ETb]] ->  | S94: =INDEX(IRR_LIST,CalcTable[[#This Row],[Day of Week]]+1) -> TRUE | T94: 0 | U94: =IF(CalcTable[[#This Row],[IrrPrecip]]>=IC_MM,FALSE,TRUE) -> TRUE | V94: TRUE | W94: =IF(AND(IRR_DRIP=FALSE,CalcTable[[#This Row],[IrrHours]]<=0),FALSE,TRUE) ->  | X94: =AND(CalcTable[[#This Row],[IrrDay]],CalcTable[[#This Row],[IrrRain]],CalcTable[[#This Row],[IrrWarm]],CalcTable[[#This Row],[IrrWindy]]) ->  | Z94: =CalcTable[[#This Row],[IrrHours]]/5 ->  | AA94: =IF(CalcTable[[#This Row],[IrrFlag]]=FALSE,0,MAX(0,CalcTable[[#This Row],[VolRednWind]]*(FCAP*IRR_TARGET-CalcTable[[#This Row],[IWC]]))) ->  | AB94: =CalcTable[[#This Row],[IWC]]+CalcTable[[#This Row],[Eff Precip]]+CalcTable[[#This Row],[IrrAmt]]-CalcTable[[#This Row],[AET]] ->  | AC94: =IF(CalcTable[[#This Row],[PWC]]>FCAP,MIN(24*PERC,MIN(SAT,CalcTable[[#This Row],[PWC]])-FCAP),0) ->  | AD94: =IF(CalcTable[[#This Row],[PWC]]>SAT,CalcTable[[#This Row],[PWC]]-SAT,0) ->  | AE94: =CalcTable[[#This Row],[PWC]]-CalcTable[[#This Row],[PercAmt]]-CalcTable[[#This Row],[Runoff]] ->  | AF94: =CalcTable[[#This Row],[IrrAmt]]/1000*CUR_IRR_AREA*10000/IRR_EFF ->  | AI94: 0 | AJ94: 0 | AK94: 0 | AL94: 0 | AX94: 0 | AZ94: 0 | BA94: 0 | BB94: 0 | BC94: 19607 | BD94: 0 | BE94: 0 | BF94: 0 | BH94: 0 | BI94: 94 | BJ94: 94 | BK94: 1960-07-14
A95: 1960-07-15 | B95: 1960 | C95: 7 | D95: 197 | E95: 15 | F95: 6 | G95: 13.3 | H95: 5.65536798 | I95: 15.66666667 | J95: 2.6 | K95: 2.6 | L95: 0 | M95: =CalcTable[[#This Row],[IWC]]-AE94 ->  | N95: =IF(CalcTable[[#This Row],[Day of Year]]<123,FCAP,AE94) ->  | O95: =IF(IRR_DRIP,5,COUNTIF('IDET Wind Values'!C79:G79,"<="&IRR_MAXWIND)) ->  | P95: =CalcTable[[#This Row],[ET_o]]*KL ->  | Q95: =IF(WILTPT<=0,1,MAX(0,MIN(1,(CalcTable[[#This Row],[IWC]]-WILTPT)/(MAD-WILTPT)))) ->  | R95: =CalcTable[[#This Row],[ETMult]]*CalcTable[[#This Row],[ETb]] ->  | S95: =INDEX(IRR_LIST,CalcTable[[#This Row],[Day of Week]]+1) -> FALSE | T95: 0 | U95: =IF(CalcTable[[#This Row],[IrrPrecip]]>=IC_MM,FALSE,TRUE) -> TRUE | V95: TRUE | W95: =IF(AND(IRR_DRIP=FALSE,CalcTable[[#This Row],[IrrHours]]<=0),FALSE,TRUE) ->  | X95: =AND(CalcTable[[#This Row],[IrrDay]],CalcTable[[#This Row],[IrrRain]],CalcTable[[#This Row],[IrrWarm]],CalcTable[[#This Row],[IrrWindy]]) ->  | Z95: =CalcTable[[#This Row],[IrrHours]]/5 ->  | AA95: =IF(CalcTable[[#This Row],[IrrFlag]]=FALSE,0,MAX(0,CalcTable[[#This Row],[VolRednWind]]*(FCAP*IRR_TARGET-CalcTable[[#This Row],[IWC]]))) ->  | AB95: =CalcTable[[#This Row],[IWC]]+CalcTable[[#This Row],[Eff Precip]]+CalcTable[[#This Row],[IrrAmt]]-CalcTable[[#This Row],[AET]] ->  | AC95: =IF(CalcTable[[#This Row],[PWC]]>FCAP,MIN(24*PERC,MIN(SAT,CalcTable[[#This Row],[PWC]])-FCAP),0) ->  | AD95: =IF(CalcTable[[#This Row],[PWC]]>SAT,CalcTable[[#This Row],[PWC]]-SAT,0) ->  | AE95: =CalcTable[[#This Row],[PWC]]-CalcTable[[#This Row],[PercAmt]]-CalcTable[[#This Row],[Runoff]] ->  | AF95: =CalcTable[[#This Row],[IrrAmt]]/1000*CUR_IRR_AREA*10000/IRR_EFF ->  | AI95: 0 | AJ95: 0 | AK95: 0 | AL95: 7.259063112 | AX95: 7.259063112 | AZ95: 212.9325179 | BA95: 327.84848 | BB95: 337.9881237 | BC95: 19607 | BD95: 7.259063112 | BE95: 212.9325179 | BF95: 348.2898138 | BH95: 0 | BI95: 95 | BJ95: 95 | BK95: 1960-07-15
A96: 1960-07-16 | B96: 1960 | C96: 7 | D96: 198 | E96: 16 | F96: 7 | G96: 13.9 | H96: 5.8072652 | I96: 4.833333333 | J96: 0 | K96: 0 | L96: 0 | M96: =CalcTable[[#This Row],[IWC]]-AE95 ->  | N96: =IF(CalcTable[[#This Row],[Day of Year]]<123,FCAP,AE95) ->  | O96: =IF(IRR_DRIP,5,COUNTIF('IDET Wind Values'!C80:G80,"<="&IRR_MAXWIND)) ->  | P96: =CalcTable[[#This Row],[ET_o]]*KL ->  | Q96: =IF(WILTPT<=0,1,MAX(0,MIN(1,(CalcTable[[#This Row],[IWC]]-WILTPT)/(MAD-WILTPT)))) ->  | R96: =CalcTable[[#This Row],[ETMult]]*CalcTable[[#This Row],[ETb]] ->  | S96: =INDEX(IRR_LIST,CalcTable[[#This Row],[Day of Week]]+1) -> FALSE | T96: 2.6 | U96: =IF(CalcTable[[#This Row],[IrrPrecip]]>=IC_MM,FALSE,TRUE) -> TRUE | V96: TRUE | W96: =IF(AND(IRR_DRIP=FALSE,CalcTable[[#This Row],[IrrHours]]<=0),FALSE,TRUE) ->  | X96: =AND(CalcTable[[#This Row],[IrrDay]],CalcTable[[#This Row],[IrrRain]],CalcTable[[#This Row],[IrrWarm]],CalcTable[[#This Row],[IrrWindy]]) ->  | Z96: =CalcTable[[#This Row],[IrrHours]]/5 ->  | AA96: =IF(CalcTable[[#This Row],[IrrFlag]]=FALSE,0,MAX(0,CalcTable[[#This Row],[VolRednWind]]*(FCAP*IRR_TARGET-CalcTable[[#This Row],[IWC]]))) ->  | AB96: =CalcTable[[#This Row],[IWC]]+CalcTable[[#This Row],[Eff Precip]]+CalcTable[[#This Row],[IrrAmt]]-CalcTable[[#This Row],[AET]] ->  | AC96: =IF(CalcTable[[#This Row],[PWC]]>FCAP,MIN(24*PERC,MIN(SAT,CalcTable[[#This Row],[PWC]])-FCAP),0) ->  | AD96: =IF(CalcTable[[#This Row],[PWC]]>SAT,CalcTable[[#This Row],[PWC]]-SAT,0) ->  | AE96: =CalcTable[[#This Row],[PWC]]-CalcTable[[#This Row],[PercAmt]]-CalcTable[[#This Row],[Runoff]] ->  | AF96: =CalcTable[[#This Row],[IrrAmt]]/1000*CUR_IRR_AREA*10000/IRR_EFF ->  | AI96: 0 | AJ96: 0 | AK96: 6.66504805 | AL96: 0 | AX96: 6.66504805 | AZ96: 97.75403806 | BA96: 150.5101856 | BB96: 155.1651398 | BC96: 19607 | BD96: 6.66504805 | BE96: 97.75403806 | BF96: 159.894487 | BH96: 0 | BI96: 96 | BJ96: 96 | BK96: 1960-07-16
A97: 1960-07-17 | B97: 1960 | C97: 7 | D97: 199 | E97: 17 | F97: 1 | G97: 13.3 | H97: 6.037892224 | I97: 7.333333333 | J97: 0 | K97: 0 | L97: 0 | M97: =CalcTable[[#This Row],[IWC]]-AE96 ->  | N97: =IF(CalcTable[[#This Row],[Day of Year]]<123,FCAP,AE96) ->  | O97: =IF(IRR_DRIP,5,COUNTIF('IDET Wind Values'!C81:G81,"<="&IRR_MAXWIND)) ->  | P97: =CalcTable[[#This Row],[ET_o]]*KL ->  | Q97: =IF(WILTPT<=0,1,MAX(0,MIN(1,(CalcTable[[#This Row],[IWC]]-WILTPT)/(MAD-WILTPT)))) ->  | R97: =CalcTable[[#This Row],[ETMult]]*CalcTable[[#This Row],[ETb]] ->  | S97: =INDEX(IRR_LIST,CalcTable[[#This Row],[Day of Week]]+1) -> TRUE | T97: 2.6 | U97: =IF(CalcTable[[#This Row],[IrrPrecip]]>=IC_MM,FALSE,TRUE) -> TRUE | V97: TRUE | W97: =IF(AND(IRR_DRIP=FALSE,CalcTable[[#This Row],[IrrHours]]<=0),FALSE,TRUE) ->  | X97: =AND(CalcTable[[#This Row],[IrrDay]],CalcTable[[#This Row],[IrrRain]],CalcTable[[#This Row],[IrrWarm]],CalcTable[[#This Row],[IrrWindy]]) ->  | Z97: =CalcTable[[#This Row],[IrrHours]]/5 ->  | AA97: =IF(CalcTable[[#This Row],[IrrFlag]]=FALSE,0,MAX(0,CalcTable[[#This Row],[VolRednWind]]*(FCAP*IRR_TARGET-CalcTable[[#This Row],[IWC]]))) ->  | AB97: =CalcTable[[#This Row],[IWC]]+CalcTable[[#This Row],[Eff Precip]]+CalcTable[[#This Row],[IrrAmt]]-CalcTable[[#This Row],[AET]] ->  | AC97: =IF(CalcTable[[#This Row],[PWC]]>FCAP,MIN(24*PERC,MIN(SAT,CalcTable[[#This Row],[PWC]])-FCAP),0) ->  | AD97: =IF(CalcTable[[#This Row],[PWC]]>SAT,CalcTable[[#This Row],[PWC]]-SAT,0) ->  | AE97: =CalcTable[[#This Row],[PWC]]-CalcTable[[#This Row],[PercAmt]]-CalcTable[[#This Row],[Runoff]] ->  | AF97: =CalcTable[[#This Row],[IrrAmt]]/1000*CUR_IRR_AREA*10000/IRR_EFF ->  | AI97: 13.78956189 | AJ97: 27.14381669 | AK97: 0 | AL97: 0 | AX97: 40.93337858 | AZ97: 998.4655307 | BA97: 1624.816496 | BB97: 1682.084313 | BC97: 19607 | BD97: 40.93337858 | BE97: 998.4655307 | BF97: 1633.171754 | BH97: 0 | BI97: 97 | BJ97: 97 | BK97: 1960-07-17
A98: 1960-07-18 | B98: 1960 | C98: 7 | D98: 200 | E98: 18 | F98: 2 | G98: 13.3 | H98: 7.173779421 | I98: 4 | J98: 0 | K98: 0 | L98: 0 | M98: =CalcTable[[#This Row],[IWC]]-AE97 ->  | N98: =IF(CalcTable[[#This Row],[Day of Year]]<123,FCAP,AE97) ->  | O98: =IF(IRR_DRIP,5,COUNTIF('IDET Wind Values'!C82:G82,"<="&IRR_MAXWIND)) ->  | P98: =CalcTable[[#This Row],[ET_o]]*KL ->  | Q98: =IF(WILTPT<=0,1,MAX(0,MIN(1,(CalcTable[[#This Row],[IWC]]-WILTPT)/(MAD-WILTPT)))) ->  | R98: =CalcTable[[#This Row],[ETMult]]*CalcTable[[#This Row],[ETb]] ->  | S98: =INDEX(IRR_LIST,CalcTable[[#This Row],[Day of Week]]+1) -> FALSE | T98: 0 | U98: =IF(CalcTable[[#This Row],[IrrPrecip]]>=IC_MM,FALSE,TRUE) -> TRUE | V98: TRUE | W98: =IF(AND(IRR_DRIP=FALSE,CalcTable[[#This Row],[IrrHours]]<=0),FALSE,TRUE) ->  | X98: =AND(CalcTable[[#This Row],[IrrDay]],CalcTable[[#This Row],[IrrRain]],CalcTable[[#This Row],[IrrWarm]],CalcTable[[#This Row],[IrrWindy]]) ->  | Z98: =CalcTable[[#This Row],[IrrHours]]/5 ->  | AA98: =IF(CalcTable[[#This Row],[IrrFlag]]=FALSE,0,MAX(0,CalcTable[[#This Row],[VolRednWind]]*(FCAP*IRR_TARGET-CalcTable[[#This Row],[IWC]]))) ->  | AB98: =CalcTable[[#This Row],[IWC]]+CalcTable[[#This Row],[Eff Precip]]+CalcTable[[#This Row],[IrrAmt]]-CalcTable[[#This Row],[AET]] ->  | AC98: =IF(CalcTable[[#This Row],[PWC]]>FCAP,MIN(24*PERC,MIN(SAT,CalcTable[[#This Row],[PWC]])-FCAP),0) ->  | AD98: =IF(CalcTable[[#This Row],[PWC]]>SAT,CalcTable[[#This Row],[PWC]]-SAT,0) ->  | AE98: =CalcTable[[#This Row],[PWC]]-CalcTable[[#This Row],[PercAmt]]-CalcTable[[#This Row],[Runoff]] ->  | AF98: =CalcTable[[#This Row],[IrrAmt]]/1000*CUR_IRR_AREA*10000/IRR_EFF ->  | AI98: 0 | AJ98: 0 | AK98: 3.306986639 | AL98: 9.625288972 | AX98: 12.93227561 | AZ98: 330.8442806 | BA98: 509.3951621 | BB98: 525.1496517 | BC98: 19607 | BD98: 12.93227561 | BE98: 330.8442806 | BF98: 541.1559211 | BH98: 0 | BI98: 98 | BJ98: 98 | BK98: 1960-07-18
A99: 1960-07-19 | B99: 1960 | C99: 7 | D99: 201 | E99: 19 | F99: 3 | G99: 15 | H99: 6.445245081 | I99: 15.16666667 | J99: 0 | K99: 0 | L99: 0 | M99: =CalcTable[[#This Row],[IWC]]-AE98 ->  | N99: =IF(CalcTable[[#This Row],[Day of Year]]<123,FCAP,AE98) ->  | O99: =IF(IRR_DRIP,5,COUNTIF('IDET Wind Values'!C83:G83,"<="&IRR_MAXWIND)) ->  | P99: =CalcTable[[#This Row],[ET_o]]*KL ->  | Q99: =IF(WILTPT<=0,1,MAX(0,MIN(1,(CalcTable[[#This Row],[IWC]]-WILTPT)/(MAD-WILTPT)))) ->  | R99: =CalcTable[[#This Row],[ETMult]]*CalcTable[[#This Row],[ETb]] ->  | S99: =INDEX(IRR_LIST,CalcTable[[#This Row],[Day of Week]]+1) -> TRUE | T99: 0 | U99: =IF(CalcTable[[#This Row],[IrrPrecip]]>=IC_MM,FALSE,TRUE) -> TRUE | V99: TRUE | W99: =IF(AND(IRR_DRIP=FALSE,CalcTable[[#This Row],[IrrHours]]<=0),FALSE,TRUE) ->  | X99: =AND(CalcTable[[#This Row],[IrrDay]],CalcTable[[#This Row],[IrrRain]],CalcTable[[#This Row],[IrrWarm]],CalcTable[[#This Row],[IrrWindy]]) ->  | Z99: =CalcTable[[#This Row],[IrrHours]]/5 ->  | AA99: =IF(CalcTable[[#This Row],[IrrFlag]]=FALSE,0,MAX(0,CalcTable[[#This Row],[VolRednWind]]*(FCAP*IRR_TARGET-CalcTable[[#This Row],[IWC]]))) ->  | AB99: =CalcTable[[#This Row],[IWC]]+CalcTable[[#This Row],[Eff Precip]]+CalcTable[[#This Row],[IrrAmt]]-CalcTable[[#This Row],[AET]] ->  | AC99: =IF(CalcTable[[#This Row],[PWC]]>FCAP,MIN(24*PERC,MIN(SAT,CalcTable[[#This Row],[PWC]])-FCAP),0) ->  | AD99: =IF(CalcTable[[#This Row],[PWC]]>SAT,CalcTable[[#This Row],[PWC]]-SAT,0) ->  | AE99: =CalcTable[[#This Row],[PWC]]-CalcTable[[#This Row],[PercAmt]]-CalcTable[[#This Row],[Runoff]] ->  | AF99: =CalcTable[[#This Row],[IrrAmt]]/1000*CUR_IRR_AREA*10000/IRR_EFF ->  | AI99: 1.693935279 | AJ99: 2.394906083 | AK99: 0 | AL99: 0 | AX99: 4.088841362 | AZ99: 95.09496253 | BA99: 154.1358972 | BB99: 159.5219892 | BC99: 19607 | BD99: 4.088841362 | BE99: 95.09496253 | BF99: 155.5450859 | BH99: 0 | BI99: 99 | BJ99: 99 | BK99: 1960-07-19
A100: 1960-07-20 | B100: 1960 | C100: 7 | D100: 202 | E100: 20 | F100: 4 | G100: 15 | H100: 4.09373902 | I100: 12.83333333 | J100: 17.8 | K100: 17.8 | L100: 9.6 | M100: =CalcTable[[#This Row],[IWC]]-AE99 ->  | N100: =IF(CalcTable[[#This Row],[Day of Year]]<123,FCAP,AE99) ->  | O100: =IF(IRR_DRIP,5,COUNTIF('IDET Wind Values'!C84:G84,"<="&IRR_MAXWIND)) ->  | P100: =CalcTable[[#This Row],[ET_o]]*KL ->  | Q100: =IF(WILTPT<=0,1,MAX(0,MIN(1,(CalcTable[[#This Row],[IWC]]-WILTPT)/(MAD-WILTPT)))) ->  | R100: =CalcTable[[#This Row],[ETMult]]*CalcTable[[#This Row],[ETb]] ->  | S100: =INDEX(IRR_LIST,CalcTable[[#This Row],[Day of Week]]+1) -> FALSE | T100: 0 | U100: =IF(CalcTable[[#This Row],[IrrPrecip]]>=IC_MM,FALSE,TRUE) -> TRUE | V100: TRUE | W100: =IF(AND(IRR_DRIP=FALSE,CalcTable[[#This Row],[IrrHours]]<=0),FALSE,TRUE) ->  | X100: =AND(CalcTable[[#This Row],[IrrDay]],CalcTable[[#This Row],[IrrRain]],CalcTable[[#This Row],[IrrWarm]],CalcTable[[#This Row],[IrrWindy]]) ->  | Z100: =CalcTable[[#This Row],[IrrHours]]/5 ->  | AA100: =IF(CalcTable[[#This Row],[IrrFlag]]=FALSE,0,MAX(0,CalcTable[[#This Row],[VolRednWind]]*(FCAP*IRR_TARGET-CalcTable[[#This Row],[IWC]]))) ->  | AB100: =CalcTable[[#This Row],[IWC]]+CalcTable[[#This Row],[Eff Precip]]+CalcTable[[#This Row],[IrrAmt]]-CalcTable[[#This Row],[AET]] ->  | AC100: =IF(CalcTable[[#This Row],[PWC]]>FCAP,MIN(24*PERC,MIN(SAT,CalcTable[[#This Row],[PWC]])-FCAP),0) ->  | AD100: =IF(CalcTable[[#This Row],[PWC]]>SAT,CalcTable[[#This Row],[PWC]]-SAT,0) ->  | AE100: =CalcTable[[#This Row],[PWC]]-CalcTable[[#This Row],[PercAmt]]-CalcTable[[#This Row],[Runoff]] ->  | AF100: =CalcTable[[#This Row],[IrrAmt]]/1000*CUR_IRR_AREA*10000/IRR_EFF ->  | AI100: 0 | AJ100: 0 | AK100: 8.84945544 | AL100: 5.824884795 | AX100: 14.67434024 | AZ100: 300.6553004 | BA100: 462.9137165 | BB100: 477.2306356 | BC100: 19607 | BD100: 14.67434024 | BE100: 300.6553004 | BF100: 491.7763601 | BH100: 0 | BI100: 100 | BJ100: 100 | BK100: 1960-07-20
A101: 1960-07-21 | B101: 1960 | C101: 7 | D101: 203 | E101: 21 | F101: 5 | G101: 15.6 | H101: 4.264860776 | I101: 8.666666667 | J101: 0 | K101: 0 | L101: 0 | M101: =CalcTable[[#This Row],[IWC]]-AE100 ->  | N101: =IF(CalcTable[[#This Row],[Day of Year]]<123,FCAP,AE100) ->  | O101: =IF(IRR_DRIP,5,COUNTIF('IDET Wind Values'!C85:G85,"<="&IRR_MAXWIND)) ->  | P101: =CalcTable[[#This Row],[ET_o]]*KL ->  | Q101: =IF(WILTPT<=0,1,MAX(0,MIN(1,(CalcTable[[#This Row],[IWC]]-WILTPT)/(MAD-WILTPT)))) ->  | R101: =CalcTable[[#This Row],[ETMult]]*CalcTable[[#This Row],[ETb]] ->  | S101: =INDEX(IRR_LIST,CalcTable[[#This Row],[Day of Week]]+1) -> TRUE | T101: 17.8 | U101: =IF(CalcTable[[#This Row],[IrrPrecip]]>=IC_MM,FALSE,TRUE) -> FALSE | V101: TRUE | W101: =IF(AND(IRR_DRIP=FALSE,CalcTable[[#This Row],[IrrHours]]<=0),FALSE,TRUE) ->  | X101: =AND(CalcTable[[#This Row],[IrrDay]],CalcTable[[#This Row],[IrrRain]],CalcTable[[#This Row],[IrrWarm]],CalcTable[[#This Row],[IrrWindy]]) ->  | Z101: =CalcTable[[#This Row],[IrrHours]]/5 ->  | AA101: =IF(CalcTable[[#This Row],[IrrFlag]]=FALSE,0,MAX(0,CalcTable[[#This Row],[VolRednWind]]*(FCAP*IRR_TARGET-CalcTable[[#This Row],[IWC]]))) ->  | AB101: =CalcTable[[#This Row],[IWC]]+CalcTable[[#This Row],[Eff Precip]]+CalcTable[[#This Row],[IrrAmt]]-CalcTable[[#This Row],[AET]] ->  | AC101: =IF(CalcTable[[#This Row],[PWC]]>FCAP,MIN(24*PERC,MIN(SAT,CalcTable[[#This Row],[PWC]])-FCAP),0) ->  | AD101: =IF(CalcTable[[#This Row],[PWC]]>SAT,CalcTable[[#This Row],[PWC]]-SAT,0) ->  | AE101: =CalcTable[[#This Row],[PWC]]-CalcTable[[#This Row],[PercAmt]]-CalcTable[[#This Row],[Runoff]] ->  | AF101: =CalcTable[[#This Row],[IrrAmt]]/1000*CUR_IRR_AREA*10000/IRR_EFF ->  | AI101: 0 | AJ101: 0 | AK101: 0 | AL101: 0 | AX101: 0 | AZ101: 0 | BA101: 0 | BB101: 0 | BC101: 19607 | BD101: 0 | BE101: 0 | BF101: 0 | BH101: 0 | BI101: 101 | BJ101: 101 | BK101: 1960-07-21
A102: 1960-07-22 | B102: 1960 | C102: 7 | D102: 204 | E102: 22 | F102: 6 | G102: 13.3 | H102: 6.075784329 | I102: 3.5 | J102: 0 | K102: 0 | L102: 0 | M102: =CalcTable[[#This Row],[IWC]]-AE101 ->  | N102: =IF(CalcTable[[#This Row],[Day of Year]]<123,FCAP,AE101) ->  | O102: =IF(IRR_DRIP,5,COUNTIF('IDET Wind Values'!C86:G86,"<="&IRR_MAXWIND)) ->  | P102: =CalcTable[[#This Row],[ET_o]]*KL ->  | Q102: =IF(WILTPT<=0,1,MAX(0,MIN(1,(CalcTable[[#This Row],[IWC]]-WILTPT)/(MAD-WILTPT)))) ->  | R102: =CalcTable[[#This Row],[ETMult]]*CalcTable[[#This Row],[ETb]] ->  | S102: =INDEX(IRR_LIST,CalcTable[[#This Row],[Day of Week]]+1) -> FALSE | T102: 17.8 | U102: =IF(CalcTable[[#This Row],[IrrPrecip]]>=IC_MM,FALSE,TRUE) -> FALSE | V102: TRUE | W102: =IF(AND(IRR_DRIP=FALSE,CalcTable[[#This Row],[IrrHours]]<=0),FALSE,TRUE) ->  | X102: =AND(CalcTable[[#This Row],[IrrDay]],CalcTable[[#This Row],[IrrRain]],CalcTable[[#This Row],[IrrWarm]],CalcTable[[#This Row],[IrrWindy]]) ->  | Z102: =CalcTable[[#This Row],[IrrHours]]/5 ->  | AA102: =IF(CalcTable[[#This Row],[IrrFlag]]=FALSE,0,MAX(0,CalcTable[[#This Row],[VolRednWind]]*(FCAP*IRR_TARGET-CalcTable[[#This Row],[IWC]]))) ->  | AB102: =CalcTable[[#This Row],[IWC]]+CalcTable[[#This Row],[Eff Precip]]+CalcTable[[#This Row],[IrrAmt]]-CalcTable[[#This Row],[AET]] ->  | AC102: =IF(CalcTable[[#This Row],[PWC]]>FCAP,MIN(24*PERC,MIN(SAT,CalcTable[[#This Row],[PWC]])-FCAP),0) ->  | AD102: =IF(CalcTable[[#This Row],[PWC]]>SAT,CalcTable[[#This Row],[PWC]]-SAT,0) ->  | AE102: =CalcTable[[#This Row],[PWC]]-CalcTable[[#This Row],[PercAmt]]-CalcTable[[#This Row],[Runoff]] ->  | AF102: =CalcTable[[#This Row],[IrrAmt]]/1000*CUR_IRR_AREA*10000/IRR_EFF ->  | AI102: 0 | AJ102: 0 | AK102: 0 | AL102: 0 | AX102: 0 | AZ102: 0 | BA102: 0 | BB102: 0 | BC102: 19607 | BD102: 0 | BE102: 0 | BF102: 0 | BH102: 0 | BI102: 102 | BJ102: 102 | BK102: 1960-07-22
A103: 1960-07-23 | B103: 1960 | C103: 7 | D103: 205 | E103: 23 | F103: 7 | G103: 7.8 | H103: 4.316559411 | I103: 29.16666667 | J103: 4.9 | K103: 4.9 | L103: 0 | M103: =CalcTable[[#This Row],[IWC]]-AE102 ->  | N103: =IF(CalcTable[[#This Row],[Day of Year]]<123,FCAP,AE102) ->  | O103: =IF(IRR_DRIP,5,COUNTIF('IDET Wind Values'!C87:G87,"<="&IRR_MAXWIND)) ->  | P103: =CalcTable[[#This Row],[ET_o]]*KL ->  | Q103: =IF(WILTPT<=0,1,MAX(0,MIN(1,(CalcTable[[#This Row],[IWC]]-WILTPT)/(MAD-WILTPT)))) ->  | R103: =CalcTable[[#This Row],[ETMult]]*CalcTable[[#This Row],[ETb]] ->  | S103: =INDEX(IRR_LIST,CalcTable[[#This Row],[Day of Week]]+1) -> FALSE | T103: 0 | U103: =IF(CalcTable[[#This Row],[IrrPrecip]]>=IC_MM,FALSE,TRUE) -> TRUE | V103: TRUE | W103: =IF(AND(IRR_DRIP=FALSE,CalcTable[[#This Row],[IrrHours]]<=0),FALSE,TRUE) ->  | X103: =AND(CalcTable[[#This Row],[IrrDay]],CalcTable[[#This Row],[IrrRain]],CalcTable[[#This Row],[IrrWarm]],CalcTable[[#This Row],[IrrWindy]]) ->  | Z103: =CalcTable[[#This Row],[IrrHours]]/5 ->  | AA103: =IF(CalcTable[[#This Row],[IrrFlag]]=FALSE,0,MAX(0,CalcTable[[#This Row],[VolRednWind]]*(FCAP*IRR_TARGET-CalcTable[[#This Row],[IWC]]))) ->  | AB103: =CalcTable[[#This Row],[IWC]]+CalcTable[[#This Row],[Eff Precip]]+CalcTable[[#This Row],[IrrAmt]]-CalcTable[[#This Row],[AET]] ->  | AC103: =IF(CalcTable[[#This Row],[PWC]]>FCAP,MIN(24*PERC,MIN(SAT,CalcTable[[#This Row],[PWC]])-FCAP),0) ->  | AD103: =IF(CalcTable[[#This Row],[PWC]]>SAT,CalcTable[[#This Row],[PWC]]-SAT,0) ->  | AE103: =CalcTable[[#This Row],[PWC]]-CalcTable[[#This Row],[PercAmt]]-CalcTable[[#This Row],[Runoff]] ->  | AF103: =CalcTable[[#This Row],[IrrAmt]]/1000*CUR_IRR_AREA*10000/IRR_EFF ->  | AI103: 0 | AJ103: 0 | AK103: 3.446141923 | AL103: 0 | AX103: 3.446141923 | AZ103: 50.54341487 | BA103: 77.82081337 | BB103: 80.22764265 | BC103: 19607 | BD103: 3.446141923 | BE103: 50.54341487 | BF103: 82.6729366 | BH103: 0 | BI103: 103 | BJ103: 103 | BK103: 1960-07-23
A104: 1960-07-24 | B104: 1960 | C104: 7 | D104: 206 | E104: 24 | F104: 1 | G104: 5 | H104: 4.628871674 | I104: 10.66666667 | J104: 0 | K104: 0 | L104: 0 | M104: =CalcTable[[#This Row],[IWC]]-AE103 ->  | N104: =IF(CalcTable[[#This Row],[Day of Year]]<123,FCAP,AE103) ->  | O104: =IF(IRR_DRIP,5,COUNTIF('IDET Wind Values'!C88:G88,"<="&IRR_MAXWIND)) ->  | P104: =CalcTable[[#This Row],[ET_o]]*KL ->  | Q104: =IF(WILTPT<=0,1,MAX(0,MIN(1,(CalcTable[[#This Row],[IWC]]-WILTPT)/(MAD-WILTPT)))) ->  | R104: =CalcTable[[#This Row],[ETMult]]*CalcTable[[#This Row],[ETb]] ->  | S104: =INDEX(IRR_LIST,CalcTable[[#This Row],[Day of Week]]+1) -> TRUE | T104: 4.9 | U104: =IF(CalcTable[[#This Row],[IrrPrecip]]>=IC_MM,FALSE,TRUE) -> TRUE | V104: TRUE | W104: =IF(AND(IRR_DRIP=FALSE,CalcTable[[#This Row],[IrrHours]]<=0),FALSE,TRUE) ->  | X104: =AND(CalcTable[[#This Row],[IrrDay]],CalcTable[[#This Row],[IrrRain]],CalcTable[[#This Row],[IrrWarm]],CalcTable[[#This Row],[IrrWindy]]) ->  | Z104: =CalcTable[[#This Row],[IrrHours]]/5 ->  | AA104: =IF(CalcTable[[#This Row],[IrrFlag]]=FALSE,0,MAX(0,CalcTable[[#This Row],[VolRednWind]]*(FCAP*IRR_TARGET-CalcTable[[#This Row],[IWC]]))) ->  | AB104: =CalcTable[[#This Row],[IWC]]+CalcTable[[#This Row],[Eff Precip]]+CalcTable[[#This Row],[IrrAmt]]-CalcTable[[#This Row],[AET]] ->  | AC104: =IF(CalcTable[[#This Row],[PWC]]>FCAP,MIN(24*PERC,MIN(SAT,CalcTable[[#This Row],[PWC]])-FCAP),0) ->  | AD104: =IF(CalcTable[[#This Row],[PWC]]>SAT,CalcTable[[#This Row],[PWC]]-SAT,0) ->  | AE104: =CalcTable[[#This Row],[PWC]]-CalcTable[[#This Row],[PercAmt]]-CalcTable[[#This Row],[Runoff]] ->  | AF104: =CalcTable[[#This Row],[IrrAmt]]/1000*CUR_IRR_AREA*10000/IRR_EFF ->  | AI104: 5.578551903 | AJ104: 7.046782546 | AK104: 0 | AL104: 0 | AX104: 12.62533445 | AZ104: 288.5243826 | BA104: 466.9508576 | BB104: 483.213992 | BC104: 19607 | BD104: 12.62533445 | BE104: 288.5243826 | BF104: 471.9340403 | BH104: 0 | BI104: 104 | BJ104: 104 | BK104: 1960-07-24
A105: 1960-07-25 | B105: 1960 | C105: 7 | D105: 207 | E105: 25 | F105: 2 | G105: 8.9 | H105: 5.66821194 | I105: 7.833333333 | J105: 0 | K105: 0 | L105: 0 | M105: =CalcTable[[#This Row],[IWC]]-AE104 ->  | N105: =IF(CalcTable[[#This Row],[Day of Year]]<123,FCAP,AE104) ->  | O105: =IF(IRR_DRIP,5,COUNTIF('IDET Wind Values'!C89:G89,"<="&IRR_MAXWIND)) ->  | P105: =CalcTable[[#This Row],[ET_o]]*KL ->  | Q105: =IF(WILTPT<=0,1,MAX(0,MIN(1,(CalcTable[[#This Row],[IWC]]-WILTPT)/(MAD-WILTPT)))) ->  | R105: =CalcTable[[#This Row],[ETMult]]*CalcTable[[#This Row],[ETb]] ->  | S105: =INDEX(IRR_LIST,CalcTable[[#This Row],[Day of Week]]+1) -> FALSE | T105: 4.9 | U105: =IF(CalcTable[[#This Row],[IrrPrecip]]>=IC_MM,FALSE,TRUE) -> TRUE | V105: TRUE | W105: =IF(AND(IRR_DRIP=FALSE,CalcTable[[#This Row],[IrrHours]]<=0),FALSE,TRUE) ->  | X105: =AND(CalcTable[[#This Row],[IrrDay]],CalcTable[[#This Row],[IrrRain]],CalcTable[[#This Row],[IrrWarm]],CalcTable[[#This Row],[IrrWindy]]) ->  | Z105: =CalcTable[[#This Row],[IrrHours]]/5 ->  | AA105: =IF(CalcTable[[#This Row],[IrrFlag]]=FALSE,0,MAX(0,CalcTable[[#This Row],[VolRednWind]]*(FCAP*IRR_TARGET-CalcTable[[#This Row],[IWC]]))) ->  | AB105: =CalcTable[[#This Row],[IWC]]+CalcTable[[#This Row],[Eff Precip]]+CalcTable[[#This Row],[IrrAmt]]-CalcTable[[#This Row],[AET]] ->  | AC105: =IF(CalcTable[[#This Row],[PWC]]>FCAP,MIN(24*PERC,MIN(SAT,CalcTable[[#This Row],[PWC]])-FCAP),0) ->  | AD105: =IF(CalcTable[[#This Row],[PWC]]>SAT,CalcTable[[#This Row],[PWC]]-SAT,0) ->  | AE105: =CalcTable[[#This Row],[PWC]]-CalcTable[[#This Row],[PercAmt]]-CalcTable[[#This Row],[Runoff]] ->  | AF105: =CalcTable[[#This Row],[IrrAmt]]/1000*CUR_IRR_AREA*10000/IRR_EFF ->  | AI105: 0 | AJ105: 0 | AK105: 5.653336932 | AL105: 11.19455135 | AX105: 16.84788828 | AZ105: 411.2891145 | BA105: 633.2546683 | BB105: 652.8398643 | BC105: 19607 | BD105: 16.84788828 | BE105: 411.2891145 | BF105: 672.7380604 | BH105: 0 | BI105: 105 | BJ105: 105 | BK105: 1960-07-25
A106: 1960-07-26 | B106: 1960 | C106: 7 | D106: 208 | E106: 26 | F106: 3 | G106: 8.9 | H106: 5.795515757 | I106: 6.333333333 | J106: 0 | K106: 0 | L106: 0 | M106: =CalcTable[[#This Row],[IWC]]-AE105 ->  | N106: =IF(CalcTable[[#This Row],[Day of Year]]<123,FCAP,AE105) ->  | O106: =IF(IRR_DRIP,5,COUNTIF('IDET Wind Values'!C90:G90,"<="&IRR_MAXWIND)) ->  | P106: =CalcTable[[#This Row],[ET_o]]*KL ->  | Q106: =IF(WILTPT<=0,1,MAX(0,MIN(1,(CalcTable[[#This Row],[IWC]]-WILTPT)/(MAD-WILTPT)))) ->  | R106: =CalcTable[[#This Row],[ETMult]]*CalcTable[[#This Row],[ETb]] ->  | S106: =INDEX(IRR_LIST,CalcTable[[#This Row],[Day of Week]]+1) -> TRUE | T106: 0 | U106: =IF(CalcTable[[#This Row],[IrrPrecip]]>=IC_MM,FALSE,TRUE) -> TRUE | V106: TRUE | W106: =IF(AND(IRR_DRIP=FALSE,CalcTable[[#This Row],[IrrHours]]<=0),FALSE,TRUE) ->  | X106: =AND(CalcTable[[#This Row],[IrrDay]],CalcTable[[#This Row],[IrrRain]],CalcTable[[#This Row],[IrrWarm]],CalcTable[[#This Row],[IrrWindy]]) ->  | Z106: =CalcTable[[#This Row],[IrrHours]]/5 ->  | AA106: =IF(CalcTable[[#This Row],[IrrFlag]]=FALSE,0,MAX(0,CalcTable[[#This Row],[VolRednWind]]*(FCAP*IRR_TARGET-CalcTable[[#This Row],[IWC]]))) ->  | AB106: =CalcTable[[#This Row],[IWC]]+CalcTable[[#This Row],[Eff Precip]]+CalcTable[[#This Row],[IrrAmt]]-CalcTable[[#This Row],[AET]] ->  | AC106: =IF(CalcTable[[#This Row],[PWC]]>FCAP,MIN(24*PERC,MIN(SAT,CalcTable[[#This Row],[PWC]])-FCAP),0) ->  | AD106: =IF(CalcTable[[#This Row],[PWC]]>SAT,CalcTable[[#This Row],[PWC]]-SAT,0) ->  | AE106: =CalcTable[[#This Row],[PWC]]-CalcTable[[#This Row],[PercAmt]]-CalcTable[[#This Row],[Runoff]] ->  | AF106: =CalcTable[[#This Row],[IrrAmt]]/1000*CUR_IRR_AREA*10000/IRR_EFF ->  | AI106: 8.326772312 | AJ106: 10.66687941 | AK106: 0 | AL106: 0 | AX106: 18.99365172 | AZ106: 435.0211232 | BA106: 704.178508 | BB106: 728.7142529 | BC106: 19607 | BD106: 18.99365172 | BE106: 435.0211232 | BF106: 711.5560718 | BH106: 0 | BI106: 106 | BJ106: 106 | BK106: 1960-07-26
A107: 1960-07-27 | B107: 1960 | C107: 7 | D107: 209 | E107: 27 | F107: 4 | G107: 11.7 | H107: 6.182831188 | I107: 6.833333333 | J107: 0 | K107: 0 | L107: 0 | M107: =CalcTable[[#This Row],[IWC]]-AE106 ->  | N107: =IF(CalcTable[[#This Row],[Day of Year]]<123,FCAP,AE106) ->  | O107: =IF(IRR_DRIP,5,COUNTIF('IDET Wind Values'!C91:G91,"<="&IRR_MAXWIND)) ->  | P107: =CalcTable[[#This Row],[ET_o]]*KL ->  | Q107: =IF(WILTPT<=0,1,MAX(0,MIN(1,(CalcTable[[#This Row],[IWC]]-WILTPT)/(MAD-WILTPT)))) ->  | R107: =CalcTable[[#This Row],[ETMult]]*CalcTable[[#This Row],[ETb]] ->  | S107: =INDEX(IRR_LIST,CalcTable[[#This Row],[Day of Week]]+1) -> FALSE | T107: 0 | U107: =IF(CalcTable[[#This Row],[IrrPrecip]]>=IC_MM,FALSE,TRUE) -> TRUE | V107: TRUE | W107: =IF(AND(IRR_DRIP=FALSE,CalcTable[[#This Row],[IrrHours]]<=0),FALSE,TRUE) ->  | X107: =AND(CalcTable[[#This Row],[IrrDay]],CalcTable[[#This Row],[IrrRain]],CalcTable[[#This Row],[IrrWarm]],CalcTable[[#This Row],[IrrWindy]]) ->  | Z107: =CalcTable[[#This Row],[IrrHours]]/5 ->  | AA107: =IF(CalcTable[[#This Row],[IrrFlag]]=FALSE,0,MAX(0,CalcTable[[#This Row],[VolRednWind]]*(FCAP*IRR_TARGET-CalcTable[[#This Row],[IWC]]))) ->  | AB107: =CalcTable[[#This Row],[IWC]]+CalcTable[[#This Row],[Eff Precip]]+CalcTable[[#This Row],[IrrAmt]]-CalcTable[[#This Row],[AET]] ->  | AC107: =IF(CalcTable[[#This Row],[PWC]]>FCAP,MIN(24*PERC,MIN(SAT,CalcTable[[#This Row],[PWC]])-FCAP),0) ->  | AD107: =IF(CalcTable[[#This Row],[PWC]]>SAT,CalcTable[[#This Row],[PWC]]-SAT,0) ->  | AE107: =CalcTable[[#This Row],[PWC]]-CalcTable[[#This Row],[PercAmt]]-CalcTable[[#This Row],[Runoff]] ->  | AF107: =CalcTable[[#This Row],[IrrAmt]]/1000*CUR_IRR_AREA*10000/IRR_EFF ->  | AI107: 0 | AJ107: 0 | AK107: 3.452631518 | AL107: 5.467533667 | AX107: 8.920165184 | AZ107: 211.0195831 | BA107: 324.9031677 | BB107: 334.9517193 | BC107: 19607 | BD107: 8.920165184 | BE107: 211.0195831 | BF107: 345.1608615 | BH107: 0 | BI107: 107 | BJ107: 107 | BK107: 1960-07-27
A108: 1960-07-28 | B108: 1960 | C108: 7 | D108: 210 | E108: 28 | F108: 5 | G108: 12.8 | H108: 5.588373608 | I108: 9.333333333 | J108: 0 | K108: 0 | L108: 0 | M108: =CalcTable[[#This Row],[IWC]]-AE107 ->  | N108: =IF(CalcTable[[#This Row],[Day of Year]]<123,FCAP,AE107) ->  | O108: =IF(IRR_DRIP,5,COUNTIF('IDET Wind Values'!C92:G92,"<="&IRR_MAXWIND)) ->  | P108: =CalcTable[[#This Row],[ET_o]]*KL ->  | Q108: =IF(WILTPT<=0,1,MAX(0,MIN(1,(CalcTable[[#This Row],[IWC]]-WILTPT)/(MAD-WILTPT)))) ->  | R108: =CalcTable[[#This Row],[ETMult]]*CalcTable[[#This Row],[ETb]] ->  | S108: =INDEX(IRR_LIST,CalcTable[[#This Row],[Day of Week]]+1) -> TRUE | T108: 0 | U108: =IF(CalcTable[[#This Row],[IrrPrecip]]>=IC_MM,FALSE,TRUE) -> TRUE | V108: TRUE | W108: =IF(AND(IRR_DRIP=FALSE,CalcTable[[#This Row],[IrrHours]]<=0),FALSE,TRUE) ->  | X108: =AND(CalcTable[[#This Row],[IrrDay]],CalcTable[[#This Row],[IrrRain]],CalcTable[[#This Row],[IrrWarm]],CalcTable[[#This Row],[IrrWindy]]) ->  | Z108: =CalcTable[[#This Row],[IrrHours]]/5 ->  | AA108: =IF(CalcTable[[#This Row],[IrrFlag]]=FALSE,0,MAX(0,CalcTable[[#This Row],[VolRednWind]]*(FCAP*IRR_TARGET-CalcTable[[#This Row],[IWC]]))) ->  | AB108: =CalcTable[[#This Row],[IWC]]+CalcTable[[#This Row],[Eff Precip]]+CalcTable[[#This Row],[IrrAmt]]-CalcTable[[#This Row],[AET]] ->  | AC108: =IF(CalcTable[[#This Row],[PWC]]>FCAP,MIN(24*PERC,MIN(SAT,CalcTable[[#This Row],[PWC]])-FCAP),0) ->  | AD108: =IF(CalcTable[[#This Row],[PWC]]>SAT,CalcTable[[#This Row],[PWC]]-SAT,0) ->  | AE108: =CalcTable[[#This Row],[PWC]]-CalcTable[[#This Row],[PercAmt]]-CalcTable[[#This Row],[Runoff]] ->  | AF108: =CalcTable[[#This Row],[IrrAmt]]/1000*CUR_IRR_AREA*10000/IRR_EFF ->  | AI108: 0 | AJ108: 0 | AK108: 0 | AL108: 0 | AX108: 0 | AZ108: 0 | BA108: 0 | BB108: 0 | BC108: 19607 | BD108: 0 | BE108: 0 | BF108: 0 | BH108: 0 | BI108: 108 | BJ108: 108 | BK108: 1960-07-28
A109: 1960-07-29 | B109: 1960 | C109: 7 | D109: 211 | E109: 29 | F109: 6 | G109: 13.3 | H109: 5.849409996 | I109: 12.16666667 | J109: 0 | K109: 0 | L109: 0 | M109: =CalcTable[[#This Row],[IWC]]-AE108 ->  | N109: =IF(CalcTable[[#This Row],[Day of Year]]<123,FCAP,AE108) ->  | O109: =IF(IRR_DRIP,5,COUNTIF('IDET Wind Values'!C93:G93,"<="&IRR_MAXWIND)) ->  | P109: =CalcTable[[#This Row],[ET_o]]*KL ->  | Q109: =IF(WILTPT<=0,1,MAX(0,MIN(1,(CalcTable[[#This Row],[IWC]]-WILTPT)/(MAD-WILTPT)))) ->  | R109: =CalcTable[[#This Row],[ETMult]]*CalcTable[[#This Row],[ETb]] ->  | S109: =INDEX(IRR_LIST,CalcTable[[#This Row],[Day of Week]]+1) -> FALSE | T109: 0 | U109: =IF(CalcTable[[#This Row],[IrrPrecip]]>=IC_MM,FALSE,TRUE) -> TRUE | V109: TRUE | W109: =IF(AND(IRR_DRIP=FALSE,CalcTable[[#This Row],[IrrHours]]<=0),FALSE,TRUE) ->  | X109: =AND(CalcTable[[#This Row],[IrrDay]],CalcTable[[#This Row],[IrrRain]],CalcTable[[#This Row],[IrrWarm]],CalcTable[[#This Row],[IrrWindy]]) ->  | Z109: =CalcTable[[#This Row],[IrrHours]]/5 ->  | AA109: =IF(CalcTable[[#This Row],[IrrFlag]]=FALSE,0,MAX(0,CalcTable[[#This Row],[VolRednWind]]*(FCAP*IRR_TARGET-CalcTable[[#This Row],[IWC]]))) ->  | AB109: =CalcTable[[#This Row],[IWC]]+CalcTable[[#This Row],[Eff Precip]]+CalcTable[[#This Row],[IrrAmt]]-CalcTable[[#This Row],[AET]] ->  | AC109: =IF(CalcTable[[#This Row],[PWC]]>FCAP,MIN(24*PERC,MIN(SAT,CalcTable[[#This Row],[PWC]])-FCAP),0) ->  | AD109: =IF(CalcTable[[#This Row],[PWC]]>SAT,CalcTable[[#This Row],[PWC]]-SAT,0) ->  | AE109: =CalcTable[[#This Row],[PWC]]-CalcTable[[#This Row],[PercAmt]]-CalcTable[[#This Row],[Runoff]] ->  | AF109: =CalcTable[[#This Row],[IrrAmt]]/1000*CUR_IRR_AREA*10000/IRR_EFF ->  | AI109: 0 | AJ109: 0 | AK109: 0 | AL109: 6.474162637 | AX109: 6.474162637 | AZ109: 189.9087707 | BA109: 292.3992184 | BB109: 301.4424932 | BC109: 19607 | BD109: 6.474162637 | BE109: 189.9087707 | BF109: 310.6302928 | BH109: 0 | BI109: 109 | BJ109: 109 | BK109: 1960-07-29
A110: 1960-07-30 | B110: 1960 | C110: 7 | D110: 212 | E110: 30 | F110: 7 | G110: 10 | H110: 5.948074162 | I110: 4.166666667 | J110: 0 | K110: 0 | L110: 0 | M110: =CalcTable[[#This Row],[IWC]]-AE109 ->  | N110: =IF(CalcTable[[#This Row],[Day of Year]]<123,FCAP,AE109) ->  | O110: =IF(IRR_DRIP,5,COUNTIF('IDET Wind Values'!C94:G94,"<="&IRR_MAXWIND)) ->  | P110: =CalcTable[[#This Row],[ET_o]]*KL ->  | Q110: =IF(WILTPT<=0,1,MAX(0,MIN(1,(CalcTable[[#This Row],[IWC]]-WILTPT)/(MAD-WILTPT)))) ->  | R110: =CalcTable[[#This Row],[ETMult]]*CalcTable[[#This Row],[ETb]] ->  | S110: =INDEX(IRR_LIST,CalcTable[[#This Row],[Day of Week]]+1) -> FALSE | T110: 0 | U110: =IF(CalcTable[[#This Row],[IrrPrecip]]>=IC_MM,FALSE,TRUE) -> TRUE | V110: TRUE | W110: =IF(AND(IRR_DRIP=FALSE,CalcTable[[#This Row],[IrrHours]]<=0),FALSE,TRUE) ->  | X110: =AND(CalcTable[[#This Row],[IrrDay]],CalcTable[[#This Row],[IrrRain]],CalcTable[[#This Row],[IrrWarm]],CalcTable[[#This Row],[IrrWindy]]) ->  | Z110: =CalcTable[[#This Row],[IrrHours]]/5 ->  | AA110: =IF(CalcTable[[#This Row],[IrrFlag]]=FALSE,0,MAX(0,CalcTable[[#This Row],[VolRednWind]]*(FCAP*IRR_TARGET-CalcTable[[#This Row],[IWC]]))) ->  | AB110: =CalcTable[[#This Row],[IWC]]+CalcTable[[#This Row],[Eff Precip]]+CalcTable[[#This Row],[IrrAmt]]-CalcTable[[#This Row],[AET]] ->  | AC110: =IF(CalcTable[[#This Row],[PWC]]>FCAP,MIN(24*PERC,MIN(SAT,CalcTable[[#This Row],[PWC]])-FCAP),0) ->  | AD110: =IF(CalcTable[[#This Row],[PWC]]>SAT,CalcTable[[#This Row],[PWC]]-SAT,0) ->  | AE110: =CalcTable[[#This Row],[PWC]]-CalcTable[[#This Row],[PercAmt]]-CalcTable[[#This Row],[Runoff]] ->  | AF110: =CalcTable[[#This Row],[IrrAmt]]/1000*CUR_IRR_AREA*10000/IRR_EFF ->  | AI110: 0 | AJ110: 0 | AK110: 0 | AL110: 0 | AX110: 0 | AZ110: 0 | BA110: 0 | BB110: 0 | BC110: 19607 | BD110: 0 | BE110: 0 | BF110: 0 | BH110: 0 | BI110: 110 | BJ110: 110 | BK110: 1960-07-30
A111: 1960-07-31 | B111: 1960 | C111: 7 | D111: 213 | E111: 31 | F111: 1 | G111: 17.8 | H111: 4.583217342 | I111: 13.16666667 | J111: 0.5 | K111: 0.5 | L111: 0 | M111: =CalcTable[[#This Row],[IWC]]-AE110 ->  | N111: =IF(CalcTable[[#This Row],[Day of Year]]<123,FCAP,AE110) ->  | O111: =IF(IRR_DRIP,5,COUNTIF('IDET Wind Values'!C95:G95,"<="&IRR_MAXWIND)) ->  | P111: =CalcTable[[#This Row],[ET_o]]*KL ->  | Q111: =IF(WILTPT<=0,1,MAX(0,MIN(1,(CalcTable[[#This Row],[IWC]]-WILTPT)/(MAD-WILTPT)))) ->  | R111: =CalcTable[[#This Row],[ETMult]]*CalcTable[[#This Row],[ETb]] ->  | S111: =INDEX(IRR_LIST,CalcTable[[#This Row],[Day of Week]]+1) -> TRUE | T111: 0 | U111: =IF(CalcTable[[#This Row],[IrrPrecip]]>=IC_MM,FALSE,TRUE) -> TRUE | V111: TRUE | W111: =IF(AND(IRR_DRIP=FALSE,CalcTable[[#This Row],[IrrHours]]<=0),FALSE,TRUE) ->  | X111: =AND(CalcTable[[#This Row],[IrrDay]],CalcTable[[#This Row],[IrrRain]],CalcTable[[#This Row],[IrrWarm]],CalcTable[[#This Row],[IrrWindy]]) ->  | Z111: =CalcTable[[#This Row],[IrrHours]]/5 ->  | AA111: =IF(CalcTable[[#This Row],[IrrFlag]]=FALSE,0,MAX(0,CalcTable[[#This Row],[VolRednWind]]*(FCAP*IRR_TARGET-CalcTable[[#This Row],[IWC]]))) ->  | AB111: =CalcTable[[#This Row],[IWC]]+CalcTable[[#This Row],[Eff Precip]]+CalcTable[[#This Row],[IrrAmt]]-CalcTable[[#This Row],[AET]] ->  | AC111: =IF(CalcTable[[#This Row],[PWC]]>FCAP,MIN(24*PERC,MIN(SAT,CalcTable[[#This Row],[PWC]])-FCAP),0) ->  | AD111: =IF(CalcTable[[#This Row],[PWC]]>SAT,CalcTable[[#This Row],[PWC]]-SAT,0) ->  | AE111: =CalcTable[[#This Row],[PWC]]-CalcTable[[#This Row],[PercAmt]]-CalcTable[[#This Row],[Runoff]] ->  | AF111: =CalcTable[[#This Row],[IrrAmt]]/1000*CUR_IRR_AREA*10000/IRR_EFF ->  | AI111: 13.48663288 | AJ111: 21.44496531 | AK111: 0 | AL111: 0 | AX111: 34.93159819 | AZ111: 826.8562645 | BA111: 1342.222781 | BB111: 1389.277626 | BC111: 19607 | BD111: 34.93159819 | BE111: 826.8562645 | BF111: 1352.473625 | BH111: 0 | BI111: 111 | BJ111: 111 | BK111: 1960-07-31
A112: 1960-08-01 | B112: 1960 | C112: 8 | D112: 214 | E112: 1 | F112: 2 | G112: 11.1 | H112: 4.030615189 | I112: 7.5 | J112: 2 | K112: 2 | L112: 0 | M112: =CalcTable[[#This Row],[IWC]]-AE111 ->  | N112: =IF(CalcTable[[#This Row],[Day of Year]]<123,FCAP,AE111) ->  | O112: =IF(IRR_DRIP,5,COUNTIF('IDET Wind Values'!C96:G96,"<="&IRR_MAXWIND)) ->  | P112: =CalcTable[[#This Row],[ET_o]]*KL ->  | Q112: =IF(WILTPT<=0,1,MAX(0,MIN(1,(CalcTable[[#This Row],[IWC]]-WILTPT)/(MAD-WILTPT)))) ->  | R112: =CalcTable[[#This Row],[ETMult]]*CalcTable[[#This Row],[ETb]] ->  | S112: =INDEX(IRR_LIST,CalcTable[[#This Row],[Day of Week]]+1) -> FALSE | T112: 0.5 | U112: =IF(CalcTable[[#This Row],[IrrPrecip]]>=IC_MM,FALSE,TRUE) -> TRUE | V112: TRUE | W112: =IF(AND(IRR_DRIP=FALSE,CalcTable[[#This Row],[IrrHours]]<=0),FALSE,TRUE) ->  | X112: =AND(CalcTable[[#This Row],[IrrDay]],CalcTable[[#This Row],[IrrRain]],CalcTable[[#This Row],[IrrWarm]],CalcTable[[#This Row],[IrrWindy]]) ->  | Z112: =CalcTable[[#This Row],[IrrHours]]/5 ->  | AA112: =IF(CalcTable[[#This Row],[IrrFlag]]=FALSE,0,MAX(0,CalcTable[[#This Row],[VolRednWind]]*(FCAP*IRR_TARGET-CalcTable[[#This Row],[IWC]]))) ->  | AB112: =CalcTable[[#This Row],[IWC]]+CalcTable[[#This Row],[Eff Precip]]+CalcTable[[#This Row],[IrrAmt]]-CalcTable[[#This Row],[AET]] ->  | AC112: =IF(CalcTable[[#This Row],[PWC]]>FCAP,MIN(24*PERC,MIN(SAT,CalcTable[[#This Row],[PWC]])-FCAP),0) ->  | AD112: =IF(CalcTable[[#This Row],[PWC]]>SAT,CalcTable[[#This Row],[PWC]]-SAT,0) ->  | AE112: =CalcTable[[#This Row],[PWC]]-CalcTable[[#This Row],[PercAmt]]-CalcTable[[#This Row],[Runoff]] ->  | AF112: =CalcTable[[#This Row],[IrrAmt]]/1000*CUR_IRR_AREA*10000/IRR_EFF ->  | AI112: 0 | AJ112: 0 | AK112: 2.353507578 | AL112: 9.009385825 | AX112: 11.3628934 | AZ112: 298.7934287 | BA112: 460.0470251 | BB112: 474.2752836 | BC112: 19608 | BD112: 11.3628934 | BE112: 298.7934287 | BF112: 488.7309306 | BH112: 0 | BI112: 112 | BJ112: 112 | BK112: 1960-08-01
A113: 1960-08-02 | B113: 1960 | C113: 8 | D113: 215 | E113: 2 | F113: 3 | G113: 14.4 | H113: 2.868091296 | I113: 14.83333333 | J113: 1.9 | K113: 1.9 | L113: 0 | M113: =CalcTable[[#This Row],[IWC]]-AE112 ->  | N113: =IF(CalcTable[[#This Row],[Day of Year]]<123,FCAP,AE112) ->  | O113: =IF(IRR_DRIP,5,COUNTIF('IDET Wind Values'!C97:G97,"<="&IRR_MAXWIND)) ->  | P113: =CalcTable[[#This Row],[ET_o]]*KL ->  | Q113: =IF(WILTPT<=0,1,MAX(0,MIN(1,(CalcTable[[#This Row],[IWC]]-WILTPT)/(MAD-WILTPT)))) ->  | R113: =CalcTable[[#This Row],[ETMult]]*CalcTable[[#This Row],[ETb]] ->  | S113: =INDEX(IRR_LIST,CalcTable[[#This Row],[Day of Week]]+1) -> TRUE | T113: 2.5 | U113: =IF(CalcTable[[#This Row],[IrrPrecip]]>=IC_MM,FALSE,TRUE) -> TRUE | V113: TRUE | W113: =IF(AND(IRR_DRIP=FALSE,CalcTable[[#This Row],[IrrHours]]<=0),FALSE,TRUE) ->  | X113: =AND(CalcTable[[#This Row],[IrrDay]],CalcTable[[#This Row],[IrrRain]],CalcTable[[#This Row],[IrrWarm]],CalcTable[[#This Row],[IrrWindy]]) ->  | Z113: =CalcTable[[#This Row],[IrrHours]]/5 ->  | AA113: =IF(CalcTable[[#This Row],[IrrFlag]]=FALSE,0,MAX(0,CalcTable[[#This Row],[VolRednWind]]*(FCAP*IRR_TARGET-CalcTable[[#This Row],[IWC]]))) ->  | AB113: =CalcTable[[#This Row],[IWC]]+CalcTable[[#This Row],[Eff Precip]]+CalcTable[[#This Row],[IrrAmt]]-CalcTable[[#This Row],[AET]] ->  | AC113: =IF(CalcTable[[#This Row],[PWC]]>FCAP,MIN(24*PERC,MIN(SAT,CalcTable[[#This Row],[PWC]])-FCAP),0) ->  | AD113: =IF(CalcTable[[#This Row],[PWC]]>SAT,CalcTable[[#This Row],[PWC]]-SAT,0) ->  | AE113: =CalcTable[[#This Row],[PWC]]-CalcTable[[#This Row],[PercAmt]]-CalcTable[[#This Row],[Runoff]] ->  | AF113: =CalcTable[[#This Row],[IrrAmt]]/1000*CUR_IRR_AREA*10000/IRR_EFF ->  | AI113: 6.369256877 | AJ113: 9.961893288 | AK113: 0 | AL113: 0 | AX113: 16.33115017 | AZ113: 385.631304 | BA113: 625.8613829 | BB113: 647.7927336 | BC113: 19608 | BD113: 16.33115017 | BE113: 385.631304 | BF113: 630.7700504 | BH113: 0 | BI113: 113 | BJ113: 113 | BK113: 1960-08-02
A114: 1960-08-03 | B114: 1960 | C114: 8 | D114: 216 | E114: 3 | F114: 4 | G114: 11.1 | H114: 3.684752394 | I114: 1.833333333 | J114: 0 | K114: 0 | L114: 0 | M114: =CalcTable[[#This Row],[IWC]]-AE113 ->  | N114: =IF(CalcTable[[#This Row],[Day of Year]]<123,FCAP,AE113) ->  | O114: =IF(IRR_DRIP,5,COUNTIF('IDET Wind Values'!C98:G98,"<="&IRR_MAXWIND)) ->  | P114: =CalcTable[[#This Row],[ET_o]]*KL ->  | Q114: =IF(WILTPT<=0,1,MAX(0,MIN(1,(CalcTable[[#This Row],[IWC]]-WILTPT)/(MAD-WILTPT)))) ->  | R114: =CalcTable[[#This Row],[ETMult]]*CalcTable[[#This Row],[ETb]] ->  | S114: =INDEX(IRR_LIST,CalcTable[[#This Row],[Day of Week]]+1) -> FALSE | T114: 3.9 | U114: =IF(CalcTable[[#This Row],[IrrPrecip]]>=IC_MM,FALSE,TRUE) -> TRUE | V114: TRUE | W114: =IF(AND(IRR_DRIP=FALSE,CalcTable[[#This Row],[IrrHours]]<=0),FALSE,TRUE) ->  | X114: =AND(CalcTable[[#This Row],[IrrDay]],CalcTable[[#This Row],[IrrRain]],CalcTable[[#This Row],[IrrWarm]],CalcTable[[#This Row],[IrrWindy]]) ->  | Z114: =CalcTable[[#This Row],[IrrHours]]/5 ->  | AA114: =IF(CalcTable[[#This Row],[IrrFlag]]=FALSE,0,MAX(0,CalcTable[[#This Row],[VolRednWind]]*(FCAP*IRR_TARGET-CalcTable[[#This Row],[IWC]]))) ->  | AB114: =CalcTable[[#This Row],[IWC]]+CalcTable[[#This Row],[Eff Precip]]+CalcTable[[#This Row],[IrrAmt]]-CalcTable[[#This Row],[AET]] ->  | AC114: =IF(CalcTable[[#This Row],[PWC]]>FCAP,MIN(24*PERC,MIN(SAT,CalcTable[[#This Row],[PWC]])-FCAP),0) ->  | AD114: =IF(CalcTable[[#This Row],[PWC]]>SAT,CalcTable[[#This Row],[PWC]]-SAT,0) ->  | AE114: =CalcTable[[#This Row],[PWC]]-CalcTable[[#This Row],[PercAmt]]-CalcTable[[#This Row],[Runoff]] ->  | AF114: =CalcTable[[#This Row],[IrrAmt]]/1000*CUR_IRR_AREA*10000/IRR_EFF ->  | AI114: 0 | AJ114: 0 | AK114: 8.222070721 | AL114: 3.857450213 | AX114: 12.07952093 | AZ114: 233.7422435 | BA114: 359.8888511 | BB114: 371.0194341 | BC114: 19608 | BD114: 12.07952093 | BE114: 233.7422435 | BF114: 382.3279002 | BH114: 0 | BI114: 114 | BJ114: 114 | BK114: 1960-08-03
A115: 1960-08-04 | B115: 1960 | C115: 8 | D115: 217 | E115: 4 | F115: 5 | G115: 11.7 | H115: 2.787503892 | I115: 8 | J115: 3.9 | K115: 3.9 | L115: 0 | M115: =CalcTable[[#This Row],[IWC]]-AE114 ->  | N115: =IF(CalcTable[[#This Row],[Day of Year]]<123,FCAP,AE114) ->  | O115: =IF(IRR_DRIP,5,COUNTIF('IDET Wind Values'!C99:G99,"<="&IRR_MAXWIND)) ->  | P115: =CalcTable[[#This Row],[ET_o]]*KL ->  | Q115: =IF(WILTPT<=0,1,MAX(0,MIN(1,(CalcTable[[#This Row],[IWC]]-WILTPT)/(MAD-WILTPT)))) ->  | R115: =CalcTable[[#This Row],[ETMult]]*CalcTable[[#This Row],[ETb]] ->  | S115: =INDEX(IRR_LIST,CalcTable[[#This Row],[Day of Week]]+1) -> TRUE | T115: 1.9 | U115: =IF(CalcTable[[#This Row],[IrrPrecip]]>=IC_MM,FALSE,TRUE) -> TRUE | V115: TRUE | W115: =IF(AND(IRR_DRIP=FALSE,CalcTable[[#This Row],[IrrHours]]<=0),FALSE,TRUE) ->  | X115: =AND(CalcTable[[#This Row],[IrrDay]],CalcTable[[#This Row],[IrrRain]],CalcTable[[#This Row],[IrrWarm]],CalcTable[[#This Row],[IrrWindy]]) ->  | Z115: =CalcTable[[#This Row],[IrrHours]]/5 ->  | AA115: =IF(CalcTable[[#This Row],[IrrFlag]]=FALSE,0,MAX(0,CalcTable[[#This Row],[VolRednWind]]*(FCAP*IRR_TARGET-CalcTable[[#This Row],[IWC]]))) ->  | AB115: =CalcTable[[#This Row],[IWC]]+CalcTable[[#This Row],[Eff Precip]]+CalcTable[[#This Row],[IrrAmt]]-CalcTable[[#This Row],[AET]] ->  | AC115: =IF(CalcTable[[#This Row],[PWC]]>FCAP,MIN(24*PERC,MIN(SAT,CalcTable[[#This Row],[PWC]])-FCAP),0) ->  | AD115: =IF(CalcTable[[#This Row],[PWC]]>SAT,CalcTable[[#This Row],[PWC]]-SAT,0) ->  | AE115: =CalcTable[[#This Row],[PWC]]-CalcTable[[#This Row],[PercAmt]]-CalcTable[[#This Row],[Runoff]] ->  | AF115: =CalcTable[[#This Row],[IrrAmt]]/1000*CUR_IRR_AREA*10000/IRR_EFF ->  | AI115: 0 | AJ115: 0 | AK115: 0 | AL115: 0 | AX115: 0 | AZ115: 0 | BA115: 0 | BB115: 0 | BC115: 19608 | BD115: 0 | BE115: 0 | BF115: 0 | BH115: 0 | BI115: 115 | BJ115: 115 | BK115: 1960-08-04
A116: 1960-08-05 | B116: 1960 | C116: 8 | D116: 218 | E116: 5 | F116: 6 | G116: 12.2 | H116: 3.871861048 | I116: 17.66666667 | J116: 0.3 | K116: 0.3 | L116: 0 | M116: =CalcTable[[#This Row],[IWC]]-AE115 ->  | N116: =IF(CalcTable[[#This Row],[Day of Year]]<123,FCAP,AE115) ->  | O116: =IF(IRR_DRIP,5,COUNTIF('IDET Wind Values'!C100:G100,"<="&IRR_MAXWIND)) ->  | P116: =CalcTable[[#This Row],[ET_o]]*KL ->  | Q116: =IF(WILTPT<=0,1,MAX(0,MIN(1,(CalcTable[[#This Row],[IWC]]-WILTPT)/(MAD-WILTPT)))) ->  | R116: =CalcTable[[#This Row],[ETMult]]*CalcTable[[#This Row],[ETb]] ->  | S116: =INDEX(IRR_LIST,CalcTable[[#This Row],[Day of Week]]+1) -> FALSE | T116: 3.9 | U116: =IF(CalcTable[[#This Row],[IrrPrecip]]>=IC_MM,FALSE,TRUE) -> TRUE | V116: TRUE | W116: =IF(AND(IRR_DRIP=FALSE,CalcTable[[#This Row],[IrrHours]]<=0),FALSE,TRUE) ->  | X116: =AND(CalcTable[[#This Row],[IrrDay]],CalcTable[[#This Row],[IrrRain]],CalcTable[[#This Row],[IrrWarm]],CalcTable[[#This Row],[IrrWindy]]) ->  | Z116: =CalcTable[[#This Row],[IrrHours]]/5 ->  | AA116: =IF(CalcTable[[#This Row],[IrrFlag]]=FALSE,0,MAX(0,CalcTable[[#This Row],[VolRednWind]]*(FCAP*IRR_TARGET-CalcTable[[#This Row],[IWC]]))) ->  | AB116: =CalcTable[[#This Row],[IWC]]+CalcTable[[#This Row],[Eff Precip]]+CalcTable[[#This Row],[IrrAmt]]-CalcTable[[#This Row],[AET]] ->  | AC116: =IF(CalcTable[[#This Row],[PWC]]>FCAP,MIN(24*PERC,MIN(SAT,CalcTable[[#This Row],[PWC]])-FCAP),0) ->  | AD116: =IF(CalcTable[[#This Row],[PWC]]>SAT,CalcTable[[#This Row],[PWC]]-SAT,0) ->  | AE116: =CalcTable[[#This Row],[PWC]]-CalcTable[[#This Row],[PercAmt]]-CalcTable[[#This Row],[Runoff]] ->  | AF116: =CalcTable[[#This Row],[IrrAmt]]/1000*CUR_IRR_AREA*10000/IRR_EFF ->  | AI116: 0 | AJ116: 0 | AK116: 0 | AL116: 3.81312714 | AX116: 3.81312714 | AZ116: 111.8517294 | BA116: 172.2161549 | BB116: 177.5424277 | BC116: 19608 | BD116: 3.81312714 | BE116: 111.8517294 | BF116: 182.9538222 | BH116: 0 | BI116: 116 | BJ116: 116 | BK116: 1960-08-05
A117: 1960-08-06 | B117: 1960 | C117: 8 | D117: 219 | E117: 6 | F117: 7 | G117: 11.7 | H117: 3.227040326 | I117: 12.16666667 | J117: 9.7 | K117: 9.7 | L117: 3.525 | M117: =CalcTable[[#This Row],[IWC]]-AE116 ->  | N117: =IF(CalcTable[[#This Row],[Day of Year]]<123,FCAP,AE116) ->  | O117: =IF(IRR_DRIP,5,COUNTIF('IDET Wind Values'!C101:G101,"<="&IRR_MAXWIND)) ->  | P117: =CalcTable[[#This Row],[ET_o]]*KL ->  | Q117: =IF(WILTPT<=0,1,MAX(0,MIN(1,(CalcTable[[#This Row],[IWC]]-WILTPT)/(MAD-WILTPT)))) ->  | R117: =CalcTable[[#This Row],[ETMult]]*CalcTable[[#This Row],[ETb]] ->  | S117: =INDEX(IRR_LIST,CalcTable[[#This Row],[Day of Week]]+1) -> FALSE | T117: 4.2 | U117: =IF(CalcTable[[#This Row],[IrrPrecip]]>=IC_MM,FALSE,TRUE) -> TRUE | V117: TRUE | W117: =IF(AND(IRR_DRIP=FALSE,CalcTable[[#This Row],[IrrHours]]<=0),FALSE,TRUE) ->  | X117: =AND(CalcTable[[#This Row],[IrrDay]],CalcTable[[#This Row],[IrrRain]],CalcTable[[#This Row],[IrrWarm]],CalcTable[[#This Row],[IrrWindy]]) ->  | Z117: =CalcTable[[#This Row],[IrrHours]]/5 ->  | AA117: =IF(CalcTable[[#This Row],[IrrFlag]]=FALSE,0,MAX(0,CalcTable[[#This Row],[VolRednWind]]*(FCAP*IRR_TARGET-CalcTable[[#This Row],[IWC]]))) ->  | AB117: =CalcTable[[#This Row],[IWC]]+CalcTable[[#This Row],[Eff Precip]]+CalcTable[[#This Row],[IrrAmt]]-CalcTable[[#This Row],[AET]] ->  | AC117: =IF(CalcTable[[#This Row],[PWC]]>FCAP,MIN(24*PERC,MIN(SAT,CalcTable[[#This Row],[PWC]])-FCAP),0) ->  | AD117: =IF(CalcTable[[#This Row],[PWC]]>SAT,CalcTable[[#This Row],[PWC]]-SAT,0) ->  | AE117: =CalcTable[[#This Row],[PWC]]-CalcTable[[#This Row],[PercAmt]]-CalcTable[[#This Row],[Runoff]] ->  | AF117: =CalcTable[[#This Row],[IrrAmt]]/1000*CUR_IRR_AREA*10000/IRR_EFF ->  | AI117: 0 | AJ117: 0 | AK117: 0 | AL117: 0 | AX117: 0 | AZ117: 0 | BA117: 0 | BB117: 0 | BC117: 19608 | BD117: 0 | BE117: 0 | BF117: 0 | BH117: 0 | BI117: 117 | BJ117: 117 | BK117: 1960-08-06
A118: 1960-08-07 | B118: 1960 | C118: 8 | D118: 220 | E118: 7 | F118: 1 | G118: 8.9 | H118: 3.61094196 | I118: 17 | J118: 0 | K118: 0 | L118: 0 | M118: =CalcTable[[#This Row],[IWC]]-AE117 ->  | N118: =IF(CalcTable[[#This Row],[Day of Year]]<123,FCAP,AE117) ->  | O118: =IF(IRR_DRIP,5,COUNTIF('IDET Wind Values'!C102:G102,"<="&IRR_MAXWIND)) ->  | P118: =CalcTable[[#This Row],[ET_o]]*KL ->  | Q118: =IF(WILTPT<=0,1,MAX(0,MIN(1,(CalcTable[[#This Row],[IWC]]-WILTPT)/(MAD-WILTPT)))) ->  | R118: =CalcTable[[#This Row],[ETMult]]*CalcTable[[#This Row],[ETb]] ->  | S118: =INDEX(IRR_LIST,CalcTable[[#This Row],[Day of Week]]+1) -> TRUE | T118: 10 | U118: =IF(CalcTable[[#This Row],[IrrPrecip]]>=IC_MM,FALSE,TRUE) -> FALSE | V118: TRUE | W118: =IF(AND(IRR_DRIP=FALSE,CalcTable[[#This Row],[IrrHours]]<=0),FALSE,TRUE) ->  | X118: =AND(CalcTable[[#This Row],[IrrDay]],CalcTable[[#This Row],[IrrRain]],CalcTable[[#This Row],[IrrWarm]],CalcTable[[#This Row],[IrrWindy]]) ->  | Z118: =CalcTable[[#This Row],[IrrHours]]/5 ->  | AA118: =IF(CalcTable[[#This Row],[IrrFlag]]=FALSE,0,MAX(0,CalcTable[[#This Row],[VolRednWind]]*(FCAP*IRR_TARGET-CalcTable[[#This Row],[IWC]]))) ->  | AB118: =CalcTable[[#This Row],[IWC]]+CalcTable[[#This Row],[Eff Precip]]+CalcTable[[#This Row],[IrrAmt]]-CalcTable[[#This Row],[AET]] ->  | AC118: =IF(CalcTable[[#This Row],[PWC]]>FCAP,MIN(24*PERC,MIN(SAT,CalcTable[[#This Row],[PWC]])-FCAP),0) ->  | AD118: =IF(CalcTable[[#This Row],[PWC]]>SAT,CalcTable[[#This Row],[PWC]]-SAT,0) ->  | AE118: =CalcTable[[#This Row],[PWC]]-CalcTable[[#This Row],[PercAmt]]-CalcTable[[#This Row],[Runoff]] ->  | AF118: =CalcTable[[#This Row],[IrrAmt]]/1000*CUR_IRR_AREA*10000/IRR_EFF ->  | AI118: 0 | AJ118: 0 | AK118: 0 | AL118: 0 | AX118: 0 | AZ118: 0 | BA118: 0 | BB118: 0 | BC118: 19608 | BD118: 0 | BE118: 0 | BF118: 0 | BH118: 0 | BI118: 118 | BJ118: 118 | BK118: 1960-08-07
A119: 1960-08-08 | B119: 1960 | C119: 8 | D119: 221 | E119: 8 | F119: 2 | G119: 7.2 | H119: 4.063054204 | I119: 0 | J119: 0 | K119: 0 | L119: 0 | M119: =CalcTable[[#This Row],[IWC]]-AE118 ->  | N119: =IF(CalcTable[[#This Row],[Day of Year]]<123,FCAP,AE118) ->  | O119: =IF(IRR_DRIP,5,COUNTIF('IDET Wind Values'!C103:G103,"<="&IRR_MAXWIND)) ->  | P119: =CalcTable[[#This Row],[ET_o]]*KL ->  | Q119: =IF(WILTPT<=0,1,MAX(0,MIN(1,(CalcTable[[#This Row],[IWC]]-WILTPT)/(MAD-WILTPT)))) ->  | R119: =CalcTable[[#This Row],[ETMult]]*CalcTable[[#This Row],[ETb]] ->  | S119: =INDEX(IRR_LIST,CalcTable[[#This Row],[Day of Week]]+1) -> FALSE | T119: 9.7 | U119: =IF(CalcTable[[#This Row],[IrrPrecip]]>=IC_MM,FALSE,TRUE) -> TRUE | V119: TRUE | W119: =IF(AND(IRR_DRIP=FALSE,CalcTable[[#This Row],[IrrHours]]<=0),FALSE,TRUE) ->  | X119: =AND(CalcTable[[#This Row],[IrrDay]],CalcTable[[#This Row],[IrrRain]],CalcTable[[#This Row],[IrrWarm]],CalcTable[[#This Row],[IrrWindy]]) ->  | Z119: =CalcTable[[#This Row],[IrrHours]]/5 ->  | AA119: =IF(CalcTable[[#This Row],[IrrFlag]]=FALSE,0,MAX(0,CalcTable[[#This Row],[VolRednWind]]*(FCAP*IRR_TARGET-CalcTable[[#This Row],[IWC]]))) ->  | AB119: =CalcTable[[#This Row],[IWC]]+CalcTable[[#This Row],[Eff Precip]]+CalcTable[[#This Row],[IrrAmt]]-CalcTable[[#This Row],[AET]] ->  | AC119: =IF(CalcTable[[#This Row],[PWC]]>FCAP,MIN(24*PERC,MIN(SAT,CalcTable[[#This Row],[PWC]])-FCAP),0) ->  | AD119: =IF(CalcTable[[#This Row],[PWC]]>SAT,CalcTable[[#This Row],[PWC]]-SAT,0) ->  | AE119: =CalcTable[[#This Row],[PWC]]-CalcTable[[#This Row],[PercAmt]]-CalcTable[[#This Row],[Runoff]] ->  | AF119: =CalcTable[[#This Row],[IrrAmt]]/1000*CUR_IRR_AREA*10000/IRR_EFF ->  | AI119: 0 | AJ119: 0 | AK119: 1.365308195 | AL119: 4.266018078 | AX119: 5.631326273 | AZ119: 145.1610505 | BA119: 223.5019349 | BB119: 230.4143658 | BC119: 19608 | BD119: 5.631326273 | BE119: 145.1610505 | BF119: 237.4372676 | BH119: 0 | BI119: 119 | BJ119: 119 | BK119: 1960-08-08
A120: 1960-08-09 | B120: 1960 | C120: 8 | D120: 222 | E120: 9 | F120: 3 | G120: 8.9 | H120: 5.325992075 | I120: 12.66666667 | J120: 0 | K120: 0 | L120: 0 | M120: =CalcTable[[#This Row],[IWC]]-AE119 ->  | N120: =IF(CalcTable[[#This Row],[Day of Year]]<123,FCAP,AE119) ->  | O120: =IF(IRR_DRIP,5,COUNTIF('IDET Wind Values'!C104:G104,"<="&IRR_MAXWIND)) ->  | P120: =CalcTable[[#This Row],[ET_o]]*KL ->  | Q120: =IF(WILTPT<=0,1,MAX(0,MIN(1,(CalcTable[[#This Row],[IWC]]-WILTPT)/(MAD-WILTPT)))) ->  | R120: =CalcTable[[#This Row],[ETMult]]*CalcTable[[#This Row],[ETb]] ->  | S120: =INDEX(IRR_LIST,CalcTable[[#This Row],[Day of Week]]+1) -> TRUE | T120: 0 | U120: =IF(CalcTable[[#This Row],[IrrPrecip]]>=IC_MM,FALSE,TRUE) -> TRUE | V120: TRUE | W120: =IF(AND(IRR_DRIP=FALSE,CalcTable[[#This Row],[IrrHours]]<=0),FALSE,TRUE) ->  | X120: =AND(CalcTable[[#This Row],[IrrDay]],CalcTable[[#This Row],[IrrRain]],CalcTable[[#This Row],[IrrWarm]],CalcTable[[#This Row],[IrrWindy]]) ->  | Z120: =CalcTable[[#This Row],[IrrHours]]/5 ->  | AA120: =IF(CalcTable[[#This Row],[IrrFlag]]=FALSE,0,MAX(0,CalcTable[[#This Row],[VolRednWind]]*(FCAP*IRR_TARGET-CalcTable[[#This Row],[IWC]]))) ->  | AB120: =CalcTable[[#This Row],[IWC]]+CalcTable[[#This Row],[Eff Precip]]+CalcTable[[#This Row],[IrrAmt]]-CalcTable[[#This Row],[AET]] ->  | AC120: =IF(CalcTable[[#This Row],[PWC]]>FCAP,MIN(24*PERC,MIN(SAT,CalcTable[[#This Row],[PWC]])-FCAP),0) ->  | AD120: =IF(CalcTable[[#This Row],[PWC]]>SAT,CalcTable[[#This Row],[PWC]]-SAT,0) ->  | AE120: =CalcTable[[#This Row],[PWC]]-CalcTable[[#This Row],[PercAmt]]-CalcTable[[#This Row],[Runoff]] ->  | AF120: =CalcTable[[#This Row],[IrrAmt]]/1000*CUR_IRR_AREA*10000/IRR_EFF ->  | AI120: 11.23120877 | AJ120: 14.53008614 | AK120: 0 | AL120: 0 | AX120: 25.76129491 | AZ120: 590.9402555 | BA120: 956.697301 | BB120: 990.0414141 | BC120: 19608 | BD120: 25.76129491 | BE120: 590.9402555 | BF120: 966.5901364 | BH120: 0 | BI120: 120 | BJ120: 120 | BK120: 1960-08-09
A121: 1960-08-10 | B121: 1960 | C121: 8 | D121: 223 | E121: 10 | F121: 4 | G121: 7.2 | H121: 5.222747882 | I121: 5.5 | J121: 0 | K121: 0 | L121: 0 | M121: =CalcTable[[#This Row],[IWC]]-AE120 ->  | N121: =IF(CalcTable[[#This Row],[Day of Year]]<123,FCAP,AE120) ->  | O121: =IF(IRR_DRIP,5,COUNTIF('IDET Wind Values'!C105:G105,"<="&IRR_MAXWIND)) ->  | P121: =CalcTable[[#This Row],[ET_o]]*KL ->  | Q121: =IF(WILTPT<=0,1,MAX(0,MIN(1,(CalcTable[[#This Row],[IWC]]-WILTPT)/(MAD-WILTPT)))) ->  | R121: =CalcTable[[#This Row],[ETMult]]*CalcTable[[#This Row],[ETb]] ->  | S121: =INDEX(IRR_LIST,CalcTable[[#This Row],[Day of Week]]+1) -> FALSE | T121: 0 | U121: =IF(CalcTable[[#This Row],[IrrPrecip]]>=IC_MM,FALSE,TRUE) -> TRUE | V121: TRUE | W121: =IF(AND(IRR_DRIP=FALSE,CalcTable[[#This Row],[IrrHours]]<=0),FALSE,TRUE) ->  | X121: =AND(CalcTable[[#This Row],[IrrDay]],CalcTable[[#This Row],[IrrRain]],CalcTable[[#This Row],[IrrWarm]],CalcTable[[#This Row],[IrrWindy]]) ->  | Z121: =CalcTable[[#This Row],[IrrHours]]/5 ->  | AA121: =IF(CalcTable[[#This Row],[IrrFlag]]=FALSE,0,MAX(0,CalcTable[[#This Row],[VolRednWind]]*(FCAP*IRR_TARGET-CalcTable[[#This Row],[IWC]]))) ->  | AB121: =CalcTable[[#This Row],[IWC]]+CalcTable[[#This Row],[Eff Precip]]+CalcTable[[#This Row],[IrrAmt]]-CalcTable[[#This Row],[AET]] ->  | AC121: =IF(CalcTable[[#This Row],[PWC]]>FCAP,MIN(24*PERC,MIN(SAT,CalcTable[[#This Row],[PWC]])-FCAP),0) ->  | AD121: =IF(CalcTable[[#This Row],[PWC]]>SAT,CalcTable[[#This Row],[PWC]]-SAT,0) ->  | AE121: =CalcTable[[#This Row],[PWC]]-CalcTable[[#This Row],[PercAmt]]-CalcTable[[#This Row],[Runoff]] ->  | AF121: =CalcTable[[#This Row],[IrrAmt]]/1000*CUR_IRR_AREA*10000/IRR_EFF ->  | AI121: 0 | AJ121: 0 | AK121: 2.081773497 | AL121: 5.209295641 | AX121: 7.291069138 | AZ121: 183.3386834 | BA121: 282.2833697 | BB121: 291.0137832 | BC121: 19608 | BD121: 7.291069138 | BE121: 183.3386834 | BF121: 299.8837216 | BH121: 0 | BI121: 121 | BJ121: 121 | BK121: 1960-08-10
A122: 1960-08-11 | B122: 1960 | C122: 8 | D122: 224 | E122: 11 | F122: 5 | G122: 13.3 | H122: 5.563993691 | I122: 10 | J122: 0.6 | K122: 0.6 | L122: 0 | M122: =CalcTable[[#This Row],[IWC]]-AE121 ->  | N122: =IF(CalcTable[[#This Row],[Day of Year]]<123,FCAP,AE121) ->  | O122: =IF(IRR_DRIP,5,COUNTIF('IDET Wind Values'!C106:G106,"<="&IRR_MAXWIND)) ->  | P122: =CalcTable[[#This Row],[ET_o]]*KL ->  | Q122: =IF(WILTPT<=0,1,MAX(0,MIN(1,(CalcTable[[#This Row],[IWC]]-WILTPT)/(MAD-WILTPT)))) ->  | R122: =CalcTable[[#This Row],[ETMult]]*CalcTable[[#This Row],[ETb]] ->  | S122: =INDEX(IRR_LIST,CalcTable[[#This Row],[Day of Week]]+1) -> TRUE | T122: 0 | U122: =IF(CalcTable[[#This Row],[IrrPrecip]]>=IC_MM,FALSE,TRUE) -> TRUE | V122: TRUE | W122: =IF(AND(IRR_DRIP=FALSE,CalcTable[[#This Row],[IrrHours]]<=0),FALSE,TRUE) ->  | X122: =AND(CalcTable[[#This Row],[IrrDay]],CalcTable[[#This Row],[IrrRain]],CalcTable[[#This Row],[IrrWarm]],CalcTable[[#This Row],[IrrWindy]]) ->  | Z122: =CalcTable[[#This Row],[IrrHours]]/5 ->  | AA122: =IF(CalcTable[[#This Row],[IrrFlag]]=FALSE,0,MAX(0,CalcTable[[#This Row],[VolRednWind]]*(FCAP*IRR_TARGET-CalcTable[[#This Row],[IWC]]))) ->  | AB122: =CalcTable[[#This Row],[IWC]]+CalcTable[[#This Row],[Eff Precip]]+CalcTable[[#This Row],[IrrAmt]]-CalcTable[[#This Row],[AET]] ->  | AC122: =IF(CalcTable[[#This Row],[PWC]]>FCAP,MIN(24*PERC,MIN(SAT,CalcTable[[#This Row],[PWC]])-FCAP),0) ->  | AD122: =IF(CalcTable[[#This Row],[PWC]]>SAT,CalcTable[[#This Row],[PWC]]-SAT,0) ->  | AE122: =CalcTable[[#This Row],[PWC]]-CalcTable[[#This Row],[PercAmt]]-CalcTable[[#This Row],[Runoff]] ->  | AF122: =CalcTable[[#This Row],[IrrAmt]]/1000*CUR_IRR_AREA*10000/IRR_EFF ->  | AI122: 4.913068673 | AJ122: 6.609983703 | AK122: 0 | AL122: 0 | AX122: 11.52305238 | AZ122: 265.9511958 | BA122: 430.7873198 | BB122: 445.8190966 | BC122: 19608 | BD122: 11.52305238 | BE122: 265.9511958 | BF122: 435.0114927 | BH122: 0 | BI122: 122 | BJ122: 122 | BK122: 1960-08-11
A123: 1960-08-12 | B123: 1960 | C123: 8 | D123: 225 | E123: 12 | F123: 6 | G123: 12.8 | H123: 4.730913696 | I123: 8.166666667 | J123: 0 | K123: 0 | L123: 0 | M123: =CalcTable[[#This Row],[IWC]]-AE122 ->  | N123: =IF(CalcTable[[#This Row],[Day of Year]]<123,FCAP,AE122) ->  | O123: =IF(IRR_DRIP,5,COUNTIF('IDET Wind Values'!C107:G107,"<="&IRR_MAXWIND)) ->  | P123: =CalcTable[[#This Row],[ET_o]]*KL ->  | Q123: =IF(WILTPT<=0,1,MAX(0,MIN(1,(CalcTable[[#This Row],[IWC]]-WILTPT)/(MAD-WILTPT)))) ->  | R123: =CalcTable[[#This Row],[ETMult]]*CalcTable[[#This Row],[ETb]] ->  | S123: =INDEX(IRR_LIST,CalcTable[[#This Row],[Day of Week]]+1) -> FALSE | T123: 0.6 | U123: =IF(CalcTable[[#This Row],[IrrPrecip]]>=IC_MM,FALSE,TRUE) -> TRUE | V123: TRUE | W123: =IF(AND(IRR_DRIP=FALSE,CalcTable[[#This Row],[IrrHours]]<=0),FALSE,TRUE) ->  | X123: =AND(CalcTable[[#This Row],[IrrDay]],CalcTable[[#This Row],[IrrRain]],CalcTable[[#This Row],[IrrWarm]],CalcTable[[#This Row],[IrrWindy]]) ->  | Z123: =CalcTable[[#This Row],[IrrHours]]/5 ->  | AA123: =IF(CalcTable[[#This Row],[IrrFlag]]=FALSE,0,MAX(0,CalcTable[[#This Row],[VolRednWind]]*(FCAP*IRR_TARGET-CalcTable[[#This Row],[IWC]]))) ->  | AB123: =CalcTable[[#This Row],[IWC]]+CalcTable[[#This Row],[Eff Precip]]+CalcTable[[#This Row],[IrrAmt]]-CalcTable[[#This Row],[AET]] ->  | AC123: =IF(CalcTable[[#This Row],[PWC]]>FCAP,MIN(24*PERC,MIN(SAT,CalcTable[[#This Row],[PWC]])-FCAP),0) ->  | AD123: =IF(CalcTable[[#This Row],[PWC]]>SAT,CalcTable[[#This Row],[PWC]]-SAT,0) ->  | AE123: =CalcTable[[#This Row],[PWC]]-CalcTable[[#This Row],[PercAmt]]-CalcTable[[#This Row],[Runoff]] ->  | AF123: =CalcTable[[#This Row],[IrrAmt]]/1000*CUR_IRR_AREA*10000/IRR_EFF ->  | AI123: 0 | AJ123: 0 | AK123: 0 | AL123: 5.932707865 | AX123: 5.932707865 | AZ123: 174.0260974 | BA123: 267.9449436 | BB123: 276.2319006 | BC123: 19608 | BD123: 5.932707865 | BE123: 174.0260974 | BF123: 284.6512954 | BH123: 0 | BI123: 123 | BJ123: 123 | BK123: 1960-08-12
A124: 1960-08-13 | B124: 1960 | C124: 8 | D124: 226 | E124: 13 | F124: 7 | G124: 8.9 | H124: 5.460199858 | I124: 2 | J124: 0 | K124: 0 | L124: 0 | M124: =CalcTable[[#This Row],[IWC]]-AE123 ->  | N124: =IF(CalcTable[[#This Row],[Day of Year]]<123,FCAP,AE123) ->  | O124: =IF(IRR_DRIP,5,COUNTIF('IDET Wind Values'!C108:G108,"<="&IRR_MAXWIND)) ->  | P124: =CalcTable[[#This Row],[ET_o]]*KL ->  | Q124: =IF(WILTPT<=0,1,MAX(0,MIN(1,(CalcTable[[#This Row],[IWC]]-WILTPT)/(MAD-WILTPT)))) ->  | R124: =CalcTable[[#This Row],[ETMult]]*CalcTable[[#This Row],[ETb]] ->  | S124: =INDEX(IRR_LIST,CalcTable[[#This Row],[Day of Week]]+1) -> FALSE | T124: 0.6 | U124: =IF(CalcTable[[#This Row],[IrrPrecip]]>=IC_MM,FALSE,TRUE) -> TRUE | V124: TRUE | W124: =IF(AND(IRR_DRIP=FALSE,CalcTable[[#This Row],[IrrHours]]<=0),FALSE,TRUE) ->  | X124: =AND(CalcTable[[#This Row],[IrrDay]],CalcTable[[#This Row],[IrrRain]],CalcTable[[#This Row],[IrrWarm]],CalcTable[[#This Row],[IrrWindy]]) ->  | Z124: =CalcTable[[#This Row],[IrrHours]]/5 ->  | AA124: =IF(CalcTable[[#This Row],[IrrFlag]]=FALSE,0,MAX(0,CalcTable[[#This Row],[VolRednWind]]*(FCAP*IRR_TARGET-CalcTable[[#This Row],[IWC]]))) ->  | AB124: =CalcTable[[#This Row],[IWC]]+CalcTable[[#This Row],[Eff Precip]]+CalcTable[[#This Row],[IrrAmt]]-CalcTable[[#This Row],[AET]] ->  | AC124: =IF(CalcTable[[#This Row],[PWC]]>FCAP,MIN(24*PERC,MIN(SAT,CalcTable[[#This Row],[PWC]])-FCAP),0) ->  | AD124: =IF(CalcTable[[#This Row],[PWC]]>SAT,CalcTable[[#This Row],[PWC]]-SAT,0) ->  | AE124: =CalcTable[[#This Row],[PWC]]-CalcTable[[#This Row],[PercAmt]]-CalcTable[[#This Row],[Runoff]] ->  | AF124: =CalcTable[[#This Row],[IrrAmt]]/1000*CUR_IRR_AREA*10000/IRR_EFF ->  | AI124: 0 | AJ124: 0 | AK124: 2.295328787 | AL124: 0 | AX124: 2.295328787 | AZ124: 33.66482221 | BA124: 51.83313896 | BB124: 53.43622573 | BC124: 19608 | BD124: 2.295328787 | BE124: 33.66482221 | BF124: 55.06493219 | BH124: 0 | BI124: 124 | BJ124: 124 | BK124: 1960-08-13
A125: 1960-08-14 | B125: 1960 | C125: 8 | D125: 227 | E125: 14 | F125: 1 | G125: 8.9 | H125: 4.202391169 | I125: 9.666666667 | J125: 7.6 | K125: 7.6 | L125: 1.95 | M125: =CalcTable[[#This Row],[IWC]]-AE124 ->  | N125: =IF(CalcTable[[#This Row],[Day of Year]]<123,FCAP,AE124) ->  | O125: =IF(IRR_DRIP,5,COUNTIF('IDET Wind Values'!C109:G109,"<="&IRR_MAXWIND)) ->  | P125: =CalcTable[[#This Row],[ET_o]]*KL ->  | Q125: =IF(WILTPT<=0,1,MAX(0,MIN(1,(CalcTable[[#This Row],[IWC]]-WILTPT)/(MAD-WILTPT)))) ->  | R125: =CalcTable[[#This Row],[ETMult]]*CalcTable[[#This Row],[ETb]] ->  | S125: =INDEX(IRR_LIST,CalcTable[[#This Row],[Day of Week]]+1) -> TRUE | T125: 0 | U125: =IF(CalcTable[[#This Row],[IrrPrecip]]>=IC_MM,FALSE,TRUE) -> TRUE | V125: TRUE | W125: =IF(AND(IRR_DRIP=FALSE,CalcTable[[#This Row],[IrrHours]]<=0),FALSE,TRUE) ->  | X125: =AND(CalcTable[[#This Row],[IrrDay]],CalcTable[[#This Row],[IrrRain]],CalcTable[[#This Row],[IrrWarm]],CalcTable[[#This Row],[IrrWindy]]) ->  | Z125: =CalcTable[[#This Row],[IrrHours]]/5 ->  | AA125: =IF(CalcTable[[#This Row],[IrrFlag]]=FALSE,0,MAX(0,CalcTable[[#This Row],[VolRednWind]]*(FCAP*IRR_TARGET-CalcTable[[#This Row],[IWC]]))) ->  | AB125: =CalcTable[[#This Row],[IWC]]+CalcTable[[#This Row],[Eff Precip]]+CalcTable[[#This Row],[IrrAmt]]-CalcTable[[#This Row],[AET]] ->  | AC125: =IF(CalcTable[[#This Row],[PWC]]>FCAP,MIN(24*PERC,MIN(SAT,CalcTable[[#This Row],[PWC]])-FCAP),0) ->  | AD125: =IF(CalcTable[[#This Row],[PWC]]>SAT,CalcTable[[#This Row],[PWC]]-SAT,0) ->  | AE125: =CalcTable[[#This Row],[PWC]]-CalcTable[[#This Row],[PercAmt]]-CalcTable[[#This Row],[Runoff]] ->  | AF125: =CalcTable[[#This Row],[IrrAmt]]/1000*CUR_IRR_AREA*10000/IRR_EFF ->  | AI125: 0 | AJ125: 0 | AK125: 0 | AL125: 0 | AX125: 0 | AZ125: 0 | BA125: 0 | BB125: 0 | BC125: 19608 | BD125: 0 | BE125: 0 | BF125: 0 | BH125: 0 | BI125: 125 | BJ125: 125 | BK125: 1960-08-14
A126: 1960-08-15 | B126: 1960 | C126: 8 | D126: 228 | E126: 15 | F126: 2 | G126: 8.3 | H126: 4.025478089 | I126: 28.5 | J126: 7.2 | K126: 7.2 | L126: 1.65 | M126: =CalcTable[[#This Row],[IWC]]-AE125 ->  | N126: =IF(CalcTable[[#This Row],[Day of Year]]<123,FCAP,AE125) ->  | O126: =IF(IRR_DRIP,5,COUNTIF('IDET Wind Values'!C110:G110,"<="&IRR_MAXWIND)) ->  | P126: =CalcTable[[#This Row],[ET_o]]*KL ->  | Q126: =IF(WILTPT<=0,1,MAX(0,MIN(1,(CalcTable[[#This Row],[IWC]]-WILTPT)/(MAD-WILTPT)))) ->  | R126: =CalcTable[[#This Row],[ETMult]]*CalcTable[[#This Row],[ETb]] ->  | S126: =INDEX(IRR_LIST,CalcTable[[#This Row],[Day of Week]]+1) -> FALSE | T126: 7.6 | U126: =IF(CalcTable[[#This Row],[IrrPrecip]]>=IC_MM,FALSE,TRUE) -> TRUE | V126: TRUE | W126: =IF(AND(IRR_DRIP=FALSE,CalcTable[[#This Row],[IrrHours]]<=0),FALSE,TRUE) ->  | X126: =AND(CalcTable[[#This Row],[IrrDay]],CalcTable[[#This Row],[IrrRain]],CalcTable[[#This Row],[IrrWarm]],CalcTable[[#This Row],[IrrWindy]]) ->  | Z126: =CalcTable[[#This Row],[IrrHours]]/5 ->  | AA126: =IF(CalcTable[[#This Row],[IrrFlag]]=FALSE,0,MAX(0,CalcTable[[#This Row],[VolRednWind]]*(FCAP*IRR_TARGET-CalcTable[[#This Row],[IWC]]))) ->  | AB126: =CalcTable[[#This Row],[IWC]]+CalcTable[[#This Row],[Eff Precip]]+CalcTable[[#This Row],[IrrAmt]]-CalcTable[[#This Row],[AET]] ->  | AC126: =IF(CalcTable[[#This Row],[PWC]]>FCAP,MIN(24*PERC,MIN(SAT,CalcTable[[#This Row],[PWC]])-FCAP),0) ->  | AD126: =IF(CalcTable[[#This Row],[PWC]]>SAT,CalcTable[[#This Row],[PWC]]-SAT,0) ->  | AE126: =CalcTable[[#This Row],[PWC]]-CalcTable[[#This Row],[PercAmt]]-CalcTable[[#This Row],[Runoff]] ->  | AF126: =CalcTable[[#This Row],[IrrAmt]]/1000*CUR_IRR_AREA*10000/IRR_EFF ->  | AI126: 0 | AJ126: 0 | AK126: 3.482452199 | AL126: 5.966427597 | AX126: 9.448879796 | AZ126: 226.0911751 | BA126: 348.1086347 | BB126: 358.8748811 | BC126: 19608 | BD126: 9.448879796 | BE126: 226.0911751 | BF126: 369.813188 | BH126: 0 | BI126: 126 | BJ126: 126 | BK126: 1960-08-15
A127: 1960-08-16 | B127: 1960 | C127: 8 | D127: 229 | E127: 16 | F127: 3 | G127: 10 | H127: 5.204663254 | I127: 10.83333333 | J127: 0 | K127: 0 | L127: 0 | M127: =CalcTable[[#This Row],[IWC]]-AE126 ->  | N127: =IF(CalcTable[[#This Row],[Day of Year]]<123,FCAP,AE126) ->  | O127: =IF(IRR_DRIP,5,COUNTIF('IDET Wind Values'!C111:G111,"<="&IRR_MAXWIND)) ->  | P127: =CalcTable[[#This Row],[ET_o]]*KL ->  | Q127: =IF(WILTPT<=0,1,MAX(0,MIN(1,(CalcTable[[#This Row],[IWC]]-WILTPT)/(MAD-WILTPT)))) ->  | R127: =CalcTable[[#This Row],[ETMult]]*CalcTable[[#This Row],[ETb]] ->  | S127: =INDEX(IRR_LIST,CalcTable[[#This Row],[Day of Week]]+1) -> TRUE | T127: 14.8 | U127: =IF(CalcTable[[#This Row],[IrrPrecip]]>=IC_MM,FALSE,TRUE) -> FALSE | V127: TRUE | W127: =IF(AND(IRR_DRIP=FALSE,CalcTable[[#This Row],[IrrHours]]<=0),FALSE,TRUE) ->  | X127: =AND(CalcTable[[#This Row],[IrrDay]],CalcTable[[#This Row],[IrrRain]],CalcTable[[#This Row],[IrrWarm]],CalcTable[[#This Row],[IrrWindy]]) ->  | Z127: =CalcTable[[#This Row],[IrrHours]]/5 ->  | AA127: =IF(CalcTable[[#This Row],[IrrFlag]]=FALSE,0,MAX(0,CalcTable[[#This Row],[VolRednWind]]*(FCAP*IRR_TARGET-CalcTable[[#This Row],[IWC]]))) ->  | AB127: =CalcTable[[#This Row],[IWC]]+CalcTable[[#This Row],[Eff Precip]]+CalcTable[[#This Row],[IrrAmt]]-CalcTable[[#This Row],[AET]] ->  | AC127: =IF(CalcTable[[#This Row],[PWC]]>FCAP,MIN(24*PERC,MIN(SAT,CalcTable[[#This Row],[PWC]])-FCAP),0) ->  | AD127: =IF(CalcTable[[#This Row],[PWC]]>SAT,CalcTable[[#This Row],[PWC]]-SAT,0) ->  | AE127: =CalcTable[[#This Row],[PWC]]-CalcTable[[#This Row],[PercAmt]]-CalcTable[[#This Row],[Runoff]] ->  | AF127: =CalcTable[[#This Row],[IrrAmt]]/1000*CUR_IRR_AREA*10000/IRR_EFF ->  | AI127: 0 | AJ127: 0 | AK127: 0 | AL127: 0 | AX127: 0 | AZ127: 0 | BA127: 0 | BB127: 0 | BC127: 19608 | BD127: 0 | BE127: 0 | BF127: 0 | BH127: 0 | BI127: 127 | BJ127: 127 | BK127: 1960-08-16
A128: 1960-08-17 | B128: 1960 | C128: 8 | D128: 230 | E128: 17 | F128: 4 | G128: 13.3 | H128: 6.45619713 | I128: 22.66666667 | J128: 0 | K128: 0 | L128: 0 | M128: =CalcTable[[#This Row],[IWC]]-AE127 ->  | N128: =IF(CalcTable[[#This Row],[Day of Year]]<123,FCAP,AE127) ->  | O128: =IF(IRR_DRIP,5,COUNTIF('IDET Wind Values'!C112:G112,"<="&IRR_MAXWIND)) ->  | P128: =CalcTable[[#This Row],[ET_o]]*KL ->  | Q128: =IF(WILTPT<=0,1,MAX(0,MIN(1,(CalcTable[[#This Row],[IWC]]-WILTPT)/(MAD-WILTPT)))) ->  | R128: =CalcTable[[#This Row],[ETMult]]*CalcTable[[#This Row],[ETb]] ->  | S128: =INDEX(IRR_LIST,CalcTable[[#This Row],[Day of Week]]+1) -> FALSE | T128: 7.2 | U128: =IF(CalcTable[[#This Row],[IrrPrecip]]>=IC_MM,FALSE,TRUE) -> TRUE | V128: TRUE | W128: =IF(AND(IRR_DRIP=FALSE,CalcTable[[#This Row],[IrrHours]]<=0),FALSE,TRUE) ->  | X128: =AND(CalcTable[[#This Row],[IrrDay]],CalcTable[[#This Row],[IrrRain]],CalcTable[[#This Row],[IrrWarm]],CalcTable[[#This Row],[IrrWindy]]) ->  | Z128: =CalcTable[[#This Row],[IrrHours]]/5 ->  | AA128: =IF(CalcTable[[#This Row],[IrrFlag]]=FALSE,0,MAX(0,CalcTable[[#This Row],[VolRednWind]]*(FCAP*IRR_TARGET-CalcTable[[#This Row],[IWC]]))) ->  | AB128: =CalcTable[[#This Row],[IWC]]+CalcTable[[#This Row],[Eff Precip]]+CalcTable[[#This Row],[IrrAmt]]-CalcTable[[#This Row],[AET]] ->  | AC128: =IF(CalcTable[[#This Row],[PWC]]>FCAP,MIN(24*PERC,MIN(SAT,CalcTable[[#This Row],[PWC]])-FCAP),0) ->  | AD128: =IF(CalcTable[[#This Row],[PWC]]>SAT,CalcTable[[#This Row],[PWC]]-SAT,0) ->  | AE128: =CalcTable[[#This Row],[PWC]]-CalcTable[[#This Row],[PercAmt]]-CalcTable[[#This Row],[Runoff]] ->  | AF128: =CalcTable[[#This Row],[IrrAmt]]/1000*CUR_IRR_AREA*10000/IRR_EFF ->  | AI128: 0 | AJ128: 0 | AK128: 0 | AL128: 5.142564789 | AX128: 5.142564789 | AZ128: 150.8485672 | BA128: 232.258905 | BB128: 239.4421701 | BC128: 19608 | BD128: 5.142564789 | BE128: 150.8485672 | BF128: 246.7402343 | BH128: 0 | BI128: 128 | BJ128: 128 | BK128: 1960-08-17
A129: 1960-08-18 | B129: 1960 | C129: 8 | D129: 231 | E129: 18 | F129: 5 | G129: 14.4 | H129: 5.537407542 | I129: 14 | J129: 0 | K129: 0 | L129: 0 | M129: =CalcTable[[#This Row],[IWC]]-AE128 ->  | N129: =IF(CalcTable[[#This Row],[Day of Year]]<123,FCAP,AE128) ->  | O129: =IF(IRR_DRIP,5,COUNTIF('IDET Wind Values'!C113:G113,"<="&IRR_MAXWIND)) ->  | P129: =CalcTable[[#This Row],[ET_o]]*KL ->  | Q129: =IF(WILTPT<=0,1,MAX(0,MIN(1,(CalcTable[[#This Row],[IWC]]-WILTPT)/(MAD-WILTPT)))) ->  | R129: =CalcTable[[#This Row],[ETMult]]*CalcTable[[#This Row],[ETb]] ->  | S129: =INDEX(IRR_LIST,CalcTable[[#This Row],[Day of Week]]+1) -> TRUE | T129: 0 | U129: =IF(CalcTable[[#This Row],[IrrPrecip]]>=IC_MM,FALSE,TRUE) -> TRUE | V129: TRUE | W129: =IF(AND(IRR_DRIP=FALSE,CalcTable[[#This Row],[IrrHours]]<=0),FALSE,TRUE) ->  | X129: =AND(CalcTable[[#This Row],[IrrDay]],CalcTable[[#This Row],[IrrRain]],CalcTable[[#This Row],[IrrWarm]],CalcTable[[#This Row],[IrrWindy]]) ->  | Z129: =CalcTable[[#This Row],[IrrHours]]/5 ->  | AA129: =IF(CalcTable[[#This Row],[IrrFlag]]=FALSE,0,MAX(0,CalcTable[[#This Row],[VolRednWind]]*(FCAP*IRR_TARGET-CalcTable[[#This Row],[IWC]]))) ->  | AB129: =CalcTable[[#This Row],[IWC]]+CalcTable[[#This Row],[Eff Precip]]+CalcTable[[#This Row],[IrrAmt]]-CalcTable[[#This Row],[AET]] ->  | AC129: =IF(CalcTable[[#This Row],[PWC]]>FCAP,MIN(24*PERC,MIN(SAT,CalcTable[[#This Row],[PWC]])-FCAP),0) ->  | AD129: =IF(CalcTable[[#This Row],[PWC]]>SAT,CalcTable[[#This Row],[PWC]]-SAT,0) ->  | AE129: =CalcTable[[#This Row],[PWC]]-CalcTable[[#This Row],[PercAmt]]-CalcTable[[#This Row],[Runoff]] ->  | AF129: =CalcTable[[#This Row],[IrrAmt]]/1000*CUR_IRR_AREA*10000/IRR_EFF ->  | AI129: 0 | AJ129: 0 | AK129: 0 | AL129: 0 | AX129: 0 | AZ129: 0 | BA129: 0 | BB129: 0 | BC129: 19608 | BD129: 0 | BE129: 0 | BF129: 0 | BH129: 0 | BI129: 129 | BJ129: 129 | BK129: 1960-08-18
A130: 1960-08-19 | B130: 1960 | C130: 8 | D130: 232 | E130: 19 | F130: 6 | G130: 10 | H130: 4.141747565 | I130: 21.66666667 | J130: 2.8 | K130: 2.8 | L130: 0 | M130: =CalcTable[[#This Row],[IWC]]-AE129 ->  | N130: =IF(CalcTable[[#This Row],[Day of Year]]<123,FCAP,AE129) ->  | O130: =IF(IRR_DRIP,5,COUNTIF('IDET Wind Values'!C114:G114,"<="&IRR_MAXWIND)) ->  | P130: =CalcTable[[#This Row],[ET_o]]*KL ->  | Q130: =IF(WILTPT<=0,1,MAX(0,MIN(1,(CalcTable[[#This Row],[IWC]]-WILTPT)/(MAD-WILTPT)))) ->  | R130: =CalcTable[[#This Row],[ETMult]]*CalcTable[[#This Row],[ETb]] ->  | S130: =INDEX(IRR_LIST,CalcTable[[#This Row],[Day of Week]]+1) -> FALSE | T130: 0 | U130: =IF(CalcTable[[#This Row],[IrrPrecip]]>=IC_MM,FALSE,TRUE) -> TRUE | V130: TRUE | W130: =IF(AND(IRR_DRIP=FALSE,CalcTable[[#This Row],[IrrHours]]<=0),FALSE,TRUE) ->  | X130: =AND(CalcTable[[#This Row],[IrrDay]],CalcTable[[#This Row],[IrrRain]],CalcTable[[#This Row],[IrrWarm]],CalcTable[[#This Row],[IrrWindy]]) ->  | Z130: =CalcTable[[#This Row],[IrrHours]]/5 ->  | AA130: =IF(CalcTable[[#This Row],[IrrFlag]]=FALSE,0,MAX(0,CalcTable[[#This Row],[VolRednWind]]*(FCAP*IRR_TARGET-CalcTable[[#This Row],[IWC]]))) ->  | AB130: =CalcTable[[#This Row],[IWC]]+CalcTable[[#This Row],[Eff Precip]]+CalcTable[[#This Row],[IrrAmt]]-CalcTable[[#This Row],[AET]] ->  | AC130: =IF(CalcTable[[#This Row],[PWC]]>FCAP,MIN(24*PERC,MIN(SAT,CalcTable[[#This Row],[PWC]])-FCAP),0) ->  | AD130: =IF(CalcTable[[#This Row],[PWC]]>SAT,CalcTable[[#This Row],[PWC]]-SAT,0) ->  | AE130: =CalcTable[[#This Row],[PWC]]-CalcTable[[#This Row],[PercAmt]]-CalcTable[[#This Row],[Runoff]] ->  | AF130: =CalcTable[[#This Row],[IrrAmt]]/1000*CUR_IRR_AREA*10000/IRR_EFF ->  | AI130: 0 | AJ130: 0 | AK130: 0 | AL130: 6.59648257 | AX130: 6.59648257 | AZ130: 193.496822 | BA130: 297.9236784 | BB130: 307.1378128 | BC130: 19608 | BD130: 6.59648257 | BE130: 193.496822 | BF130: 316.4992025 | BH130: 0 | BI130: 130 | BJ130: 130 | BK130: 1960-08-19
A131: 1960-08-20 | B131: 1960 | C131: 8 | D131: 233 | E131: 20 | F131: 7 | G131: 6.1 | H131: 3.240800508 | I131: 5.833333333 | J131: 7.1 | K131: 7.1 | L131: 1.575 | M131: =CalcTable[[#This Row],[IWC]]-AE130 ->  | N131: =IF(CalcTable[[#This Row],[Day of Year]]<123,FCAP,AE130) ->  | O131: =IF(IRR_DRIP,5,COUNTIF('IDET Wind Values'!C115:G115,"<="&IRR_MAXWIND)) ->  | P131: =CalcTable[[#This Row],[ET_o]]*KL ->  | Q131: =IF(WILTPT<=0,1,MAX(0,MIN(1,(CalcTable[[#This Row],[IWC]]-WILTPT)/(MAD-WILTPT)))) ->  | R131: =CalcTable[[#This Row],[ETMult]]*CalcTable[[#This Row],[ETb]] ->  | S131: =INDEX(IRR_LIST,CalcTable[[#This Row],[Day of Week]]+1) -> FALSE | T131: 2.8 | U131: =IF(CalcTable[[#This Row],[IrrPrecip]]>=IC_MM,FALSE,TRUE) -> TRUE | V131: TRUE | W131: =IF(AND(IRR_DRIP=FALSE,CalcTable[[#This Row],[IrrHours]]<=0),FALSE,TRUE) ->  | X131: =AND(CalcTable[[#This Row],[IrrDay]],CalcTable[[#This Row],[IrrRain]],CalcTable[[#This Row],[IrrWarm]],CalcTable[[#This Row],[IrrWindy]]) ->  | Z131: =CalcTable[[#This Row],[IrrHours]]/5 ->  | AA131: =IF(CalcTable[[#This Row],[IrrFlag]]=FALSE,0,MAX(0,CalcTable[[#This Row],[VolRednWind]]*(FCAP*IRR_TARGET-CalcTable[[#This Row],[IWC]]))) ->  | AB131: =CalcTable[[#This Row],[IWC]]+CalcTable[[#This Row],[Eff Precip]]+CalcTable[[#This Row],[IrrAmt]]-CalcTable[[#This Row],[AET]] ->  | AC131: =IF(CalcTable[[#This Row],[PWC]]>FCAP,MIN(24*PERC,MIN(SAT,CalcTable[[#This Row],[PWC]])-FCAP),0) ->  | AD131: =IF(CalcTable[[#This Row],[PWC]]>SAT,CalcTable[[#This Row],[PWC]]-SAT,0) ->  | AE131: =CalcTable[[#This Row],[PWC]]-CalcTable[[#This Row],[PercAmt]]-CalcTable[[#This Row],[Runoff]] ->  | AF131: =CalcTable[[#This Row],[IrrAmt]]/1000*CUR_IRR_AREA*10000/IRR_EFF ->  | AI131: 0 | AJ131: 0 | AK131: 7.014518707 | AL131: 0 | AX131: 7.014518707 | AZ131: 102.8796077 | BA131: 158.4019357 | BB131: 163.3009646 | BC131: 19608 | BD131: 7.014518707 | BE131: 102.8796077 | BF131: 168.2782872 | BH131: 0 | BI131: 131 | BJ131: 131 | BK131: 1960-08-20
A132: 1960-08-21 | B132: 1960 | C132: 8 | D132: 234 | E132: 21 | F132: 1 | G132: 8.3 | H132: 5.058939149 | I132: 8.166666667 | J132: 0 | K132: 0 | L132: 0 | M132: =CalcTable[[#This Row],[IWC]]-AE131 ->  | N132: =IF(CalcTable[[#This Row],[Day of Year]]<123,FCAP,AE131) ->  | O132: =IF(IRR_DRIP,5,COUNTIF('IDET Wind Values'!C116:G116,"<="&IRR_MAXWIND)) ->  | P132: =CalcTable[[#This Row],[ET_o]]*KL ->  | Q132: =IF(WILTPT<=0,1,MAX(0,MIN(1,(CalcTable[[#This Row],[IWC]]-WILTPT)/(MAD-WILTPT)))) ->  | R132: =CalcTable[[#This Row],[ETMult]]*CalcTable[[#This Row],[ETb]] ->  | S132: =INDEX(IRR_LIST,CalcTable[[#This Row],[Day of Week]]+1) -> TRUE | T132: 9.9 | U132: =IF(CalcTable[[#This Row],[IrrPrecip]]>=IC_MM,FALSE,TRUE) -> TRUE | V132: TRUE | W132: =IF(AND(IRR_DRIP=FALSE,CalcTable[[#This Row],[IrrHours]]<=0),FALSE,TRUE) ->  | X132: =AND(CalcTable[[#This Row],[IrrDay]],CalcTable[[#This Row],[IrrRain]],CalcTable[[#This Row],[IrrWarm]],CalcTable[[#This Row],[IrrWindy]]) ->  | Z132: =CalcTable[[#This Row],[IrrHours]]/5 ->  | AA132: =IF(CalcTable[[#This Row],[IrrFlag]]=FALSE,0,MAX(0,CalcTable[[#This Row],[VolRednWind]]*(FCAP*IRR_TARGET-CalcTable[[#This Row],[IWC]]))) ->  | AB132: =CalcTable[[#This Row],[IWC]]+CalcTable[[#This Row],[Eff Precip]]+CalcTable[[#This Row],[IrrAmt]]-CalcTable[[#This Row],[AET]] ->  | AC132: =IF(CalcTable[[#This Row],[PWC]]>FCAP,MIN(24*PERC,MIN(SAT,CalcTable[[#This Row],[PWC]])-FCAP),0) ->  | AD132: =IF(CalcTable[[#This Row],[PWC]]>SAT,CalcTable[[#This Row],[PWC]]-SAT,0) ->  | AE132: =CalcTable[[#This Row],[PWC]]-CalcTable[[#This Row],[PercAmt]]-CalcTable[[#This Row],[Runoff]] ->  | AF132: =CalcTable[[#This Row],[IrrAmt]]/1000*CUR_IRR_AREA*10000/IRR_EFF ->  | AI132: 0 | AJ132: 0 | AK132: 0 | AL132: 0 | AX132: 0 | AZ132: 0 | BA132: 0 | BB132: 0 | BC132: 19608 | BD132: 0 | BE132: 0 | BF132: 0 | BH132: 0 | BI132: 132 | BJ132: 132 | BK132: 1960-08-21
A133: 1960-08-22 | B133: 1960 | C133: 8 | D133: 235 | E133: 22 | F133: 2 | G133: 9.4 | H133: 3.656987652 | I133: 19 | J133: 1.8 | K133: 1.8 | L133: 0 | M133: =CalcTable[[#This Row],[IWC]]-AE132 ->  | N133: =IF(CalcTable[[#This Row],[Day of Year]]<123,FCAP,AE132) ->  | O133: =IF(IRR_DRIP,5,COUNTIF('IDET Wind Values'!C117:G117,"<="&IRR_MAXWIND)) ->  | P133: =CalcTable[[#This Row],[ET_o]]*KL ->  | Q133: =IF(WILTPT<=0,1,MAX(0,MIN(1,(CalcTable[[#This Row],[IWC]]-WILTPT)/(MAD-WILTPT)))) ->  | R133: =CalcTable[[#This Row],[ETMult]]*CalcTable[[#This Row],[ETb]] ->  | S133: =INDEX(IRR_LIST,CalcTable[[#This Row],[Day of Week]]+1) -> FALSE | T133: 7.1 | U133: =IF(CalcTable[[#This Row],[IrrPrecip]]>=IC_MM,FALSE,TRUE) -> TRUE | V133: TRUE | W133: =IF(AND(IRR_DRIP=FALSE,CalcTable[[#This Row],[IrrHours]]<=0),FALSE,TRUE) ->  | X133: =AND(CalcTable[[#This Row],[IrrDay]],CalcTable[[#This Row],[IrrRain]],CalcTable[[#This Row],[IrrWarm]],CalcTable[[#This Row],[IrrWindy]]) ->  | Z133: =CalcTable[[#This Row],[IrrHours]]/5 ->  | AA133: =IF(CalcTable[[#This Row],[IrrFlag]]=FALSE,0,MAX(0,CalcTable[[#This Row],[VolRednWind]]*(FCAP*IRR_TARGET-CalcTable[[#This Row],[IWC]]))) ->  | AB133: =CalcTable[[#This Row],[IWC]]+CalcTable[[#This Row],[Eff Precip]]+CalcTable[[#This Row],[IrrAmt]]-CalcTable[[#This Row],[AET]] ->  | AC133: =IF(CalcTable[[#This Row],[PWC]]>FCAP,MIN(24*PERC,MIN(SAT,CalcTable[[#This Row],[PWC]])-FCAP),0) ->  | AD133: =IF(CalcTable[[#This Row],[PWC]]>SAT,CalcTable[[#This Row],[PWC]]-SAT,0) ->  | AE133: =CalcTable[[#This Row],[PWC]]-CalcTable[[#This Row],[PercAmt]]-CalcTable[[#This Row],[Runoff]] ->  | AF133: =CalcTable[[#This Row],[IrrAmt]]/1000*CUR_IRR_AREA*10000/IRR_EFF ->  | AI133: 0 | AJ133: 0 | AK133: 0 | AL133: 5.269856811 | AX133: 5.269856811 | AZ133: 154.5824665 | BA133: 238.0079246 | BB133: 245.3689944 | BC133: 19608 | BD133: 5.269856811 | BE133: 154.5824665 | BF133: 252.8477049 | BH133: 0 | BI133: 133 | BJ133: 133 | BK133: 1960-08-22
A134: 1960-08-23 | B134: 1960 | C134: 8 | D134: 236 | E134: 23 | F134: 3 | G134: 7.8 | H134: 2.751048389 | I134: 20.5 | J134: 3.3 | K134: 3.3 | L134: 0 | M134: =CalcTable[[#This Row],[IWC]]-AE133 ->  | N134: =IF(CalcTable[[#This Row],[Day of Year]]<123,FCAP,AE133) ->  | O134: =IF(IRR_DRIP,5,COUNTIF('IDET Wind Values'!C118:G118,"<="&IRR_MAXWIND)) ->  | P134: =CalcTable[[#This Row],[ET_o]]*KL ->  | Q134: =IF(WILTPT<=0,1,MAX(0,MIN(1,(CalcTable[[#This Row],[IWC]]-WILTPT)/(MAD-WILTPT)))) ->  | R134: =CalcTable[[#This Row],[ETMult]]*CalcTable[[#This Row],[ETb]] ->  | S134: =INDEX(IRR_LIST,CalcTable[[#This Row],[Day of Week]]+1) -> TRUE | T134: 1.8 | U134: =IF(CalcTable[[#This Row],[IrrPrecip]]>=IC_MM,FALSE,TRUE) -> TRUE | V134: FALSE | W134: =IF(AND(IRR_DRIP=FALSE,CalcTable[[#This Row],[IrrHours]]<=0),FALSE,TRUE) ->  | X134: =AND(CalcTable[[#This Row],[IrrDay]],CalcTable[[#This Row],[IrrRain]],CalcTable[[#This Row],[IrrWarm]],CalcTable[[#This Row],[IrrWindy]]) ->  | Z134: =CalcTable[[#This Row],[IrrHours]]/5 ->  | AA134: =IF(CalcTable[[#This Row],[IrrFlag]]=FALSE,0,MAX(0,CalcTable[[#This Row],[VolRednWind]]*(FCAP*IRR_TARGET-CalcTable[[#This Row],[IWC]]))) ->  | AB134: =CalcTable[[#This Row],[IWC]]+CalcTable[[#This Row],[Eff Precip]]+CalcTable[[#This Row],[IrrAmt]]-CalcTable[[#This Row],[AET]] ->  | AC134: =IF(CalcTable[[#This Row],[PWC]]>FCAP,MIN(24*PERC,MIN(SAT,CalcTable[[#This Row],[PWC]])-FCAP),0) ->  | AD134: =IF(CalcTable[[#This Row],[PWC]]>SAT,CalcTable[[#This Row],[PWC]]-SAT,0) ->  | AE134: =CalcTable[[#This Row],[PWC]]-CalcTable[[#This Row],[PercAmt]]-CalcTable[[#This Row],[Runoff]] ->  | AF134: =CalcTable[[#This Row],[IrrAmt]]/1000*CUR_IRR_AREA*10000/IRR_EFF ->  | AI134: 0 | AJ134: 0 | AK134: 0 | AL134: 0 | AX134: 0 | AZ134: 0 | BA134: 0 | BB134: 0 | BC134: 19608 | BD134: 0 | BE134: 0 | BF134: 0 | BH134: 0 | BI134: 134 | BJ134: 134 | BK134: 1960-08-23
A135: 1960-08-24 | B135: 1960 | C135: 8 | D135: 237 | E135: 24 | F135: 4 | G135: 2.8 | H135: 2.965956978 | I135: 4.166666667 | J135: 0 | K135: 0 | L135: 0 | M135: =CalcTable[[#This Row],[IWC]]-AE134 ->  | N135: =IF(CalcTable[[#This Row],[Day of Year]]<123,FCAP,AE134) ->  | O135: =IF(IRR_DRIP,5,COUNTIF('IDET Wind Values'!C119:G119,"<="&IRR_MAXWIND)) ->  | P135: =CalcTable[[#This Row],[ET_o]]*KL ->  | Q135: =IF(WILTPT<=0,1,MAX(0,MIN(1,(CalcTable[[#This Row],[IWC]]-WILTPT)/(MAD-WILTPT)))) ->  | R135: =CalcTable[[#This Row],[ETMult]]*CalcTable[[#This Row],[ETb]] ->  | S135: =INDEX(IRR_LIST,CalcTable[[#This Row],[Day of Week]]+1) -> FALSE | T135: 5.1 | U135: =IF(CalcTable[[#This Row],[IrrPrecip]]>=IC_MM,FALSE,TRUE) -> TRUE | V135: FALSE | W135: =IF(AND(IRR_DRIP=FALSE,CalcTable[[#This Row],[IrrHours]]<=0),FALSE,TRUE) ->  | X135: =AND(CalcTable[[#This Row],[IrrDay]],CalcTable[[#This Row],[IrrRain]],CalcTable[[#This Row],[IrrWarm]],CalcTable[[#This Row],[IrrWindy]]) ->  | Z135: =CalcTable[[#This Row],[IrrHours]]/5 ->  | AA135: =IF(CalcTable[[#This Row],[IrrFlag]]=FALSE,0,MAX(0,CalcTable[[#This Row],[VolRednWind]]*(FCAP*IRR_TARGET-CalcTable[[#This Row],[IWC]]))) ->  | AB135: =CalcTable[[#This Row],[IWC]]+CalcTable[[#This Row],[Eff Precip]]+CalcTable[[#This Row],[IrrAmt]]-CalcTable[[#This Row],[AET]] ->  | AC135: =IF(CalcTable[[#This Row],[PWC]]>FCAP,MIN(24*PERC,MIN(SAT,CalcTable[[#This Row],[PWC]])-FCAP),0) ->  | AD135: =IF(CalcTable[[#This Row],[PWC]]>SAT,CalcTable[[#This Row],[PWC]]-SAT,0) ->  | AE135: =CalcTable[[#This Row],[PWC]]-CalcTable[[#This Row],[PercAmt]]-CalcTable[[#This Row],[Runoff]] ->  | AF135: =CalcTable[[#This Row],[IrrAmt]]/1000*CUR_IRR_AREA*10000/IRR_EFF ->  | AI135: 0 | AJ135: 0 | AK135: 0 | AL135: 0 | AX135: 0 | AZ135: 0 | BA135: 0 | BB135: 0 | BC135: 19608 | BD135: 0 | BE135: 0 | BF135: 0 | BH135: 0 | BI135: 135 | BJ135: 135 | BK135: 1960-08-24
A136: 1960-08-25 | B136: 1960 | C136: 8 | D136: 238 | E136: 25 | F136: 5 | G136: 2.8 | H136: 3.748788784 | I136: 11 | J136: 0 | K136: 0 | L136: 0 | M136: =CalcTable[[#This Row],[IWC]]-AE135 ->  | N136: =IF(CalcTable[[#This Row],[Day of Year]]<123,FCAP,AE135) ->  | O136: =IF(IRR_DRIP,5,COUNTIF('IDET Wind Values'!C120:G120,"<="&IRR_MAXWIND)) ->  | P136: =CalcTable[[#This Row],[ET_o]]*KL ->  | Q136: =IF(WILTPT<=0,1,MAX(0,MIN(1,(CalcTable[[#This Row],[IWC]]-WILTPT)/(MAD-WILTPT)))) ->  | R136: =CalcTable[[#This Row],[ETMult]]*CalcTable[[#This Row],[ETb]] ->  | S136: =INDEX(IRR_LIST,CalcTable[[#This Row],[Day of Week]]+1) -> TRUE | T136: 3.3 | U136: =IF(CalcTable[[#This Row],[IrrPrecip]]>=IC_MM,FALSE,TRUE) -> TRUE | V136: TRUE | W136: =IF(AND(IRR_DRIP=FALSE,CalcTable[[#This Row],[IrrHours]]<=0),FALSE,TRUE) ->  | X136: =AND(CalcTable[[#This Row],[IrrDay]],CalcTable[[#This Row],[IrrRain]],CalcTable[[#This Row],[IrrWarm]],CalcTable[[#This Row],[IrrWindy]]) ->  | Z136: =CalcTable[[#This Row],[IrrHours]]/5 ->  | AA136: =IF(CalcTable[[#This Row],[IrrFlag]]=FALSE,0,MAX(0,CalcTable[[#This Row],[VolRednWind]]*(FCAP*IRR_TARGET-CalcTable[[#This Row],[IWC]]))) ->  | AB136: =CalcTable[[#This Row],[IWC]]+CalcTable[[#This Row],[Eff Precip]]+CalcTable[[#This Row],[IrrAmt]]-CalcTable[[#This Row],[AET]] ->  | AC136: =IF(CalcTable[[#This Row],[PWC]]>FCAP,MIN(24*PERC,MIN(SAT,CalcTable[[#This Row],[PWC]])-FCAP),0) ->  | AD136: =IF(CalcTable[[#This Row],[PWC]]>SAT,CalcTable[[#This Row],[PWC]]-SAT,0) ->  | AE136: =CalcTable[[#This Row],[PWC]]-CalcTable[[#This Row],[PercAmt]]-CalcTable[[#This Row],[Runoff]] ->  | AF136: =CalcTable[[#This Row],[IrrAmt]]/1000*CUR_IRR_AREA*10000/IRR_EFF ->  | AI136: 0 | AJ136: 0 | AK136: 0 | AL136: 0 | AX136: 0 | AZ136: 0 | BA136: 0 | BB136: 0 | BC136: 19608 | BD136: 0 | BE136: 0 | BF136: 0 | BH136: 0 | BI136: 136 | BJ136: 136 | BK136: 1960-08-25
A137: 1960-08-26 | B137: 1960 | C137: 8 | D137: 239 | E137: 26 | F137: 6 | G137: 6.1 | H137: 2.911560231 | I137: 19.33333333 | J137: 1.1 | K137: 1.1 | L137: 0 | M137: =CalcTable[[#This Row],[IWC]]-AE136 ->  | N137: =IF(CalcTable[[#This Row],[Day of Year]]<123,FCAP,AE136) ->  | O137: =IF(IRR_DRIP,5,COUNTIF('IDET Wind Values'!C121:G121,"<="&IRR_MAXWIND)) ->  | P137: =CalcTable[[#This Row],[ET_o]]*KL ->  | Q137: =IF(WILTPT<=0,1,MAX(0,MIN(1,(CalcTable[[#This Row],[IWC]]-WILTPT)/(MAD-WILTPT)))) ->  | R137: =CalcTable[[#This Row],[ETMult]]*CalcTable[[#This Row],[ETb]] ->  | S137: =INDEX(IRR_LIST,CalcTable[[#This Row],[Day of Week]]+1) -> FALSE | T137: 0 | U137: =IF(CalcTable[[#This Row],[IrrPrecip]]>=IC_MM,FALSE,TRUE) -> TRUE | V137: TRUE | W137: =IF(AND(IRR_DRIP=FALSE,CalcTable[[#This Row],[IrrHours]]<=0),FALSE,TRUE) ->  | X137: =AND(CalcTable[[#This Row],[IrrDay]],CalcTable[[#This Row],[IrrRain]],CalcTable[[#This Row],[IrrWarm]],CalcTable[[#This Row],[IrrWindy]]) ->  | Z137: =CalcTable[[#This Row],[IrrHours]]/5 ->  | AA137: =IF(CalcTable[[#This Row],[IrrFlag]]=FALSE,0,MAX(0,CalcTable[[#This Row],[VolRednWind]]*(FCAP*IRR_TARGET-CalcTable[[#This Row],[IWC]]))) ->  | AB137: =CalcTable[[#This Row],[IWC]]+CalcTable[[#This Row],[Eff Precip]]+CalcTable[[#This Row],[IrrAmt]]-CalcTable[[#This Row],[AET]] ->  | AC137: =IF(CalcTable[[#This Row],[PWC]]>FCAP,MIN(24*PERC,MIN(SAT,CalcTable[[#This Row],[PWC]])-FCAP),0) ->  | AD137: =IF(CalcTable[[#This Row],[PWC]]>SAT,CalcTable[[#This Row],[PWC]]-SAT,0) ->  | AE137: =CalcTable[[#This Row],[PWC]]-CalcTable[[#This Row],[PercAmt]]-CalcTable[[#This Row],[Runoff]] ->  | AF137: =CalcTable[[#This Row],[IrrAmt]]/1000*CUR_IRR_AREA*10000/IRR_EFF ->  | AI137: 0 | AJ137: 0 | AK137: 0 | AL137: 7.486186783 | AX137: 7.486186783 | AZ137: 219.5948123 | BA137: 338.1062983 | BB137: 348.5631941 | BC137: 19608 | BD137: 7.486186783 | BE137: 219.5948123 | BF137: 359.1872065 | BH137: 0 | BI137: 137 | BJ137: 137 | BK137: 1960-08-26
A138: 1960-08-27 | B138: 1960 | C138: 8 | D138: 240 | E138: 27 | F138: 7 | G138: 5 | H138: 3.681001625 | I138: 8.833333333 | J138: 0 | K138: 0 | L138: 0 | M138: =CalcTable[[#This Row],[IWC]]-AE137 ->  | N138: =IF(CalcTable[[#This Row],[Day of Year]]<123,FCAP,AE137) ->  | O138: =IF(IRR_DRIP,5,COUNTIF('IDET Wind Values'!C122:G122,"<="&IRR_MAXWIND)) ->  | P138: =CalcTable[[#This Row],[ET_o]]*KL ->  | Q138: =IF(WILTPT<=0,1,MAX(0,MIN(1,(CalcTable[[#This Row],[IWC]]-WILTPT)/(MAD-WILTPT)))) ->  | R138: =CalcTable[[#This Row],[ETMult]]*CalcTable[[#This Row],[ETb]] ->  | S138: =INDEX(IRR_LIST,CalcTable[[#This Row],[Day of Week]]+1) -> FALSE | T138: 1.1 | U138: =IF(CalcTable[[#This Row],[IrrPrecip]]>=IC_MM,FALSE,TRUE) -> TRUE | V138: TRUE | W138: =IF(AND(IRR_DRIP=FALSE,CalcTable[[#This Row],[IrrHours]]<=0),FALSE,TRUE) ->  | X138: =AND(CalcTable[[#This Row],[IrrDay]],CalcTable[[#This Row],[IrrRain]],CalcTable[[#This Row],[IrrWarm]],CalcTable[[#This Row],[IrrWindy]]) ->  | Z138: =CalcTable[[#This Row],[IrrHours]]/5 ->  | AA138: =IF(CalcTable[[#This Row],[IrrFlag]]=FALSE,0,MAX(0,CalcTable[[#This Row],[VolRednWind]]*(FCAP*IRR_TARGET-CalcTable[[#This Row],[IWC]]))) ->  | AB138: =CalcTable[[#This Row],[IWC]]+CalcTable[[#This Row],[Eff Precip]]+CalcTable[[#This Row],[IrrAmt]]-CalcTable[[#This Row],[AET]] ->  | AC138: =IF(CalcTable[[#This Row],[PWC]]>FCAP,MIN(24*PERC,MIN(SAT,CalcTable[[#This Row],[PWC]])-FCAP),0) ->  | AD138: =IF(CalcTable[[#This Row],[PWC]]>SAT,CalcTable[[#This Row],[PWC]]-SAT,0) ->  | AE138: =CalcTable[[#This Row],[PWC]]-CalcTable[[#This Row],[PercAmt]]-CalcTable[[#This Row],[Runoff]] ->  | AF138: =CalcTable[[#This Row],[IrrAmt]]/1000*CUR_IRR_AREA*10000/IRR_EFF ->  | AI138: 0 | AJ138: 0 | AK138: 0 | AL138: 0 | AX138: 0 | AZ138: 0 | BA138: 0 | BB138: 0 | BC138: 19608 | BD138: 0 | BE138: 0 | BF138: 0 | BH138: 0 | BI138: 138 | BJ138: 138 | BK138: 1960-08-27
A139: 1960-08-28 | B139: 1960 | C139: 8 | D139: 241 | E139: 28 | F139: 1 | G139: 8.9 | H139: 5.102136562 | I139: 28.16666667 | J139: 0 | K139: 0 | L139: 0 | M139: =CalcTable[[#This Row],[IWC]]-AE138 ->  | N139: =IF(CalcTable[[#This Row],[Day of Year]]<123,FCAP,AE138) ->  | O139: =IF(IRR_DRIP,5,COUNTIF('IDET Wind Values'!C123:G123,"<="&IRR_MAXWIND)) ->  | P139: =CalcTable[[#This Row],[ET_o]]*KL ->  | Q139: =IF(WILTPT<=0,1,MAX(0,MIN(1,(CalcTable[[#This Row],[IWC]]-WILTPT)/(MAD-WILTPT)))) ->  | R139: =CalcTable[[#This Row],[ETMult]]*CalcTable[[#This Row],[ETb]] ->  | S139: =INDEX(IRR_LIST,CalcTable[[#This Row],[Day of Week]]+1) -> TRUE | T139: 1.1 | U139: =IF(CalcTable[[#This Row],[IrrPrecip]]>=IC_MM,FALSE,TRUE) -> TRUE | V139: TRUE | W139: =IF(AND(IRR_DRIP=FALSE,CalcTable[[#This Row],[IrrHours]]<=0),FALSE,TRUE) ->  | X139: =AND(CalcTable[[#This Row],[IrrDay]],CalcTable[[#This Row],[IrrRain]],CalcTable[[#This Row],[IrrWarm]],CalcTable[[#This Row],[IrrWindy]]) ->  | Z139: =CalcTable[[#This Row],[IrrHours]]/5 ->  | AA139: =IF(CalcTable[[#This Row],[IrrFlag]]=FALSE,0,MAX(0,CalcTable[[#This Row],[VolRednWind]]*(FCAP*IRR_TARGET-CalcTable[[#This Row],[IWC]]))) ->  | AB139: =CalcTable[[#This Row],[IWC]]+CalcTable[[#This Row],[Eff Precip]]+CalcTable[[#This Row],[IrrAmt]]-CalcTable[[#This Row],[AET]] ->  | AC139: =IF(CalcTable[[#This Row],[PWC]]>FCAP,MIN(24*PERC,MIN(SAT,CalcTable[[#This Row],[PWC]])-FCAP),0) ->  | AD139: =IF(CalcTable[[#This Row],[PWC]]>SAT,CalcTable[[#This Row],[PWC]]-SAT,0) ->  | AE139: =CalcTable[[#This Row],[PWC]]-CalcTable[[#This Row],[PercAmt]]-CalcTable[[#This Row],[Runoff]] ->  | AF139: =CalcTable[[#This Row],[IrrAmt]]/1000*CUR_IRR_AREA*10000/IRR_EFF ->  | AI139: 3.433264752 | AJ139: 6.605358706 | AK139: 0 | AL139: 0 | AX139: 10.03862346 | AZ139: 244.1117384 | BA139: 397.1465801 | BB139: 411.1367263 | BC139: 19608 | BD139: 10.03862346 | BE139: 244.1117384 | BF139: 399.2890928 | BH139: 0 | BI139: 139 | BJ139: 139 | BK139: 1960-08-28
A140: 1960-08-29 | B140: 1960 | C140: 8 | D140: 242 | E140: 29 | F140: 2 | G140: 7.8 | H140: 4.704228259 | I140: 14.66666667 | J140: 0 | K140: 0 | L140: 0 | M140: =CalcTable[[#This Row],[IWC]]-AE139 ->  | N140: =IF(CalcTable[[#This Row],[Day of Year]]<123,FCAP,AE139) ->  | O140: =IF(IRR_DRIP,5,COUNTIF('IDET Wind Values'!C124:G124,"<="&IRR_MAXWIND)) ->  | P140: =CalcTable[[#This Row],[ET_o]]*KL ->  | Q140: =IF(WILTPT<=0,1,MAX(0,MIN(1,(CalcTable[[#This Row],[IWC]]-WILTPT)/(MAD-WILTPT)))) ->  | R140: =CalcTable[[#This Row],[ETMult]]*CalcTable[[#This Row],[ETb]] ->  | S140: =INDEX(IRR_LIST,CalcTable[[#This Row],[Day of Week]]+1) -> FALSE | T140: 0 | U140: =IF(CalcTable[[#This Row],[IrrPrecip]]>=IC_MM,FALSE,TRUE) -> TRUE | V140: TRUE | W140: =IF(AND(IRR_DRIP=FALSE,CalcTable[[#This Row],[IrrHours]]<=0),FALSE,TRUE) ->  | X140: =AND(CalcTable[[#This Row],[IrrDay]],CalcTable[[#This Row],[IrrRain]],CalcTable[[#This Row],[IrrWarm]],CalcTable[[#This Row],[IrrWindy]]) ->  | Z140: =CalcTable[[#This Row],[IrrHours]]/5 ->  | AA140: =IF(CalcTable[[#This Row],[IrrFlag]]=FALSE,0,MAX(0,CalcTable[[#This Row],[VolRednWind]]*(FCAP*IRR_TARGET-CalcTable[[#This Row],[IWC]]))) ->  | AB140: =CalcTable[[#This Row],[IWC]]+CalcTable[[#This Row],[Eff Precip]]+CalcTable[[#This Row],[IrrAmt]]-CalcTable[[#This Row],[AET]] ->  | AC140: =IF(CalcTable[[#This Row],[PWC]]>FCAP,MIN(24*PERC,MIN(SAT,CalcTable[[#This Row],[PWC]])-FCAP),0) ->  | AD140: =IF(CalcTable[[#This Row],[PWC]]>SAT,CalcTable[[#This Row],[PWC]]-SAT,0) ->  | AE140: =CalcTable[[#This Row],[PWC]]-CalcTable[[#This Row],[PercAmt]]-CalcTable[[#This Row],[Runoff]] ->  | AF140: =CalcTable[[#This Row],[IrrAmt]]/1000*CUR_IRR_AREA*10000/IRR_EFF ->  | AI140: 0 | AJ140: 0 | AK140: 7.018490266 | AL140: 7.110726003 | AX140: 14.12921627 | AZ140: 311.5191533 | BA140: 479.6406011 | BB140: 494.4748465 | BC140: 19608 | BD140: 14.12921627 | BE140: 311.5191533 | BF140: 509.546165 | BH140: 0 | BI140: 140 | BJ140: 140 | BK140: 1960-08-29
A141: 1960-08-30 | B141: 1960 | C141: 8 | D141: 243 | E141: 30 | F141: 3 | G141: 3.9 | H141: 4.341511834 | I141: 5.333333333 | J141: 0 | K141: 0 | L141: 0 | M141: =CalcTable[[#This Row],[IWC]]-AE140 ->  | N141: =IF(CalcTable[[#This Row],[Day of Year]]<123,FCAP,AE140) ->  | O141: =IF(IRR_DRIP,5,COUNTIF('IDET Wind Values'!C125:G125,"<="&IRR_MAXWIND)) ->  | P141: =CalcTable[[#This Row],[ET_o]]*KL ->  | Q141: =IF(WILTPT<=0,1,MAX(0,MIN(1,(CalcTable[[#This Row],[IWC]]-WILTPT)/(MAD-WILTPT)))) ->  | R141: =CalcTable[[#This Row],[ETMult]]*CalcTable[[#This Row],[ETb]] ->  | S141: =INDEX(IRR_LIST,CalcTable[[#This Row],[Day of Week]]+1) -> TRUE | T141: 0 | U141: =IF(CalcTable[[#This Row],[IrrPrecip]]>=IC_MM,FALSE,TRUE) -> TRUE | V141: TRUE | W141: =IF(AND(IRR_DRIP=FALSE,CalcTable[[#This Row],[IrrHours]]<=0),FALSE,TRUE) ->  | X141: =AND(CalcTable[[#This Row],[IrrDay]],CalcTable[[#This Row],[IrrRain]],CalcTable[[#This Row],[IrrWarm]],CalcTable[[#This Row],[IrrWindy]]) ->  | Z141: =CalcTable[[#This Row],[IrrHours]]/5 ->  | AA141: =IF(CalcTable[[#This Row],[IrrFlag]]=FALSE,0,MAX(0,CalcTable[[#This Row],[VolRednWind]]*(FCAP*IRR_TARGET-CalcTable[[#This Row],[IWC]]))) ->  | AB141: =CalcTable[[#This Row],[IWC]]+CalcTable[[#This Row],[Eff Precip]]+CalcTable[[#This Row],[IrrAmt]]-CalcTable[[#This Row],[AET]] ->  | AC141: =IF(CalcTable[[#This Row],[PWC]]>FCAP,MIN(24*PERC,MIN(SAT,CalcTable[[#This Row],[PWC]])-FCAP),0) ->  | AD141: =IF(CalcTable[[#This Row],[PWC]]>SAT,CalcTable[[#This Row],[PWC]]-SAT,0) ->  | AE141: =CalcTable[[#This Row],[PWC]]-CalcTable[[#This Row],[PercAmt]]-CalcTable[[#This Row],[Runoff]] ->  | AF141: =CalcTable[[#This Row],[IrrAmt]]/1000*CUR_IRR_AREA*10000/IRR_EFF ->  | AI141: 9.252912771 | AJ141: 17.17463156 | AK141: 0 | AL141: 0 | AX141: 26.42754433 | AZ141: 639.4985796 | BA141: 1039.986247 | BB141: 1076.589832 | BC141: 19608 | BD141: 26.42754433 | BE141: 639.4985796 | BF141: 1046.016096 | BH141: 0 | BI141: 141 | BJ141: 141 | BK141: 1960-08-30
A142: 1960-08-31 | B142: 1960 | C142: 8 | D142: 244 | E142: 31 | F142: 4 | G142: 6.7 | H142: 4.31745048 | I142: 10.16666667 | J142: 0 | K142: 0 | L142: 0 | M142: =CalcTable[[#This Row],[IWC]]-AE141 ->  | N142: =IF(CalcTable[[#This Row],[Day of Year]]<123,FCAP,AE141) ->  | O142: =IF(IRR_DRIP,5,COUNTIF('IDET Wind Values'!C126:G126,"<="&IRR_MAXWIND)) ->  | P142: =CalcTable[[#This Row],[ET_o]]*KL ->  | Q142: =IF(WILTPT<=0,1,MAX(0,MIN(1,(CalcTable[[#This Row],[IWC]]-WILTPT)/(MAD-WILTPT)))) ->  | R142: =CalcTable[[#This Row],[ETMult]]*CalcTable[[#This Row],[ETb]] ->  | S142: =INDEX(IRR_LIST,CalcTable[[#This Row],[Day of Week]]+1) -> FALSE | T142: 0 | U142: =IF(CalcTable[[#This Row],[IrrPrecip]]>=IC_MM,FALSE,TRUE) -> TRUE | V142: TRUE | W142: =IF(AND(IRR_DRIP=FALSE,CalcTable[[#This Row],[IrrHours]]<=0),FALSE,TRUE) ->  | X142: =AND(CalcTable[[#This Row],[IrrDay]],CalcTable[[#This Row],[IrrRain]],CalcTable[[#This Row],[IrrWarm]],CalcTable[[#This Row],[IrrWindy]]) ->  | Z142: =CalcTable[[#This Row],[IrrHours]]/5 ->  | AA142: =IF(CalcTable[[#This Row],[IrrFlag]]=FALSE,0,MAX(0,CalcTable[[#This Row],[VolRednWind]]*(FCAP*IRR_TARGET-CalcTable[[#This Row],[IWC]]))) ->  | AB142: =CalcTable[[#This Row],[IWC]]+CalcTable[[#This Row],[Eff Precip]]+CalcTable[[#This Row],[IrrAmt]]-CalcTable[[#This Row],[AET]] ->  | AC142: =IF(CalcTable[[#This Row],[PWC]]>FCAP,MIN(24*PERC,MIN(SAT,CalcTable[[#This Row],[PWC]])-FCAP),0) ->  | AD142: =IF(CalcTable[[#This Row],[PWC]]>SAT,CalcTable[[#This Row],[PWC]]-SAT,0) ->  | AE142: =CalcTable[[#This Row],[PWC]]-CalcTable[[#This Row],[PercAmt]]-CalcTable[[#This Row],[Runoff]] ->  | AF142: =CalcTable[[#This Row],[IrrAmt]]/1000*CUR_IRR_AREA*10000/IRR_EFF ->  | AI142: 0 | AJ142: 0 | AK142: 0 | AL142: 4.975157051 | AX142: 4.975157051 | AZ142: 145.9379402 | BA142: 224.6980983 | BB142: 231.6475241 | BC142: 19608 | BD142: 4.975157051 | BE142: 145.9379402 | BF142: 238.7080118 | BH142: 0 | BI142: 142 | BJ142: 142 | BK142: 1960-08-31
A143: 1960-09-01 | B143: 1960 | C143: 9 | D143: 245 | E143: 1 | F143: 5 | G143: 6.7 | H143: 2.982990395 | I143: 20.33333333 | J143: 0 | K143: 0 | L143: 0 | M143: =CalcTable[[#This Row],[IWC]]-AE142 ->  | N143: =IF(CalcTable[[#This Row],[Day of Year]]<123,FCAP,AE142) ->  | O143: =IF(IRR_DRIP,5,COUNTIF('IDET Wind Values'!C127:G127,"<="&IRR_MAXWIND)) ->  | P143: =CalcTable[[#This Row],[ET_o]]*KL ->  | Q143: =IF(WILTPT<=0,1,MAX(0,MIN(1,(CalcTable[[#This Row],[IWC]]-WILTPT)/(MAD-WILTPT)))) ->  | R143: =CalcTable[[#This Row],[ETMult]]*CalcTable[[#This Row],[ETb]] ->  | S143: =INDEX(IRR_LIST,CalcTable[[#This Row],[Day of Week]]+1) -> TRUE | T143: 0 | U143: =IF(CalcTable[[#This Row],[IrrPrecip]]>=IC_MM,FALSE,TRUE) -> TRUE | V143: TRUE | W143: =IF(AND(IRR_DRIP=FALSE,CalcTable[[#This Row],[IrrHours]]<=0),FALSE,TRUE) ->  | X143: =AND(CalcTable[[#This Row],[IrrDay]],CalcTable[[#This Row],[IrrRain]],CalcTable[[#This Row],[IrrWarm]],CalcTable[[#This Row],[IrrWindy]]) ->  | Z143: =CalcTable[[#This Row],[IrrHours]]/5 ->  | AA143: =IF(CalcTable[[#This Row],[IrrFlag]]=FALSE,0,MAX(0,CalcTable[[#This Row],[VolRednWind]]*(FCAP*IRR_TARGET-CalcTable[[#This Row],[IWC]]))) ->  | AB143: =CalcTable[[#This Row],[IWC]]+CalcTable[[#This Row],[Eff Precip]]+CalcTable[[#This Row],[IrrAmt]]-CalcTable[[#This Row],[AET]] ->  | AC143: =IF(CalcTable[[#This Row],[PWC]]>FCAP,MIN(24*PERC,MIN(SAT,CalcTable[[#This Row],[PWC]])-FCAP),0) ->  | AD143: =IF(CalcTable[[#This Row],[PWC]]>SAT,CalcTable[[#This Row],[PWC]]-SAT,0) ->  | AE143: =CalcTable[[#This Row],[PWC]]-CalcTable[[#This Row],[PercAmt]]-CalcTable[[#This Row],[Runoff]] ->  | AF143: =CalcTable[[#This Row],[IrrAmt]]/1000*CUR_IRR_AREA*10000/IRR_EFF ->  | AI143: 0 | AJ143: 0 | AK143: 0 | AL143: 0 | AX143: 0 | AZ143: 0 | BA143: 0 | BB143: 0 | BC143: 19609 | BD143: 0 | BE143: 0 | BF143: 0 | BH143: 0 | BI143: 143 | BJ143: 143 | BK143: 1960-09-01
A144: 1960-09-02 | B144: 1960 | C144: 9 | D144: 246 | E144: 2 | F144: 6 | G144: 7.2 | H144: 3.108284893 | I144: 24.5 | J144: 0 | K144: 0 | L144: 0 | M144: =CalcTable[[#This Row],[IWC]]-AE143 ->  | N144: =IF(CalcTable[[#This Row],[Day of Year]]<123,FCAP,AE143) ->  | O144: =IF(IRR_DRIP,5,COUNTIF('IDET Wind Values'!C128:G128,"<="&IRR_MAXWIND)) ->  | P144: =CalcTable[[#This Row],[ET_o]]*KL ->  | Q144: =IF(WILTPT<=0,1,MAX(0,MIN(1,(CalcTable[[#This Row],[IWC]]-WILTPT)/(MAD-WILTPT)))) ->  | R144: =CalcTable[[#This Row],[ETMult]]*CalcTable[[#This Row],[ETb]] ->  | S144: =INDEX(IRR_LIST,CalcTable[[#This Row],[Day of Week]]+1) -> FALSE | T144: 0 | U144: =IF(CalcTable[[#This Row],[IrrPrecip]]>=IC_MM,FALSE,TRUE) -> TRUE | V144: TRUE | W144: =IF(AND(IRR_DRIP=FALSE,CalcTable[[#This Row],[IrrHours]]<=0),FALSE,TRUE) ->  | X144: =AND(CalcTable[[#This Row],[IrrDay]],CalcTable[[#This Row],[IrrRain]],CalcTable[[#This Row],[IrrWarm]],CalcTable[[#This Row],[IrrWindy]]) ->  | Z144: =CalcTable[[#This Row],[IrrHours]]/5 ->  | AA144: =IF(CalcTable[[#This Row],[IrrFlag]]=FALSE,0,MAX(0,CalcTable[[#This Row],[VolRednWind]]*(FCAP*IRR_TARGET-CalcTable[[#This Row],[IWC]]))) ->  | AB144: =CalcTable[[#This Row],[IWC]]+CalcTable[[#This Row],[Eff Precip]]+CalcTable[[#This Row],[IrrAmt]]-CalcTable[[#This Row],[AET]] ->  | AC144: =IF(CalcTable[[#This Row],[PWC]]>FCAP,MIN(24*PERC,MIN(SAT,CalcTable[[#This Row],[PWC]])-FCAP),0) ->  | AD144: =IF(CalcTable[[#This Row],[PWC]]>SAT,CalcTable[[#This Row],[PWC]]-SAT,0) ->  | AE144: =CalcTable[[#This Row],[PWC]]-CalcTable[[#This Row],[PercAmt]]-CalcTable[[#This Row],[Runoff]] ->  | AF144: =CalcTable[[#This Row],[IrrAmt]]/1000*CUR_IRR_AREA*10000/IRR_EFF ->  | AI144: 0 | AJ144: 0 | AK144: 0 | AL144: 4.015242481 | AX144: 4.015242481 | AZ144: 117.7804461 | BA144: 181.3444964 | BB144: 186.9530891 | BC144: 19609 | BD144: 4.015242481 | BE144: 117.7804461 | BF144: 192.6513153 | BH144: 0 | BI144: 144 | BJ144: 144 | BK144: 1960-09-02
A145: 1960-09-03 | B145: 1960 | C145: 9 | D145: 247 | E145: 3 | F145: 7 | G145: 3.9 | H145: 4.374808645 | I145: 7.5 | J145: 0 | K145: 0 | L145: 0 | M145: =CalcTable[[#This Row],[IWC]]-AE144 ->  | N145: =IF(CalcTable[[#This Row],[Day of Year]]<123,FCAP,AE144) ->  | O145: =IF(IRR_DRIP,5,COUNTIF('IDET Wind Values'!C129:G129,"<="&IRR_MAXWIND)) ->  | P145: =CalcTable[[#This Row],[ET_o]]*KL ->  | Q145: =IF(WILTPT<=0,1,MAX(0,MIN(1,(CalcTable[[#This Row],[IWC]]-WILTPT)/(MAD-WILTPT)))) ->  | R145: =CalcTable[[#This Row],[ETMult]]*CalcTable[[#This Row],[ETb]] ->  | S145: =INDEX(IRR_LIST,CalcTable[[#This Row],[Day of Week]]+1) -> FALSE | T145: 0 | U145: =IF(CalcTable[[#This Row],[IrrPrecip]]>=IC_MM,FALSE,TRUE) -> TRUE | V145: TRUE | W145: =IF(AND(IRR_DRIP=FALSE,CalcTable[[#This Row],[IrrHours]]<=0),FALSE,TRUE) ->  | X145: =AND(CalcTable[[#This Row],[IrrDay]],CalcTable[[#This Row],[IrrRain]],CalcTable[[#This Row],[IrrWarm]],CalcTable[[#This Row],[IrrWindy]]) ->  | Z145: =CalcTable[[#This Row],[IrrHours]]/5 ->  | AA145: =IF(CalcTable[[#This Row],[IrrFlag]]=FALSE,0,MAX(0,CalcTable[[#This Row],[VolRednWind]]*(FCAP*IRR_TARGET-CalcTable[[#This Row],[IWC]]))) ->  | AB145: =CalcTable[[#This Row],[IWC]]+CalcTable[[#This Row],[Eff Precip]]+CalcTable[[#This Row],[IrrAmt]]-CalcTable[[#This Row],[AET]] ->  | AC145: =IF(CalcTable[[#This Row],[PWC]]>FCAP,MIN(24*PERC,MIN(SAT,CalcTable[[#This Row],[PWC]])-FCAP),0) ->  | AD145: =IF(CalcTable[[#This Row],[PWC]]>SAT,CalcTable[[#This Row],[PWC]]-SAT,0) ->  | AE145: =CalcTable[[#This Row],[PWC]]-CalcTable[[#This Row],[PercAmt]]-CalcTable[[#This Row],[Runoff]] ->  | AF145: =CalcTable[[#This Row],[IrrAmt]]/1000*CUR_IRR_AREA*10000/IRR_EFF ->  | AI145: 0 | AJ145: 0 | AK145: 6.549231513 | AL145: 0 | AX145: 6.549231513 | AZ145: 96.05539552 | BA145: 147.8948153 | BB145: 152.4688818 | BC145: 19609 | BD145: 6.549231513 | BE145: 96.05539552 | BF145: 157.1160485 | BH145: 0 | BI145: 145 | BJ145: 145 | BK145: 1960-09-03
A146: 1960-09-04 | B146: 1960 | C146: 9 | D146: 248 | E146: 4 | F146: 1 | G146: 10.6 | H146: 4.254081394 | I146: 3.833333333 | J146: 0.3 | K146: 0.3 | L146: 0 | M146: =CalcTable[[#This Row],[IWC]]-AE145 ->  | N146: =IF(CalcTable[[#This Row],[Day of Year]]<123,FCAP,AE145) ->  | O146: =IF(IRR_DRIP,5,COUNTIF('IDET Wind Values'!C130:G130,"<="&IRR_MAXWIND)) ->  | P146: =CalcTable[[#This Row],[ET_o]]*KL ->  | Q146: =IF(WILTPT<=0,1,MAX(0,MIN(1,(CalcTable[[#This Row],[IWC]]-WILTPT)/(MAD-WILTPT)))) ->  | R146: =CalcTable[[#This Row],[ETMult]]*CalcTable[[#This Row],[ETb]] ->  | S146: =INDEX(IRR_LIST,CalcTable[[#This Row],[Day of Week]]+1) -> TRUE | T146: 0 | U146: =IF(CalcTable[[#This Row],[IrrPrecip]]>=IC_MM,FALSE,TRUE) -> TRUE | V146: TRUE | W146: =IF(AND(IRR_DRIP=FALSE,CalcTable[[#This Row],[IrrHours]]<=0),FALSE,TRUE) ->  | X146: =AND(CalcTable[[#This Row],[IrrDay]],CalcTable[[#This Row],[IrrRain]],CalcTable[[#This Row],[IrrWarm]],CalcTable[[#This Row],[IrrWindy]]) ->  | Z146: =CalcTable[[#This Row],[IrrHours]]/5 ->  | AA146: =IF(CalcTable[[#This Row],[IrrFlag]]=FALSE,0,MAX(0,CalcTable[[#This Row],[VolRednWind]]*(FCAP*IRR_TARGET-CalcTable[[#This Row],[IWC]]))) ->  | AB146: =CalcTable[[#This Row],[IWC]]+CalcTable[[#This Row],[Eff Precip]]+CalcTable[[#This Row],[IrrAmt]]-CalcTable[[#This Row],[AET]] ->  | AC146: =IF(CalcTable[[#This Row],[PWC]]>FCAP,MIN(24*PERC,MIN(SAT,CalcTable[[#This Row],[PWC]])-FCAP),0) ->  | AD146: =IF(CalcTable[[#This Row],[PWC]]>SAT,CalcTable[[#This Row],[PWC]]-SAT,0) ->  | AE146: =CalcTable[[#This Row],[PWC]]-CalcTable[[#This Row],[PercAmt]]-CalcTable[[#This Row],[Runoff]] ->  | AF146: =CalcTable[[#This Row],[IrrAmt]]/1000*CUR_IRR_AREA*10000/IRR_EFF ->  | AI146: 3.053485562 | AJ146: 4.616817004 | AK146: 0 | AL146: 0 | AX146: 7.670302566 | AZ146: 180.211087 | BA146: 292.3499116 | BB146: 302.5849528 | BC146: 19609 | BD146: 7.670302566 | BE146: 180.211087 | BF146: 294.7679695 | BH146: 0 | BI146: 146 | BJ146: 146 | BK146: 1960-09-04
A147: 1960-09-05 | B147: 1960 | C147: 9 | D147: 249 | E147: 5 | F147: 2 | G147: 8.3 | H147: 5.127026067 | I147: 21 | J147: 0 | K147: 0 | L147: 0 | M147: =CalcTable[[#This Row],[IWC]]-AE146 ->  | N147: =IF(CalcTable[[#This Row],[Day of Year]]<123,FCAP,AE146) ->  | O147: =IF(IRR_DRIP,5,COUNTIF('IDET Wind Values'!C131:G131,"<="&IRR_MAXWIND)) ->  | P147: =CalcTable[[#This Row],[ET_o]]*KL ->  | Q147: =IF(WILTPT<=0,1,MAX(0,MIN(1,(CalcTable[[#This Row],[IWC]]-WILTPT)/(MAD-WILTPT)))) ->  | R147: =CalcTable[[#This Row],[ETMult]]*CalcTable[[#This Row],[ETb]] ->  | S147: =INDEX(IRR_LIST,CalcTable[[#This Row],[Day of Week]]+1) -> FALSE | T147: 0.3 | U147: =IF(CalcTable[[#This Row],[IrrPrecip]]>=IC_MM,FALSE,TRUE) -> TRUE | V147: TRUE | W147: =IF(AND(IRR_DRIP=FALSE,CalcTable[[#This Row],[IrrHours]]<=0),FALSE,TRUE) ->  | X147: =AND(CalcTable[[#This Row],[IrrDay]],CalcTable[[#This Row],[IrrRain]],CalcTable[[#This Row],[IrrWarm]],CalcTable[[#This Row],[IrrWindy]]) ->  | Z147: =CalcTable[[#This Row],[IrrHours]]/5 ->  | AA147: =IF(CalcTable[[#This Row],[IrrFlag]]=FALSE,0,MAX(0,CalcTable[[#This Row],[VolRednWind]]*(FCAP*IRR_TARGET-CalcTable[[#This Row],[IWC]]))) ->  | AB147: =CalcTable[[#This Row],[IWC]]+CalcTable[[#This Row],[Eff Precip]]+CalcTable[[#This Row],[IrrAmt]]-CalcTable[[#This Row],[AET]] ->  | AC147: =IF(CalcTable[[#This Row],[PWC]]>FCAP,MIN(24*PERC,MIN(SAT,CalcTable[[#This Row],[PWC]])-FCAP),0) ->  | AD147: =IF(CalcTable[[#This Row],[PWC]]>SAT,CalcTable[[#This Row],[PWC]]-SAT,0) ->  | AE147: =CalcTable[[#This Row],[PWC]]-CalcTable[[#This Row],[PercAmt]]-CalcTable[[#This Row],[Runoff]] ->  | AF147: =CalcTable[[#This Row],[IrrAmt]]/1000*CUR_IRR_AREA*10000/IRR_EFF ->  | AI147: 0 | AJ147: 0 | AK147: 2.875851431 | AL147: 7.025889521 | AX147: 9.901740952 | AZ147: 248.2719136 | BA147: 382.2599305 | BB147: 394.0824026 | BC147: 19609 | BD147: 9.901740952 | BE147: 248.2719136 | BF147: 406.0938151 | BH147: 0 | BI147: 147 | BJ147: 147 | BK147: 1960-09-05
A148: 1960-09-06 | B148: 1960 | C148: 9 | D148: 250 | E148: 6 | F148: 3 | G148: 4.4 | H148: 4.522225587 | I148: 11.66666667 | J148: 0 | K148: =J148*PRECIP_ADJUST -> 0 | L148: =IF(K148>=EFF_PRECIP,EFF_MULT*(K148-EFF_PRECIP),0) -> 0 | M148: =CalcTable[[#This Row],[IWC]]-AE147 ->  | N148: =IF(CalcTable[[#This Row],[Day of Year]]<123,FCAP,AE147) ->  | O148: =IF(IRR_DRIP,5,COUNTIF('IDET Wind Values'!C132:G132,"<="&IRR_MAXWIND)) ->  | P148: =CalcTable[[#This Row],[ET_o]]*KL ->  | Q148: =IF(WILTPT<=0,1,MAX(0,MIN(1,(CalcTable[[#This Row],[IWC]]-WILTPT)/(MAD-WILTPT)))) ->  | R148: =CalcTable[[#This Row],[ETMult]]*CalcTable[[#This Row],[ETb]] ->  | S148: =INDEX(IRR_LIST,CalcTable[[#This Row],[Day of Week]]+1) -> TRUE | T148: =SUM(OFFSET(K148,-IC_DAYS,0,IC_DAYS,1)) -> 0.3 | U148: =IF(CalcTable[[#This Row],[IrrPrecip]]>=IC_MM,FALSE,TRUE) -> TRUE | V148: =IF(G149<IRR_TEMP,FALSE,TRUE) -> TRUE | W148: =IF(AND(IRR_DRIP=FALSE,CalcTable[[#This Row],[IrrHours]]<=0),FALSE,TRUE) ->  | X148: =AND(CalcTable[[#This Row],[IrrDay]],CalcTable[[#This Row],[IrrRain]],CalcTable[[#This Row],[IrrWarm]],CalcTable[[#This Row],[IrrWindy]]) ->  | Y148: =IF(AA147<=0,FALSE,TRUE) ->  | Z148: =CalcTable[[#This Row],[IrrHours]]/5 ->  | AA148: =IF(CalcTable[[#This Row],[IrrFlag]]=FALSE,0,MAX(0,CalcTable[[#This Row],[VolRednWind]]*(FCAP*IRR_TARGET-CalcTable[[#This Row],[IWC]]))) ->  | AB148: =CalcTable[[#This Row],[IWC]]+CalcTable[[#This Row],[Eff Precip]]+CalcTable[[#This Row],[IrrAmt]]-CalcTable[[#This Row],[AET]] ->  | AC148: =IF(CalcTable[[#This Row],[PWC]]>FCAP,MIN(24*PERC,MIN(SAT,CalcTable[[#This Row],[PWC]])-FCAP),0) ->  | AD148: =IF(CalcTable[[#This Row],[PWC]]>SAT,CalcTable[[#This Row],[PWC]]-SAT,0) ->  | AE148: =CalcTable[[#This Row],[PWC]]-CalcTable[[#This Row],[PercAmt]]-CalcTable[[#This Row],[Runoff]] ->  | AF148: =CalcTable[[#This Row],[IrrAmt]]/1000*CUR_IRR_AREA*10000/IRR_EFF ->  | AI148: 0 | AJ148: 0 | AK148: 0 | AL148: 0 | AX148: 0 | AZ148: =SUMPRODUCT(AI148:AW148,CONVERSION) -> 0 | BA148: =SUMPRODUCT($AI148:$AW148,CONVERSION,APP_DEMAND) -> 0 | BB148: =SUMPRODUCT($AI148:$AW148,CONVERSION,PUMP_DEMAND) -> 0 | BC148: =B148*10+C148 -> 19609 | BD148: =INDEX(AI148:AX148,PLOT_AREA) -> 0 | BE148: =IF(PLOT_AREA<=AREA_COUNT,INDEX(AI148:AW148,PLOT_AREA)*INDEX(CONVERSION,PLOT_AREA),AZ148) -> 0 | BF148: 0 | BH148: =IF(BC148<PLOT_FROM,-1,IF(BC148>PLOT_TO,1,0)) -> 0 | BI148: 148 | BJ148: 148 | BK148: 1960-09-06 | BL148: =WILTPT ->  | BM148: =SAT ->  | BN148: =FCAP -> 
